Workbook

Sheet Score
A1: Full Name | B1: First Nm | C1: Last Nm | D1: PDGA # | E1: City | F1: State | G1: Div | H1: Angry | I1: Nevin | J1: Renny | K1: Score | L1: Registration
A2: Christian Scott | B2: Christian | C2: Scott | D2: 45982 | E2: Charlotte | F2: NC | G2: Metal Minors | H2: =ChSc!$AB$8 -> 81 | I2: =ChSc!$AB$18 -> 81 | J2: =ChSc!$AB$28 -> 88 | K2: =ChSc!$AB$34 -> 250 | L2: 5/13/19 4:15 PM
A3: Debbie Scott | B3: Debbie | C3: Scott | D3: 43896 | E3: Charlotte | F3: NC | G3: Iron Maidens | H3: =DeSc!$AB$8 -> 77 | I3: =DeSc!$AB$18 -> 82 | J3: =DeSc!$AB$28 -> 81 | K3: =DeSc!$AB$34 -> 240 | L3: 5/09/19 10:53 PM
A4: Brandi Buckalew | B4: Brandi | C4: Buckalew | D4: 95739 | E4: Catawba | F4: NC | G4: Iron Maidens | H4: =BrBu!$AB$8 -> 81 | I4: =BrBu!$AB$18 -> 78 | J4: =BrBu!$AB$28 -> 89 | K4: =BrBu!$AB$34 -> 248 | L4: 6/09/19 9:54 PM
A5: Paetyn Emmert | B5: Paetyn | C5: Emmert | D5: 95550 | E5: Johnson City | F5: TN | G5: Iron Maidens | H5: =PaEm!$AB$8 -> 85 | I5: =PaEm!$AB$18 -> 94 | J5: =PaEm!$AB$28 -> 89 | K5: =PaEm!$AB$34 -> 268 | L5: 6/13/19 11:56 AM
A6: Victoria Scott | B6: Victoria | C6: Scott | D6: 45761 | E6: Charlotte | F6: NC | G6: Iron Maidens | H6: =ViSc!$AB$8 -> 89 | I6: =ViSc!$AB$18 -> 100 | J6: =ViSc!$AB$28 -> 97 | K6: =ViSc!$AB$34 -> 286 | L6: 5/13/19 4:13 PM
A7: James Hopkins | B7: James | C7: Farmer | D7: 50270 | E7: Greensboro | F7: NC | G7: Iron Men | H7: =JaHo!$AB$8 -> 63 | I7: =JaHo!$AB$18 -> 61 | J7: =JaHo!$AB$28 -> 65 | K7: =JaHo!$AB$34 -> 189 | L7: 6/20/19 11:35 AM
A8: David Love | B8: David | C8: Love | D8: 71737 | E8: Kingsport | F8: TN | G8: Iron Men | H8: =DaLo!$AB$8 -> 63 | I8: =DaLo!$AB$18 -> 63 | J8: =DaLo!$AB$28 -> 69 | K8: =DaLo!$AB$34 -> 195 | L8: 6/13/19 9:28 PM
A9: Trey King | B9: Trey | C9: King | E9: Charlotte | F9: NC | G9: Iron Men | H9: =TrKi!$AB$8 -> 63 | I9: =TrKi!$AB$18 -> 72 | J9: =TrKi!$AB$28 -> 72 | K9: =TrKi!$AB$34 -> 207 | L9: 6/19/19 10:45 PM
A10: Christopher Rowe | B10: Christopher | C10: Rowe | D10: 79142 | E10: Johnson City | F10: TN | G10: Iron Men | H10: =ChRo!$AB$8 -> 65 | I10: =ChRo!$AB$18 -> 68 | J10: =ChRo!$AB$28 -> 77 | K10: =ChRo!$AB$34 -> 210 | L10: 6/13/19 12:08 PM
A11: Jimmy Ziros | B11: Jimmy | C11: Ziros | D11: 117793 | E11: Charlotte | F11: NC | G11: Iron Men | H11: =JiZi!$AB$8 -> 67 | I11: =JiZi!$AB$18 -> 74 | J11: =JiZi!$AB$28 -> 73 | K11: =JiZi!$AB$34 -> 214 | L11: 6/04/19 12:18 PM
A12: Dakota Hopkins | B12: Dakota | C12: Hopkins | D12: 82258 | E12: Bristol | F12: TN | G12: Iron Men | H12: =DaHo!$AB$8 -> 73 | I12: =DaHo!$AB$18 -> 67 | J12: =DaHo!$AB$28 -> 77 | K12: =DaHo!$AB$34 -> 217 | L12: 6/18/19 2:58 PM
A13: JT Ford | B13: JT | C13: Ford | E13: Concord | F13: NC | G13: Iron Men | H13: =JTFo!$AB$8 -> 75 | I13: =JTFo!$AB$18 -> 72 | J13: =JTFo!$AB$28 -> 76 | K13: =JTFo!$AB$34 -> 223 | L13: 6/13/19 6:53 PM
A14: Tim Hatley | B14: Tim | C14: Hatley | E14: Pineville | F14: NC | G14: Iron Men | H14: =TiHa!$AB$8 -> 74 | I14: =TiHa!$AB$18 -> 75 | J14: =TiHa!$AB$28 -> 77 | K14: =TiHa!$AB$34 -> 226 | L14: 5/18/19 8:07 PM
A15: Benjamin Cybul | B15: Benjamin | C15: Cybul | D15: 56757 | E15: Charlotte | F15: AL | G15: Iron Men | H15: =BeCy!$AB$8 -> 72 | I15: =BeCy!$AB$18 -> 78 | J15: =BeCy!$AB$28 -> 77 | K15: =BeCy!$AB$34 -> 227 | L15: 6/06/19 11:11 AM
A16: Devon Neely | B16: Devon | C16: Neely | E16: Concord | F16: NC | G16: Iron Men | H16: =DeNe!$AB$8 -> 74 | I16: =DeNe!$AB$18 -> 75 | J16: =DeNe!$AB$28 -> 81 | K16: =DeNe!$AB$34 -> 230 | L16: 6/13/19 2:00 PM
A17: Justin Black | B17: Justin | C17: Black | D17: 90302 | E17: Statesville | F17: NC | G17: Iron Men | H17: =JuBl!$AB$8 -> 73 | I17: =JuBl!$AB$18 -> 76 | J17: =JuBl!$AB$28 -> 81 | K17: =JuBl!$AB$34 -> 230 | L17: 6/20/19 8:29 AM
A18: Kael Byrd | B18: Kael | C18: Byrd | D18: 116384 | E18: N. Wilkesboro | F18: NC | G18: Iron Men | H18: =KaBy!$AB$8 -> 74 | I18: =KaBy!$AB$18 -> 74 | J18: =KaBy!$AB$28 -> 83 | K18: =KaBy!$AB$34 -> 231 | L18: 6/19/19 3:26 PM
A19: Jonathan Charping | B19: Jonathan | C19: Charping | D19: 51153 | E19: Gastonia | F19: NC | G19: Iron Men | H19: =JoCh!$AB$8 -> 68 | I19: =JoCh!$AB$18 -> 83 | J19: =JoCh!$AB$28 -> 81 | K19: =JoCh!$AB$34 -> 232 | L19: 6/19/19 5:58 PM
A20: Jim Buckalew | B20: Jim | C20: Buckalew Jr | D20: 94060 | E20: Newton | F20: NC | G20: Iron Men | H20: =JiBu!$AB$8 -> 76 | I20: =JiBu!$AB$18 -> 77 | J20: =JiBu!$AB$28 -> 82 | K20: =JiBu!$AB$34 -> 235 | L20: 6/09/19 9:55 PM
A21: Corey Nortz | B21: Corey | C21: Nortz | E21: Mooresville | F21: NC | G21: Iron Men | H21: =CoNo!$AB$8 -> 79 | I21: =CoNo!$AB$18 -> 80 | J21: =CoNo!$AB$28 -> 79 | K21: =CoNo!$AB$34 -> 238 | L21: 6/11/19 8:43 AM
A22: Michael Walseman | B22: Michael | C22: Walseman | D22: 108324 | E22: Charlotte | F22: NC | G22: Iron Men | H22: =MiWa!$AB$8 -> 77 | I22: =MiWa!$AB$18 -> 82 | J22: =MiWa!$AB$28 -> 81 | K22: =MiWa!$AB$34 -> 240 | L22: 6/10/19 8:35 PM
A23: James Farmer | B23: James | C23: Graves | D23: 30904 | E23: Winston Salem | F23: NC | G23: Iron Men | H23: =JaFa!$AB$8 -> 77 | I23: =JaFa!$AB$18 -> 87 | J23: =JaFa!$AB$28 -> 79 | K23: =JaFa!$AB$34 -> 243 | L23: 5/13/19 2:04 PM
A24: Cody Robinson | B24: Cody | C24: Robinson | D24: 100259 | E24: Taylorsville | F24: NC | G24: Iron Men | H24: =CoRo!$AB$8 -> 77 | I24: =CoRo!$AB$18 -> 85 | J24: =CoRo!$AB$28 -> 83 | K24: =CoRo!$AB$34 -> 245 | L24: 6/19/19 2:54 PM
A25: Bob Scott | B25: Bob | C25: Scott | D25: 68996 | E25: Charlotte | F25: NC | G25: Iron Men | H25: =BoSc!$AB$8 -> 83 | I25: =BoSc!$AB$18 -> 88 | J25: =BoSc!$AB$28 -> 81 | K25: =BoSc!$AB$34 -> 252 | L25: 5/13/19 4:06 PM
A26: James Graves | B26: James | C26: Hopkins | D26: 49184 | E26: Leland | F26: NC | G26: Iron Men | H26: =JaGr!$AB$8 -> 80 | I26: =JaGr!$AB$18 -> 83 | J26: =JaGr!$AB$28 -> 90 | K26: =JaGr!$AB$34 -> 253 | L26: 6/18/19 5:21 PM
A27: Robert Sadowski | B27: Robert | C27: Sadowski | D27: 68521 | E27: Granite Falls | F27: NC | G27: Iron Men | H27: =RoSa!$AB$8 -> 89 | I27: =RoSa!$AB$18 -> 84 | J27: =RoSa!$AB$28 -> 92 | K27: =RoSa!$AB$34 -> 265 | L27: 5/30/19 11:49 PM
A28: Brandon Terry | B28: Brandon | C28: Terry | E28: Rock Hill | F28: SC | G28: Iron Men | H28: =BrTe!$AB$8 -> 92 | I28: =BrTe!$AB$18 -> 91 | J28: =BrTe!$AB$28 -> 85 | K28: =BrTe!$AB$34 -> 268 | L28: 5/14/19 1:57 PM
A29: Hannable McGarity | B29: Hannable | C29: McGarity | D29: 90754 | E29: Lillington | F29: NC | G29: Iron Men | H29: =HaMc!$AB$8 -> 87 | I29: =HaMc!$AB$18 -> 94 | J29: =HaMc!$AB$28 -> 88 | K29: =HaMc!$AB$34 -> 269 | L29: 6/20/19 6:31 AM
A30: Michael Williams | B30: Michael | C30: Williams | F30: NC | G30: Iron Men | H30: =MiWi!$AB$8 -> 94 | I30: =MiWi!$AB$18 -> 96 | J30: =MiWi!$AB$28 -> 84 | K30: =MiWi!$AB$34 -> 274 | L30: 6/13/19 6:56 PM
A31: Cameron Linger | B31: Cameron | C31: Linger | E31: Charlotte | F31: SC | G31: Iron Men | H31: =CaLi!$AB$8 -> 95 | I31: =CaLi!$AB$18 -> 98 | J31: =CaLi!$AB$28 -> 105 | K31: =CaLi!$AB$34 -> 298 | L31: 5/13/19 10:51 AM
A32: Jordan Lyndaker | B32: Jordan | C32: Lyndaker | E32: Charlotte | F32: NC | G32: Iron Men | H32: =JoLy!$AB$8 -> 89 | I32: =JoLy!$AB$18 -> 102 | J32: =JoLy!$AB$28 -> 107 | K32: =JoLy!$AB$34 -> 298 | L32: 6/18/19 2:06 PM
A33: Mitchell McGarity | B33: Mitchell | C33: McGarity | D33: 99534 | E33: Lillington | F33: NC | G33: Iron Men | H33: =MiMc!$AB$8 -> 103 | I33: =MiMc!$AB$18 -> 96 | J33: =MiMc!$AB$28 -> 101 | K33: =MiMc!$AB$34 -> 300 | L33: 6/20/19 10:18 AM

Sheet Totals
A1: 2019 Charlotte Iron Man | F1: Hole | G1: 1 | H1: 2 | I1: 3 | J1: 4 | K1: 5 | L1: 6 | M1: 7 | N1: 8 | O1: 9 | P1: Out | Q1: ANGRY
F2: Dist. | G2: 235 | H2: 158 | I2: 222 | J2: 439 | K2: 801 | L2: 491 | M2: 282 | N2: 567 | O2: 268 | P2: =SUM(G2:O2) -> 3463 | T2: Name | U2: Totals (all players) | Z2: Div | AA2: All Divisions
F3: Par | G3: 3 | H3: 3 | I3: 3 | J3: 4 | K3: 5 | L3: 4 | M3: 3 | N3: 4 | O3: 3 | P3: =SUM(G3:O3) -> 32
F4: Score | P4: 0
F5: Hole | G5: 10 | H5: 11 | I5: 12 | J5: 13 | K5: 14 | L5: 15 | M5: 16 | N5: 17 | O5: 18 | P5: In | Q5: Total | T5: ANGRY | U5: Ace | V5: Eag | W5: Bir | X5: Par | Y5: Bog | Z5: Bg+ | AA5: Sno | AB5: Score
F6: Dist. | G6: 563 | H6: 465 | I6: 215 | J6: 409 | K6: 333 | L6: 702 | M6: 431 | N6: 282 | O6: 814 | P6: =SUM(G6:O6) -> 4214 | Q6: =P6+P2 -> 7677 | T6: Front | U6: =SUM(ChSc!U6,BrBu!U6,DeSc!U6,PaEm!U6,ViSc!U6,BeCy!U6,BoSc!U6,BrTe!U6,CaLi!U6,ChRo!U6,CoRo!U6,CoNo!U6,DaHo!U6,DaLo!U6,DeNe!U6,HaMc!U6,JaFa!U6,JaGr!U6,JaHo!U6,JiZi!U6,JoCh!U6,JoLy!U6,JiBu!U6,JTFo!U6,JuBl!U6,KaBy!U6,MiWa!U6,MiWi!U6,MiMc!U6,RoSa!U6,TiHa!U6,TrKi!U6) -> 0 | V6: =SUM(ChSc!V6,BrBu!V6,DeSc!V6,PaEm!V6,ViSc!V6,BeCy!V6,BoSc!V6,BrTe!V6,CaLi!V6,ChRo!V6,CoRo!V6,CoNo!V6,DaHo!V6,DaLo!V6,DeNe!V6,HaMc!V6,JaFa!V6,JaGr!V6,JaHo!V6,JiZi!V6,JoCh!V6,JoLy!V6,JiBu!V6,JTFo!V6,JuBl!V6,KaBy!V6,MiWa!V6,MiWi!V6,MiMc!V6,RoSa!V6,TiHa!V6,TrKi!V6) -> 0 | W6: =SUM(ChSc!W6,BrBu!W6,DeSc!W6,PaEm!W6,ViSc!W6,BeCy!W6,BoSc!W6,BrTe!W6,CaLi!W6,ChRo!W6,CoRo!W6,CoNo!W6,DaHo!W6,DaLo!W6,DeNe!W6,HaMc!W6,JaFa!W6,JaGr!W6,JaHo!W6,JiZi!W6,JoCh!W6,JoLy!W6,JiBu!W6,JTFo!W6,JuBl!W6,KaBy!W6,MiWa!W6,MiWi!W6,MiMc!W6,RoSa!W6,TiHa!W6,TrKi!W6) -> 35 | X6: =SUM(ChSc!X6,BrBu!X6,DeSc!X6,PaEm!X6,ViSc!X6,BeCy!X6,BoSc!X6,BrTe!X6,CaLi!X6,ChRo!X6,CoRo!X6,CoNo!X6,DaHo!X6,DaLo!X6,DeNe!X6,HaMc!X6,JaFa!X6,JaGr!X6,JaHo!X6,JiZi!X6,JoCh!X6,JoLy!X6,JiBu!X6,JTFo!X6,JuBl!X6,KaBy!X6,MiWa!X6,MiWi!X6,MiMc!X6,RoSa!X6,TiHa!X6,TrKi!X6) -> 119 | Y6: =SUM(ChSc!Y6,BrBu!Y6,DeSc!Y6,PaEm!Y6,ViSc!Y6,BeCy!Y6,BoSc!Y6,BrTe!Y6,CaLi!Y6,ChRo!Y6,CoRo!Y6,CoNo!Y6,DaHo!Y6,DaLo!Y6,DeNe!Y6,HaMc!Y6,JaFa!Y6,JaGr!Y6,JaHo!Y6,JiZi!Y6,JoCh!Y6,JoLy!Y6,JiBu!Y6,JTFo!Y6,JuBl!Y6,KaBy!Y6,MiWa!Y6,MiWi!Y6,MiMc!Y6,RoSa!Y6,TiHa!Y6,TrKi!Y6) -> 76 | Z6: =SUM(ChSc!Z6,BrBu!Z6,DeSc!Z6,PaEm!Z6,ViSc!Z6,BeCy!Z6,BoSc!Z6,BrTe!Z6,CaLi!Z6,ChRo!Z6,CoRo!Z6,CoNo!Z6,DaHo!Z6,DaLo!Z6,DeNe!Z6,HaMc!Z6,JaFa!Z6,JaGr!Z6,JaHo!Z6,JiZi!Z6,JoCh!Z6,JoLy!Z6,JiBu!Z6,JTFo!Z6,JuBl!Z6,KaBy!Z6,MiWa!Z6,MiWi!Z6,MiMc!Z6,RoSa!Z6,TiHa!Z6,TrKi!Z6) -> 58 | AA6: =SUM(ChSc!AA6,BrBu!AA6,DeSc!AA6,PaEm!AA6,ViSc!AA6,BeCy!AA6,BoSc!AA6,BrTe!AA6,CaLi!AA6,ChRo!AA6,CoRo!AA6,CoNo!AA6,DaHo!AA6,DaLo!AA6,DeNe!AA6,HaMc!AA6,JaFa!AA6,JaGr!AA6,JaHo!AA6,JiZi!AA6,JoCh!AA6,JoLy!AA6,JiBu!AA6,JTFo!AA6,JuBl!AA6,KaBy!AA6,MiWa!AA6,MiWi!AA6,MiMc!AA6,RoSa!AA6,TiHa!AA6,TrKi!AA6) -> 2 | AB6: =SUM(ChSc!AB6,BrBu!AB6,DeSc!AB6,PaEm!AB6,ViSc!AB6,BeCy!AB6,BoSc!AB6,BrTe!AB6,CaLi!AB6,ChRo!AB6,CoRo!AB6,CoNo!AB6,DaHo!AB6,DaLo!AB6,DeNe!AB6,HaMc!AB6,JaFa!AB6,JaGr!AB6,JaHo!AB6,JiZi!AB6,JoCh!AB6,JoLy!AB6,JiBu!AB6,JTFo!AB6,JuBl!AB6,KaBy!AB6,MiWa!AB6,MiWi!AB6,MiMc!AB6,RoSa!AB6,TiHa!AB6,TrKi!AB6) -> 1196
F7: Par | G7: 4 | H7: 4 | I7: 3 | J7: 4 | K7: 3 | L7: 5 | M7: 4 | N7: 3 | O7: 5 | P7: =SUM(G7:O7) -> 35 | Q7: =P7+P3 -> 67 | T7: Back | U7: =SUM(ChSc!U7,BrBu!U7,DeSc!U7,PaEm!U7,ViSc!U7,BeCy!U7,BoSc!U7,BrTe!U7,CaLi!U7,ChRo!U7,CoRo!U7,CoNo!U7,DaHo!U7,DaLo!U7,DeNe!U7,HaMc!U7,JaFa!U7,JaGr!U7,JaHo!U7,JiZi!U7,JoCh!U7,JoLy!U7,JiBu!U7,JTFo!U7,JuBl!U7,KaBy!U7,MiWa!U7,MiWi!U7,MiMc!U7,RoSa!U7,TiHa!U7,TrKi!U7) -> 0 | V7: =SUM(ChSc!V7,BrBu!V7,DeSc!V7,PaEm!V7,ViSc!V7,BeCy!V7,BoSc!V7,BrTe!V7,CaLi!V7,ChRo!V7,CoRo!V7,CoNo!V7,DaHo!V7,DaLo!V7,DeNe!V7,HaMc!V7,JaFa!V7,JaGr!V7,JaHo!V7,JiZi!V7,JoCh!V7,JoLy!V7,JiBu!V7,JTFo!V7,JuBl!V7,KaBy!V7,MiWa!V7,MiWi!V7,MiMc!V7,RoSa!V7,TiHa!V7,TrKi!V7) -> 0 | W7: =SUM(ChSc!W7,BrBu!W7,DeSc!W7,PaEm!W7,ViSc!W7,BeCy!W7,BoSc!W7,BrTe!W7,CaLi!W7,ChRo!W7,CoRo!W7,CoNo!W7,DaHo!W7,DaLo!W7,DeNe!W7,HaMc!W7,JaFa!W7,JaGr!W7,JaHo!W7,JiZi!W7,JoCh!W7,JoLy!W7,JiBu!W7,JTFo!W7,JuBl!W7,KaBy!W7,MiWa!W7,MiWi!W7,MiMc!W7,RoSa!W7,TiHa!W7,TrKi!W7) -> 30 | X7: =SUM(ChSc!X7,BrBu!X7,DeSc!X7,PaEm!X7,ViSc!X7,BeCy!X7,BoSc!X7,BrTe!X7,CaLi!X7,ChRo!X7,CoRo!X7,CoNo!X7,DaHo!X7,DaLo!X7,DeNe!X7,HaMc!X7,JaFa!X7,JaGr!X7,JaHo!X7,JiZi!X7,JoCh!X7,JoLy!X7,JiBu!X7,JTFo!X7,JuBl!X7,KaBy!X7,MiWa!X7,MiWi!X7,MiMc!X7,RoSa!X7,TiHa!X7,TrKi!X7) -> 114 | Y7: =SUM(ChSc!Y7,BrBu!Y7,DeSc!Y7,PaEm!Y7,ViSc!Y7,BeCy!Y7,BoSc!Y7,BrTe!Y7,CaLi!Y7,ChRo!Y7,CoRo!Y7,CoNo!Y7,DaHo!Y7,DaLo!Y7,DeNe!Y7,HaMc!Y7,JaFa!Y7,JaGr!Y7,JaHo!Y7,JiZi!Y7,JoCh!Y7,JoLy!Y7,JiBu!Y7,JTFo!Y7,JuBl!Y7,KaBy!Y7,MiWa!Y7,MiWi!Y7,MiMc!Y7,RoSa!Y7,TiHa!Y7,TrKi!Y7) -> 86 | Z7: =SUM(ChSc!Z7,BrBu!Z7,DeSc!Z7,PaEm!Z7,ViSc!Z7,BeCy!Z7,BoSc!Z7,BrTe!Z7,CaLi!Z7,ChRo!Z7,CoRo!Z7,CoNo!Z7,DaHo!Z7,DaLo!Z7,DeNe!Z7,HaMc!Z7,JaFa!Z7,JaGr!Z7,JaHo!Z7,JiZi!Z7,JoCh!Z7,JoLy!Z7,JiBu!Z7,JTFo!Z7,JuBl!Z7,KaBy!Z7,MiWa!Z7,MiWi!Z7,MiMc!Z7,RoSa!Z7,TiHa!Z7,TrKi!Z7) -> 58 | AA7: =SUM(ChSc!AA7,BrBu!AA7,DeSc!AA7,PaEm!AA7,ViSc!AA7,BeCy!AA7,BoSc!AA7,BrTe!AA7,CaLi!AA7,ChRo!AA7,CoRo!AA7,CoNo!AA7,DaHo!AA7,DaLo!AA7,DeNe!AA7,HaMc!AA7,JaFa!AA7,JaGr!AA7,JaHo!AA7,JiZi!AA7,JoCh!AA7,JoLy!AA7,JiBu!AA7,JTFo!AA7,JuBl!AA7,KaBy!AA7,MiWa!AA7,MiWi!AA7,MiMc!AA7,RoSa!AA7,TiHa!AA7,TrKi!AA7) -> 4 | AB7: =SUM(ChSc!AB7,BrBu!AB7,DeSc!AB7,PaEm!AB7,ViSc!AB7,BeCy!AB7,BoSc!AB7,BrTe!AB7,CaLi!AB7,ChRo!AB7,CoRo!AB7,CoNo!AB7,DaHo!AB7,DaLo!AB7,DeNe!AB7,HaMc!AB7,JaFa!AB7,JaGr!AB7,JaHo!AB7,JiZi!AB7,JoCh!AB7,JoLy!AB7,JiBu!AB7,JTFo!AB7,JuBl!AB7,KaBy!AB7,MiWa!AB7,MiWi!AB7,MiMc!AB7,RoSa!AB7,TiHa!AB7,TrKi!AB7) -> 1319
F8: Score | P8: =SUM(G8:O8) -> 0 | Q8: 0 | T8: Total | U8: =SUM(ChSc!U8,BrBu!U8,DeSc!U8,PaEm!U8,ViSc!U8,BeCy!U8,BoSc!U8,BrTe!U8,CaLi!U8,ChRo!U8,CoRo!U8,CoNo!U8,DaHo!U8,DaLo!U8,DeNe!U8,HaMc!U8,JaFa!U8,JaGr!U8,JaHo!U8,JiZi!U8,JoCh!U8,JoLy!U8,JiBu!U8,JTFo!U8,JuBl!U8,KaBy!U8,MiWa!U8,MiWi!U8,MiMc!U8,RoSa!U8,TiHa!U8,TrKi!U8) -> 0 | V8: =SUM(ChSc!V8,BrBu!V8,DeSc!V8,PaEm!V8,ViSc!V8,BeCy!V8,BoSc!V8,BrTe!V8,CaLi!V8,ChRo!V8,CoRo!V8,CoNo!V8,DaHo!V8,DaLo!V8,DeNe!V8,HaMc!V8,JaFa!V8,JaGr!V8,JaHo!V8,JiZi!V8,JoCh!V8,JoLy!V8,JiBu!V8,JTFo!V8,JuBl!V8,KaBy!V8,MiWa!V8,MiWi!V8,MiMc!V8,RoSa!V8,TiHa!V8,TrKi!V8) -> 0 | W8: =SUM(ChSc!W8,BrBu!W8,DeSc!W8,PaEm!W8,ViSc!W8,BeCy!W8,BoSc!W8,BrTe!W8,CaLi!W8,ChRo!W8,CoRo!W8,CoNo!W8,DaHo!W8,DaLo!W8,DeNe!W8,HaMc!W8,JaFa!W8,JaGr!W8,JaHo!W8,JiZi!W8,JoCh!W8,JoLy!W8,JiBu!W8,JTFo!W8,JuBl!W8,KaBy!W8,MiWa!W8,MiWi!W8,MiMc!W8,RoSa!W8,TiHa!W8,TrKi!W8) -> 65 | X8: =SUM(ChSc!X8,BrBu!X8,DeSc!X8,PaEm!X8,ViSc!X8,BeCy!X8,BoSc!X8,BrTe!X8,CaLi!X8,ChRo!X8,CoRo!X8,CoNo!X8,DaHo!X8,DaLo!X8,DeNe!X8,HaMc!X8,JaFa!X8,JaGr!X8,JaHo!X8,JiZi!X8,JoCh!X8,JoLy!X8,JiBu!X8,JTFo!X8,JuBl!X8,KaBy!X8,MiWa!X8,MiWi!X8,MiMc!X8,RoSa!X8,TiHa!X8,TrKi!X8) -> 233 | Y8: =SUM(ChSc!Y8,BrBu!Y8,DeSc!Y8,PaEm!Y8,ViSc!Y8,BeCy!Y8,BoSc!Y8,BrTe!Y8,CaLi!Y8,ChRo!Y8,CoRo!Y8,CoNo!Y8,DaHo!Y8,DaLo!Y8,DeNe!Y8,HaMc!Y8,JaFa!Y8,JaGr!Y8,JaHo!Y8,JiZi!Y8,JoCh!Y8,JoLy!Y8,JiBu!Y8,JTFo!Y8,JuBl!Y8,KaBy!Y8,MiWa!Y8,MiWi!Y8,MiMc!Y8,RoSa!Y8,TiHa!Y8,TrKi!Y8) -> 162 | Z8: =SUM(ChSc!Z8,BrBu!Z8,DeSc!Z8,PaEm!Z8,ViSc!Z8,BeCy!Z8,BoSc!Z8,BrTe!Z8,CaLi!Z8,ChRo!Z8,CoRo!Z8,CoNo!Z8,DaHo!Z8,DaLo!Z8,DeNe!Z8,HaMc!Z8,JaFa!Z8,JaGr!Z8,JaHo!Z8,JiZi!Z8,JoCh!Z8,JoLy!Z8,JiBu!Z8,JTFo!Z8,JuBl!Z8,KaBy!Z8,MiWa!Z8,MiWi!Z8,MiMc!Z8,RoSa!Z8,TiHa!Z8,TrKi!Z8) -> 116 | AA8: =SUM(ChSc!AA8,BrBu!AA8,DeSc!AA8,PaEm!AA8,ViSc!AA8,BeCy!AA8,BoSc!AA8,BrTe!AA8,CaLi!AA8,ChRo!AA8,CoRo!AA8,CoNo!AA8,DaHo!AA8,DaLo!AA8,DeNe!AA8,HaMc!AA8,JaFa!AA8,JaGr!AA8,JaHo!AA8,JiZi!AA8,JoCh!AA8,JoLy!AA8,JiBu!AA8,JTFo!AA8,JuBl!AA8,KaBy!AA8,MiWa!AA8,MiWi!AA8,MiMc!AA8,RoSa!AA8,TiHa!AA8,TrKi!AA8) -> 6 | AB8: =SUM(ChSc!AB8,BrBu!AB8,DeSc!AB8,PaEm!AB8,ViSc!AB8,BeCy!AB8,BoSc!AB8,BrTe!AB8,CaLi!AB8,ChRo!AB8,CoRo!AB8,CoNo!AB8,DaHo!AB8,DaLo!AB8,DeNe!AB8,HaMc!AB8,JaFa!AB8,JaGr!AB8,JaHo!AB8,JiZi!AB8,JoCh!AB8,JoLy!AB8,JiBu!AB8,JTFo!AB8,JuBl!AB8,KaBy!AB8,MiWa!AB8,MiWi!AB8,MiMc!AB8,RoSa!AB8,TiHa!AB8,TrKi!AB8) -> 2515
B11: Hole | C11: 1 | D11: 2 | E11: 3 | F11: 4 | G11: 5 | H11: 6 | I11: 7 | J11: 8 | K11: 9 | L11: Out | M11: NEVIN
B12: Dist. | C12: 491 | D12: 240 | E12: 375 | F12: 538 | G12: 656 | H12: 317 | I12: 202 | J12: 329 | K12: 593 | L12: =SUM(C12:K12) -> 3741
B13: Par | C13: 4 | D13: 3 | E13: 3 | F13: 4 | G13: 5 | H13: 3 | I13: 3 | J13: 3 | K13: 4 | L13: =SUM(C13:K13) -> 32
B14: Score | L14: 0
B15: Hole | C15: 10 | D15: 11 | E15: 12 | F15: 13 | G15: 14 | H15: 15 | I15: 16 | J15: 17 | K15: 18 | L15: In | M15: Total | T15: NEVIN | U15: Ace | V15: Eag | W15: Bir | X15: Par | Y15: Bog | Z15: Bg+ | AA15: Sno | AB15: Score
B16: Dist. | C16: 630 | D16: 640 | E16: 970 | F16: 274 | G16: 550 | H16: 252 | I16: 596 | J16: 581 | K16: 530 | L16: =SUM(C16:K16) -> 5023 | M16: =L16+L12 -> 8764 | T16: Front | U16: =SUM(ChSc!U16,BrBu!U16,DeSc!U16,PaEm!U16,ViSc!U16,BeCy!U16,BoSc!U16,BrTe!U16,CaLi!U16,ChRo!U16,CoRo!U16,CoNo!U16,DaHo!U16,DaLo!U16,DeNe!U16,HaMc!U16,JaFa!U16,JaGr!U16,JaHo!U16,JiZi!U16,JoCh!U16,JoLy!U16,JiBu!U16,JTFo!U16,JuBl!U16,KaBy!U16,MiWa!U16,MiWi!U16,MiMc!U16,RoSa!U16,TiHa!U16,TrKi!U16) -> 0 | V16: =SUM(ChSc!V16,BrBu!V16,DeSc!V16,PaEm!V16,ViSc!V16,BeCy!V16,BoSc!V16,BrTe!V16,CaLi!V16,ChRo!V16,CoRo!V16,CoNo!V16,DaHo!V16,DaLo!V16,DeNe!V16,HaMc!V16,JaFa!V16,JaGr!V16,JaHo!V16,JiZi!V16,JoCh!V16,JoLy!V16,JiBu!V16,JTFo!V16,JuBl!V16,KaBy!V16,MiWa!V16,MiWi!V16,MiMc!V16,RoSa!V16,TiHa!V16,TrKi!V16) -> 0 | W16: =SUM(ChSc!W16,BrBu!W16,DeSc!W16,PaEm!W16,ViSc!W16,BeCy!W16,BoSc!W16,BrTe!W16,CaLi!W16,ChRo!W16,CoRo!W16,CoNo!W16,DaHo!W16,DaLo!W16,DeNe!W16,HaMc!W16,JaFa!W16,JaGr!W16,JaHo!W16,JiZi!W16,JoCh!W16,JoLy!W16,JiBu!W16,JTFo!W16,JuBl!W16,KaBy!W16,MiWa!W16,MiWi!W16,MiMc!W16,RoSa!W16,TiHa!W16,TrKi!W16) -> 21 | X16: =SUM(ChSc!X16,BrBu!X16,DeSc!X16,PaEm!X16,ViSc!X16,BeCy!X16,BoSc!X16,BrTe!X16,CaLi!X16,ChRo!X16,CoRo!X16,CoNo!X16,DaHo!X16,DaLo!X16,DeNe!X16,HaMc!X16,JaFa!X16,JaGr!X16,JaHo!X16,JiZi!X16,JoCh!X16,JoLy!X16,JiBu!X16,JTFo!X16,JuBl!X16,KaBy!X16,MiWa!X16,MiWi!X16,MiMc!X16,RoSa!X16,TiHa!X16,TrKi!X16) -> 116 | Y16: =SUM(ChSc!Y16,BrBu!Y16,DeSc!Y16,PaEm!Y16,ViSc!Y16,BeCy!Y16,BoSc!Y16,BrTe!Y16,CaLi!Y16,ChRo!Y16,CoRo!Y16,CoNo!Y16,DaHo!Y16,DaLo!Y16,DeNe!Y16,HaMc!Y16,JaFa!Y16,JaGr!Y16,JaHo!Y16,JiZi!Y16,JoCh!Y16,JoLy!Y16,JiBu!Y16,JTFo!Y16,JuBl!Y16,KaBy!Y16,MiWa!Y16,MiWi!Y16,MiMc!Y16,RoSa!Y16,TiHa!Y16,TrKi!Y16) -> 84 | Z16: =SUM(ChSc!Z16,BrBu!Z16,DeSc!Z16,PaEm!Z16,ViSc!Z16,BeCy!Z16,BoSc!Z16,BrTe!Z16,CaLi!Z16,ChRo!Z16,CoRo!Z16,CoNo!Z16,DaHo!Z16,DaLo!Z16,DeNe!Z16,HaMc!Z16,JaFa!Z16,JaGr!Z16,JaHo!Z16,JiZi!Z16,JoCh!Z16,JoLy!Z16,JiBu!Z16,JTFo!Z16,JuBl!Z16,KaBy!Z16,MiWa!Z16,MiWi!Z16,MiMc!Z16,RoSa!Z16,TiHa!Z16,TrKi!Z16) -> 67 | AA16: =SUM(ChSc!AA16,BrBu!AA16,DeSc!AA16,PaEm!AA16,ViSc!AA16,BeCy!AA16,BoSc!AA16,BrTe!AA16,CaLi!AA16,ChRo!AA16,CoRo!AA16,CoNo!AA16,DaHo!AA16,DaLo!AA16,DeNe!AA16,HaMc!AA16,JaFa!AA16,JaGr!AA16,JaHo!AA16,JiZi!AA16,JoCh!AA16,JoLy!AA16,JiBu!AA16,JTFo!AA16,JuBl!AA16,KaBy!AA16,MiWa!AA16,MiWi!AA16,MiMc!AA16,RoSa!AA16,TiHa!AA16,TrKi!AA16) -> 6 | AB16: =SUM(ChSc!AB16,BrBu!AB16,DeSc!AB16,PaEm!AB16,ViSc!AB16,BeCy!AB16,BoSc!AB16,BrTe!AB16,CaLi!AB16,ChRo!AB16,CoRo!AB16,CoNo!AB16,DaHo!AB16,DaLo!AB16,DeNe!AB16,HaMc!AB16,JaFa!AB16,JaGr!AB16,JaHo!AB16,JiZi!AB16,JoCh!AB16,JoLy!AB16,JiBu!AB16,JTFo!AB16,JuBl!AB16,KaBy!AB16,MiWa!AB16,MiWi!AB16,MiMc!AB16,RoSa!AB16,TiHa!AB16,TrKi!AB16) -> 1243
B17: Par | C17: 5 | D17: 4 | E17: 5 | F17: 3 | G17: 4 | H17: 3 | I17: 4 | J17: 5 | K17: 4 | L17: =SUM(C17:K17) -> 37 | M17: =L17+L13 -> 69 | T17: Back | U17: =SUM(ChSc!U17,BrBu!U17,DeSc!U17,PaEm!U17,ViSc!U17,BeCy!U17,BoSc!U17,BrTe!U17,CaLi!U17,ChRo!U17,CoRo!U17,CoNo!U17,DaHo!U17,DaLo!U17,DeNe!U17,HaMc!U17,JaFa!U17,JaGr!U17,JaHo!U17,JiZi!U17,JoCh!U17,JoLy!U17,JiBu!U17,JTFo!U17,JuBl!U17,KaBy!U17,MiWa!U17,MiWi!U17,MiMc!U17,RoSa!U17,TiHa!U17,TrKi!U17) -> 0 | V17: =SUM(ChSc!V17,BrBu!V17,DeSc!V17,PaEm!V17,ViSc!V17,BeCy!V17,BoSc!V17,BrTe!V17,CaLi!V17,ChRo!V17,CoRo!V17,CoNo!V17,DaHo!V17,DaLo!V17,DeNe!V17,HaMc!V17,JaFa!V17,JaGr!V17,JaHo!V17,JiZi!V17,JoCh!V17,JoLy!V17,JiBu!V17,JTFo!V17,JuBl!V17,KaBy!V17,MiWa!V17,MiWi!V17,MiMc!V17,RoSa!V17,TiHa!V17,TrKi!V17) -> 0 | W17: =SUM(ChSc!W17,BrBu!W17,DeSc!W17,PaEm!W17,ViSc!W17,BeCy!W17,BoSc!W17,BrTe!W17,CaLi!W17,ChRo!W17,CoRo!W17,CoNo!W17,DaHo!W17,DaLo!W17,DeNe!W17,HaMc!W17,JaFa!W17,JaGr!W17,JaHo!W17,JiZi!W17,JoCh!W17,JoLy!W17,JiBu!W17,JTFo!W17,JuBl!W17,KaBy!W17,MiWa!W17,MiWi!W17,MiMc!W17,RoSa!W17,TiHa!W17,TrKi!W17) -> 28 | X17: =SUM(ChSc!X17,BrBu!X17,DeSc!X17,PaEm!X17,ViSc!X17,BeCy!X17,BoSc!X17,BrTe!X17,CaLi!X17,ChRo!X17,CoRo!X17,CoNo!X17,DaHo!X17,DaLo!X17,DeNe!X17,HaMc!X17,JaFa!X17,JaGr!X17,JaHo!X17,JiZi!X17,JoCh!X17,JoLy!X17,JiBu!X17,JTFo!X17,JuBl!X17,KaBy!X17,MiWa!X17,MiWi!X17,MiMc!X17,RoSa!X17,TiHa!X17,TrKi!X17) -> 117 | Y17: =SUM(ChSc!Y17,BrBu!Y17,DeSc!Y17,PaEm!Y17,ViSc!Y17,BeCy!Y17,BoSc!Y17,BrTe!Y17,CaLi!Y17,ChRo!Y17,CoRo!Y17,CoNo!Y17,DaHo!Y17,DaLo!Y17,DeNe!Y17,HaMc!Y17,JaFa!Y17,JaGr!Y17,JaHo!Y17,JiZi!Y17,JoCh!Y17,JoLy!Y17,JiBu!Y17,JTFo!Y17,JuBl!Y17,KaBy!Y17,MiWa!Y17,MiWi!Y17,MiMc!Y17,RoSa!Y17,TiHa!Y17,TrKi!Y17) -> 92 | Z17: =SUM(ChSc!Z17,BrBu!Z17,DeSc!Z17,PaEm!Z17,ViSc!Z17,BeCy!Z17,BoSc!Z17,BrTe!Z17,CaLi!Z17,ChRo!Z17,CoRo!Z17,CoNo!Z17,DaHo!Z17,DaLo!Z17,DeNe!Z17,HaMc!Z17,JaFa!Z17,JaGr!Z17,JaHo!Z17,JiZi!Z17,JoCh!Z17,JoLy!Z17,JiBu!Z17,JTFo!Z17,JuBl!Z17,KaBy!Z17,MiWa!Z17,MiWi!Z17,MiMc!Z17,RoSa!Z17,TiHa!Z17,TrKi!Z17) -> 51 | AA17: =SUM(ChSc!AA17,BrBu!AA17,DeSc!AA17,PaEm!AA17,ViSc!AA17,BeCy!AA17,BoSc!AA17,BrTe!AA17,CaLi!AA17,ChRo!AA17,CoRo!AA17,CoNo!AA17,DaHo!AA17,DaLo!AA17,DeNe!AA17,HaMc!AA17,JaFa!AA17,JaGr!AA17,JaHo!AA17,JiZi!AA17,JoCh!AA17,JoLy!AA17,JiBu!AA17,JTFo!AA17,JuBl!AA17,KaBy!AA17,MiWa!AA17,MiWi!AA17,MiMc!AA17,RoSa!AA17,TiHa!AA17,TrKi!AA17) -> 7 | AB17: =SUM(ChSc!AB17,BrBu!AB17,DeSc!AB17,PaEm!AB17,ViSc!AB17,BeCy!AB17,BoSc!AB17,BrTe!AB17,CaLi!AB17,ChRo!AB17,CoRo!AB17,CoNo!AB17,DaHo!AB17,DaLo!AB17,DeNe!AB17,HaMc!AB17,JaFa!AB17,JaGr!AB17,JaHo!AB17,JiZi!AB17,JoCh!AB17,JoLy!AB17,JiBu!AB17,JTFo!AB17,JuBl!AB17,KaBy!AB17,MiWa!AB17,MiWi!AB17,MiMc!AB17,RoSa!AB17,TiHa!AB17,TrKi!AB17) -> 1373
B18: Score | L18: =SUM(C18:K18) -> 0 | M18: 0 | T18: Total | U18: =SUM(ChSc!U18,BrBu!U18,DeSc!U18,PaEm!U18,ViSc!U18,BeCy!U18,BoSc!U18,BrTe!U18,CaLi!U18,ChRo!U18,CoRo!U18,CoNo!U18,DaHo!U18,DaLo!U18,DeNe!U18,HaMc!U18,JaFa!U18,JaGr!U18,JaHo!U18,JiZi!U18,JoCh!U18,JoLy!U18,JiBu!U18,JTFo!U18,JuBl!U18,KaBy!U18,MiWa!U18,MiWi!U18,MiMc!U18,RoSa!U18,TiHa!U18,TrKi!U18) -> 0 | V18: =SUM(ChSc!V18,BrBu!V18,DeSc!V18,PaEm!V18,ViSc!V18,BeCy!V18,BoSc!V18,BrTe!V18,CaLi!V18,ChRo!V18,CoRo!V18,CoNo!V18,DaHo!V18,DaLo!V18,DeNe!V18,HaMc!V18,JaFa!V18,JaGr!V18,JaHo!V18,JiZi!V18,JoCh!V18,JoLy!V18,JiBu!V18,JTFo!V18,JuBl!V18,KaBy!V18,MiWa!V18,MiWi!V18,MiMc!V18,RoSa!V18,TiHa!V18,TrKi!V18) -> 0 | W18: =SUM(ChSc!W18,BrBu!W18,DeSc!W18,PaEm!W18,ViSc!W18,BeCy!W18,BoSc!W18,BrTe!W18,CaLi!W18,ChRo!W18,CoRo!W18,CoNo!W18,DaHo!W18,DaLo!W18,DeNe!W18,HaMc!W18,JaFa!W18,JaGr!W18,JaHo!W18,JiZi!W18,JoCh!W18,JoLy!W18,JiBu!W18,JTFo!W18,JuBl!W18,KaBy!W18,MiWa!W18,MiWi!W18,MiMc!W18,RoSa!W18,TiHa!W18,TrKi!W18) -> 49 | X18: =SUM(ChSc!X18,BrBu!X18,DeSc!X18,PaEm!X18,ViSc!X18,BeCy!X18,BoSc!X18,BrTe!X18,CaLi!X18,ChRo!X18,CoRo!X18,CoNo!X18,DaHo!X18,DaLo!X18,DeNe!X18,HaMc!X18,JaFa!X18,JaGr!X18,JaHo!X18,JiZi!X18,JoCh!X18,JoLy!X18,JiBu!X18,JTFo!X18,JuBl!X18,KaBy!X18,MiWa!X18,MiWi!X18,MiMc!X18,RoSa!X18,TiHa!X18,TrKi!X18) -> 233 | Y18: =SUM(ChSc!Y18,BrBu!Y18,DeSc!Y18,PaEm!Y18,ViSc!Y18,BeCy!Y18,BoSc!Y18,BrTe!Y18,CaLi!Y18,ChRo!Y18,CoRo!Y18,CoNo!Y18,DaHo!Y18,DaLo!Y18,DeNe!Y18,HaMc!Y18,JaFa!Y18,JaGr!Y18,JaHo!Y18,JiZi!Y18,JoCh!Y18,JoLy!Y18,JiBu!Y18,JTFo!Y18,JuBl!Y18,KaBy!Y18,MiWa!Y18,MiWi!Y18,MiMc!Y18,RoSa!Y18,TiHa!Y18,TrKi!Y18) -> 176 | Z18: =SUM(ChSc!Z18,BrBu!Z18,DeSc!Z18,PaEm!Z18,ViSc!Z18,BeCy!Z18,BoSc!Z18,BrTe!Z18,CaLi!Z18,ChRo!Z18,CoRo!Z18,CoNo!Z18,DaHo!Z18,DaLo!Z18,DeNe!Z18,HaMc!Z18,JaFa!Z18,JaGr!Z18,JaHo!Z18,JiZi!Z18,JoCh!Z18,JoLy!Z18,JiBu!Z18,JTFo!Z18,JuBl!Z18,KaBy!Z18,MiWa!Z18,MiWi!Z18,MiMc!Z18,RoSa!Z18,TiHa!Z18,TrKi!Z18) -> 118 | AA18: =SUM(ChSc!AA18,BrBu!AA18,DeSc!AA18,PaEm!AA18,ViSc!AA18,BeCy!AA18,BoSc!AA18,BrTe!AA18,CaLi!AA18,ChRo!AA18,CoRo!AA18,CoNo!AA18,DaHo!AA18,DaLo!AA18,DeNe!AA18,HaMc!AA18,JaFa!AA18,JaGr!AA18,JaHo!AA18,JiZi!AA18,JoCh!AA18,JoLy!AA18,JiBu!AA18,JTFo!AA18,JuBl!AA18,KaBy!AA18,MiWa!AA18,MiWi!AA18,MiMc!AA18,RoSa!AA18,TiHa!AA18,TrKi!AA18) -> 13 | AB18: =SUM(ChSc!AB18,BrBu!AB18,DeSc!AB18,PaEm!AB18,ViSc!AB18,BeCy!AB18,BoSc!AB18,BrTe!AB18,CaLi!AB18,ChRo!AB18,CoRo!AB18,CoNo!AB18,DaHo!AB18,DaLo!AB18,DeNe!AB18,HaMc!AB18,JaFa!AB18,JaGr!AB18,JaHo!AB18,JiZi!AB18,JoCh!AB18,JoLy!AB18,JiBu!AB18,JTFo!AB18,JuBl!AB18,KaBy!AB18,MiWa!AB18,MiWi!AB18,MiMc!AB18,RoSa!AB18,TiHa!AB18,TrKi!AB18) -> 2616
F21: Hole | G21: 1 | H21: 2 | I21: 3 | J21: 4 | K21: 5 | L21: 6 | M21: 7 | N21: 8 | O21: 9 | P21: Out | Q21: RENNY
F22: Dist. | G22: 523 | H22: 519 | I22: 386 | J22: 551 | K22: 392 | L22: 257 | M22: 465 | N22: 323 | O22: 285 | P22: =SUM(G22:O22) -> 3701
F23: Par | G23: 4 | H23: 4 | I23: 4 | J23: 4 | K23: 4 | L23: 3 | M23: 4 | N23: 3 | O23: 3 | P23: =SUM(G23:O23) -> 33
F24: Score | P24: 0
F25: Hole | G25: 10 | H25: 11 | I25: 12 | J25: 13 | K25: 14 | L25: 15 | M25: 16 | N25: 17 | O25: 18 | P25: In | Q25: Total | T25: RENNY | U25: Ace | V25: Eag | W25: Bir | X25: Par | Y25: Bog | Z25: Bg+ | AA25: Sno | AB25: Score
F26: Dist. | G26: 538 | H26: 1042 | I26: 617 | J26: 974 | K26: 564 | L26: 378 | M26: 302 | N26: 517 | O26: 826 | P26: =SUM(G26:O26) -> 5758 | Q26: =P26+P22 -> 9459 | T26: Front | U26: =SUM(ChSc!U26,BrBu!U26,DeSc!U26,PaEm!U26,ViSc!U26,BeCy!U26,BoSc!U26,BrTe!U26,CaLi!U26,ChRo!U26,CoRo!U26,CoNo!U26,DaHo!U26,DaLo!U26,DeNe!U26,HaMc!U26,JaFa!U26,JaGr!U26,JaHo!U26,JiZi!U26,JoCh!U26,JoLy!U26,JiBu!U26,JTFo!U26,JuBl!U26,KaBy!U26,MiWa!U26,MiWi!U26,MiMc!U26,RoSa!U26,TiHa!U26,TrKi!U26) -> 0 | V26: =SUM(ChSc!V26,BrBu!V26,DeSc!V26,PaEm!V26,ViSc!V26,BeCy!V26,BoSc!V26,BrTe!V26,CaLi!V26,ChRo!V26,CoRo!V26,CoNo!V26,DaHo!V26,DaLo!V26,DeNe!V26,HaMc!V26,JaFa!V26,JaGr!V26,JaHo!V26,JiZi!V26,JoCh!V26,JoLy!V26,JiBu!V26,JTFo!V26,JuBl!V26,KaBy!V26,MiWa!V26,MiWi!V26,MiMc!V26,RoSa!V26,TiHa!V26,TrKi!V26) -> 0 | W26: =SUM(ChSc!W26,BrBu!W26,DeSc!W26,PaEm!W26,ViSc!W26,BeCy!W26,BoSc!W26,BrTe!W26,CaLi!W26,ChRo!W26,CoRo!W26,CoNo!W26,DaHo!W26,DaLo!W26,DeNe!W26,HaMc!W26,JaFa!W26,JaGr!W26,JaHo!W26,JiZi!W26,JoCh!W26,JoLy!W26,JiBu!W26,JTFo!W26,JuBl!W26,KaBy!W26,MiWa!W26,MiWi!W26,MiMc!W26,RoSa!W26,TiHa!W26,TrKi!W26) -> 28 | X26: =SUM(ChSc!X26,BrBu!X26,DeSc!X26,PaEm!X26,ViSc!X26,BeCy!X26,BoSc!X26,BrTe!X26,CaLi!X26,ChRo!X26,CoRo!X26,CoNo!X26,DaHo!X26,DaLo!X26,DeNe!X26,HaMc!X26,JaFa!X26,JaGr!X26,JaHo!X26,JiZi!X26,JoCh!X26,JoLy!X26,JiBu!X26,JTFo!X26,JuBl!X26,KaBy!X26,MiWa!X26,MiWi!X26,MiMc!X26,RoSa!X26,TiHa!X26,TrKi!X26) -> 141 | Y26: =SUM(ChSc!Y26,BrBu!Y26,DeSc!Y26,PaEm!Y26,ViSc!Y26,BeCy!Y26,BoSc!Y26,BrTe!Y26,CaLi!Y26,ChRo!Y26,CoRo!Y26,CoNo!Y26,DaHo!Y26,DaLo!Y26,DeNe!Y26,HaMc!Y26,JaFa!Y26,JaGr!Y26,JaHo!Y26,JiZi!Y26,JoCh!Y26,JoLy!Y26,JiBu!Y26,JTFo!Y26,JuBl!Y26,KaBy!Y26,MiWa!Y26,MiWi!Y26,MiMc!Y26,RoSa!Y26,TiHa!Y26,TrKi!Y26) -> 81 | Z26: =SUM(ChSc!Z26,BrBu!Z26,DeSc!Z26,PaEm!Z26,ViSc!Z26,BeCy!Z26,BoSc!Z26,BrTe!Z26,CaLi!Z26,ChRo!Z26,CoRo!Z26,CoNo!Z26,DaHo!Z26,DaLo!Z26,DeNe!Z26,HaMc!Z26,JaFa!Z26,JaGr!Z26,JaHo!Z26,JiZi!Z26,JoCh!Z26,JoLy!Z26,JiBu!Z26,JTFo!Z26,JuBl!Z26,KaBy!Z26,MiWa!Z26,MiWi!Z26,MiMc!Z26,RoSa!Z26,TiHa!Z26,TrKi!Z26) -> 38 | AA26: =SUM(ChSc!AA26,BrBu!AA26,DeSc!AA26,PaEm!AA26,ViSc!AA26,BeCy!AA26,BoSc!AA26,BrTe!AA26,CaLi!AA26,ChRo!AA26,CoRo!AA26,CoNo!AA26,DaHo!AA26,DaLo!AA26,DeNe!AA26,HaMc!AA26,JaFa!AA26,JaGr!AA26,JaHo!AA26,JiZi!AA26,JoCh!AA26,JoLy!AA26,JiBu!AA26,JTFo!AA26,JuBl!AA26,KaBy!AA26,MiWa!AA26,MiWi!AA26,MiMc!AA26,RoSa!AA26,TiHa!AA26,TrKi!AA26) -> 4 | AB26: =SUM(ChSc!AB26,BrBu!AB26,DeSc!AB26,PaEm!AB26,ViSc!AB26,BeCy!AB26,BoSc!AB26,BrTe!AB26,CaLi!AB26,ChRo!AB26,CoRo!AB26,CoNo!AB26,DaHo!AB26,DaLo!AB26,DeNe!AB26,HaMc!AB26,JaFa!AB26,JaGr!AB26,JaHo!AB26,JiZi!AB26,JoCh!AB26,JoLy!AB26,JiBu!AB26,JTFo!AB26,JuBl!AB26,KaBy!AB26,MiWa!AB26,MiWi!AB26,MiMc!AB26,RoSa!AB26,TiHa!AB26,TrKi!AB26) -> 1201
F27: Par | G27: 4 | H27: 5 | I27: 4 | J27: 5 | K27: 4 | L27: 3 | M27: 3 | N27: 4 | O27: 5 | P27: =SUM(G27:O27) -> 37 | Q27: =P27+P23 -> 70 | T27: Back | U27: =SUM(ChSc!U27,BrBu!U27,DeSc!U27,PaEm!U27,ViSc!U27,BeCy!U27,BoSc!U27,BrTe!U27,CaLi!U27,ChRo!U27,CoRo!U27,CoNo!U27,DaHo!U27,DaLo!U27,DeNe!U27,HaMc!U27,JaFa!U27,JaGr!U27,JaHo!U27,JiZi!U27,JoCh!U27,JoLy!U27,JiBu!U27,JTFo!U27,JuBl!U27,KaBy!U27,MiWa!U27,MiWi!U27,MiMc!U27,RoSa!U27,TiHa!U27,TrKi!U27) -> 0 | V27: =SUM(ChSc!V27,BrBu!V27,DeSc!V27,PaEm!V27,ViSc!V27,BeCy!V27,BoSc!V27,BrTe!V27,CaLi!V27,ChRo!V27,CoRo!V27,CoNo!V27,DaHo!V27,DaLo!V27,DeNe!V27,HaMc!V27,JaFa!V27,JaGr!V27,JaHo!V27,JiZi!V27,JoCh!V27,JoLy!V27,JiBu!V27,JTFo!V27,JuBl!V27,KaBy!V27,MiWa!V27,MiWi!V27,MiMc!V27,RoSa!V27,TiHa!V27,TrKi!V27) -> 1 | W27: =SUM(ChSc!W27,BrBu!W27,DeSc!W27,PaEm!W27,ViSc!W27,BeCy!W27,BoSc!W27,BrTe!W27,CaLi!W27,ChRo!W27,CoRo!W27,CoNo!W27,DaHo!W27,DaLo!W27,DeNe!W27,HaMc!W27,JaFa!W27,JaGr!W27,JaHo!W27,JiZi!W27,JoCh!W27,JoLy!W27,JiBu!W27,JTFo!W27,JuBl!W27,KaBy!W27,MiWa!W27,MiWi!W27,MiMc!W27,RoSa!W27,TiHa!W27,TrKi!W27) -> 12 | X27: =SUM(ChSc!X27,BrBu!X27,DeSc!X27,PaEm!X27,ViSc!X27,BeCy!X27,BoSc!X27,BrTe!X27,CaLi!X27,ChRo!X27,CoRo!X27,CoNo!X27,DaHo!X27,DaLo!X27,DeNe!X27,HaMc!X27,JaFa!X27,JaGr!X27,JaHo!X27,JiZi!X27,JoCh!X27,JoLy!X27,JiBu!X27,JTFo!X27,JuBl!X27,KaBy!X27,MiWa!X27,MiWi!X27,MiMc!X27,RoSa!X27,TiHa!X27,TrKi!X27) -> 96 | Y27: =SUM(ChSc!Y27,BrBu!Y27,DeSc!Y27,PaEm!Y27,ViSc!Y27,BeCy!Y27,BoSc!Y27,BrTe!Y27,CaLi!Y27,ChRo!Y27,CoRo!Y27,CoNo!Y27,DaHo!Y27,DaLo!Y27,DeNe!Y27,HaMc!Y27,JaFa!Y27,JaGr!Y27,JaHo!Y27,JiZi!Y27,JoCh!Y27,JoLy!Y27,JiBu!Y27,JTFo!Y27,JuBl!Y27,KaBy!Y27,MiWa!Y27,MiWi!Y27,MiMc!Y27,RoSa!Y27,TiHa!Y27,TrKi!Y27) -> 101 | Z27: =SUM(ChSc!Z27,BrBu!Z27,DeSc!Z27,PaEm!Z27,ViSc!Z27,BeCy!Z27,BoSc!Z27,BrTe!Z27,CaLi!Z27,ChRo!Z27,CoRo!Z27,CoNo!Z27,DaHo!Z27,DaLo!Z27,DeNe!Z27,HaMc!Z27,JaFa!Z27,JaGr!Z27,JaHo!Z27,JiZi!Z27,JoCh!Z27,JoLy!Z27,JiBu!Z27,JTFo!Z27,JuBl!Z27,KaBy!Z27,MiWa!Z27,MiWi!Z27,MiMc!Z27,RoSa!Z27,TiHa!Z27,TrKi!Z27) -> 78 | AA27: =SUM(ChSc!AA27,BrBu!AA27,DeSc!AA27,PaEm!AA27,ViSc!AA27,BeCy!AA27,BoSc!AA27,BrTe!AA27,CaLi!AA27,ChRo!AA27,CoRo!AA27,CoNo!AA27,DaHo!AA27,DaLo!AA27,DeNe!AA27,HaMc!AA27,JaFa!AA27,JaGr!AA27,JaHo!AA27,JiZi!AA27,JoCh!AA27,JoLy!AA27,JiBu!AA27,JTFo!AA27,JuBl!AA27,KaBy!AA27,MiWa!AA27,MiWi!AA27,MiMc!AA27,RoSa!AA27,TiHa!AA27,TrKi!AA27) -> 12 | AB27: =SUM(ChSc!AB27,BrBu!AB27,DeSc!AB27,PaEm!AB27,ViSc!AB27,BeCy!AB27,BoSc!AB27,BrTe!AB27,CaLi!AB27,ChRo!AB27,CoRo!AB27,CoNo!AB27,DaHo!AB27,DaLo!AB27,DeNe!AB27,HaMc!AB27,JaFa!AB27,JaGr!AB27,JaHo!AB27,JiZi!AB27,JoCh!AB27,JoLy!AB27,JiBu!AB27,JTFo!AB27,JuBl!AB27,KaBy!AB27,MiWa!AB27,MiWi!AB27,MiMc!AB27,RoSa!AB27,TiHa!AB27,TrKi!AB27) -> 1469
F28: Score | P28: =SUM(G28:O28) -> 0 | Q28: 0 | T28: Total | U28: =SUM(ChSc!U28,BrBu!U28,DeSc!U28,PaEm!U28,ViSc!U28,BeCy!U28,BoSc!U28,BrTe!U28,CaLi!U28,ChRo!U28,CoRo!U28,CoNo!U28,DaHo!U28,DaLo!U28,DeNe!U28,HaMc!U28,JaFa!U28,JaGr!U28,JaHo!U28,JiZi!U28,JoCh!U28,JoLy!U28,JiBu!U28,JTFo!U28,JuBl!U28,KaBy!U28,MiWa!U28,MiWi!U28,MiMc!U28,RoSa!U28,TiHa!U28,TrKi!U28) -> 0 | V28: =SUM(ChSc!V28,BrBu!V28,DeSc!V28,PaEm!V28,ViSc!V28,BeCy!V28,BoSc!V28,BrTe!V28,CaLi!V28,ChRo!V28,CoRo!V28,CoNo!V28,DaHo!V28,DaLo!V28,DeNe!V28,HaMc!V28,JaFa!V28,JaGr!V28,JaHo!V28,JiZi!V28,JoCh!V28,JoLy!V28,JiBu!V28,JTFo!V28,JuBl!V28,KaBy!V28,MiWa!V28,MiWi!V28,MiMc!V28,RoSa!V28,TiHa!V28,TrKi!V28) -> 1 | W28: =SUM(ChSc!W28,BrBu!W28,DeSc!W28,PaEm!W28,ViSc!W28,BeCy!W28,BoSc!W28,BrTe!W28,CaLi!W28,ChRo!W28,CoRo!W28,CoNo!W28,DaHo!W28,DaLo!W28,DeNe!W28,HaMc!W28,JaFa!W28,JaGr!W28,JaHo!W28,JiZi!W28,JoCh!W28,JoLy!W28,JiBu!W28,JTFo!W28,JuBl!W28,KaBy!W28,MiWa!W28,MiWi!W28,MiMc!W28,RoSa!W28,TiHa!W28,TrKi!W28) -> 40 | X28: =SUM(ChSc!X28,BrBu!X28,DeSc!X28,PaEm!X28,ViSc!X28,BeCy!X28,BoSc!X28,BrTe!X28,CaLi!X28,ChRo!X28,CoRo!X28,CoNo!X28,DaHo!X28,DaLo!X28,DeNe!X28,HaMc!X28,JaFa!X28,JaGr!X28,JaHo!X28,JiZi!X28,JoCh!X28,JoLy!X28,JiBu!X28,JTFo!X28,JuBl!X28,KaBy!X28,MiWa!X28,MiWi!X28,MiMc!X28,RoSa!X28,TiHa!X28,TrKi!X28) -> 237 | Y28: =SUM(ChSc!Y28,BrBu!Y28,DeSc!Y28,PaEm!Y28,ViSc!Y28,BeCy!Y28,BoSc!Y28,BrTe!Y28,CaLi!Y28,ChRo!Y28,CoRo!Y28,CoNo!Y28,DaHo!Y28,DaLo!Y28,DeNe!Y28,HaMc!Y28,JaFa!Y28,JaGr!Y28,JaHo!Y28,JiZi!Y28,JoCh!Y28,JoLy!Y28,JiBu!Y28,JTFo!Y28,JuBl!Y28,KaBy!Y28,MiWa!Y28,MiWi!Y28,MiMc!Y28,RoSa!Y28,TiHa!Y28,TrKi!Y28) -> 182 | Z28: =SUM(ChSc!Z28,BrBu!Z28,DeSc!Z28,PaEm!Z28,ViSc!Z28,BeCy!Z28,BoSc!Z28,BrTe!Z28,CaLi!Z28,ChRo!Z28,CoRo!Z28,CoNo!Z28,DaHo!Z28,DaLo!Z28,DeNe!Z28,HaMc!Z28,JaFa!Z28,JaGr!Z28,JaHo!Z28,JiZi!Z28,JoCh!Z28,JoLy!Z28,JiBu!Z28,JTFo!Z28,JuBl!Z28,KaBy!Z28,MiWa!Z28,MiWi!Z28,MiMc!Z28,RoSa!Z28,TiHa!Z28,TrKi!Z28) -> 116 | AA28: =SUM(ChSc!AA28,BrBu!AA28,DeSc!AA28,PaEm!AA28,ViSc!AA28,BeCy!AA28,BoSc!AA28,BrTe!AA28,CaLi!AA28,ChRo!AA28,CoRo!AA28,CoNo!AA28,DaHo!AA28,DaLo!AA28,DeNe!AA28,HaMc!AA28,JaFa!AA28,JaGr!AA28,JaHo!AA28,JiZi!AA28,JoCh!AA28,JoLy!AA28,JiBu!AA28,JTFo!AA28,JuBl!AA28,KaBy!AA28,MiWa!AA28,MiWi!AA28,MiMc!AA28,RoSa!AA28,TiHa!AA28,TrKi!AA28) -> 16 | AB28: =SUM(ChSc!AB28,BrBu!AB28,DeSc!AB28,PaEm!AB28,ViSc!AB28,BeCy!AB28,BoSc!AB28,BrTe!AB28,CaLi!AB28,ChRo!AB28,CoRo!AB28,CoNo!AB28,DaHo!AB28,DaLo!AB28,DeNe!AB28,HaMc!AB28,JaFa!AB28,JaGr!AB28,JaHo!AB28,JiZi!AB28,JoCh!AB28,JoLy!AB28,JiBu!AB28,JTFo!AB28,JuBl!AB28,KaBy!AB28,MiWa!AB28,MiWi!AB28,MiMc!AB28,RoSa!AB28,TiHa!AB28,TrKi!AB28) -> 2670
B30: Nevin #2 - Play from short cement pad (not long pad behind creek). | M30: Player
M31: Witness 1
B32: Turn in your completed, signed score sheet before 9pm | M32: Witness 2
B33: at Divine Barrel Brewery (3701 N. Davidson St). | M33: Witness 3 | T33: FINAL | U33: Ace | V33: Eag | W33: Bir | X33: Par | Y33: Bog | Z33: Bg+ | AA33: Sno | AB33: Score
T34: TOTAL | U34: =SUM(ChSc!U34,BrBu!U34,DeSc!U34,PaEm!U34,ViSc!U34,BeCy!U34,BoSc!U34,BrTe!U34,CaLi!U34,ChRo!U34,CoRo!U34,CoNo!U34,DaHo!U34,DaLo!U34,DeNe!U34,HaMc!U34,JaFa!U34,JaGr!U34,JaHo!U34,JiZi!U34,JoCh!U34,JoLy!U34,JiBu!U34,JTFo!U34,JuBl!U34,KaBy!U34,MiWa!U34,MiWi!U34,MiMc!U34,RoSa!U34,TiHa!U34,TrKi!U34) -> 0 | V34: =SUM(ChSc!V34,BrBu!V34,DeSc!V34,PaEm!V34,ViSc!V34,BeCy!V34,BoSc!V34,BrTe!V34,CaLi!V34,ChRo!V34,CoRo!V34,CoNo!V34,DaHo!V34,DaLo!V34,DeNe!V34,HaMc!V34,JaFa!V34,JaGr!V34,JaHo!V34,JiZi!V34,JoCh!V34,JoLy!V34,JiBu!V34,JTFo!V34,JuBl!V34,KaBy!V34,MiWa!V34,MiWi!V34,MiMc!V34,RoSa!V34,TiHa!V34,TrKi!V34) -> 1 | W34: =SUM(ChSc!W34,BrBu!W34,DeSc!W34,PaEm!W34,ViSc!W34,BeCy!W34,BoSc!W34,BrTe!W34,CaLi!W34,ChRo!W34,CoRo!W34,CoNo!W34,DaHo!W34,DaLo!W34,DeNe!W34,HaMc!W34,JaFa!W34,JaGr!W34,JaHo!W34,JiZi!W34,JoCh!W34,JoLy!W34,JiBu!W34,JTFo!W34,JuBl!W34,KaBy!W34,MiWa!W34,MiWi!W34,MiMc!W34,RoSa!W34,TiHa!W34,TrKi!W34) -> 154 | X34: =SUM(ChSc!X34,BrBu!X34,DeSc!X34,PaEm!X34,ViSc!X34,BeCy!X34,BoSc!X34,BrTe!X34,CaLi!X34,ChRo!X34,CoRo!X34,CoNo!X34,DaHo!X34,DaLo!X34,DeNe!X34,HaMc!X34,JaFa!X34,JaGr!X34,JaHo!X34,JiZi!X34,JoCh!X34,JoLy!X34,JiBu!X34,JTFo!X34,JuBl!X34,KaBy!X34,MiWa!X34,MiWi!X34,MiMc!X34,RoSa!X34,TiHa!X34,TrKi!X34) -> 703 | Y34: =SUM(ChSc!Y34,BrBu!Y34,DeSc!Y34,PaEm!Y34,ViSc!Y34,BeCy!Y34,BoSc!Y34,BrTe!Y34,CaLi!Y34,ChRo!Y34,CoRo!Y34,CoNo!Y34,DaHo!Y34,DaLo!Y34,DeNe!Y34,HaMc!Y34,JaFa!Y34,JaGr!Y34,JaHo!Y34,JiZi!Y34,JoCh!Y34,JoLy!Y34,JiBu!Y34,JTFo!Y34,JuBl!Y34,KaBy!Y34,MiWa!Y34,MiWi!Y34,MiMc!Y34,RoSa!Y34,TiHa!Y34,TrKi!Y34) -> 520 | Z34: =SUM(ChSc!Z34,BrBu!Z34,DeSc!Z34,PaEm!Z34,ViSc!Z34,BeCy!Z34,BoSc!Z34,BrTe!Z34,CaLi!Z34,ChRo!Z34,CoRo!Z34,CoNo!Z34,DaHo!Z34,DaLo!Z34,DeNe!Z34,HaMc!Z34,JaFa!Z34,JaGr!Z34,JaHo!Z34,JiZi!Z34,JoCh!Z34,JoLy!Z34,JiBu!Z34,JTFo!Z34,JuBl!Z34,KaBy!Z34,MiWa!Z34,MiWi!Z34,MiMc!Z34,RoSa!Z34,TiHa!Z34,TrKi!Z34) -> 350 | AA34: =SUM(ChSc!AA34,BrBu!AA34,DeSc!AA34,PaEm!AA34,ViSc!AA34,BeCy!AA34,BoSc!AA34,BrTe!AA34,CaLi!AA34,ChRo!AA34,CoRo!AA34,CoNo!AA34,DaHo!AA34,DaLo!AA34,DeNe!AA34,HaMc!AA34,JaFa!AA34,JaGr!AA34,JaHo!AA34,JiZi!AA34,JoCh!AA34,JoLy!AA34,JiBu!AA34,JTFo!AA34,JuBl!AA34,KaBy!AA34,MiWa!AA34,MiWi!AA34,MiMc!AA34,RoSa!AA34,TiHa!AA34,TrKi!AA34) -> 35 | AB34: =SUM(ChSc!AB34,BrBu!AB34,DeSc!AB34,PaEm!AB34,ViSc!AB34,BeCy!AB34,BoSc!AB34,BrTe!AB34,CaLi!AB34,ChRo!AB34,CoRo!AB34,CoNo!AB34,DaHo!AB34,DaLo!AB34,DeNe!AB34,HaMc!AB34,JaFa!AB34,JaGr!AB34,JaHo!AB34,JiZi!AB34,JoCh!AB34,JoLy!AB34,JiBu!AB34,JTFo!AB34,JuBl!AB34,KaBy!AB34,MiWa!AB34,MiWi!AB34,MiMc!AB34,RoSa!AB34,TiHa!AB34,TrKi!AB34) -> 7801

Sheet Template
A1: 2019 Charlotte Iron Man | F1: Hole | G1: 1 | H1: 2 | I1: 3 | J1: 4 | K1: 5 | L1: 6 | M1: 7 | N1: 8 | O1: 9 | P1: Out | Q1: ANGRY
F2: Dist. | G2: 235 | H2: 158 | I2: 222 | J2: 439 | K2: 801 | L2: 491 | M2: 282 | N2: 567 | O2: 268 | P2: =SUM(G2:O2) -> 3463 | T2: Name | U2: Template Example | Z2: Div | AA2: Iron Men
F3: Par | G3: 3 | H3: 3 | I3: 3 | J3: 4 | K3: 5 | L3: 4 | M3: 3 | N3: 4 | O3: 3 | P3: =SUM(G3:O3) -> 32
F4: Score | P4: 0
F5: Hole | G5: 10 | H5: 11 | I5: 12 | J5: 13 | K5: 14 | L5: 15 | M5: 16 | N5: 17 | O5: 18 | P5: In | Q5: Total | T5: ANGRY | U5: Ace | V5: Eag | W5: Bir | X5: Par | Y5: Bog | Z5: Bg+ | AA5: Sno | AB5: Score
F6: Dist. | G6: 563 | H6: 465 | I6: 215 | J6: 409 | K6: 333 | L6: 702 | M6: 431 | N6: 282 | O6: 814 | P6: =SUM(G6:O6) -> 4214 | Q6: =P6+P2 -> 7677 | T6: Front | U6: =COUNTIF(G4:O4,"1") -> 0 | V6: =COUNTConditionColorCells($G$4:$O$4,V5) -> 9 | W6: =COUNTConditionColorCells($G$4:$O$4,W5) -> 0 | X6: 0 | Y6: 0 | Z6: 0 | AA6: =COUNTIF(G4:O4,"8") -> 0 | AB6: =P4 -> 0
F7: Par | G7: 4 | H7: 4 | I7: 3 | J7: 4 | K7: 3 | L7: 5 | M7: 4 | N7: 3 | O7: 5 | P7: =SUM(G7:O7) -> 35 | Q7: =P7+P3 -> 67 | T7: Back | U7: =COUNTIF(G8:O8,"1") -> 0 | V7: =COUNTConditionColorCells($G$8:$O$8,V5) -> 9 | W7: =COUNTConditionColorCells($G$8:$O$8,W5) -> 0 | X7: =COUNTConditionColorCells($G$8:$O$8,X5) -> 0 | Y7: =COUNTConditionColorCells($G$8:$O$8,Y5) -> 0 | Z7: 0 | AA7: =COUNTIF(G8:O8,"8") -> 0 | AB7: =P8 -> 0
F8: Score | P8: =SUM(G8:O8) -> 0 | Q8: 0 | T8: Total | U8: =U6+U7 -> 0 | V8: =V6+V7 -> 18 | W8: 0 | X8: 0 | Y8: 0 | Z8: 0 | AA8: 0 | AB8: =Q8 -> 0
B11: Hole | C11: 1 | D11: 2 | E11: 3 | F11: 4 | G11: 5 | H11: 6 | I11: 7 | J11: 8 | K11: 9 | L11: Out | M11: NEVIN
B12: Dist. | C12: 491 | D12: 240 | E12: 375 | F12: 538 | G12: 656 | H12: 317 | I12: 202 | J12: 329 | K12: 593 | L12: =SUM(C12:K12) -> 3741
B13: Par | C13: 4 | D13: 3 | E13: 3 | F13: 4 | G13: 5 | H13: 3 | I13: 3 | J13: 3 | K13: 4 | L13: =SUM(C13:K13) -> 32
B14: Score | L14: 0
B15: Hole | C15: 10 | D15: 11 | E15: 12 | F15: 13 | G15: 14 | H15: 15 | I15: 16 | J15: 17 | K15: 18 | L15: In | M15: Total | T15: NEVIN | U15: Ace | V15: Eag | W15: Bir | X15: Par | Y15: Bog | Z15: Bg+ | AA15: Sno | AB15: Score
B16: Dist. | C16: 630 | D16: 640 | E16: 970 | F16: 274 | G16: 550 | H16: 252 | I16: 596 | J16: 581 | K16: 530 | L16: =SUM(C16:K16) -> 5023 | M16: =L16+L12 -> 8764 | T16: Front | U16: =COUNTIF(C14:K14,"1") -> 0 | V16: =COUNTConditionColorCells($C$14:$K$14,V15) -> 9 | W16: =COUNTConditionColorCells($C$14:$K$14,W15) -> 0 | X16: 0 | Y16: 0 | Z16: 0 | AA16: =COUNTIF(C14:K14,"8") -> 0 | AB16: =L14 -> 0
B17: Par | C17: 5 | D17: 4 | E17: 5 | F17: 3 | G17: 4 | H17: 3 | I17: 4 | J17: 5 | K17: 4 | L17: =SUM(C17:K17) -> 37 | M17: =L17+L13 -> 69 | T17: Back | U17: =COUNTIF(C18:K18,"1") -> 0 | V17: =COUNTConditionColorCells($C$18:$K$18,V15) -> 9 | W17: =COUNTConditionColorCells($C$18:$K$18,W15) -> 0 | X17: 0 | Y17: 0 | Z17: 0 | AA17: =COUNTIF(C18:K18,"8") -> 0 | AB17: =L18 -> 0
B18: Score | L18: =SUM(C18:K18) -> 0 | M18: 0 | T18: Total | U18: =U16+U17 -> 0 | V18: =V16+V17 -> 18 | W18: 0 | X18: 0 | Y18: 0 | Z18: 0 | AA18: =AA16+AA17 -> 0 | AB18: =M18 -> 0
F21: Hole | G21: 1 | H21: 2 | I21: 3 | J21: 4 | K21: 5 | L21: 6 | M21: 7 | N21: 8 | O21: 9 | P21: Out | Q21: RENNY
F22: Dist. | G22: 523 | H22: 519 | I22: 386 | J22: 551 | K22: 392 | L22: 257 | M22: 465 | N22: 323 | O22: 285 | P22: =SUM(G22:O22) -> 3701
F23: Par | G23: 4 | H23: 4 | I23: 4 | J23: 4 | K23: 4 | L23: 3 | M23: 4 | N23: 3 | O23: 3 | P23: =SUM(G23:O23) -> 33
F24: Score | P24: 0
F25: Hole | G25: 10 | H25: 11 | I25: 12 | J25: 13 | K25: 14 | L25: 15 | M25: 16 | N25: 17 | O25: 18 | P25: In | Q25: Total | T25: RENNY | U25: Ace | V25: Eag | W25: Bir | X25: Par | Y25: Bog | Z25: Bg+ | AA25: Sno | AB25: Score
F26: Dist. | G26: 538 | H26: 1042 | I26: 617 | J26: 974 | K26: 564 | L26: 378 | M26: 302 | N26: 517 | O26: 826 | P26: =SUM(G26:O26) -> 5758 | Q26: =P26+P22 -> 9459 | T26: Front | U26: =COUNTIF(G24:O24,"1") -> 0 | V26: =COUNTConditionColorCells($G$24:$O$24,V25) -> 9 | W26: =COUNTConditionColorCells($G$24:$O$24,W25) -> 0 | X26: 0 | Y26: 0 | Z26: 0 | AA26: =COUNTIF(G24:O24,"8") -> 0 | AB26: =P24 -> 0
F27: Par | G27: 4 | H27: 5 | I27: 4 | J27: 5 | K27: 4 | L27: 3 | M27: 3 | N27: 4 | O27: 5 | P27: =SUM(G27:O27) -> 37 | Q27: =P27+P23 -> 70 | T27: Back | U27: =COUNTIF(G28:O28,"1") -> 0 | V27: =COUNTConditionColorCells($G$28:$O$28,V25) -> 9 | W27: =COUNTConditionColorCells($G$28:$O$28,W25) -> 0 | X27: 0 | Y27: 0 | Z27: 0 | AA27: =COUNTIF(G28:O28,"8") -> 0 | AB27: =P28 -> 0
F28: Score | P28: =SUM(G28:O28) -> 0 | Q28: 0 | T28: Total | U28: =U26+U27 -> 0 | V28: =V26+V27 -> 18 | W28: 0 | X28: 0 | Y28: 0 | Z28: 0 | AA28: 0 | AB28: =Q28 -> 0
B30: Nevin #2 - Play from short cement pad (not long pad behind creek). | M30: Player
M31: Witness 1
B32: Turn in your completed, signed score sheet before 9pm | M32: Witness 2
B33: at Divine Barrel Brewery (3701 N. Davidson St). | M33: Witness 3 | T33: FINAL | U33: Ace | V33: Eag | W33: Bir | X33: Par | Y33: Bog | Z33: Bg+ | AA33: Sno | AB33: Score
T34: TOTAL | U34: =SUM(U28,U18,U8) -> 0 | V34: =SUM(V28,V18,V8) -> 54 | W34: 0 | X34: 0 | Y34: 0 | Z34: 0 | AA34: 0 | AB34: 0

Sheet Players
A1: Iron Men | C1: (28 Registered)
A3: Name | B3: PDGA # | C3: City | D3: State | E3: Country | F3: ScoreSheet | G3: Checkname | H3: Survey | I3: Sign Poster | J3: Rec'd Pin | K3: > 40 ?
A4: Benjamin Cybul | B4: 56757 | C4: Charlotte | D4: AL | E4: USA
A5: Bob Scott | B5: 68996 | C5: Charlotte | D5: NC | E5: USA
A6: Brandon Terry | C6: Rock Hill | D6: SC | E6: USA
A7: Cameron Linger | C7: Charlotte | D7: SC | E7: USA
A8: Christopher Rowe | B8: 79142 | C8: Johnson City | D8: TN | E8: USA
A9: Cody Robinson | B9: 100259 | C9: Taylorsville | D9: NC | E9: USA
A10: Corey Nortz | C10: Mooresville | D10: NC | E10: USA
A11: Dakota Hopkins | B11: 82258 | C11: Bristol | D11: TN | E11: USA
A12: David Love | B12: 71737 | C12: Kingsport | D12: TN | E12: USA
A13: Devon Neely | C13: Concord | D13: NC | E13: USA
A14: Hannable McGarity | B14: 90754 | C14: Lillington | D14: NC | E14: USA
A15: James Farmer | B15: 30904 | C15: Winston Salem | D15: NC | E15: USA
A16: James Graves | B16: 49184 | C16: Leland | D16: NC | E16: USA
A17: James Hopkins | B17: 50270 | C17: Greensboro | D17: NC | E17: USA
A18: Jim Buckalew | B18: 94060 | C18: Newton | D18: NC | E18: USA
A19: Jimmy Ziros | B19: 117793 | C19: Charlotte | D19: NC | E19: USA
A20: Jonathan Charping | B20: 51153 | C20: Gastonia | D20: NC | E20: USA
A21: Jordan Lyndaker | C21: Charlotte | D21: NC | E21: USA
A22: JT Ford | C22: Concord | D22: NC | E22: USA
A23: Justin Black | B23: 90302 | C23: Statesville | D23: NC | E23: USA
A24: Kael Byrd | B24: 116384 | C24: N. Wilkesboro | D24: NC | E24: USA
A25: Michael Walseman | B25: 108324 | C25: Charlotte | D25: NC | E25: USA
A26: Michael Williams | D26: NC | E26: USA
A27: Mitchell McGarity | B27: 99534 | C27: Lillington | D27: NC | E27: USA
A28: Robert Sadowski | B28: 68521 | C28: Granite Falls | D28: NC | E28: USA
A29: Stuart Salmon | B29: 68964 | C29: Rock Hill | D29: SC | E29: USA
A30: Tim Hatley | C30: Pineville | D30: NC | E30: USA
A31: Trey King | C31: Charlotte | D31: NC | E31: USA
A41: Iron Maidens | C41: (4 Players)
A43: Name | B43: PDGA # | C43: City | D43: State | E43: Country | F43: ScoreSheet | G43: Checkname | H43: Survey | I43: Sign Poster | J43: Rec'd Pin | K43: Sign Disc
A44: Brandi Buckalew | B44: 95739 | C44: Catawba | D44: NC | E44: USA
A45: Debbie Scott | B45: 43896 | C45: Charlotte | D45: NC | E45: USA
A46: Paetyn Emmert | B46: 95550 | C46: Johnson City | D46: TN | E46: USA
A47: Victoria Scott | B47: 45761 | C47: Charlotte | D47: NC | E47: USA
A54: Metal Minors: | C54: (1 Player)
A56: Name | B56: PDGA # | C56: City | D56: State | E56: Country | F56: ScoreSheet | G56: Checkname | H56: Survey | I56: Sign Poster | J56: Rec'd Pin
A57: Christian Scott | B57: 45982 | C57: Charlotte | D57: NC | E57: USA
A64: Extra:
A66: Name | B66: PDGA # | C66: City | D66: State | E66: Country | F66: ScoreSheet | G66: Checkname | H66: Survey | I66: Sign Poster | J66: Rec'd Pin | K66: > 40 ?
E67: USA
E68: USA
E69: USA
E70: USA
E71: USA
E72: USA
E73: USA
E74: USA
E75: USA
E76: USA
E77: USA
E78: USA
E79: USA

Sheet ChSc
A1: 2019 Charlotte Iron Man | F1: Hole | G1: 1 | H1: 2 | I1: 3 | J1: 4 | K1: 5 | L1: 6 | M1: 7 | N1: 8 | O1: 9 | P1: Out | Q1: ANGRY
F2: Dist. | G2: 235 | H2: 158 | I2: 222 | J2: 439 | K2: 801 | L2: 491 | M2: 282 | N2: 567 | O2: 268 | P2: =SUM(G2:O2) -> 3463 | T2: Name | U2: Christian Scott | Z2: Div | AA2: M Minors
F3: Par | G3: 3 | H3: 3 | I3: 3 | J3: 4 | K3: 5 | L3: 4 | M3: 3 | N3: 4 | O3: 3 | P3: =SUM(G3:O3) -> 32
F4: Score | G4: 3 | H4: 3 | I4: 4 | J4: 4 | K4: 6 | L4: 5 | M4: 5 | N4: 5 | O4: 3 | P4: 38
F5: Hole | G5: 10 | H5: 11 | I5: 12 | J5: 13 | K5: 14 | L5: 15 | M5: 16 | N5: 17 | O5: 18 | P5: In | Q5: Total | T5: ANGRY | U5: Ace | V5: Eag | W5: Bir | X5: Par | Y5: Bog | Z5: Bg+ | AA5: Sno | AB5: Score
F6: Dist. | G6: 563 | H6: 465 | I6: 215 | J6: 409 | K6: 333 | L6: 702 | M6: 431 | N6: 282 | O6: 814 | P6: =SUM(G6:O6) -> 4214 | Q6: =P6+P2 -> 7677 | T6: Front | U6: =COUNTIF(G4:O4,"1") -> 0 | V6: =COUNTConditionColorCells($G$4:$O$4,V5) -> 0 | W6: =COUNTConditionColorCells($G$4:$O$4,W5) -> 0 | X6: 4 | Y6: 4 | Z6: 1 | AA6: =COUNTIF(G4:O4,"8") -> 0 | AB6: =P4 -> 38
F7: Par | G7: 4 | H7: 4 | I7: 3 | J7: 4 | K7: 3 | L7: 5 | M7: 4 | N7: 3 | O7: 5 | P7: =SUM(G7:O7) -> 35 | Q7: =P7+P3 -> 67 | T7: Back | U7: =COUNTIF(G8:O8,"1") -> 0 | V7: =COUNTConditionColorCells($G$8:$O$8,V5) -> 0 | W7: =COUNTConditionColorCells($G$8:$O$8,W5) -> 1 | X7: =COUNTConditionColorCells($G$8:$O$8,X5) -> 1 | Y7: =COUNTConditionColorCells($G$8:$O$8,Y5) -> 5 | Z7: 2 | AA7: =COUNTIF(G8:O8,"8") -> 0 | AB7: =P8 -> 43
F8: Score | G8: 6 | H8: 5 | I8: 4 | J8: 6 | K8: 4 | L8: 5 | M8: 3 | N8: 4 | O8: 6 | P8: =SUM(G8:O8) -> 43 | Q8: 81 | T8: Total | U8: =U6+U7 -> 0 | V8: =V6+V7 -> 0 | W8: 1 | X8: 5 | Y8: 9 | Z8: 3 | AA8: 0 | AB8: =Q8 -> 81
B11: Hole | C11: 1 | D11: 2 | E11: 3 | F11: 4 | G11: 5 | H11: 6 | I11: 7 | J11: 8 | K11: 9 | L11: Out | M11: NEVIN
B12: Dist. | C12: 491 | D12: 240 | E12: 375 | F12: 538 | G12: 656 | H12: 317 | I12: 202 | J12: 329 | K12: 593 | L12: =SUM(C12:K12) -> 3741
B13: Par | C13: 4 | D13: 3 | E13: 3 | F13: 4 | G13: 5 | H13: 3 | I13: 3 | J13: 3 | K13: 4 | L13: =SUM(C13:K13) -> 32
B14: Score | C14: 5 | D14: 3 | E14: 2 | F14: 4 | G14: 7 | H14: 4 | I14: 2 | J14: 4 | K14: 6 | L14: 37
B15: Hole | C15: 10 | D15: 11 | E15: 12 | F15: 13 | G15: 14 | H15: 15 | I15: 16 | J15: 17 | K15: 18 | L15: In | M15: Total | T15: NEVIN | U15: Ace | V15: Eag | W15: Bir | X15: Par | Y15: Bog | Z15: Bg+ | AA15: Sno | AB15: Score
B16: Dist. | C16: 630 | D16: 640 | E16: 970 | F16: 274 | G16: 550 | H16: 252 | I16: 596 | J16: 581 | K16: 530 | L16: =SUM(C16:K16) -> 5023 | M16: =L16+L12 -> 8764 | T16: Front | U16: =COUNTIF(C14:K14,"1") -> 0 | V16: =COUNTConditionColorCells($C$14:$K$14,V15) -> 0 | W16: =COUNTConditionColorCells($C$14:$K$14,W15) -> 2 | X16: 2 | Y16: 3 | Z16: 2 | AA16: =COUNTIF(C14:K14,"8") -> 0 | AB16: =L14 -> 37
B17: Par | C17: 5 | D17: 4 | E17: 5 | F17: 3 | G17: 4 | H17: 3 | I17: 4 | J17: 5 | K17: 4 | L17: =SUM(C17:K17) -> 37 | M17: =L17+L13 -> 69 | T17: Back | U17: =COUNTIF(C18:K18,"1") -> 0 | V17: =COUNTConditionColorCells($C$18:$K$18,V15) -> 0 | W17: =COUNTConditionColorCells($C$18:$K$18,W15) -> 1 | X17: 2 | Y17: 4 | Z17: 2 | AA17: =COUNTIF(C18:K18,"8") -> 0 | AB17: =L18 -> 44
B18: Score | C18: 6 | D18: 6 | E18: 7 | F18: 2 | G18: 5 | H18: 4 | I18: 4 | J18: 6 | K18: 4 | L18: =SUM(C18:K18) -> 44 | M18: 81 | T18: Total | U18: =U16+U17 -> 0 | V18: =V16+V17 -> 0 | W18: 3 | X18: 4 | Y18: 7 | Z18: 4 | AA18: =AA16+AA17 -> 0 | AB18: =M18 -> 81
F21: Hole | G21: 1 | H21: 2 | I21: 3 | J21: 4 | K21: 5 | L21: 6 | M21: 7 | N21: 8 | O21: 9 | P21: Out | Q21: RENNY
F22: Dist. | G22: 523 | H22: 519 | I22: 386 | J22: 551 | K22: 392 | L22: 257 | M22: 465 | N22: 323 | O22: 285 | P22: =SUM(G22:O22) -> 3701
F23: Par | G23: 4 | H23: 4 | I23: 4 | J23: 4 | K23: 4 | L23: 3 | M23: 4 | N23: 3 | O23: 3 | P23: =SUM(G23:O23) -> 33
F24: Score | G24: 4 | H24: 4 | I24: 5 | J24: 6 | K24: 4 | L24: 5 | M24: 8 | N24: 4 | O24: 3 | P24: 43
F25: Hole | G25: 10 | H25: 11 | I25: 12 | J25: 13 | K25: 14 | L25: 15 | M25: 16 | N25: 17 | O25: 18 | P25: In | Q25: Total | T25: RENNY | U25: Ace | V25: Eag | W25: Bir | X25: Par | Y25: Bog | Z25: Bg+ | AA25: Sno | AB25: Score
F26: Dist. | G26: 538 | H26: 1042 | I26: 617 | J26: 974 | K26: 564 | L26: 378 | M26: 302 | N26: 517 | O26: 826 | P26: =SUM(G26:O26) -> 5758 | Q26: =P26+P22 -> 9459 | T26: Front | U26: =COUNTIF(G24:O24,"1") -> 0 | V26: =COUNTConditionColorCells($G$24:$O$24,V25) -> 0 | W26: =COUNTConditionColorCells($G$24:$O$24,W25) -> 0 | X26: 4 | Y26: 2 | Z26: 3 | AA26: =COUNTIF(G24:O24,"8") -> 1 | AB26: =P24 -> 43
F27: Par | G27: 4 | H27: 5 | I27: 4 | J27: 5 | K27: 4 | L27: 3 | M27: 3 | N27: 4 | O27: 5 | P27: =SUM(G27:O27) -> 37 | Q27: =P27+P23 -> 70 | T27: Back | U27: =COUNTIF(G28:O28,"1") -> 0 | V27: =COUNTConditionColorCells($G$28:$O$28,V25) -> 0 | W27: =COUNTConditionColorCells($G$28:$O$28,W25) -> 0 | X27: 5 | Y27: 3 | Z27: 1 | AA27: =COUNTIF(G28:O28,"8") -> 0 | AB27: =P28 -> 45
F28: Score | G28: 5 | H28: 6 | I28: 4 | J28: 10 | K28: 4 | L28: 3 | M28: 3 | N28: 5 | O28: 5 | P28: =SUM(G28:O28) -> 45 | Q28: 88 | T28: Total | U28: =U26+U27 -> 0 | V28: =V26+V27 -> 0 | W28: 0 | X28: 9 | Y28: 5 | Z28: 4 | AA28: 1 | AB28: =Q28 -> 88
B30: Nevin #2 - Play from short cement pad (not long pad behind creek). | M30: Player
M31: Witness 1
B32: Turn in your completed, signed score sheet before 9pm | M32: Witness 2
B33: at Divine Barrel Brewery (3701 N. Davidson St). | M33: Witness 3 | T33: FINAL | U33: Ace | V33: Eag | W33: Bir | X33: Par | Y33: Bog | Z33: Bg+ | AA33: Sno | AB33: Score
T34: TOTAL | U34: =SUM(U28,U18,U8) -> 0 | V34: =SUM(V28,V18,V8) -> 0 | W34: 4 | X34: 18 | Y34: 21 | Z34: 11 | AA34: 1 | AB34: 250

Sheet BrBu
A1: 2019 Charlotte Iron Man | F1: Hole | G1: 1 | H1: 2 | I1: 3 | J1: 4 | K1: 5 | L1: 6 | M1: 7 | N1: 8 | O1: 9 | P1: Out | Q1: ANGRY
F2: Dist. | G2: 235 | H2: 158 | I2: 222 | J2: 439 | K2: 801 | L2: 491 | M2: 282 | N2: 567 | O2: 268 | P2: =SUM(G2:O2) -> 3463 | T2: Name | U2: Brandi Buckalew | Z2: Div | AA2: Maidens
F3: Par | G3: 3 | H3: 3 | I3: 3 | J3: 4 | K3: 5 | L3: 4 | M3: 3 | N3: 4 | O3: 3 | P3: =SUM(G3:O3) -> 32
F4: Score | G4: 3 | H4: 3 | I4: 4 | J4: 6 | K4: 5 | L4: 5 | M4: 3 | N4: 5 | O4: 4 | P4: 38
F5: Hole | G5: 10 | H5: 11 | I5: 12 | J5: 13 | K5: 14 | L5: 15 | M5: 16 | N5: 17 | O5: 18 | P5: In | Q5: Total | T5: ANGRY | U5: Ace | V5: Eag | W5: Bir | X5: Par | Y5: Bog | Z5: Bg+ | AA5: Sno | AB5: Score
F6: Dist. | G6: 563 | H6: 465 | I6: 215 | J6: 409 | K6: 333 | L6: 702 | M6: 431 | N6: 282 | O6: 814 | P6: =SUM(G6:O6) -> 4214 | Q6: =P6+P2 -> 7677 | T6: Front | U6: =COUNTIF(G4:O4,"1") -> 0 | V6: =COUNTConditionColorCells($G$4:$O$4,V5) -> 0 | W6: =COUNTConditionColorCells($G$4:$O$4,W5) -> 0 | X6: 4 | Y6: 4 | Z6: 1 | AA6: =COUNTIF(G4:O4,"8") -> 0 | AB6: =P4 -> 38
F7: Par | G7: 4 | H7: 4 | I7: 3 | J7: 4 | K7: 3 | L7: 5 | M7: 4 | N7: 3 | O7: 5 | P7: =SUM(G7:O7) -> 35 | Q7: =P7+P3 -> 67 | T7: Back | U7: =COUNTIF(G8:O8,"1") -> 0 | V7: =COUNTConditionColorCells($G$8:$O$8,V5) -> 0 | W7: =COUNTConditionColorCells($G$8:$O$8,W5) -> 0 | X7: =COUNTConditionColorCells($G$8:$O$8,X5) -> 4 | Y7: =COUNTConditionColorCells($G$8:$O$8,Y5) -> 2 | Z7: 3 | AA7: =COUNTIF(G8:O8,"8") -> 0 | AB7: =P8 -> 43
F8: Score | G8: 5 | H8: 4 | I8: 5 | J8: 4 | K8: 3 | L8: 7 | M8: 4 | N8: 5 | O8: 6 | P8: =SUM(G8:O8) -> 43 | Q8: 81 | T8: Total | U8: =U6+U7 -> 0 | V8: =V6+V7 -> 0 | W8: 0 | X8: 8 | Y8: 6 | Z8: 4 | AA8: 0 | AB8: =Q8 -> 81
B11: Hole | C11: 1 | D11: 2 | E11: 3 | F11: 4 | G11: 5 | H11: 6 | I11: 7 | J11: 8 | K11: 9 | L11: Out | M11: NEVIN
B12: Dist. | C12: 491 | D12: 240 | E12: 375 | F12: 538 | G12: 656 | H12: 317 | I12: 202 | J12: 329 | K12: 593 | L12: =SUM(C12:K12) -> 3741
B13: Par | C13: 4 | D13: 3 | E13: 3 | F13: 4 | G13: 5 | H13: 3 | I13: 3 | J13: 3 | K13: 4 | L13: =SUM(C13:K13) -> 32
B14: Score | C14: 4 | D14: 3 | E14: 5 | F14: 5 | G14: 6 | H14: 3 | I14: 3 | J14: 3 | K14: 4 | L14: 36
B15: Hole | C15: 10 | D15: 11 | E15: 12 | F15: 13 | G15: 14 | H15: 15 | I15: 16 | J15: 17 | K15: 18 | L15: In | M15: Total | T15: NEVIN | U15: Ace | V15: Eag | W15: Bir | X15: Par | Y15: Bog | Z15: Bg+ | AA15: Sno | AB15: Score
B16: Dist. | C16: 630 | D16: 640 | E16: 970 | F16: 274 | G16: 550 | H16: 252 | I16: 596 | J16: 581 | K16: 530 | L16: =SUM(C16:K16) -> 5023 | M16: =L16+L12 -> 8764 | T16: Front | U16: =COUNTIF(C14:K14,"1") -> 0 | V16: =COUNTConditionColorCells($C$14:$K$14,V15) -> 0 | W16: =COUNTConditionColorCells($C$14:$K$14,W15) -> 0 | X16: 6 | Y16: 2 | Z16: 1 | AA16: =COUNTIF(C14:K14,"8") -> 0 | AB16: =L14 -> 36
B17: Par | C17: 5 | D17: 4 | E17: 5 | F17: 3 | G17: 4 | H17: 3 | I17: 4 | J17: 5 | K17: 4 | L17: =SUM(C17:K17) -> 37 | M17: =L17+L13 -> 69 | T17: Back | U17: =COUNTIF(C18:K18,"1") -> 0 | V17: =COUNTConditionColorCells($C$18:$K$18,V15) -> 0 | W17: =COUNTConditionColorCells($C$18:$K$18,W15) -> 0 | X17: 6 | Y17: 1 | Z17: 2 | AA17: =COUNTIF(C18:K18,"8") -> 0 | AB17: =L18 -> 42
B18: Score | C18: 5 | D18: 6 | E18: 7 | F18: 3 | G18: 4 | H18: 3 | I18: 5 | J18: 5 | K18: 4 | L18: =SUM(C18:K18) -> 42 | M18: 78 | T18: Total | U18: =U16+U17 -> 0 | V18: =V16+V17 -> 0 | W18: 0 | X18: 12 | Y18: 3 | Z18: 3 | AA18: =AA16+AA17 -> 0 | AB18: =M18 -> 78
F21: Hole | G21: 1 | H21: 2 | I21: 3 | J21: 4 | K21: 5 | L21: 6 | M21: 7 | N21: 8 | O21: 9 | P21: Out | Q21: RENNY
F22: Dist. | G22: 523 | H22: 519 | I22: 386 | J22: 551 | K22: 392 | L22: 257 | M22: 465 | N22: 323 | O22: 285 | P22: =SUM(G22:O22) -> 3701
F23: Par | G23: 4 | H23: 4 | I23: 4 | J23: 4 | K23: 4 | L23: 3 | M23: 4 | N23: 3 | O23: 3 | P23: =SUM(G23:O23) -> 33
F24: Score | G24: 5 | H24: 5 | I24: 5 | J24: 6 | K24: 4 | L24: 4 | M24: 5 | N24: 4 | O24: 4 | P24: 42
F25: Hole | G25: 10 | H25: 11 | I25: 12 | J25: 13 | K25: 14 | L25: 15 | M25: 16 | N25: 17 | O25: 18 | P25: In | Q25: Total | T25: RENNY | U25: Ace | V25: Eag | W25: Bir | X25: Par | Y25: Bog | Z25: Bg+ | AA25: Sno | AB25: Score
F26: Dist. | G26: 538 | H26: 1042 | I26: 617 | J26: 974 | K26: 564 | L26: 378 | M26: 302 | N26: 517 | O26: 826 | P26: =SUM(G26:O26) -> 5758 | Q26: =P26+P22 -> 9459 | T26: Front | U26: =COUNTIF(G24:O24,"1") -> 0 | V26: =COUNTConditionColorCells($G$24:$O$24,V25) -> 0 | W26: =COUNTConditionColorCells($G$24:$O$24,W25) -> 0 | X26: 1 | Y26: 7 | Z26: 1 | AA26: =COUNTIF(G24:O24,"8") -> 0 | AB26: =P24 -> 42
F27: Par | G27: 4 | H27: 5 | I27: 4 | J27: 5 | K27: 4 | L27: 3 | M27: 3 | N27: 4 | O27: 5 | P27: =SUM(G27:O27) -> 37 | Q27: =P27+P23 -> 70 | T27: Back | U27: =COUNTIF(G28:O28,"1") -> 0 | V27: =COUNTConditionColorCells($G$28:$O$28,V25) -> 0 | W27: =COUNTConditionColorCells($G$28:$O$28,W25) -> 0 | X27: 0 | Y27: 8 | Z27: 1 | AA27: =COUNTIF(G28:O28,"8") -> 0 | AB27: =P28 -> 47
F28: Score | G28: 5 | H28: 6 | I28: 5 | J28: 6 | K28: 5 | L28: 4 | M28: 4 | N28: 5 | O28: 7 | P28: =SUM(G28:O28) -> 47 | Q28: 89 | T28: Total | U28: =U26+U27 -> 0 | V28: =V26+V27 -> 0 | W28: 0 | X28: 1 | Y28: 15 | Z28: 2 | AA28: 0 | AB28: =Q28 -> 89
B30: Nevin #2 - Play from short cement pad (not long pad behind creek). | M30: Player
M31: Witness 1
B32: Turn in your completed, signed score sheet before 9pm | M32: Witness 2
B33: at Divine Barrel Brewery (3701 N. Davidson St). | M33: Witness 3 | T33: FINAL | U33: Ace | V33: Eag | W33: Bir | X33: Par | Y33: Bog | Z33: Bg+ | AA33: Sno | AB33: Score
T34: TOTAL | U34: =SUM(U28,U18,U8) -> 0 | V34: =SUM(V28,V18,V8) -> 0 | W34: 0 | X34: 21 | Y34: 24 | Z34: 9 | AA34: 0 | AB34: 248

Sheet DeSc
A1: 2019 Charlotte Iron Man | F1: Hole | G1: 1 | H1: 2 | I1: 3 | J1: 4 | K1: 5 | L1: 6 | M1: 7 | N1: 8 | O1: 9 | P1: Out | Q1: ANGRY
F2: Dist. | G2: 235 | H2: 158 | I2: 222 | J2: 439 | K2: 801 | L2: 491 | M2: 282 | N2: 567 | O2: 268 | P2: =SUM(G2:O2) -> 3463 | T2: Name | U2: Debbie Scott | Z2: Div | AA2: Maidens
F3: Par | G3: 3 | H3: 3 | I3: 3 | J3: 4 | K3: 5 | L3: 4 | M3: 3 | N3: 4 | O3: 3 | P3: =SUM(G3:O3) -> 32
F4: Score | G4: 3 | H4: 3 | I4: 4 | J4: 5 | K4: 7 | L4: 4 | M4: 3 | N4: 5 | O4: 3 | P4: 37
F5: Hole | G5: 10 | H5: 11 | I5: 12 | J5: 13 | K5: 14 | L5: 15 | M5: 16 | N5: 17 | O5: 18 | P5: In | Q5: Total | T5: ANGRY | U5: Ace | V5: Eag | W5: Bir | X5: Par | Y5: Bog | Z5: Bg+ | AA5: Sno | AB5: Score
F6: Dist. | G6: 563 | H6: 465 | I6: 215 | J6: 409 | K6: 333 | L6: 702 | M6: 431 | N6: 282 | O6: 814 | P6: =SUM(G6:O6) -> 4214 | Q6: =P6+P2 -> 7677 | T6: Front | U6: =COUNTIF(G4:O4,"1") -> 0 | V6: =COUNTConditionColorCells($G$4:$O$4,V5) -> 0 | W6: =COUNTConditionColorCells($G$4:$O$4,W5) -> 0 | X6: 5 | Y6: 3 | Z6: 1 | AA6: =COUNTIF(G4:O4,"8") -> 0 | AB6: =P4 -> 37
F7: Par | G7: 4 | H7: 4 | I7: 3 | J7: 4 | K7: 3 | L7: 5 | M7: 4 | N7: 3 | O7: 5 | P7: =SUM(G7:O7) -> 35 | Q7: =P7+P3 -> 67 | T7: Back | U7: =COUNTIF(G8:O8,"1") -> 0 | V7: =COUNTConditionColorCells($G$8:$O$8,V5) -> 0 | W7: =COUNTConditionColorCells($G$8:$O$8,W5) -> 1 | X7: =COUNTConditionColorCells($G$8:$O$8,X5) -> 3 | Y7: =COUNTConditionColorCells($G$8:$O$8,Y5) -> 4 | Z7: 1 | AA7: =COUNTIF(G8:O8,"8") -> 0 | AB7: =P8 -> 40
F8: Score | G8: 5 | H8: 4 | I8: 3 | J8: 4 | K8: 4 | L8: 6 | M8: 3 | N8: 5 | O8: 6 | P8: =SUM(G8:O8) -> 40 | Q8: 77 | T8: Total | U8: =U6+U7 -> 0 | V8: =V6+V7 -> 0 | W8: 1 | X8: 8 | Y8: 7 | Z8: 2 | AA8: 0 | AB8: =Q8 -> 77
B11: Hole | C11: 1 | D11: 2 | E11: 3 | F11: 4 | G11: 5 | H11: 6 | I11: 7 | J11: 8 | K11: 9 | L11: Out | M11: NEVIN
B12: Dist. | C12: 491 | D12: 240 | E12: 375 | F12: 538 | G12: 656 | H12: 317 | I12: 202 | J12: 329 | K12: 593 | L12: =SUM(C12:K12) -> 3741
B13: Par | C13: 4 | D13: 3 | E13: 3 | F13: 4 | G13: 5 | H13: 3 | I13: 3 | J13: 3 | K13: 4 | L13: =SUM(C13:K13) -> 32
B14: Score | C14: 5 | D14: 3 | E14: 5 | F14: 6 | G14: 5 | H14: 4 | I14: 3 | J14: 4 | K14: 5 | L14: 40
B15: Hole | C15: 10 | D15: 11 | E15: 12 | F15: 13 | G15: 14 | H15: 15 | I15: 16 | J15: 17 | K15: 18 | L15: In | M15: Total | T15: NEVIN | U15: Ace | V15: Eag | W15: Bir | X15: Par | Y15: Bog | Z15: Bg+ | AA15: Sno | AB15: Score
B16: Dist. | C16: 630 | D16: 640 | E16: 970 | F16: 274 | G16: 550 | H16: 252 | I16: 596 | J16: 581 | K16: 530 | L16: =SUM(C16:K16) -> 5023 | M16: =L16+L12 -> 8764 | T16: Front | U16: =COUNTIF(C14:K14,"1") -> 0 | V16: =COUNTConditionColorCells($C$14:$K$14,V15) -> 0 | W16: =COUNTConditionColorCells($C$14:$K$14,W15) -> 0 | X16: 3 | Y16: 4 | Z16: 2 | AA16: =COUNTIF(C14:K14,"8") -> 0 | AB16: =L14 -> 40
B17: Par | C17: 5 | D17: 4 | E17: 5 | F17: 3 | G17: 4 | H17: 3 | I17: 4 | J17: 5 | K17: 4 | L17: =SUM(C17:K17) -> 37 | M17: =L17+L13 -> 69 | T17: Back | U17: =COUNTIF(C18:K18,"1") -> 0 | V17: =COUNTConditionColorCells($C$18:$K$18,V15) -> 0 | W17: =COUNTConditionColorCells($C$18:$K$18,W15) -> 0 | X17: 4 | Y17: 5 | Z17: 0 | AA17: =COUNTIF(C18:K18,"8") -> 0 | AB17: =L18 -> 42
B18: Score | C18: 6 | D18: 5 | E18: 6 | F18: 3 | G18: 5 | H18: 3 | I18: 5 | J18: 5 | K18: 4 | L18: =SUM(C18:K18) -> 42 | M18: 82 | T18: Total | U18: =U16+U17 -> 0 | V18: =V16+V17 -> 0 | W18: 0 | X18: 7 | Y18: 9 | Z18: 2 | AA18: =AA16+AA17 -> 0 | AB18: =M18 -> 82
F21: Hole | G21: 1 | H21: 2 | I21: 3 | J21: 4 | K21: 5 | L21: 6 | M21: 7 | N21: 8 | O21: 9 | P21: Out | Q21: RENNY
F22: Dist. | G22: 523 | H22: 519 | I22: 386 | J22: 551 | K22: 392 | L22: 257 | M22: 465 | N22: 323 | O22: 285 | P22: =SUM(G22:O22) -> 3701
F23: Par | G23: 4 | H23: 4 | I23: 4 | J23: 4 | K23: 4 | L23: 3 | M23: 4 | N23: 3 | O23: 3 | P23: =SUM(G23:O23) -> 33
F24: Score | G24: 4 | H24: 4 | I24: 5 | J24: 5 | K24: 4 | L24: 4 | M24: 4 | N24: 4 | O24: 3 | P24: 37
F25: Hole | G25: 10 | H25: 11 | I25: 12 | J25: 13 | K25: 14 | L25: 15 | M25: 16 | N25: 17 | O25: 18 | P25: In | Q25: Total | T25: RENNY | U25: Ace | V25: Eag | W25: Bir | X25: Par | Y25: Bog | Z25: Bg+ | AA25: Sno | AB25: Score
F26: Dist. | G26: 538 | H26: 1042 | I26: 617 | J26: 974 | K26: 564 | L26: 378 | M26: 302 | N26: 517 | O26: 826 | P26: =SUM(G26:O26) -> 5758 | Q26: =P26+P22 -> 9459 | T26: Front | U26: =COUNTIF(G24:O24,"1") -> 0 | V26: =COUNTConditionColorCells($G$24:$O$24,V25) -> 0 | W26: =COUNTConditionColorCells($G$24:$O$24,W25) -> 0 | X26: 5 | Y26: 4 | Z26: 0 | AA26: =COUNTIF(G24:O24,"8") -> 0 | AB26: =P24 -> 37
F27: Par | G27: 4 | H27: 5 | I27: 4 | J27: 5 | K27: 4 | L27: 3 | M27: 3 | N27: 4 | O27: 5 | P27: =SUM(G27:O27) -> 37 | Q27: =P27+P23 -> 70 | T27: Back | U27: =COUNTIF(G28:O28,"1") -> 0 | V27: =COUNTConditionColorCells($G$28:$O$28,V25) -> 0 | W27: =COUNTConditionColorCells($G$28:$O$28,W25) -> 0 | X27: 4 | Y27: 3 | Z27: 2 | AA27: =COUNTIF(G28:O28,"8") -> 0 | AB27: =P28 -> 44
F28: Score | G28: 6 | H28: 6 | I28: 4 | J28: 7 | K28: 4 | L28: 3 | M28: 3 | N28: 5 | O28: 6 | P28: =SUM(G28:O28) -> 44 | Q28: 81 | T28: Total | U28: =U26+U27 -> 0 | V28: =V26+V27 -> 0 | W28: 0 | X28: 9 | Y28: 7 | Z28: 2 | AA28: 0 | AB28: =Q28 -> 81
B30: Nevin #2 - Play from short cement pad (not long pad behind creek). | M30: Player
M31: Witness 1
B32: Turn in your completed, signed score sheet before 9pm | M32: Witness 2
B33: at Divine Barrel Brewery (3701 N. Davidson St). | M33: Witness 3 | T33: FINAL | U33: Ace | V33: Eag | W33: Bir | X33: Par | Y33: Bog | Z33: Bg+ | AA33: Sno | AB33: Score
T34: TOTAL | U34: =SUM(U28,U18,U8) -> 0 | V34: =SUM(V28,V18,V8) -> 0 | W34: 1 | X34: 24 | Y34: 23 | Z34: 6 | AA34: 0 | AB34: 240

Sheet PaEm
A1: 2019 Charlotte Iron Man | F1: Hole | G1: 1 | H1: 2 | I1: 3 | J1: 4 | K1: 5 | L1: 6 | M1: 7 | N1: 8 | O1: 9 | P1: Out | Q1: ANGRY
F2: Dist. | G2: 235 | H2: 158 | I2: 222 | J2: 439 | K2: 801 | L2: 491 | M2: 282 | N2: 567 | O2: 268 | P2: =SUM(G2:O2) -> 3463 | T2: Name | U2: Paetyn Emmert | Z2: Div | AA2: Maidens
F3: Par | G3: 3 | H3: 3 | I3: 3 | J3: 4 | K3: 5 | L3: 4 | M3: 3 | N3: 4 | O3: 3 | P3: =SUM(G3:O3) -> 32
F4: Score | G4: 3 | H4: 3 | I4: 4 | J4: 5 | K4: 7 | L4: 6 | M4: 5 | N4: 6 | O4: 3 | P4: 42
F5: Hole | G5: 10 | H5: 11 | I5: 12 | J5: 13 | K5: 14 | L5: 15 | M5: 16 | N5: 17 | O5: 18 | P5: In | Q5: Total | T5: ANGRY | U5: Ace | V5: Eag | W5: Bir | X5: Par | Y5: Bog | Z5: Bg+ | AA5: Sno | AB5: Score
F6: Dist. | G6: 563 | H6: 465 | I6: 215 | J6: 409 | K6: 333 | L6: 702 | M6: 431 | N6: 282 | O6: 814 | P6: =SUM(G6:O6) -> 4214 | Q6: =P6+P2 -> 7677 | T6: Front | U6: =COUNTIF(G4:O4,"1") -> 0 | V6: =COUNTConditionColorCells($G$4:$O$4,V5) -> 0 | W6: =COUNTConditionColorCells($G$4:$O$4,W5) -> 0 | X6: 3 | Y6: 2 | Z6: 4 | AA6: =COUNTIF(G4:O4,"8") -> 0 | AB6: =P4 -> 42
F7: Par | G7: 4 | H7: 4 | I7: 3 | J7: 4 | K7: 3 | L7: 5 | M7: 4 | N7: 3 | O7: 5 | P7: =SUM(G7:O7) -> 35 | Q7: =P7+P3 -> 67 | T7: Back | U7: =COUNTIF(G8:O8,"1") -> 0 | V7: =COUNTConditionColorCells($G$8:$O$8,V5) -> 0 | W7: =COUNTConditionColorCells($G$8:$O$8,W5) -> 0 | X7: =COUNTConditionColorCells($G$8:$O$8,X5) -> 4 | Y7: =COUNTConditionColorCells($G$8:$O$8,Y5) -> 3 | Z7: 2 | AA7: =COUNTIF(G8:O8,"8") -> 1 | AB7: =P8 -> 43
F8: Score | G8: 6 | H8: 5 | I8: 3 | J8: 4 | K8: 4 | L8: 6 | M8: 4 | N8: 3 | O8: 8 | P8: =SUM(G8:O8) -> 43 | Q8: 85 | T8: Total | U8: =U6+U7 -> 0 | V8: =V6+V7 -> 0 | W8: 0 | X8: 7 | Y8: 5 | Z8: 6 | AA8: 1 | AB8: =Q8 -> 85
B11: Hole | C11: 1 | D11: 2 | E11: 3 | F11: 4 | G11: 5 | H11: 6 | I11: 7 | J11: 8 | K11: 9 | L11: Out | M11: NEVIN
B12: Dist. | C12: 491 | D12: 240 | E12: 375 | F12: 538 | G12: 656 | H12: 317 | I12: 202 | J12: 329 | K12: 593 | L12: =SUM(C12:K12) -> 3741
B13: Par | C13: 4 | D13: 3 | E13: 3 | F13: 4 | G13: 5 | H13: 3 | I13: 3 | J13: 3 | K13: 4 | L13: =SUM(C13:K13) -> 32
B14: Score | C14: 5 | D14: 5 | E14: 6 | F14: 6 | G14: 10 | H14: 5 | I14: 4 | J14: 4 | K14: 6 | L14: 51
B15: Hole | C15: 10 | D15: 11 | E15: 12 | F15: 13 | G15: 14 | H15: 15 | I15: 16 | J15: 17 | K15: 18 | L15: In | M15: Total | T15: NEVIN | U15: Ace | V15: Eag | W15: Bir | X15: Par | Y15: Bog | Z15: Bg+ | AA15: Sno | AB15: Score
B16: Dist. | C16: 630 | D16: 640 | E16: 970 | F16: 274 | G16: 550 | H16: 252 | I16: 596 | J16: 581 | K16: 530 | L16: =SUM(C16:K16) -> 5023 | M16: =L16+L12 -> 8764 | T16: Front | U16: =COUNTIF(C14:K14,"1") -> 0 | V16: =COUNTConditionColorCells($C$14:$K$14,V15) -> 0 | W16: =COUNTConditionColorCells($C$14:$K$14,W15) -> 0 | X16: 0 | Y16: 3 | Z16: 6 | AA16: =COUNTIF(C14:K14,"8") -> 0 | AB16: =L14 -> 51
B17: Par | C17: 5 | D17: 4 | E17: 5 | F17: 3 | G17: 4 | H17: 3 | I17: 4 | J17: 5 | K17: 4 | L17: =SUM(C17:K17) -> 37 | M17: =L17+L13 -> 69 | T17: Back | U17: =COUNTIF(C18:K18,"1") -> 0 | V17: =COUNTConditionColorCells($C$18:$K$18,V15) -> 0 | W17: =COUNTConditionColorCells($C$18:$K$18,W15) -> 0 | X17: 3 | Y17: 6 | Z17: 0 | AA17: =COUNTIF(C18:K18,"8") -> 0 | AB17: =L18 -> 43
B18: Score | C18: 6 | D18: 5 | E18: 6 | F18: 3 | G18: 4 | H18: 3 | I18: 5 | J18: 6 | K18: 5 | L18: =SUM(C18:K18) -> 43 | M18: 94 | T18: Total | U18: =U16+U17 -> 0 | V18: =V16+V17 -> 0 | W18: 0 | X18: 3 | Y18: 9 | Z18: 6 | AA18: =AA16+AA17 -> 0 | AB18: =M18 -> 94
F21: Hole | G21: 1 | H21: 2 | I21: 3 | J21: 4 | K21: 5 | L21: 6 | M21: 7 | N21: 8 | O21: 9 | P21: Out | Q21: RENNY
F22: Dist. | G22: 523 | H22: 519 | I22: 386 | J22: 551 | K22: 392 | L22: 257 | M22: 465 | N22: 323 | O22: 285 | P22: =SUM(G22:O22) -> 3701
F23: Par | G23: 4 | H23: 4 | I23: 4 | J23: 4 | K23: 4 | L23: 3 | M23: 4 | N23: 3 | O23: 3 | P23: =SUM(G23:O23) -> 33
F24: Score | G24: 5 | H24: 6 | I24: 4 | J24: 7 | K24: 4 | L24: 3 | M24: 5 | N24: 4 | O24: 3 | P24: 41
F25: Hole | G25: 10 | H25: 11 | I25: 12 | J25: 13 | K25: 14 | L25: 15 | M25: 16 | N25: 17 | O25: 18 | P25: In | Q25: Total | T25: RENNY | U25: Ace | V25: Eag | W25: Bir | X25: Par | Y25: Bog | Z25: Bg+ | AA25: Sno | AB25: Score
F26: Dist. | G26: 538 | H26: 1042 | I26: 617 | J26: 974 | K26: 564 | L26: 378 | M26: 302 | N26: 517 | O26: 826 | P26: =SUM(G26:O26) -> 5758 | Q26: =P26+P22 -> 9459 | T26: Front | U26: =COUNTIF(G24:O24,"1") -> 0 | V26: =COUNTConditionColorCells($G$24:$O$24,V25) -> 0 | W26: =COUNTConditionColorCells($G$24:$O$24,W25) -> 0 | X26: 4 | Y26: 3 | Z26: 2 | AA26: =COUNTIF(G24:O24,"8") -> 0 | AB26: =P24 -> 41
F27: Par | G27: 4 | H27: 5 | I27: 4 | J27: 5 | K27: 4 | L27: 3 | M27: 3 | N27: 4 | O27: 5 | P27: =SUM(G27:O27) -> 37 | Q27: =P27+P23 -> 70 | T27: Back | U27: =COUNTIF(G28:O28,"1") -> 0 | V27: =COUNTConditionColorCells($G$28:$O$28,V25) -> 0 | W27: =COUNTConditionColorCells($G$28:$O$28,W25) -> 0 | X27: 1 | Y27: 6 | Z27: 2 | AA27: =COUNTIF(G28:O28,"8") -> 0 | AB27: =P28 -> 48
F28: Score | G28: 7 | H28: 7 | I28: 5 | J28: 6 | K28: 5 | L28: 4 | M28: 3 | N28: 5 | O28: 6 | P28: =SUM(G28:O28) -> 48 | Q28: 89 | T28: Total | U28: =U26+U27 -> 0 | V28: =V26+V27 -> 0 | W28: 0 | X28: 5 | Y28: 9 | Z28: 4 | AA28: 0 | AB28: =Q28 -> 89
B30: Nevin #2 - Play from short cement pad (not long pad behind creek). | M30: Player
M31: Witness 1
B32: Turn in your completed, signed score sheet before 9pm | M32: Witness 2
B33: at Divine Barrel Brewery (3701 N. Davidson St). | M33: Witness 3 | T33: FINAL | U33: Ace | V33: Eag | W33: Bir | X33: Par | Y33: Bog | Z33: Bg+ | AA33: Sno | AB33: Score
T34: TOTAL | U34: =SUM(U28,U18,U8) -> 0 | V34: =SUM(V28,V18,V8) -> 0 | W34: 0 | X34: 15 | Y34: 23 | Z34: 16 | AA34: 1 | AB34: 268

Sheet ViSc
A1: 2019 Charlotte Iron Man | F1: Hole | G1: 1 | H1: 2 | I1: 3 | J1: 4 | K1: 5 | L1: 6 | M1: 7 | N1: 8 | O1: 9 | P1: Out | Q1: ANGRY
F2: Dist. | G2: 235 | H2: 158 | I2: 222 | J2: 439 | K2: 801 | L2: 491 | M2: 282 | N2: 567 | O2: 268 | P2: =SUM(G2:O2) -> 3463 | T2: Name | U2: Victoria Scott | Z2: Div | AA2: Maidens
F3: Par | G3: 3 | H3: 3 | I3: 3 | J3: 4 | K3: 5 | L3: 4 | M3: 3 | N3: 4 | O3: 3 | P3: =SUM(G3:O3) -> 32
F4: Score | G4: 3 | H4: 3 | I4: 4 | J4: 6 | K4: 7 | L4: 6 | M4: 4 | N4: 5 | O4: 4 | P4: 42
F5: Hole | G5: 10 | H5: 11 | I5: 12 | J5: 13 | K5: 14 | L5: 15 | M5: 16 | N5: 17 | O5: 18 | P5: In | Q5: Total | T5: ANGRY | U5: Ace | V5: Eag | W5: Bir | X5: Par | Y5: Bog | Z5: Bg+ | AA5: Sno | AB5: Score
F6: Dist. | G6: 563 | H6: 465 | I6: 215 | J6: 409 | K6: 333 | L6: 702 | M6: 431 | N6: 282 | O6: 814 | P6: =SUM(G6:O6) -> 4214 | Q6: =P6+P2 -> 7677 | T6: Front | U6: =COUNTIF(G4:O4,"1") -> 0 | V6: =COUNTConditionColorCells($G$4:$O$4,V5) -> 0 | W6: =COUNTConditionColorCells($G$4:$O$4,W5) -> 0 | X6: 2 | Y6: 4 | Z6: 3 | AA6: =COUNTIF(G4:O4,"8") -> 0 | AB6: =P4 -> 42
F7: Par | G7: 4 | H7: 4 | I7: 3 | J7: 4 | K7: 3 | L7: 5 | M7: 4 | N7: 3 | O7: 5 | P7: =SUM(G7:O7) -> 35 | Q7: =P7+P3 -> 67 | T7: Back | U7: =COUNTIF(G8:O8,"1") -> 0 | V7: =COUNTConditionColorCells($G$8:$O$8,V5) -> 0 | W7: =COUNTConditionColorCells($G$8:$O$8,W5) -> 1 | X7: =COUNTConditionColorCells($G$8:$O$8,X5) -> 0 | Y7: =COUNTConditionColorCells($G$8:$O$8,Y5) -> 3 | Z7: 5 | AA7: =COUNTIF(G8:O8,"8") -> 0 | AB7: =P8 -> 47
F8: Score | G8: 6 | H8: 6 | I8: 4 | J8: 5 | K8: 5 | L8: 6 | M8: 3 | N8: 5 | O8: 7 | P8: =SUM(G8:O8) -> 47 | Q8: 89 | T8: Total | U8: =U6+U7 -> 0 | V8: =V6+V7 -> 0 | W8: 1 | X8: 2 | Y8: 7 | Z8: 8 | AA8: 0 | AB8: =Q8 -> 89
B11: Hole | C11: 1 | D11: 2 | E11: 3 | F11: 4 | G11: 5 | H11: 6 | I11: 7 | J11: 8 | K11: 9 | L11: Out | M11: NEVIN
B12: Dist. | C12: 491 | D12: 240 | E12: 375 | F12: 538 | G12: 656 | H12: 317 | I12: 202 | J12: 329 | K12: 593 | L12: =SUM(C12:K12) -> 3741
B13: Par | C13: 4 | D13: 3 | E13: 3 | F13: 4 | G13: 5 | H13: 3 | I13: 3 | J13: 3 | K13: 4 | L13: =SUM(C13:K13) -> 32
B14: Score | C14: 6 | D14: 3 | E14: 8 | F14: 6 | G14: 6 | H14: 4 | I14: 3 | J14: 5 | K14: 7 | L14: 48
B15: Hole | C15: 10 | D15: 11 | E15: 12 | F15: 13 | G15: 14 | H15: 15 | I15: 16 | J15: 17 | K15: 18 | L15: In | M15: Total | T15: NEVIN | U15: Ace | V15: Eag | W15: Bir | X15: Par | Y15: Bog | Z15: Bg+ | AA15: Sno | AB15: Score
B16: Dist. | C16: 630 | D16: 640 | E16: 970 | F16: 274 | G16: 550 | H16: 252 | I16: 596 | J16: 581 | K16: 530 | L16: =SUM(C16:K16) -> 5023 | M16: =L16+L12 -> 8764 | T16: Front | U16: =COUNTIF(C14:K14,"1") -> 0 | V16: =COUNTConditionColorCells($C$14:$K$14,V15) -> 0 | W16: =COUNTConditionColorCells($C$14:$K$14,W15) -> 0 | X16: 2 | Y16: 2 | Z16: 5 | AA16: =COUNTIF(C14:K14,"8") -> 1 | AB16: =L14 -> 48
B17: Par | C17: 5 | D17: 4 | E17: 5 | F17: 3 | G17: 4 | H17: 3 | I17: 4 | J17: 5 | K17: 4 | L17: =SUM(C17:K17) -> 37 | M17: =L17+L13 -> 69 | T17: Back | U17: =COUNTIF(C18:K18,"1") -> 0 | V17: =COUNTConditionColorCells($C$18:$K$18,V15) -> 0 | W17: =COUNTConditionColorCells($C$18:$K$18,W15) -> 0 | X17: 0 | Y17: 5 | Z17: 4 | AA17: =COUNTIF(C18:K18,"8") -> 0 | AB17: =L18 -> 52
B18: Score | C18: 7 | D18: 5 | E18: 9 | F18: 4 | G18: 5 | H18: 4 | I18: 6 | J18: 7 | K18: 5 | L18: =SUM(C18:K18) -> 52 | M18: 100 | T18: Total | U18: =U16+U17 -> 0 | V18: =V16+V17 -> 0 | W18: 0 | X18: 2 | Y18: 7 | Z18: 9 | AA18: =AA16+AA17 -> 1 | AB18: =M18 -> 100
F21: Hole | G21: 1 | H21: 2 | I21: 3 | J21: 4 | K21: 5 | L21: 6 | M21: 7 | N21: 8 | O21: 9 | P21: Out | Q21: RENNY
F22: Dist. | G22: 523 | H22: 519 | I22: 386 | J22: 551 | K22: 392 | L22: 257 | M22: 465 | N22: 323 | O22: 285 | P22: =SUM(G22:O22) -> 3701
F23: Par | G23: 4 | H23: 4 | I23: 4 | J23: 4 | K23: 4 | L23: 3 | M23: 4 | N23: 3 | O23: 3 | P23: =SUM(G23:O23) -> 33
F24: Score | G24: 7 | H24: 5 | I24: 5 | J24: 4 | K24: 5 | L24: 3 | M24: 6 | N24: 4 | O24: 4 | P24: 43
F25: Hole | G25: 10 | H25: 11 | I25: 12 | J25: 13 | K25: 14 | L25: 15 | M25: 16 | N25: 17 | O25: 18 | P25: In | Q25: Total | T25: RENNY | U25: Ace | V25: Eag | W25: Bir | X25: Par | Y25: Bog | Z25: Bg+ | AA25: Sno | AB25: Score
F26: Dist. | G26: 538 | H26: 1042 | I26: 617 | J26: 974 | K26: 564 | L26: 378 | M26: 302 | N26: 517 | O26: 826 | P26: =SUM(G26:O26) -> 5758 | Q26: =P26+P22 -> 9459 | T26: Front | U26: =COUNTIF(G24:O24,"1") -> 0 | V26: =COUNTConditionColorCells($G$24:$O$24,V25) -> 0 | W26: =COUNTConditionColorCells($G$24:$O$24,W25) -> 0 | X26: 2 | Y26: 5 | Z26: 2 | AA26: =COUNTIF(G24:O24,"8") -> 0 | AB26: =P24 -> 43
F27: Par | G27: 4 | H27: 5 | I27: 4 | J27: 5 | K27: 4 | L27: 3 | M27: 3 | N27: 4 | O27: 5 | P27: =SUM(G27:O27) -> 37 | Q27: =P27+P23 -> 70 | T27: Back | U27: =COUNTIF(G28:O28,"1") -> 0 | V27: =COUNTConditionColorCells($G$28:$O$28,V25) -> 0 | W27: =COUNTConditionColorCells($G$28:$O$28,W25) -> 0 | X27: 0 | Y27: 3 | Z27: 6 | AA27: =COUNTIF(G28:O28,"8") -> 2 | AB27: =P28 -> 54
F28: Score | G28: 6 | H28: 8 | I28: 6 | J28: 8 | K28: 5 | L28: 4 | M28: 4 | N28: 6 | O28: 7 | P28: =SUM(G28:O28) -> 54 | Q28: 97 | T28: Total | U28: =U26+U27 -> 0 | V28: =V26+V27 -> 0 | W28: 0 | X28: 2 | Y28: 8 | Z28: 8 | AA28: 2 | AB28: =Q28 -> 97
B30: Nevin #2 - Play from short cement pad (not long pad behind creek). | M30: Player
M31: Witness 1
B32: Turn in your completed, signed score sheet before 9pm | M32: Witness 2
B33: at Divine Barrel Brewery (3701 N. Davidson St). | M33: Witness 3 | T33: FINAL | U33: Ace | V33: Eag | W33: Bir | X33: Par | Y33: Bog | Z33: Bg+ | AA33: Sno | AB33: Score
T34: TOTAL | U34: =SUM(U28,U18,U8) -> 0 | V34: =SUM(V28,V18,V8) -> 0 | W34: 1 | X34: 6 | Y34: 22 | Z34: 25 | AA34: 3 | AB34: 286

Sheet BeCy
A1: 2019 Charlotte Iron Man | F1: Hole | G1: 1 | H1: 2 | I1: 3 | J1: 4 | K1: 5 | L1: 6 | M1: 7 | N1: 8 | O1: 9 | P1: Out | Q1: ANGRY
F2: Dist. | G2: 235 | H2: 158 | I2: 222 | J2: 439 | K2: 801 | L2: 491 | M2: 282 | N2: 567 | O2: 268 | P2: =SUM(G2:O2) -> 3463 | T2: Name | U2: Benjamin Cybul | Z2: Div | AA2: Iron Men
F3: Par | G3: 3 | H3: 3 | I3: 3 | J3: 4 | K3: 5 | L3: 4 | M3: 3 | N3: 4 | O3: 3 | P3: =SUM(G3:O3) -> 32
F4: Score | G4: 2 | H4: 3 | I4: 3 | J4: 5 | K4: 5 | L4: 6 | M4: 4 | N4: 4 | O4: 3 | P4: 35
F5: Hole | G5: 10 | H5: 11 | I5: 12 | J5: 13 | K5: 14 | L5: 15 | M5: 16 | N5: 17 | O5: 18 | P5: In | Q5: Total | T5: ANGRY | U5: Ace | V5: Eag | W5: Bir | X5: Par | Y5: Bog | Z5: Bg+ | AA5: Sno | AB5: Score
F6: Dist. | G6: 563 | H6: 465 | I6: 215 | J6: 409 | K6: 333 | L6: 702 | M6: 431 | N6: 282 | O6: 814 | P6: =SUM(G6:O6) -> 4214 | Q6: =P6+P2 -> 7677 | T6: Front | U6: =COUNTIF(G4:O4,"1") -> 0 | V6: =COUNTConditionColorCells($G$4:$O$4,V5) -> 0 | W6: =COUNTConditionColorCells($G$4:$O$4,W5) -> 1 | X6: 5 | Y6: 2 | Z6: 1 | AA6: =COUNTIF(G4:O4,"8") -> 0 | AB6: =P4 -> 35
F7: Par | G7: 4 | H7: 4 | I7: 3 | J7: 4 | K7: 3 | L7: 5 | M7: 4 | N7: 3 | O7: 5 | P7: =SUM(G7:O7) -> 35 | Q7: =P7+P3 -> 67 | T7: Back | U7: =COUNTIF(G8:O8,"1") -> 0 | V7: =COUNTConditionColorCells($G$8:$O$8,V5) -> 0 | W7: =COUNTConditionColorCells($G$8:$O$8,W5) -> 2 | X7: =COUNTConditionColorCells($G$8:$O$8,X5) -> 4 | Y7: =COUNTConditionColorCells($G$8:$O$8,Y5) -> 2 | Z7: 1 | AA7: =COUNTIF(G8:O8,"8") -> 0 | AB7: =P8 -> 37
F8: Score | G8: 5 | H8: 4 | I8: 2 | J8: 4 | K8: 3 | L8: 5 | M8: 3 | N8: 4 | O8: 7 | P8: =SUM(G8:O8) -> 37 | Q8: 72 | T8: Total | U8: =U6+U7 -> 0 | V8: =V6+V7 -> 0 | W8: 3 | X8: 9 | Y8: 4 | Z8: 2 | AA8: 0 | AB8: =Q8 -> 72
B11: Hole | C11: 1 | D11: 2 | E11: 3 | F11: 4 | G11: 5 | H11: 6 | I11: 7 | J11: 8 | K11: 9 | L11: Out | M11: NEVIN
B12: Dist. | C12: 491 | D12: 240 | E12: 375 | F12: 538 | G12: 656 | H12: 317 | I12: 202 | J12: 329 | K12: 593 | L12: =SUM(C12:K12) -> 3741
B13: Par | C13: 4 | D13: 3 | E13: 3 | F13: 4 | G13: 5 | H13: 3 | I13: 3 | J13: 3 | K13: 4 | L13: =SUM(C13:K13) -> 32
B14: Score | C14: 4 | D14: 3 | E14: 5 | F14: 6 | G14: 5 | H14: 3 | I14: 4 | J14: 3 | K14: 4 | L14: 37
B15: Hole | C15: 10 | D15: 11 | E15: 12 | F15: 13 | G15: 14 | H15: 15 | I15: 16 | J15: 17 | K15: 18 | L15: In | M15: Total | T15: NEVIN | U15: Ace | V15: Eag | W15: Bir | X15: Par | Y15: Bog | Z15: Bg+ | AA15: Sno | AB15: Score
B16: Dist. | C16: 630 | D16: 640 | E16: 970 | F16: 274 | G16: 550 | H16: 252 | I16: 596 | J16: 581 | K16: 530 | L16: =SUM(C16:K16) -> 5023 | M16: =L16+L12 -> 8764 | T16: Front | U16: =COUNTIF(C14:K14,"1") -> 0 | V16: =COUNTConditionColorCells($C$14:$K$14,V15) -> 0 | W16: =COUNTConditionColorCells($C$14:$K$14,W15) -> 0 | X16: 6 | Y16: 1 | Z16: 2 | AA16: =COUNTIF(C14:K14,"8") -> 0 | AB16: =L14 -> 37
B17: Par | C17: 5 | D17: 4 | E17: 5 | F17: 3 | G17: 4 | H17: 3 | I17: 4 | J17: 5 | K17: 4 | L17: =SUM(C17:K17) -> 37 | M17: =L17+L13 -> 69 | T17: Back | U17: =COUNTIF(C18:K18,"1") -> 0 | V17: =COUNTConditionColorCells($C$18:$K$18,V15) -> 0 | W17: =COUNTConditionColorCells($C$18:$K$18,W15) -> 1 | X17: 3 | Y17: 5 | Z17: 0 | AA17: =COUNTIF(C18:K18,"8") -> 0 | AB17: =L18 -> 41
B18: Score | C18: 6 | D18: 5 | E18: 6 | F18: 4 | G18: 4 | H18: 4 | I18: 4 | J18: 5 | K18: 3 | L18: =SUM(C18:K18) -> 41 | M18: 78 | T18: Total | U18: =U16+U17 -> 0 | V18: =V16+V17 -> 0 | W18: 1 | X18: 9 | Y18: 6 | Z18: 2 | AA18: =AA16+AA17 -> 0 | AB18: =M18 -> 78
F21: Hole | G21: 1 | H21: 2 | I21: 3 | J21: 4 | K21: 5 | L21: 6 | M21: 7 | N21: 8 | O21: 9 | P21: Out | Q21: RENNY
F22: Dist. | G22: 523 | H22: 519 | I22: 386 | J22: 551 | K22: 392 | L22: 257 | M22: 465 | N22: 323 | O22: 285 | P22: =SUM(G22:O22) -> 3701
F23: Par | G23: 4 | H23: 4 | I23: 4 | J23: 4 | K23: 4 | L23: 3 | M23: 4 | N23: 3 | O23: 3 | P23: =SUM(G23:O23) -> 33
F24: Score | G24: 4 | H24: 3 | I24: 5 | J24: 4 | K24: 4 | L24: 3 | M24: 5 | N24: 3 | O24: 3 | P24: 34
F25: Hole | G25: 10 | H25: 11 | I25: 12 | J25: 13 | K25: 14 | L25: 15 | M25: 16 | N25: 17 | O25: 18 | P25: In | Q25: Total | T25: RENNY | U25: Ace | V25: Eag | W25: Bir | X25: Par | Y25: Bog | Z25: Bg+ | AA25: Sno | AB25: Score
F26: Dist. | G26: 538 | H26: 1042 | I26: 617 | J26: 974 | K26: 564 | L26: 378 | M26: 302 | N26: 517 | O26: 826 | P26: =SUM(G26:O26) -> 5758 | Q26: =P26+P22 -> 9459 | T26: Front | U26: =COUNTIF(G24:O24,"1") -> 0 | V26: =COUNTConditionColorCells($G$24:$O$24,V25) -> 0 | W26: =COUNTConditionColorCells($G$24:$O$24,W25) -> 1 | X26: 6 | Y26: 2 | Z26: 0 | AA26: =COUNTIF(G24:O24,"8") -> 0 | AB26: =P24 -> 34
F27: Par | G27: 4 | H27: 5 | I27: 4 | J27: 5 | K27: 4 | L27: 3 | M27: 3 | N27: 4 | O27: 5 | P27: =SUM(G27:O27) -> 37 | Q27: =P27+P23 -> 70 | T27: Back | U27: =COUNTIF(G28:O28,"1") -> 0 | V27: =COUNTConditionColorCells($G$28:$O$28,V25) -> 0 | W27: =COUNTConditionColorCells($G$28:$O$28,W25) -> 0 | X27: 5 | Y27: 2 | Z27: 2 | AA27: =COUNTIF(G28:O28,"8") -> 0 | AB27: =P28 -> 43
F28: Score | G28: 5 | H28: 7 | I28: 4 | J28: 7 | K28: 4 | L28: 3 | M28: 4 | N28: 4 | O28: 5 | P28: =SUM(G28:O28) -> 43 | Q28: 77 | T28: Total | U28: =U26+U27 -> 0 | V28: =V26+V27 -> 0 | W28: 1 | X28: 11 | Y28: 4 | Z28: 2 | AA28: 0 | AB28: =Q28 -> 77
B30: Nevin #2 - Play from short cement pad (not long pad behind creek). | M30: Player
M31: Witness 1
B32: Turn in your completed, signed score sheet before 9pm | M32: Witness 2
B33: at Divine Barrel Brewery (3701 N. Davidson St). | M33: Witness 3 | T33: FINAL | U33: Ace | V33: Eag | W33: Bir | X33: Par | Y33: Bog | Z33: Bg+ | AA33: Sno | AB33: Score
T34: TOTAL | U34: =SUM(U28,U18,U8) -> 0 | V34: =SUM(V28,V18,V8) -> 0 | W34: 5 | X34: 29 | Y34: 14 | Z34: 6 | AA34: 0 | AB34: 227

Sheet BoSc
A1: 2019 Charlotte Iron Man | F1: Hole | G1: 1 | H1: 2 | I1: 3 | J1: 4 | K1: 5 | L1: 6 | M1: 7 | N1: 8 | O1: 9 | P1: Out | Q1: ANGRY
F2: Dist. | G2: 235 | H2: 158 | I2: 222 | J2: 439 | K2: 801 | L2: 491 | M2: 282 | N2: 567 | O2: 268 | P2: =SUM(G2:O2) -> 3463 | T2: Name | U2: Bob Scott | Z2: Div | AA2: M Masters
F3: Par | G3: 3 | H3: 3 | I3: 3 | J3: 4 | K3: 5 | L3: 4 | M3: 3 | N3: 4 | O3: 3 | P3: =SUM(G3:O3) -> 32
F4: Score | G4: 3 | H4: 3 | I4: 2 | J4: 6 | K4: 7 | L4: 5 | M4: 5 | N4: 5 | O4: 4 | P4: 40
F5: Hole | G5: 10 | H5: 11 | I5: 12 | J5: 13 | K5: 14 | L5: 15 | M5: 16 | N5: 17 | O5: 18 | P5: In | Q5: Total | T5: ANGRY | U5: Ace | V5: Eag | W5: Bir | X5: Par | Y5: Bog | Z5: Bg+ | AA5: Sno | AB5: Score
F6: Dist. | G6: 563 | H6: 465 | I6: 215 | J6: 409 | K6: 333 | L6: 702 | M6: 431 | N6: 282 | O6: 814 | P6: =SUM(G6:O6) -> 4214 | Q6: =P6+P2 -> 7677 | T6: Front | U6: =COUNTIF(G4:O4,"1") -> 0 | V6: =COUNTConditionColorCells($G$4:$O$4,V5) -> 0 | W6: =COUNTConditionColorCells($G$4:$O$4,W5) -> 1 | X6: 2 | Y6: 3 | Z6: 3 | AA6: =COUNTIF(G4:O4,"8") -> 0 | AB6: =P4 -> 40
F7: Par | G7: 4 | H7: 4 | I7: 3 | J7: 4 | K7: 3 | L7: 5 | M7: 4 | N7: 3 | O7: 5 | P7: =SUM(G7:O7) -> 35 | Q7: =P7+P3 -> 67 | T7: Back | U7: =COUNTIF(G8:O8,"1") -> 0 | V7: =COUNTConditionColorCells($G$8:$O$8,V5) -> 0 | W7: =COUNTConditionColorCells($G$8:$O$8,W5) -> 0 | X7: =COUNTConditionColorCells($G$8:$O$8,X5) -> 4 | Y7: =COUNTConditionColorCells($G$8:$O$8,Y5) -> 2 | Z7: 3 | AA7: =COUNTIF(G8:O8,"8") -> 0 | AB7: =P8 -> 43
F8: Score | G8: 6 | H8: 4 | I8: 4 | J8: 4 | K8: 4 | L8: 7 | M8: 4 | N8: 3 | O8: 7 | P8: =SUM(G8:O8) -> 43 | Q8: 83 | T8: Total | U8: =U6+U7 -> 0 | V8: =V6+V7 -> 0 | W8: 1 | X8: 6 | Y8: 5 | Z8: 6 | AA8: 0 | AB8: =Q8 -> 83
B11: Hole | C11: 1 | D11: 2 | E11: 3 | F11: 4 | G11: 5 | H11: 6 | I11: 7 | J11: 8 | K11: 9 | L11: Out | M11: NEVIN
B12: Dist. | C12: 491 | D12: 240 | E12: 375 | F12: 538 | G12: 656 | H12: 317 | I12: 202 | J12: 329 | K12: 593 | L12: =SUM(C12:K12) -> 3741
B13: Par | C13: 4 | D13: 3 | E13: 3 | F13: 4 | G13: 5 | H13: 3 | I13: 3 | J13: 3 | K13: 4 | L13: =SUM(C13:K13) -> 32
B14: Score | C14: 6 | D14: 4 | E14: 4 | F14: 5 | G14: 6 | H14: 4 | I14: 5 | J14: 3 | K14: 5 | L14: 42
B15: Hole | C15: 10 | D15: 11 | E15: 12 | F15: 13 | G15: 14 | H15: 15 | I15: 16 | J15: 17 | K15: 18 | L15: In | M15: Total | T15: NEVIN | U15: Ace | V15: Eag | W15: Bir | X15: Par | Y15: Bog | Z15: Bg+ | AA15: Sno | AB15: Score
B16: Dist. | C16: 630 | D16: 640 | E16: 970 | F16: 274 | G16: 550 | H16: 252 | I16: 596 | J16: 581 | K16: 530 | L16: =SUM(C16:K16) -> 5023 | M16: =L16+L12 -> 8764 | T16: Front | U16: =COUNTIF(C14:K14,"1") -> 0 | V16: =COUNTConditionColorCells($C$14:$K$14,V15) -> 0 | W16: =COUNTConditionColorCells($C$14:$K$14,W15) -> 0 | X16: 1 | Y16: 6 | Z16: 2 | AA16: =COUNTIF(C14:K14,"8") -> 0 | AB16: =L14 -> 42
B17: Par | C17: 5 | D17: 4 | E17: 5 | F17: 3 | G17: 4 | H17: 3 | I17: 4 | J17: 5 | K17: 4 | L17: =SUM(C17:K17) -> 37 | M17: =L17+L13 -> 69 | T17: Back | U17: =COUNTIF(C18:K18,"1") -> 0 | V17: =COUNTConditionColorCells($C$18:$K$18,V15) -> 0 | W17: =COUNTConditionColorCells($C$18:$K$18,W15) -> 0 | X17: 3 | Y17: 4 | Z17: 2 | AA17: =COUNTIF(C18:K18,"8") -> 1 | AB17: =L18 -> 46
B18: Score | C18: 8 | D18: 5 | E18: 7 | F18: 3 | G18: 5 | H18: 3 | I18: 5 | J18: 5 | K18: 5 | L18: =SUM(C18:K18) -> 46 | M18: 88 | T18: Total | U18: =U16+U17 -> 0 | V18: =V16+V17 -> 0 | W18: 0 | X18: 4 | Y18: 10 | Z18: 4 | AA18: =AA16+AA17 -> 1 | AB18: =M18 -> 88
F21: Hole | G21: 1 | H21: 2 | I21: 3 | J21: 4 | K21: 5 | L21: 6 | M21: 7 | N21: 8 | O21: 9 | P21: Out | Q21: RENNY
F22: Dist. | G22: 523 | H22: 519 | I22: 386 | J22: 551 | K22: 392 | L22: 257 | M22: 465 | N22: 323 | O22: 285 | P22: =SUM(G22:O22) -> 3701
F23: Par | G23: 4 | H23: 4 | I23: 4 | J23: 4 | K23: 4 | L23: 3 | M23: 4 | N23: 3 | O23: 3 | P23: =SUM(G23:O23) -> 33
F24: Score | G24: 4 | H24: 4 | I24: 4 | J24: 4 | K24: 5 | L24: 3 | M24: 4 | N24: 3 | O24: 3 | P24: 34
F25: Hole | G25: 10 | H25: 11 | I25: 12 | J25: 13 | K25: 14 | L25: 15 | M25: 16 | N25: 17 | O25: 18 | P25: In | Q25: Total | T25: RENNY | U25: Ace | V25: Eag | W25: Bir | X25: Par | Y25: Bog | Z25: Bg+ | AA25: Sno | AB25: Score
F26: Dist. | G26: 538 | H26: 1042 | I26: 617 | J26: 974 | K26: 564 | L26: 378 | M26: 302 | N26: 517 | O26: 826 | P26: =SUM(G26:O26) -> 5758 | Q26: =P26+P22 -> 9459 | T26: Front | U26: =COUNTIF(G24:O24,"1") -> 0 | V26: =COUNTConditionColorCells($G$24:$O$24,V25) -> 0 | W26: =COUNTConditionColorCells($G$24:$O$24,W25) -> 0 | X26: 8 | Y26: 1 | Z26: 0 | AA26: =COUNTIF(G24:O24,"8") -> 0 | AB26: =P24 -> 34
F27: Par | G27: 4 | H27: 5 | I27: 4 | J27: 5 | K27: 4 | L27: 3 | M27: 3 | N27: 4 | O27: 5 | P27: =SUM(G27:O27) -> 37 | Q27: =P27+P23 -> 70 | T27: Back | U27: =COUNTIF(G28:O28,"1") -> 0 | V27: =COUNTConditionColorCells($G$28:$O$28,V25) -> 0 | W27: =COUNTConditionColorCells($G$28:$O$28,W25) -> 0 | X27: 4 | Y27: 3 | Z27: 2 | AA27: =COUNTIF(G28:O28,"8") -> 0 | AB27: =P28 -> 47
F28: Score | G28: 5 | H28: 10 | I28: 4 | J28: 6 | K28: 4 | L28: 3 | M28: 3 | N28: 5 | O28: 7 | P28: =SUM(G28:O28) -> 47 | Q28: 81 | T28: Total | U28: =U26+U27 -> 0 | V28: =V26+V27 -> 0 | W28: 0 | X28: 12 | Y28: 4 | Z28: 2 | AA28: 0 | AB28: =Q28 -> 81
B30: Nevin #2 - Play from short cement pad (not long pad behind creek). | M30: Player
M31: Witness 1
B32: Turn in your completed, signed score sheet before 9pm | M32: Witness 2
B33: at Divine Barrel Brewery (3701 N. Davidson St). | M33: Witness 3 | T33: FINAL | U33: Ace | V33: Eag | W33: Bir | X33: Par | Y33: Bog | Z33: Bg+ | AA33: Sno | AB33: Score
T34: TOTAL | U34: =SUM(U28,U18,U8) -> 0 | V34: =SUM(V28,V18,V8) -> 0 | W34: 1 | X34: 22 | Y34: 19 | Z34: 12 | AA34: 1 | AB34: 252

Sheet BrTe
A1: 2019 Charlotte Iron Man | F1: Hole | G1: 1 | H1: 2 | I1: 3 | J1: 4 | K1: 5 | L1: 6 | M1: 7 | N1: 8 | O1: 9 | P1: Out | Q1: ANGRY
F2: Dist. | G2: 235 | H2: 158 | I2: 222 | J2: 439 | K2: 801 | L2: 491 | M2: 282 | N2: 567 | O2: 268 | P2: =SUM(G2:O2) -> 3463 | T2: Name | U2: Brandon Terry | Z2: Div | AA2: Iron Men
F3: Par | G3: 3 | H3: 3 | I3: 3 | J3: 4 | K3: 5 | L3: 4 | M3: 3 | N3: 4 | O3: 3 | P3: =SUM(G3:O3) -> 32
F4: Score | G4: 3 | H4: 3 | I4: 4 | J4: 4 | K4: 8 | L4: 4 | M4: 3 | N4: 5 | O4: 4 | P4: 38
F5: Hole | G5: 10 | H5: 11 | I5: 12 | J5: 13 | K5: 14 | L5: 15 | M5: 16 | N5: 17 | O5: 18 | P5: In | Q5: Total | T5: ANGRY | U5: Ace | V5: Eag | W5: Bir | X5: Par | Y5: Bog | Z5: Bg+ | AA5: Sno | AB5: Score
F6: Dist. | G6: 563 | H6: 465 | I6: 215 | J6: 409 | K6: 333 | L6: 702 | M6: 431 | N6: 282 | O6: 814 | P6: =SUM(G6:O6) -> 4214 | Q6: =P6+P2 -> 7677 | T6: Front | U6: =COUNTIF(G4:O4,"1") -> 0 | V6: =COUNTConditionColorCells($G$4:$O$4,V5) -> 0 | W6: =COUNTConditionColorCells($G$4:$O$4,W5) -> 0 | X6: 5 | Y6: 3 | Z6: 1 | AA6: =COUNTIF(G4:O4,"8") -> 1 | AB6: =P4 -> 38
F7: Par | G7: 4 | H7: 4 | I7: 3 | J7: 4 | K7: 3 | L7: 5 | M7: 4 | N7: 3 | O7: 5 | P7: =SUM(G7:O7) -> 35 | Q7: =P7+P3 -> 67 | T7: Back | U7: =COUNTIF(G8:O8,"1") -> 0 | V7: =COUNTConditionColorCells($G$8:$O$8,V5) -> 0 | W7: =COUNTConditionColorCells($G$8:$O$8,W5) -> 0 | X7: =COUNTConditionColorCells($G$8:$O$8,X5) -> 1 | Y7: =COUNTConditionColorCells($G$8:$O$8,Y5) -> 2 | Z7: 6 | AA7: =COUNTIF(G8:O8,"8") -> 0 | AB7: =P8 -> 54
F8: Score | G8: 5 | H8: 6 | I8: 7 | J8: 6 | K8: 7 | L8: 6 | M8: 7 | N8: 5 | O8: 5 | P8: =SUM(G8:O8) -> 54 | Q8: 92 | T8: Total | U8: =U6+U7 -> 0 | V8: =V6+V7 -> 0 | W8: 0 | X8: 6 | Y8: 5 | Z8: 7 | AA8: 1 | AB8: =Q8 -> 92
B11: Hole | C11: 1 | D11: 2 | E11: 3 | F11: 4 | G11: 5 | H11: 6 | I11: 7 | J11: 8 | K11: 9 | L11: Out | M11: NEVIN
B12: Dist. | C12: 491 | D12: 240 | E12: 375 | F12: 538 | G12: 656 | H12: 317 | I12: 202 | J12: 329 | K12: 593 | L12: =SUM(C12:K12) -> 3741
B13: Par | C13: 4 | D13: 3 | E13: 3 | F13: 4 | G13: 5 | H13: 3 | I13: 3 | J13: 3 | K13: 4 | L13: =SUM(C13:K13) -> 32
B14: Score | C14: 8 | D14: 3 | E14: 3 | F14: 7 | G14: 7 | H14: 4 | I14: 5 | J14: 5 | K14: 6 | L14: 48
B15: Hole | C15: 10 | D15: 11 | E15: 12 | F15: 13 | G15: 14 | H15: 15 | I15: 16 | J15: 17 | K15: 18 | L15: In | M15: Total | T15: NEVIN | U15: Ace | V15: Eag | W15: Bir | X15: Par | Y15: Bog | Z15: Bg+ | AA15: Sno | AB15: Score
B16: Dist. | C16: 630 | D16: 640 | E16: 970 | F16: 274 | G16: 550 | H16: 252 | I16: 596 | J16: 581 | K16: 530 | L16: =SUM(C16:K16) -> 5023 | M16: =L16+L12 -> 8764 | T16: Front | U16: =COUNTIF(C14:K14,"1") -> 0 | V16: =COUNTConditionColorCells($C$14:$K$14,V15) -> 0 | W16: =COUNTConditionColorCells($C$14:$K$14,W15) -> 0 | X16: 2 | Y16: 1 | Z16: 6 | AA16: =COUNTIF(C14:K14,"8") -> 1 | AB16: =L14 -> 48
B17: Par | C17: 5 | D17: 4 | E17: 5 | F17: 3 | G17: 4 | H17: 3 | I17: 4 | J17: 5 | K17: 4 | L17: =SUM(C17:K17) -> 37 | M17: =L17+L13 -> 69 | T17: Back | U17: =COUNTIF(C18:K18,"1") -> 0 | V17: =COUNTConditionColorCells($C$18:$K$18,V15) -> 0 | W17: =COUNTConditionColorCells($C$18:$K$18,W15) -> 0 | X17: 3 | Y17: 6 | Z17: 0 | AA17: =COUNTIF(C18:K18,"8") -> 0 | AB17: =L18 -> 43
B18: Score | C18: 6 | D18: 5 | E18: 6 | F18: 3 | G18: 4 | H18: 4 | I18: 5 | J18: 5 | K18: 5 | L18: =SUM(C18:K18) -> 43 | M18: 91 | T18: Total | U18: =U16+U17 -> 0 | V18: =V16+V17 -> 0 | W18: 0 | X18: 5 | Y18: 7 | Z18: 6 | AA18: =AA16+AA17 -> 1 | AB18: =M18 -> 91
F21: Hole | G21: 1 | H21: 2 | I21: 3 | J21: 4 | K21: 5 | L21: 6 | M21: 7 | N21: 8 | O21: 9 | P21: Out | Q21: RENNY
F22: Dist. | G22: 523 | H22: 519 | I22: 386 | J22: 551 | K22: 392 | L22: 257 | M22: 465 | N22: 323 | O22: 285 | P22: =SUM(G22:O22) -> 3701
F23: Par | G23: 4 | H23: 4 | I23: 4 | J23: 4 | K23: 4 | L23: 3 | M23: 4 | N23: 3 | O23: 3 | P23: =SUM(G23:O23) -> 33
F24: Score | G24: 4 | H24: 4 | I24: 5 | J24: 5 | K24: 6 | L24: 3 | M24: 4 | N24: 4 | O24: 4 | P24: 39
F25: Hole | G25: 10 | H25: 11 | I25: 12 | J25: 13 | K25: 14 | L25: 15 | M25: 16 | N25: 17 | O25: 18 | P25: In | Q25: Total | T25: RENNY | U25: Ace | V25: Eag | W25: Bir | X25: Par | Y25: Bog | Z25: Bg+ | AA25: Sno | AB25: Score
F26: Dist. | G26: 538 | H26: 1042 | I26: 617 | J26: 974 | K26: 564 | L26: 378 | M26: 302 | N26: 517 | O26: 826 | P26: =SUM(G26:O26) -> 5758 | Q26: =P26+P22 -> 9459 | T26: Front | U26: =COUNTIF(G24:O24,"1") -> 0 | V26: =COUNTConditionColorCells($G$24:$O$24,V25) -> 0 | W26: =COUNTConditionColorCells($G$24:$O$24,W25) -> 0 | X26: 4 | Y26: 4 | Z26: 1 | AA26: =COUNTIF(G24:O24,"8") -> 0 | AB26: =P24 -> 39
F27: Par | G27: 4 | H27: 5 | I27: 4 | J27: 5 | K27: 4 | L27: 3 | M27: 3 | N27: 4 | O27: 5 | P27: =SUM(G27:O27) -> 37 | Q27: =P27+P23 -> 70 | T27: Back | U27: =COUNTIF(G28:O28,"1") -> 0 | V27: =COUNTConditionColorCells($G$28:$O$28,V25) -> 0 | W27: =COUNTConditionColorCells($G$28:$O$28,W25) -> 0 | X27: 2 | Y27: 5 | Z27: 2 | AA27: =COUNTIF(G28:O28,"8") -> 0 | AB27: =P28 -> 46
F28: Score | G28: 6 | H28: 6 | I28: 5 | J28: 6 | K28: 4 | L28: 3 | M28: 4 | N28: 6 | O28: 6 | P28: =SUM(G28:O28) -> 46 | Q28: 85 | T28: Total | U28: =U26+U27 -> 0 | V28: =V26+V27 -> 0 | W28: 0 | X28: 6 | Y28: 9 | Z28: 3 | AA28: 0 | AB28: =Q28 -> 85
B30: Nevin #2 - Play from short cement pad (not long pad behind creek). | M30: Player
M31: Witness 1
B32: Turn in your completed, signed score sheet before 9pm | M32: Witness 2
B33: at Divine Barrel Brewery (3701 N. Davidson St). | M33: Witness 3 | T33: FINAL | U33: Ace | V33: Eag | W33: Bir | X33: Par | Y33: Bog | Z33: Bg+ | AA33: Sno | AB33: Score
T34: TOTAL | U34: =SUM(U28,U18,U8) -> 0 | V34: =SUM(V28,V18,V8) -> 0 | W34: 0 | X34: 17 | Y34: 21 | Z34: 16 | AA34: 2 | AB34: 268

Sheet CaLi
A1: 2019 Charlotte Iron Man | F1: Hole | G1: 1 | H1: 2 | I1: 3 | J1: 4 | K1: 5 | L1: 6 | M1: 7 | N1: 8 | O1: 9 | P1: Out | Q1: ANGRY
F2: Dist. | G2: 235 | H2: 158 | I2: 222 | J2: 439 | K2: 801 | L2: 491 | M2: 282 | N2: 567 | O2: 268 | P2: =SUM(G2:O2) -> 3463 | T2: Name | U2: Cameron Linger | Z2: Div | AA2: Iron Men
F3: Par | G3: 3 | H3: 3 | I3: 3 | J3: 4 | K3: 5 | L3: 4 | M3: 3 | N3: 4 | O3: 3 | P3: =SUM(G3:O3) -> 32
F4: Score | G4: 5 | H4: 4 | I4: 3 | J4: 5 | K4: 7 | L4: 6 | M4: 4 | N4: 7 | O4: 7 | P4: 48
F5: Hole | G5: 10 | H5: 11 | I5: 12 | J5: 13 | K5: 14 | L5: 15 | M5: 16 | N5: 17 | O5: 18 | P5: In | Q5: Total | T5: ANGRY | U5: Ace | V5: Eag | W5: Bir | X5: Par | Y5: Bog | Z5: Bg+ | AA5: Sno | AB5: Score
F6: Dist. | G6: 563 | H6: 465 | I6: 215 | J6: 409 | K6: 333 | L6: 702 | M6: 431 | N6: 282 | O6: 814 | P6: =SUM(G6:O6) -> 4214 | Q6: =P6+P2 -> 7677 | T6: Front | U6: =COUNTIF(G4:O4,"1") -> 0 | V6: =COUNTConditionColorCells($G$4:$O$4,V5) -> 0 | W6: =COUNTConditionColorCells($G$4:$O$4,W5) -> 0 | X6: 1 | Y6: 3 | Z6: 5 | AA6: =COUNTIF(G4:O4,"8") -> 0 | AB6: =P4 -> 48
F7: Par | G7: 4 | H7: 4 | I7: 3 | J7: 4 | K7: 3 | L7: 5 | M7: 4 | N7: 3 | O7: 5 | P7: =SUM(G7:O7) -> 35 | Q7: =P7+P3 -> 67 | T7: Back | U7: =COUNTIF(G8:O8,"1") -> 0 | V7: =COUNTConditionColorCells($G$8:$O$8,V5) -> 0 | W7: =COUNTConditionColorCells($G$8:$O$8,W5) -> 0 | X7: =COUNTConditionColorCells($G$8:$O$8,X5) -> 2 | Y7: =COUNTConditionColorCells($G$8:$O$8,Y5) -> 3 | Z7: 4 | AA7: =COUNTIF(G8:O8,"8") -> 0 | AB7: =P8 -> 47
F8: Score | G8: 6 | H8: 7 | I8: 3 | J8: 6 | K8: 4 | L8: 6 | M8: 4 | N8: 4 | O8: 7 | P8: =SUM(G8:O8) -> 47 | Q8: 95 | T8: Total | U8: =U6+U7 -> 0 | V8: =V6+V7 -> 0 | W8: 0 | X8: 3 | Y8: 6 | Z8: 9 | AA8: 0 | AB8: =Q8 -> 95
B11: Hole | C11: 1 | D11: 2 | E11: 3 | F11: 4 | G11: 5 | H11: 6 | I11: 7 | J11: 8 | K11: 9 | L11: Out | M11: NEVIN
B12: Dist. | C12: 491 | D12: 240 | E12: 375 | F12: 538 | G12: 656 | H12: 317 | I12: 202 | J12: 329 | K12: 593 | L12: =SUM(C12:K12) -> 3741
B13: Par | C13: 4 | D13: 3 | E13: 3 | F13: 4 | G13: 5 | H13: 3 | I13: 3 | J13: 3 | K13: 4 | L13: =SUM(C13:K13) -> 32
B14: Score | C14: 6 | D14: 5 | E14: 4 | F14: 6 | G14: 6 | H14: 5 | I14: 5 | J14: 3 | K14: 5 | L14: 45
B15: Hole | C15: 10 | D15: 11 | E15: 12 | F15: 13 | G15: 14 | H15: 15 | I15: 16 | J15: 17 | K15: 18 | L15: In | M15: Total | T15: NEVIN | U15: Ace | V15: Eag | W15: Bir | X15: Par | Y15: Bog | Z15: Bg+ | AA15: Sno | AB15: Score
B16: Dist. | C16: 630 | D16: 640 | E16: 970 | F16: 274 | G16: 550 | H16: 252 | I16: 596 | J16: 581 | K16: 530 | L16: =SUM(C16:K16) -> 5023 | M16: =L16+L12 -> 8764 | T16: Front | U16: =COUNTIF(C14:K14,"1") -> 0 | V16: =COUNTConditionColorCells($C$14:$K$14,V15) -> 0 | W16: =COUNTConditionColorCells($C$14:$K$14,W15) -> 0 | X16: 1 | Y16: 3 | Z16: 5 | AA16: =COUNTIF(C14:K14,"8") -> 0 | AB16: =L14 -> 45
B17: Par | C17: 5 | D17: 4 | E17: 5 | F17: 3 | G17: 4 | H17: 3 | I17: 4 | J17: 5 | K17: 4 | L17: =SUM(C17:K17) -> 37 | M17: =L17+L13 -> 69 | T17: Back | U17: =COUNTIF(C18:K18,"1") -> 0 | V17: =COUNTConditionColorCells($C$18:$K$18,V15) -> 0 | W17: =COUNTConditionColorCells($C$18:$K$18,W15) -> 0 | X17: 1 | Y17: 2 | Z17: 6 | AA17: =COUNTIF(C18:K18,"8") -> 0 | AB17: =L18 -> 53
B18: Score | C18: 5 | D18: 7 | E18: 7 | F18: 4 | G18: 6 | H18: 4 | I18: 7 | J18: 7 | K18: 6 | L18: =SUM(C18:K18) -> 53 | M18: 98 | T18: Total | U18: =U16+U17 -> 0 | V18: =V16+V17 -> 0 | W18: 0 | X18: 2 | Y18: 5 | Z18: 11 | AA18: =AA16+AA17 -> 0 | AB18: =M18 -> 98
F21: Hole | G21: 1 | H21: 2 | I21: 3 | J21: 4 | K21: 5 | L21: 6 | M21: 7 | N21: 8 | O21: 9 | P21: Out | Q21: RENNY
F22: Dist. | G22: 523 | H22: 519 | I22: 386 | J22: 551 | K22: 392 | L22: 257 | M22: 465 | N22: 323 | O22: 285 | P22: =SUM(G22:O22) -> 3701
F23: Par | G23: 4 | H23: 4 | I23: 4 | J23: 4 | K23: 4 | L23: 3 | M23: 4 | N23: 3 | O23: 3 | P23: =SUM(G23:O23) -> 33
F24: Score | G24: 4 | H24: 8 | I24: 5 | J24: 6 | K24: 5 | L24: 5 | M24: 5 | N24: 5 | O24: 4 | P24: 47
F25: Hole | G25: 10 | H25: 11 | I25: 12 | J25: 13 | K25: 14 | L25: 15 | M25: 16 | N25: 17 | O25: 18 | P25: In | Q25: Total | T25: RENNY | U25: Ace | V25: Eag | W25: Bir | X25: Par | Y25: Bog | Z25: Bg+ | AA25: Sno | AB25: Score
F26: Dist. | G26: 538 | H26: 1042 | I26: 617 | J26: 974 | K26: 564 | L26: 378 | M26: 302 | N26: 517 | O26: 826 | P26: =SUM(G26:O26) -> 5758 | Q26: =P26+P22 -> 9459 | T26: Front | U26: =COUNTIF(G24:O24,"1") -> 0 | V26: =COUNTConditionColorCells($G$24:$O$24,V25) -> 0 | W26: =COUNTConditionColorCells($G$24:$O$24,W25) -> 0 | X26: 1 | Y26: 4 | Z26: 4 | AA26: =COUNTIF(G24:O24,"8") -> 1 | AB26: =P24 -> 47
F27: Par | G27: 4 | H27: 5 | I27: 4 | J27: 5 | K27: 4 | L27: 3 | M27: 3 | N27: 4 | O27: 5 | P27: =SUM(G27:O27) -> 37 | Q27: =P27+P23 -> 70 | T27: Back | U27: =COUNTIF(G28:O28,"1") -> 0 | V27: =COUNTConditionColorCells($G$28:$O$28,V25) -> 0 | W27: =COUNTConditionColorCells($G$28:$O$28,W25) -> 0 | X27: 0 | Y27: 2 | Z27: 7 | AA27: =COUNTIF(G28:O28,"8") -> 2 | AB27: =P28 -> 58
F28: Score | G28: 6 | H28: 9 | I28: 5 | J28: 8 | K28: 7 | L28: 4 | M28: 5 | N28: 6 | O28: 8 | P28: =SUM(G28:O28) -> 58 | Q28: 105 | T28: Total | U28: =U26+U27 -> 0 | V28: =V26+V27 -> 0 | W28: 0 | X28: 1 | Y28: 6 | Z28: 11 | AA28: 3 | AB28: =Q28 -> 105
B30: Nevin #2 - Play from short cement pad (not long pad behind creek). | M30: Player
M31: Witness 1
B32: Turn in your completed, signed score sheet before 9pm | M32: Witness 2
B33: at Divine Barrel Brewery (3701 N. Davidson St). | M33: Witness 3 | T33: FINAL | U33: Ace | V33: Eag | W33: Bir | X33: Par | Y33: Bog | Z33: Bg+ | AA33: Sno | AB33: Score
T34: TOTAL | U34: =SUM(U28,U18,U8) -> 0 | V34: =SUM(V28,V18,V8) -> 0 | W34: 0 | X34: 6 | Y34: 17 | Z34: 31 | AA34: 3 | AB34: 298

Sheet ChRo
A1: 2019 Charlotte Iron Man | F1: Hole | G1: 1 | H1: 2 | I1: 3 | J1: 4 | K1: 5 | L1: 6 | M1: 7 | N1: 8 | O1: 9 | P1: Out | Q1: ANGRY
F2: Dist. | G2: 235 | H2: 158 | I2: 222 | J2: 439 | K2: 801 | L2: 491 | M2: 282 | N2: 567 | O2: 268 | P2: =SUM(G2:O2) -> 3463 | T2: Name | U2: Christopher Rowe | Z2: Div | AA2: Iron Men
F3: Par | G3: 3 | H3: 3 | I3: 3 | J3: 4 | K3: 5 | L3: 4 | M3: 3 | N3: 4 | O3: 3 | P3: =SUM(G3:O3) -> 32
F4: Score | G4: 2 | H4: 2 | I4: 3 | J4: 4 | K4: 5 | L4: 4 | M4: 3 | N4: 5 | O4: 3 | P4: 31
F5: Hole | G5: 10 | H5: 11 | I5: 12 | J5: 13 | K5: 14 | L5: 15 | M5: 16 | N5: 17 | O5: 18 | P5: In | Q5: Total | T5: ANGRY | U5: Ace | V5: Eag | W5: Bir | X5: Par | Y5: Bog | Z5: Bg+ | AA5: Sno | AB5: Score
F6: Dist. | G6: 563 | H6: 465 | I6: 215 | J6: 409 | K6: 333 | L6: 702 | M6: 431 | N6: 282 | O6: 814 | P6: =SUM(G6:O6) -> 4214 | Q6: =P6+P2 -> 7677 | T6: Front | U6: =COUNTIF(G4:O4,"1") -> 0 | V6: =COUNTConditionColorCells($G$4:$O$4,V5) -> 0 | W6: =COUNTConditionColorCells($G$4:$O$4,W5) -> 2 | X6: 6 | Y6: 1 | Z6: 0 | AA6: =COUNTIF(G4:O4,"8") -> 0 | AB6: =P4 -> 31
F7: Par | G7: 4 | H7: 4 | I7: 3 | J7: 4 | K7: 3 | L7: 5 | M7: 4 | N7: 3 | O7: 5 | P7: =SUM(G7:O7) -> 35 | Q7: =P7+P3 -> 67 | T7: Back | U7: =COUNTIF(G8:O8,"1") -> 0 | V7: =COUNTConditionColorCells($G$8:$O$8,V5) -> 0 | W7: =COUNTConditionColorCells($G$8:$O$8,W5) -> 2 | X7: =COUNTConditionColorCells($G$8:$O$8,X5) -> 6 | Y7: =COUNTConditionColorCells($G$8:$O$8,Y5) -> 1 | Z7: 0 | AA7: =COUNTIF(G8:O8,"8") -> 0 | AB7: =P8 -> 34
F8: Score | G8: 4 | H8: 3 | I8: 3 | J8: 3 | K8: 3 | L8: 5 | M8: 4 | N8: 3 | O8: 6 | P8: =SUM(G8:O8) -> 34 | Q8: 65 | T8: Total | U8: =U6+U7 -> 0 | V8: =V6+V7 -> 0 | W8: 4 | X8: 12 | Y8: 2 | Z8: 0 | AA8: 0 | AB8: =Q8 -> 65
B11: Hole | C11: 1 | D11: 2 | E11: 3 | F11: 4 | G11: 5 | H11: 6 | I11: 7 | J11: 8 | K11: 9 | L11: Out | M11: NEVIN
B12: Dist. | C12: 491 | D12: 240 | E12: 375 | F12: 538 | G12: 656 | H12: 317 | I12: 202 | J12: 329 | K12: 593 | L12: =SUM(C12:K12) -> 3741
B13: Par | C13: 4 | D13: 3 | E13: 3 | F13: 4 | G13: 5 | H13: 3 | I13: 3 | J13: 3 | K13: 4 | L13: =SUM(C13:K13) -> 32
B14: Score | C14: 4 | D14: 3 | E14: 3 | F14: 4 | G14: 4 | H14: 3 | I14: 3 | J14: 3 | K14: 4 | L14: 31
B15: Hole | C15: 10 | D15: 11 | E15: 12 | F15: 13 | G15: 14 | H15: 15 | I15: 16 | J15: 17 | K15: 18 | L15: In | M15: Total | T15: NEVIN | U15: Ace | V15: Eag | W15: Bir | X15: Par | Y15: Bog | Z15: Bg+ | AA15: Sno | AB15: Score
B16: Dist. | C16: 630 | D16: 640 | E16: 970 | F16: 274 | G16: 550 | H16: 252 | I16: 596 | J16: 581 | K16: 530 | L16: =SUM(C16:K16) -> 5023 | M16: =L16+L12 -> 8764 | T16: Front | U16: =COUNTIF(C14:K14,"1") -> 0 | V16: =COUNTConditionColorCells($C$14:$K$14,V15) -> 0 | W16: =COUNTConditionColorCells($C$14:$K$14,W15) -> 1 | X16: 8 | Y16: 0 | Z16: 0 | AA16: =COUNTIF(C14:K14,"8") -> 0 | AB16: =L14 -> 31
B17: Par | C17: 5 | D17: 4 | E17: 5 | F17: 3 | G17: 4 | H17: 3 | I17: 4 | J17: 5 | K17: 4 | L17: =SUM(C17:K17) -> 37 | M17: =L17+L13 -> 69 | T17: Back | U17: =COUNTIF(C18:K18,"1") -> 0 | V17: =COUNTConditionColorCells($C$18:$K$18,V15) -> 0 | W17: =COUNTConditionColorCells($C$18:$K$18,W15) -> 1 | X17: 7 | Y17: 1 | Z17: 0 | AA17: =COUNTIF(C18:K18,"8") -> 0 | AB17: =L18 -> 37
B18: Score | C18: 4 | D18: 4 | E18: 6 | F18: 3 | G18: 4 | H18: 3 | I18: 4 | J18: 5 | K18: 4 | L18: =SUM(C18:K18) -> 37 | M18: 68 | T18: Total | U18: =U16+U17 -> 0 | V18: =V16+V17 -> 0 | W18: 2 | X18: 15 | Y18: 1 | Z18: 0 | AA18: =AA16+AA17 -> 0 | AB18: =M18 -> 68
F21: Hole | G21: 1 | H21: 2 | I21: 3 | J21: 4 | K21: 5 | L21: 6 | M21: 7 | N21: 8 | O21: 9 | P21: Out | Q21: RENNY
F22: Dist. | G22: 523 | H22: 519 | I22: 386 | J22: 551 | K22: 392 | L22: 257 | M22: 465 | N22: 323 | O22: 285 | P22: =SUM(G22:O22) -> 3701
F23: Par | G23: 4 | H23: 4 | I23: 4 | J23: 4 | K23: 4 | L23: 3 | M23: 4 | N23: 3 | O23: 3 | P23: =SUM(G23:O23) -> 33
F24: Score | G24: 4 | H24: 5 | I24: 4 | J24: 5 | K24: 3 | L24: 4 | M24: 6 | N24: 4 | O24: 3 | P24: 38
F25: Hole | G25: 10 | H25: 11 | I25: 12 | J25: 13 | K25: 14 | L25: 15 | M25: 16 | N25: 17 | O25: 18 | P25: In | Q25: Total | T25: RENNY | U25: Ace | V25: Eag | W25: Bir | X25: Par | Y25: Bog | Z25: Bg+ | AA25: Sno | AB25: Score
F26: Dist. | G26: 538 | H26: 1042 | I26: 617 | J26: 974 | K26: 564 | L26: 378 | M26: 302 | N26: 517 | O26: 826 | P26: =SUM(G26:O26) -> 5758 | Q26: =P26+P22 -> 9459 | T26: Front | U26: =COUNTIF(G24:O24,"1") -> 0 | V26: =COUNTConditionColorCells($G$24:$O$24,V25) -> 0 | W26: =COUNTConditionColorCells($G$24:$O$24,W25) -> 1 | X26: 3 | Y26: 4 | Z26: 1 | AA26: =COUNTIF(G24:O24,"8") -> 0 | AB26: =P24 -> 38
F27: Par | G27: 4 | H27: 5 | I27: 4 | J27: 5 | K27: 4 | L27: 3 | M27: 3 | N27: 4 | O27: 5 | P27: =SUM(G27:O27) -> 37 | Q27: =P27+P23 -> 70 | T27: Back | U27: =COUNTIF(G28:O28,"1") -> 0 | V27: =COUNTConditionColorCells($G$28:$O$28,V25) -> 0 | W27: =COUNTConditionColorCells($G$28:$O$28,W25) -> 0 | X27: 8 | Y27: 0 | Z27: 1 | AA27: =COUNTIF(G28:O28,"8") -> 0 | AB27: =P28 -> 39
F28: Score | G28: 4 | H28: 5 | I28: 4 | J28: 7 | K28: 4 | L28: 3 | M28: 3 | N28: 4 | O28: 5 | P28: =SUM(G28:O28) -> 39 | Q28: 77 | T28: Total | U28: =U26+U27 -> 0 | V28: =V26+V27 -> 0 | W28: 1 | X28: 11 | Y28: 4 | Z28: 2 | AA28: 0 | AB28: =Q28 -> 77
B30: Nevin #2 - Play from short cement pad (not long pad behind creek). | M30: Player
M31: Witness 1
B32: Turn in your completed, signed score sheet before 9pm | M32: Witness 2
B33: at Divine Barrel Brewery (3701 N. Davidson St). | M33: Witness 3 | T33: FINAL | U33: Ace | V33: Eag | W33: Bir | X33: Par | Y33: Bog | Z33: Bg+ | AA33: Sno | AB33: Score
T34: TOTAL | U34: =SUM(U28,U18,U8) -> 0 | V34: =SUM(V28,V18,V8) -> 0 | W34: 7 | X34: 38 | Y34: 7 | Z34: 2 | AA34: 0 | AB34: 210

Sheet CoRo
A1: 2019 Charlotte Iron Man | F1: Hole | G1: 1 | H1: 2 | I1: 3 | J1: 4 | K1: 5 | L1: 6 | M1: 7 | N1: 8 | O1: 9 | P1: Out | Q1: ANGRY
F2: Dist. | G2: 235 | H2: 158 | I2: 222 | J2: 439 | K2: 801 | L2: 491 | M2: 282 | N2: 567 | O2: 268 | P2: =SUM(G2:O2) -> 3463 | T2: Name | U2: 5 | Z2: Div | AA2: Iron Men
F3: Par | G3: 3 | H3: 3 | I3: 3 | J3: 4 | K3: 5 | L3: 4 | M3: 3 | N3: 4 | O3: 3 | P3: =SUM(G3:O3) -> 32
F4: Score | G4: 2 | H4: 5 | I4: 3 | J4: 4 | K4: 6 | L4: 6 | M4: 3 | N4: 6 | O4: 3 | P4: 38
F5: Hole | G5: 10 | H5: 11 | I5: 12 | J5: 13 | K5: 14 | L5: 15 | M5: 16 | N5: 17 | O5: 18 | P5: In | Q5: Total | T5: ANGRY | U5: Ace | V5: Eag | W5: Bir | X5: Par | Y5: Bog | Z5: Bg+ | AA5: Sno | AB5: Score
F6: Dist. | G6: 563 | H6: 465 | I6: 215 | J6: 409 | K6: 333 | L6: 702 | M6: 431 | N6: 282 | O6: 814 | P6: =SUM(G6:O6) -> 4214 | Q6: =P6+P2 -> 7677 | T6: Front | U6: =COUNTIF(G4:O4,"1") -> 0 | V6: =COUNTConditionColorCells($G$4:$O$4,V5) -> 0 | W6: =COUNTConditionColorCells($G$4:$O$4,W5) -> 1 | X6: 4 | Y6: 1 | Z6: 3 | AA6: =COUNTIF(G4:O4,"8") -> 0 | AB6: =P4 -> 38
F7: Par | G7: 4 | H7: 4 | I7: 3 | J7: 4 | K7: 3 | L7: 5 | M7: 4 | N7: 3 | O7: 5 | P7: =SUM(G7:O7) -> 35 | Q7: =P7+P3 -> 67 | T7: Back | U7: =COUNTIF(G8:O8,"1") -> 0 | V7: =COUNTConditionColorCells($G$8:$O$8,V5) -> 0 | W7: =COUNTConditionColorCells($G$8:$O$8,W5) -> 0 | X7: =COUNTConditionColorCells($G$8:$O$8,X5) -> 5 | Y7: =COUNTConditionColorCells($G$8:$O$8,Y5) -> 4 | Z7: 0 | AA7: =COUNTIF(G8:O8,"8") -> 0 | AB7: =P8 -> 39
F8: Score | G8: 5 | H8: 4 | I8: 3 | J8: 4 | K8: 4 | L8: 6 | M8: 4 | N8: 4 | O8: 5 | P8: =SUM(G8:O8) -> 39 | Q8: 77 | T8: Total | U8: =U6+U7 -> 0 | V8: =V6+V7 -> 0 | W8: 1 | X8: 9 | Y8: 5 | Z8: 3 | AA8: 0 | AB8: =Q8 -> 77
B11: Hole | C11: 1 | D11: 2 | E11: 3 | F11: 4 | G11: 5 | H11: 6 | I11: 7 | J11: 8 | K11: 9 | L11: Out | M11: NEVIN
B12: Dist. | C12: 491 | D12: 240 | E12: 375 | F12: 538 | G12: 656 | H12: 317 | I12: 202 | J12: 329 | K12: 593 | L12: =SUM(C12:K12) -> 3741
B13: Par | C13: 4 | D13: 3 | E13: 3 | F13: 4 | G13: 5 | H13: 3 | I13: 3 | J13: 3 | K13: 4 | L13: =SUM(C13:K13) -> 32
B14: Score | C14: 4 | D14: 3 | E14: 3 | F14: 4 | G14: 7 | H14: 4 | I14: 4 | J14: 5 | K14: 5 | L14: 39
B15: Hole | C15: 10 | D15: 11 | E15: 12 | F15: 13 | G15: 14 | H15: 15 | I15: 16 | J15: 17 | K15: 18 | L15: In | M15: Total | T15: NEVIN | U15: Ace | V15: Eag | W15: Bir | X15: Par | Y15: Bog | Z15: Bg+ | AA15: Sno | AB15: Score
B16: Dist. | C16: 630 | D16: 640 | E16: 970 | F16: 274 | G16: 550 | H16: 252 | I16: 596 | J16: 581 | K16: 530 | L16: =SUM(C16:K16) -> 5023 | M16: =L16+L12 -> 8764 | T16: Front | U16: =COUNTIF(C14:K14,"1") -> 0 | V16: =COUNTConditionColorCells($C$14:$K$14,V15) -> 0 | W16: =COUNTConditionColorCells($C$14:$K$14,W15) -> 0 | X16: 4 | Y16: 3 | Z16: 2 | AA16: =COUNTIF(C14:K14,"8") -> 0 | AB16: =L14 -> 39
B17: Par | C17: 5 | D17: 4 | E17: 5 | F17: 3 | G17: 4 | H17: 3 | I17: 4 | J17: 5 | K17: 4 | L17: =SUM(C17:K17) -> 37 | M17: =L17+L13 -> 69 | T17: Back | U17: =COUNTIF(C18:K18,"1") -> 0 | V17: =COUNTConditionColorCells($C$18:$K$18,V15) -> 0 | W17: =COUNTConditionColorCells($C$18:$K$18,W15) -> 1 | X17: 3 | Y17: 1 | Z17: 4 | AA17: =COUNTIF(C18:K18,"8") -> 1 | AB17: =L18 -> 46
B18: Score | C18: 5 | D18: 3 | E18: 7 | F18: 4 | G18: 6 | H18: 3 | I18: 6 | J18: 8 | K18: 4 | L18: =SUM(C18:K18) -> 46 | M18: 85 | T18: Total | U18: =U16+U17 -> 0 | V18: =V16+V17 -> 0 | W18: 1 | X18: 7 | Y18: 4 | Z18: 6 | AA18: =AA16+AA17 -> 1 | AB18: =M18 -> 85
F21: Hole | G21: 1 | H21: 2 | I21: 3 | J21: 4 | K21: 5 | L21: 6 | M21: 7 | N21: 8 | O21: 9 | P21: Out | Q21: RENNY
F22: Dist. | G22: 523 | H22: 519 | I22: 386 | J22: 551 | K22: 392 | L22: 257 | M22: 465 | N22: 323 | O22: 285 | P22: =SUM(G22:O22) -> 3701
F23: Par | G23: 4 | H23: 4 | I23: 4 | J23: 4 | K23: 4 | L23: 3 | M23: 4 | N23: 3 | O23: 3 | P23: =SUM(G23:O23) -> 33
F24: Score | G24: 3 | H24: 4 | I24: 4 | J24: 4 | K24: 3 | L24: 5 | M24: 5 | N24: 2 | O24: 3 | P24: 33
F25: Hole | G25: 10 | H25: 11 | I25: 12 | J25: 13 | K25: 14 | L25: 15 | M25: 16 | N25: 17 | O25: 18 | P25: In | Q25: Total | T25: RENNY | U25: Ace | V25: Eag | W25: Bir | X25: Par | Y25: Bog | Z25: Bg+ | AA25: Sno | AB25: Score
F26: Dist. | G26: 538 | H26: 1042 | I26: 617 | J26: 974 | K26: 564 | L26: 378 | M26: 302 | N26: 517 | O26: 826 | P26: =SUM(G26:O26) -> 5758 | Q26: =P26+P22 -> 9459 | T26: Front | U26: =COUNTIF(G24:O24,"1") -> 0 | V26: =COUNTConditionColorCells($G$24:$O$24,V25) -> 0 | W26: =COUNTConditionColorCells($G$24:$O$24,W25) -> 3 | X26: 4 | Y26: 1 | Z26: 1 | AA26: =COUNTIF(G24:O24,"8") -> 0 | AB26: =P24 -> 33
F27: Par | G27: 4 | H27: 5 | I27: 4 | J27: 5 | K27: 4 | L27: 3 | M27: 3 | N27: 4 | O27: 5 | P27: =SUM(G27:O27) -> 37 | Q27: =P27+P23 -> 70 | T27: Back | U27: =COUNTIF(G28:O28,"1") -> 0 | V27: =COUNTConditionColorCells($G$28:$O$28,V25) -> 0 | W27: =COUNTConditionColorCells($G$28:$O$28,W25) -> 0 | X27: 2 | Y27: 3 | Z27: 4 | AA27: =COUNTIF(G28:O28,"8") -> 1 | AB27: =P28 -> 50
F28: Score | G28: 6 | H28: 7 | I28: 4 | J28: 6 | K28: 8 | L28: 4 | M28: 3 | N28: 6 | O28: 6 | P28: =SUM(G28:O28) -> 50 | Q28: 83 | T28: Total | U28: =U26+U27 -> 0 | V28: =V26+V27 -> 0 | W28: 3 | X28: 6 | Y28: 4 | Z28: 5 | AA28: 1 | AB28: =Q28 -> 83
B30: Nevin #2 - Play from short cement pad (not long pad behind creek). | M30: Player
M31: Witness 1
B32: Turn in your completed, signed score sheet before 9pm | M32: Witness 2
B33: at Divine Barrel Brewery (3701 N. Davidson St). | M33: Witness 3 | T33: FINAL | U33: Ace | V33: Eag | W33: Bir | X33: Par | Y33: Bog | Z33: Bg+ | AA33: Sno | AB33: Score
T34: TOTAL | U34: =SUM(U28,U18,U8) -> 0 | V34: =SUM(V28,V18,V8) -> 0 | W34: 5 | X34: 22 | Y34: 13 | Z34: 14 | AA34: 2 | AB34: 245

Sheet CoNo
A1: 2019 Charlotte Iron Man | F1: Hole | G1: 1 | H1: 2 | I1: 3 | J1: 4 | K1: 5 | L1: 6 | M1: 7 | N1: 8 | O1: 9 | P1: Out | Q1: ANGRY
F2: Dist. | G2: 235 | H2: 158 | I2: 222 | J2: 439 | K2: 801 | L2: 491 | M2: 282 | N2: 567 | O2: 268 | P2: =SUM(G2:O2) -> 3463 | T2: Name | U2: Corey Nortz | Z2: Div | AA2: Iron Men
F3: Par | G3: 3 | H3: 3 | I3: 3 | J3: 4 | K3: 5 | L3: 4 | M3: 3 | N3: 4 | O3: 3 | P3: =SUM(G3:O3) -> 32
F4: Score | G4: 4 | H4: 4 | I4: 3 | J4: 4 | K4: 6 | L4: 5 | M4: 5 | N4: 5 | O4: 3 | P4: 39
F5: Hole | G5: 10 | H5: 11 | I5: 12 | J5: 13 | K5: 14 | L5: 15 | M5: 16 | N5: 17 | O5: 18 | P5: In | Q5: Total | T5: ANGRY | U5: Ace | V5: Eag | W5: Bir | X5: Par | Y5: Bog | Z5: Bg+ | AA5: Sno | AB5: Score
F6: Dist. | G6: 563 | H6: 465 | I6: 215 | J6: 409 | K6: 333 | L6: 702 | M6: 431 | N6: 282 | O6: 814 | P6: =SUM(G6:O6) -> 4214 | Q6: =P6+P2 -> 7677 | T6: Front | U6: =COUNTIF(G4:O4,"1") -> 0 | V6: =COUNTConditionColorCells($G$4:$O$4,V5) -> 0 | W6: =COUNTConditionColorCells($G$4:$O$4,W5) -> 0 | X6: 3 | Y6: 5 | Z6: 1 | AA6: =COUNTIF(G4:O4,"8") -> 0 | AB6: =P4 -> 39
F7: Par | G7: 4 | H7: 4 | I7: 3 | J7: 4 | K7: 3 | L7: 5 | M7: 4 | N7: 3 | O7: 5 | P7: =SUM(G7:O7) -> 35 | Q7: =P7+P3 -> 67 | T7: Back | U7: =COUNTIF(G8:O8,"1") -> 0 | V7: =COUNTConditionColorCells($G$8:$O$8,V5) -> 0 | W7: =COUNTConditionColorCells($G$8:$O$8,W5) -> 1 | X7: =COUNTConditionColorCells($G$8:$O$8,X5) -> 3 | Y7: =COUNTConditionColorCells($G$8:$O$8,Y5) -> 4 | Z7: 1 | AA7: =COUNTIF(G8:O8,"8") -> 0 | AB7: =P8 -> 40
F8: Score | G8: 5 | H8: 6 | I8: 3 | J8: 4 | K8: 4 | L8: 5 | M8: 3 | N8: 4 | O8: 6 | P8: =SUM(G8:O8) -> 40 | Q8: 79 | T8: Total | U8: =U6+U7 -> 0 | V8: =V6+V7 -> 0 | W8: 1 | X8: 6 | Y8: 9 | Z8: 2 | AA8: 0 | AB8: =Q8 -> 79
B11: Hole | C11: 1 | D11: 2 | E11: 3 | F11: 4 | G11: 5 | H11: 6 | I11: 7 | J11: 8 | K11: 9 | L11: Out | M11: NEVIN
B12: Dist. | C12: 491 | D12: 240 | E12: 375 | F12: 538 | G12: 656 | H12: 317 | I12: 202 | J12: 329 | K12: 593 | L12: =SUM(C12:K12) -> 3741
B13: Par | C13: 4 | D13: 3 | E13: 3 | F13: 4 | G13: 5 | H13: 3 | I13: 3 | J13: 3 | K13: 4 | L13: =SUM(C13:K13) -> 32
B14: Score | C14: 3 | D14: 3 | E14: 3 | F14: 4 | G14: 7 | H14: 5 | I14: 2 | J14: 3 | K14: 5 | L14: 35
B15: Hole | C15: 10 | D15: 11 | E15: 12 | F15: 13 | G15: 14 | H15: 15 | I15: 16 | J15: 17 | K15: 18 | L15: In | M15: Total | T15: NEVIN | U15: Ace | V15: Eag | W15: Bir | X15: Par | Y15: Bog | Z15: Bg+ | AA15: Sno | AB15: Score
B16: Dist. | C16: 630 | D16: 640 | E16: 970 | F16: 274 | G16: 550 | H16: 252 | I16: 596 | J16: 581 | K16: 530 | L16: =SUM(C16:K16) -> 5023 | M16: =L16+L12 -> 8764 | T16: Front | U16: =COUNTIF(C14:K14,"1") -> 0 | V16: =COUNTConditionColorCells($C$14:$K$14,V15) -> 0 | W16: =COUNTConditionColorCells($C$14:$K$14,W15) -> 2 | X16: 4 | Y16: 1 | Z16: 2 | AA16: =COUNTIF(C14:K14,"8") -> 0 | AB16: =L14 -> 35
B17: Par | C17: 5 | D17: 4 | E17: 5 | F17: 3 | G17: 4 | H17: 3 | I17: 4 | J17: 5 | K17: 4 | L17: =SUM(C17:K17) -> 37 | M17: =L17+L13 -> 69 | T17: Back | U17: =COUNTIF(C18:K18,"1") -> 0 | V17: =COUNTConditionColorCells($C$18:$K$18,V15) -> 0 | W17: =COUNTConditionColorCells($C$18:$K$18,W15) -> 0 | X17: 4 | Y17: 2 | Z17: 3 | AA17: =COUNTIF(C18:K18,"8") -> 0 | AB17: =L18 -> 45
B18: Score | C18: 7 | D18: 5 | E18: 7 | F18: 3 | G18: 4 | H18: 3 | I18: 5 | J18: 7 | K18: 4 | L18: =SUM(C18:K18) -> 45 | M18: 80 | T18: Total | U18: =U16+U17 -> 0 | V18: =V16+V17 -> 0 | W18: 2 | X18: 8 | Y18: 3 | Z18: 5 | AA18: =AA16+AA17 -> 0 | AB18: =M18 -> 80
F21: Hole | G21: 1 | H21: 2 | I21: 3 | J21: 4 | K21: 5 | L21: 6 | M21: 7 | N21: 8 | O21: 9 | P21: Out | Q21: RENNY
F22: Dist. | G22: 523 | H22: 519 | I22: 386 | J22: 551 | K22: 392 | L22: 257 | M22: 465 | N22: 323 | O22: 285 | P22: =SUM(G22:O22) -> 3701
F23: Par | G23: 4 | H23: 4 | I23: 4 | J23: 4 | K23: 4 | L23: 3 | M23: 4 | N23: 3 | O23: 3 | P23: =SUM(G23:O23) -> 33
F24: Score | G24: 4 | H24: 4 | I24: 4 | J24: 4 | K24: 4 | L24: 3 | M24: 6 | N24: 4 | O24: 3 | P24: 36
F25: Hole | G25: 10 | H25: 11 | I25: 12 | J25: 13 | K25: 14 | L25: 15 | M25: 16 | N25: 17 | O25: 18 | P25: In | Q25: Total | T25: RENNY | U25: Ace | V25: Eag | W25: Bir | X25: Par | Y25: Bog | Z25: Bg+ | AA25: Sno | AB25: Score
F26: Dist. | G26: 538 | H26: 1042 | I26: 617 | J26: 974 | K26: 564 | L26: 378 | M26: 302 | N26: 517 | O26: 826 | P26: =SUM(G26:O26) -> 5758 | Q26: =P26+P22 -> 9459 | T26: Front | U26: =COUNTIF(G24:O24,"1") -> 0 | V26: =COUNTConditionColorCells($G$24:$O$24,V25) -> 0 | W26: =COUNTConditionColorCells($G$24:$O$24,W25) -> 0 | X26: 7 | Y26: 1 | Z26: 1 | AA26: =COUNTIF(G24:O24,"8") -> 0 | AB26: =P24 -> 36
F27: Par | G27: 4 | H27: 5 | I27: 4 | J27: 5 | K27: 4 | L27: 3 | M27: 3 | N27: 4 | O27: 5 | P27: =SUM(G27:O27) -> 37 | Q27: =P27+P23 -> 70 | T27: Back | U27: =COUNTIF(G28:O28,"1") -> 0 | V27: =COUNTConditionColorCells($G$28:$O$28,V25) -> 0 | W27: =COUNTConditionColorCells($G$28:$O$28,W25) -> 0 | X27: 5 | Y27: 2 | Z27: 2 | AA27: =COUNTIF(G28:O28,"8") -> 0 | AB27: =P28 -> 43
F28: Score | G28: 5 | H28: 7 | I28: 4 | J28: 6 | K28: 4 | L28: 3 | M28: 3 | N28: 6 | O28: 5 | P28: =SUM(G28:O28) -> 43 | Q28: 79 | T28: Total | U28: =U26+U27 -> 0 | V28: =V26+V27 -> 0 | W28: 0 | X28: 12 | Y28: 3 | Z28: 3 | AA28: 0 | AB28: =Q28 -> 79
B30: Nevin #2 - Play from short cement pad (not long pad behind creek). | M30: Player
M31: Witness 1
B32: Turn in your completed, signed score sheet before 9pm | M32: Witness 2
B33: at Divine Barrel Brewery (3701 N. Davidson St). | M33: Witness 3 | T33: FINAL | U33: Ace | V33: Eag | W33: Bir | X33: Par | Y33: Bog | Z33: Bg+ | AA33: Sno | AB33: Score
T34: TOTAL | U34: =SUM(U28,U18,U8) -> 0 | V34: =SUM(V28,V18,V8) -> 0 | W34: 3 | X34: 26 | Y34: 15 | Z34: 10 | AA34: 0 | AB34: 238

Sheet DaHo
A1: 2019 Charlotte Iron Man | F1: Hole | G1: 1 | H1: 2 | I1: 3 | J1: 4 | K1: 5 | L1: 6 | M1: 7 | N1: 8 | O1: 9 | P1: Out | Q1: ANGRY
F2: Dist. | G2: 235 | H2: 158 | I2: 222 | J2: 439 | K2: 801 | L2: 491 | M2: 282 | N2: 567 | O2: 268 | P2: =SUM(G2:O2) -> 3463 | T2: Name | U2: Dakota Hopkins | Z2: Div | AA2: Iron Men
F3: Par | G3: 3 | H3: 3 | I3: 3 | J3: 4 | K3: 5 | L3: 4 | M3: 3 | N3: 4 | O3: 3 | P3: =SUM(G3:O3) -> 32
F4: Score | G4: 4 | H4: 2 | I4: 2 | J4: 4 | K4: 5 | L4: 3 | M4: 4 | N4: 4 | O4: 3 | P4: 31
F5: Hole | G5: 10 | H5: 11 | I5: 12 | J5: 13 | K5: 14 | L5: 15 | M5: 16 | N5: 17 | O5: 18 | P5: In | Q5: Total | T5: ANGRY | U5: Ace | V5: Eag | W5: Bir | X5: Par | Y5: Bog | Z5: Bg+ | AA5: Sno | AB5: Score
F6: Dist. | G6: 563 | H6: 465 | I6: 215 | J6: 409 | K6: 333 | L6: 702 | M6: 431 | N6: 282 | O6: 814 | P6: =SUM(G6:O6) -> 4214 | Q6: =P6+P2 -> 7677 | T6: Front | U6: =COUNTIF(G4:O4,"1") -> 0 | V6: =COUNTConditionColorCells($G$4:$O$4,V5) -> 0 | W6: =COUNTConditionColorCells($G$4:$O$4,W5) -> 3 | X6: 4 | Y6: 2 | Z6: 0 | AA6: =COUNTIF(G4:O4,"8") -> 0 | AB6: =P4 -> 31
F7: Par | G7: 4 | H7: 4 | I7: 3 | J7: 4 | K7: 3 | L7: 5 | M7: 4 | N7: 3 | O7: 5 | P7: =SUM(G7:O7) -> 35 | Q7: =P7+P3 -> 67 | T7: Back | U7: =COUNTIF(G8:O8,"1") -> 0 | V7: =COUNTConditionColorCells($G$8:$O$8,V5) -> 0 | W7: =COUNTConditionColorCells($G$8:$O$8,W5) -> 1 | X7: =COUNTConditionColorCells($G$8:$O$8,X5) -> 5 | Y7: =COUNTConditionColorCells($G$8:$O$8,Y5) -> 2 | Z7: 1 | AA7: =COUNTIF(G8:O8,"8") -> 0 | AB7: =P8 -> 42
F8: Score | G8: 10 | H8: 4 | I8: 3 | J8: 5 | K8: 3 | L8: 5 | M8: 3 | N8: 3 | O8: 6 | P8: =SUM(G8:O8) -> 42 | Q8: 73 | T8: Total | U8: =U6+U7 -> 0 | V8: =V6+V7 -> 0 | W8: 4 | X8: 9 | Y8: 4 | Z8: 1 | AA8: 0 | AB8: =Q8 -> 73
B11: Hole | C11: 1 | D11: 2 | E11: 3 | F11: 4 | G11: 5 | H11: 6 | I11: 7 | J11: 8 | K11: 9 | L11: Out | M11: NEVIN
B12: Dist. | C12: 491 | D12: 240 | E12: 375 | F12: 538 | G12: 656 | H12: 317 | I12: 202 | J12: 329 | K12: 593 | L12: =SUM(C12:K12) -> 3741
B13: Par | C13: 4 | D13: 3 | E13: 3 | F13: 4 | G13: 5 | H13: 3 | I13: 3 | J13: 3 | K13: 4 | L13: =SUM(C13:K13) -> 32
B14: Score | C14: 3 | D14: 2 | E14: 4 | F14: 4 | G14: 5 | H14: 2 | I14: 4 | J14: 4 | K14: 4 | L14: 32
B15: Hole | C15: 10 | D15: 11 | E15: 12 | F15: 13 | G15: 14 | H15: 15 | I15: 16 | J15: 17 | K15: 18 | L15: In | M15: Total | T15: NEVIN | U15: Ace | V15: Eag | W15: Bir | X15: Par | Y15: Bog | Z15: Bg+ | AA15: Sno | AB15: Score
B16: Dist. | C16: 630 | D16: 640 | E16: 970 | F16: 274 | G16: 550 | H16: 252 | I16: 596 | J16: 581 | K16: 530 | L16: =SUM(C16:K16) -> 5023 | M16: =L16+L12 -> 8764 | T16: Front | U16: =COUNTIF(C14:K14,"1") -> 0 | V16: =COUNTConditionColorCells($C$14:$K$14,V15) -> 0 | W16: =COUNTConditionColorCells($C$14:$K$14,W15) -> 3 | X16: 3 | Y16: 3 | Z16: 0 | AA16: =COUNTIF(C14:K14,"8") -> 0 | AB16: =L14 -> 32
B17: Par | C17: 5 | D17: 4 | E17: 5 | F17: 3 | G17: 4 | H17: 3 | I17: 4 | J17: 5 | K17: 4 | L17: =SUM(C17:K17) -> 37 | M17: =L17+L13 -> 69 | T17: Back | U17: =COUNTIF(C18:K18,"1") -> 0 | V17: =COUNTConditionColorCells($C$18:$K$18,V15) -> 0 | W17: =COUNTConditionColorCells($C$18:$K$18,W15) -> 3 | X17: 5 | Y17: 1 | Z17: 0 | AA17: =COUNTIF(C18:K18,"8") -> 0 | AB17: =L18 -> 35
B18: Score | C18: 5 | D18: 5 | E18: 5 | F18: 2 | G18: 3 | H18: 3 | I18: 4 | J18: 5 | K18: 3 | L18: =SUM(C18:K18) -> 35 | M18: 67 | T18: Total | U18: =U16+U17 -> 0 | V18: =V16+V17 -> 0 | W18: 6 | X18: 8 | Y18: 4 | Z18: 0 | AA18: =AA16+AA17 -> 0 | AB18: =M18 -> 67
F21: Hole | G21: 1 | H21: 2 | I21: 3 | J21: 4 | K21: 5 | L21: 6 | M21: 7 | N21: 8 | O21: 9 | P21: Out | Q21: RENNY
F22: Dist. | G22: 523 | H22: 519 | I22: 386 | J22: 551 | K22: 392 | L22: 257 | M22: 465 | N22: 323 | O22: 285 | P22: =SUM(G22:O22) -> 3701
F23: Par | G23: 4 | H23: 4 | I23: 4 | J23: 4 | K23: 4 | L23: 3 | M23: 4 | N23: 3 | O23: 3 | P23: =SUM(G23:O23) -> 33
F24: Score | G24: 3 | H24: 4 | I24: 3 | J24: 5 | K24: 4 | L24: 3 | M24: 6 | N24: 3 | O24: 2 | P24: 33
F25: Hole | G25: 10 | H25: 11 | I25: 12 | J25: 13 | K25: 14 | L25: 15 | M25: 16 | N25: 17 | O25: 18 | P25: In | Q25: Total | T25: RENNY | U25: Ace | V25: Eag | W25: Bir | X25: Par | Y25: Bog | Z25: Bg+ | AA25: Sno | AB25: Score
F26: Dist. | G26: 538 | H26: 1042 | I26: 617 | J26: 974 | K26: 564 | L26: 378 | M26: 302 | N26: 517 | O26: 826 | P26: =SUM(G26:O26) -> 5758 | Q26: =P26+P22 -> 9459 | T26: Front | U26: =COUNTIF(G24:O24,"1") -> 0 | V26: =COUNTConditionColorCells($G$24:$O$24,V25) -> 0 | W26: =COUNTConditionColorCells($G$24:$O$24,W25) -> 3 | X26: 4 | Y26: 1 | Z26: 1 | AA26: =COUNTIF(G24:O24,"8") -> 0 | AB26: =P24 -> 33
F27: Par | G27: 4 | H27: 5 | I27: 4 | J27: 5 | K27: 4 | L27: 3 | M27: 3 | N27: 4 | O27: 5 | P27: =SUM(G27:O27) -> 37 | Q27: =P27+P23 -> 70 | T27: Back | U27: =COUNTIF(G28:O28,"1") -> 0 | V27: =COUNTConditionColorCells($G$28:$O$28,V25) -> 0 | W27: =COUNTConditionColorCells($G$28:$O$28,W25) -> 1 | X27: 3 | Y27: 4 | Z27: 1 | AA27: =COUNTIF(G28:O28,"8") -> 0 | AB27: =P28 -> 44
F28: Score | G28: 4 | H28: 5 | I28: 3 | J28: 9 | K28: 5 | L28: 4 | M28: 4 | N28: 5 | O28: 5 | P28: =SUM(G28:O28) -> 44 | Q28: 77 | T28: Total | U28: =U26+U27 -> 0 | V28: =V26+V27 -> 0 | W28: 4 | X28: 7 | Y28: 5 | Z28: 2 | AA28: 0 | AB28: =Q28 -> 77
B30: Nevin #2 - Play from short cement pad (not long pad behind creek). | M30: Player
M31: Witness 1
B32: Turn in your completed, signed score sheet before 9pm | M32: Witness 2
B33: at Divine Barrel Brewery (3701 N. Davidson St). | M33: Witness 3 | T33: FINAL | U33: Ace | V33: Eag | W33: Bir | X33: Par | Y33: Bog | Z33: Bg+ | AA33: Sno | AB33: Score
T34: TOTAL | U34: =SUM(U28,U18,U8) -> 0 | V34: =SUM(V28,V18,V8) -> 0 | W34: 14 | X34: 24 | Y34: 13 | Z34: 3 | AA34: 0 | AB34: 217

Sheet DaLo
A1: 2019 Charlotte Iron Man | F1: Hole | G1: 1 | H1: 2 | I1: 3 | J1: 4 | K1: 5 | L1: 6 | M1: 7 | N1: 8 | O1: 9 | P1: Out | Q1: ANGRY
F2: Dist. | G2: 235 | H2: 158 | I2: 222 | J2: 439 | K2: 801 | L2: 491 | M2: 282 | N2: 567 | O2: 268 | P2: =SUM(G2:O2) -> 3463 | T2: Name | U2: David Love | Z2: Div | AA2: Iron Men
F3: Par | G3: 3 | H3: 3 | I3: 3 | J3: 4 | K3: 5 | L3: 4 | M3: 3 | N3: 4 | O3: 3 | P3: =SUM(G3:O3) -> 32
F4: Score | G4: 3 | H4: 3 | I4: 2 | J4: 4 | K4: 5 | L4: 5 | M4: 4 | N4: 3 | O4: 3 | P4: 32
F5: Hole | G5: 10 | H5: 11 | I5: 12 | J5: 13 | K5: 14 | L5: 15 | M5: 16 | N5: 17 | O5: 18 | P5: In | Q5: Total | T5: ANGRY | U5: Ace | V5: Eag | W5: Bir | X5: Par | Y5: Bog | Z5: Bg+ | AA5: Sno | AB5: Score
F6: Dist. | G6: 563 | H6: 465 | I6: 215 | J6: 409 | K6: 333 | L6: 702 | M6: 431 | N6: 282 | O6: 814 | P6: =SUM(G6:O6) -> 4214 | Q6: =P6+P2 -> 7677 | T6: Front | U6: =COUNTIF(G4:O4,"1") -> 0 | V6: =COUNTConditionColorCells($G$4:$O$4,V5) -> 0 | W6: =COUNTConditionColorCells($G$4:$O$4,W5) -> 2 | X6: 5 | Y6: 2 | Z6: 0 | AA6: =COUNTIF(G4:O4,"8") -> 0 | AB6: =P4 -> 32
F7: Par | G7: 4 | H7: 4 | I7: 3 | J7: 4 | K7: 3 | L7: 5 | M7: 4 | N7: 3 | O7: 5 | P7: =SUM(G7:O7) -> 35 | Q7: =P7+P3 -> 67 | T7: Back | U7: =COUNTIF(G8:O8,"1") -> 0 | V7: =COUNTConditionColorCells($G$8:$O$8,V5) -> 0 | W7: =COUNTConditionColorCells($G$8:$O$8,W5) -> 4 | X7: =COUNTConditionColorCells($G$8:$O$8,X5) -> 5 | Y7: =COUNTConditionColorCells($G$8:$O$8,Y5) -> 0 | Z7: 0 | AA7: =COUNTIF(G8:O8,"8") -> 0 | AB7: =P8 -> 31
F8: Score | G8: 4 | H8: 3 | I8: 3 | J8: 3 | K8: 3 | L8: 4 | M8: 4 | N8: 3 | O8: 4 | P8: =SUM(G8:O8) -> 31 | Q8: 63 | T8: Total | U8: =U6+U7 -> 0 | V8: =V6+V7 -> 0 | W8: 6 | X8: 10 | Y8: 2 | Z8: 0 | AA8: 0 | AB8: =Q8 -> 63
B11: Hole | C11: 1 | D11: 2 | E11: 3 | F11: 4 | G11: 5 | H11: 6 | I11: 7 | J11: 8 | K11: 9 | L11: Out | M11: NEVIN
B12: Dist. | C12: 491 | D12: 240 | E12: 375 | F12: 538 | G12: 656 | H12: 317 | I12: 202 | J12: 329 | K12: 593 | L12: =SUM(C12:K12) -> 3741
B13: Par | C13: 4 | D13: 3 | E13: 3 | F13: 4 | G13: 5 | H13: 3 | I13: 3 | J13: 3 | K13: 4 | L13: =SUM(C13:K13) -> 32
B14: Score | C14: 3 | D14: 3 | E14: 2 | F14: 3 | G14: 5 | H14: 2 | I14: 3 | J14: 3 | K14: 4 | L14: 28
B15: Hole | C15: 10 | D15: 11 | E15: 12 | F15: 13 | G15: 14 | H15: 15 | I15: 16 | J15: 17 | K15: 18 | L15: In | M15: Total | T15: NEVIN | U15: Ace | V15: Eag | W15: Bir | X15: Par | Y15: Bog | Z15: Bg+ | AA15: Sno | AB15: Score
B16: Dist. | C16: 630 | D16: 640 | E16: 970 | F16: 274 | G16: 550 | H16: 252 | I16: 596 | J16: 581 | K16: 530 | L16: =SUM(C16:K16) -> 5023 | M16: =L16+L12 -> 8764 | T16: Front | U16: =COUNTIF(C14:K14,"1") -> 0 | V16: =COUNTConditionColorCells($C$14:$K$14,V15) -> 0 | W16: =COUNTConditionColorCells($C$14:$K$14,W15) -> 4 | X16: 5 | Y16: 0 | Z16: 0 | AA16: =COUNTIF(C14:K14,"8") -> 0 | AB16: =L14 -> 28
B17: Par | C17: 5 | D17: 4 | E17: 5 | F17: 3 | G17: 4 | H17: 3 | I17: 4 | J17: 5 | K17: 4 | L17: =SUM(C17:K17) -> 37 | M17: =L17+L13 -> 69 | T17: Back | U17: =COUNTIF(C18:K18,"1") -> 0 | V17: =COUNTConditionColorCells($C$18:$K$18,V15) -> 0 | W17: =COUNTConditionColorCells($C$18:$K$18,W15) -> 3 | X17: 5 | Y17: 1 | Z17: 0 | AA17: =COUNTIF(C18:K18,"8") -> 0 | AB17: =L18 -> 35
B18: Score | C18: 4 | D18: 4 | E18: 4 | F18: 2 | G18: 4 | H18: 3 | I18: 4 | J18: 6 | K18: 4 | L18: =SUM(C18:K18) -> 35 | M18: 63 | T18: Total | U18: =U16+U17 -> 0 | V18: =V16+V17 -> 0 | W18: 7 | X18: 10 | Y18: 1 | Z18: 0 | AA18: =AA16+AA17 -> 0 | AB18: =M18 -> 63
F21: Hole | G21: 1 | H21: 2 | I21: 3 | J21: 4 | K21: 5 | L21: 6 | M21: 7 | N21: 8 | O21: 9 | P21: Out | Q21: RENNY
F22: Dist. | G22: 523 | H22: 519 | I22: 386 | J22: 551 | K22: 392 | L22: 257 | M22: 465 | N22: 323 | O22: 285 | P22: =SUM(G22:O22) -> 3701
F23: Par | G23: 4 | H23: 4 | I23: 4 | J23: 4 | K23: 4 | L23: 3 | M23: 4 | N23: 3 | O23: 3 | P23: =SUM(G23:O23) -> 33
F24: Score | G24: 5 | H24: 3 | I24: 4 | J24: 4 | K24: 3 | L24: 3 | M24: 5 | N24: 3 | O24: 2 | P24: 32
F25: Hole | G25: 10 | H25: 11 | I25: 12 | J25: 13 | K25: 14 | L25: 15 | M25: 16 | N25: 17 | O25: 18 | P25: In | Q25: Total | T25: RENNY | U25: Ace | V25: Eag | W25: Bir | X25: Par | Y25: Bog | Z25: Bg+ | AA25: Sno | AB25: Score
F26: Dist. | G26: 538 | H26: 1042 | I26: 617 | J26: 974 | K26: 564 | L26: 378 | M26: 302 | N26: 517 | O26: 826 | P26: =SUM(G26:O26) -> 5758 | Q26: =P26+P22 -> 9459 | T26: Front | U26: =COUNTIF(G24:O24,"1") -> 0 | V26: =COUNTConditionColorCells($G$24:$O$24,V25) -> 0 | W26: =COUNTConditionColorCells($G$24:$O$24,W25) -> 3 | X26: 4 | Y26: 2 | Z26: 0 | AA26: =COUNTIF(G24:O24,"8") -> 0 | AB26: =P24 -> 32
F27: Par | G27: 4 | H27: 5 | I27: 4 | J27: 5 | K27: 4 | L27: 3 | M27: 3 | N27: 4 | O27: 5 | P27: =SUM(G27:O27) -> 37 | Q27: =P27+P23 -> 70 | T27: Back | U27: =COUNTIF(G28:O28,"1") -> 0 | V27: =COUNTConditionColorCells($G$28:$O$28,V25) -> 1 | W27: =COUNTConditionColorCells($G$28:$O$28,W25) -> 2 | X27: 3 | Y27: 2 | Z27: 1 | AA27: =COUNTIF(G28:O28,"8") -> 0 | AB27: =P28 -> 37
F28: Score | G28: 5 | H28: 4 | I28: 4 | J28: 7 | K28: 5 | L28: 3 | M28: 3 | N28: 3 | O28: 3 | P28: =SUM(G28:O28) -> 37 | Q28: 69 | T28: Total | U28: =U26+U27 -> 0 | V28: =V26+V27 -> 1 | W28: 5 | X28: 7 | Y28: 4 | Z28: 1 | AA28: 0 | AB28: =Q28 -> 69
B30: Nevin #2 - Play from short cement pad (not long pad behind creek). | M30: Player
M31: Witness 1
B32: Turn in your completed, signed score sheet before 9pm | M32: Witness 2
B33: at Divine Barrel Brewery (3701 N. Davidson St). | M33: Witness 3 | T33: FINAL | U33: Ace | V33: Eag | W33: Bir | X33: Par | Y33: Bog | Z33: Bg+ | AA33: Sno | AB33: Score
T34: TOTAL | U34: =SUM(U28,U18,U8) -> 0 | V34: =SUM(V28,V18,V8) -> 1 | W34: 18 | X34: 27 | Y34: 7 | Z34: 1 | AA34: 0 | AB34: 195

Sheet DeNe
A1: 2019 Charlotte Iron Man | F1: Hole | G1: 1 | H1: 2 | I1: 3 | J1: 4 | K1: 5 | L1: 6 | M1: 7 | N1: 8 | O1: 9 | P1: Out | Q1: ANGRY
F2: Dist. | G2: 235 | H2: 158 | I2: 222 | J2: 439 | K2: 801 | L2: 491 | M2: 282 | N2: 567 | O2: 268 | P2: =SUM(G2:O2) -> 3463 | T2: Name | U2: Devon Neely | Z2: Div | AA2: Iron Men
F3: Par | G3: 3 | H3: 3 | I3: 3 | J3: 4 | K3: 5 | L3: 4 | M3: 3 | N3: 4 | O3: 3 | P3: =SUM(G3:O3) -> 32
F4: Score | G4: 3 | H4: 3 | I4: 3 | J4: 4 | K4: 7 | L4: 4 | M4: 4 | N4: 4 | O4: 5 | P4: 37
F5: Hole | G5: 10 | H5: 11 | I5: 12 | J5: 13 | K5: 14 | L5: 15 | M5: 16 | N5: 17 | O5: 18 | P5: In | Q5: Total | T5: ANGRY | U5: Ace | V5: Eag | W5: Bir | X5: Par | Y5: Bog | Z5: Bg+ | AA5: Sno | AB5: Score
F6: Dist. | G6: 563 | H6: 465 | I6: 215 | J6: 409 | K6: 333 | L6: 702 | M6: 431 | N6: 282 | O6: 814 | P6: =SUM(G6:O6) -> 4214 | Q6: =P6+P2 -> 7677 | T6: Front | U6: =COUNTIF(G4:O4,"1") -> 0 | V6: =COUNTConditionColorCells($G$4:$O$4,V5) -> 0 | W6: =COUNTConditionColorCells($G$4:$O$4,W5) -> 0 | X6: 6 | Y6: 1 | Z6: 2 | AA6: =COUNTIF(G4:O4,"8") -> 0 | AB6: =P4 -> 37
F7: Par | G7: 4 | H7: 4 | I7: 3 | J7: 4 | K7: 3 | L7: 5 | M7: 4 | N7: 3 | O7: 5 | P7: =SUM(G7:O7) -> 35 | Q7: =P7+P3 -> 67 | T7: Back | U7: =COUNTIF(G8:O8,"1") -> 0 | V7: =COUNTConditionColorCells($G$8:$O$8,V5) -> 0 | W7: =COUNTConditionColorCells($G$8:$O$8,W5) -> 2 | X7: =COUNTConditionColorCells($G$8:$O$8,X5) -> 4 | Y7: =COUNTConditionColorCells($G$8:$O$8,Y5) -> 2 | Z7: 1 | AA7: =COUNTIF(G8:O8,"8") -> 0 | AB7: =P8 -> 37
F8: Score | G8: 4 | H8: 3 | I8: 3 | J8: 4 | K8: 3 | L8: 6 | M8: 3 | N8: 4 | O8: 7 | P8: =SUM(G8:O8) -> 37 | Q8: 74 | T8: Total | U8: =U6+U7 -> 0 | V8: =V6+V7 -> 0 | W8: 2 | X8: 10 | Y8: 3 | Z8: 3 | AA8: 0 | AB8: =Q8 -> 74
B11: Hole | C11: 1 | D11: 2 | E11: 3 | F11: 4 | G11: 5 | H11: 6 | I11: 7 | J11: 8 | K11: 9 | L11: Out | M11: NEVIN
B12: Dist. | C12: 491 | D12: 240 | E12: 375 | F12: 538 | G12: 656 | H12: 317 | I12: 202 | J12: 329 | K12: 593 | L12: =SUM(C12:K12) -> 3741
B13: Par | C13: 4 | D13: 3 | E13: 3 | F13: 4 | G13: 5 | H13: 3 | I13: 3 | J13: 3 | K13: 4 | L13: =SUM(C13:K13) -> 32
B14: Score | C14: 5 | D14: 3 | E14: 4 | F14: 3 | G14: 7 | H14: 4 | I14: 3 | J14: 4 | K14: 4 | L14: 37
B15: Hole | C15: 10 | D15: 11 | E15: 12 | F15: 13 | G15: 14 | H15: 15 | I15: 16 | J15: 17 | K15: 18 | L15: In | M15: Total | T15: NEVIN | U15: Ace | V15: Eag | W15: Bir | X15: Par | Y15: Bog | Z15: Bg+ | AA15: Sno | AB15: Score
B16: Dist. | C16: 630 | D16: 640 | E16: 970 | F16: 274 | G16: 550 | H16: 252 | I16: 596 | J16: 581 | K16: 530 | L16: =SUM(C16:K16) -> 5023 | M16: =L16+L12 -> 8764 | T16: Front | U16: =COUNTIF(C14:K14,"1") -> 0 | V16: =COUNTConditionColorCells($C$14:$K$14,V15) -> 0 | W16: =COUNTConditionColorCells($C$14:$K$14,W15) -> 1 | X16: 3 | Y16: 4 | Z16: 1 | AA16: =COUNTIF(C14:K14,"8") -> 0 | AB16: =L14 -> 37
B17: Par | C17: 5 | D17: 4 | E17: 5 | F17: 3 | G17: 4 | H17: 3 | I17: 4 | J17: 5 | K17: 4 | L17: =SUM(C17:K17) -> 37 | M17: =L17+L13 -> 69 | T17: Back | U17: =COUNTIF(C18:K18,"1") -> 0 | V17: =COUNTConditionColorCells($C$18:$K$18,V15) -> 0 | W17: =COUNTConditionColorCells($C$18:$K$18,W15) -> 1 | X17: 6 | Y17: 2 | Z17: 0 | AA17: =COUNTIF(C18:K18,"8") -> 0 | AB17: =L18 -> 38
B18: Score | C18: 5 | D18: 5 | E18: 5 | F18: 3 | G18: 4 | H18: 2 | I18: 4 | J18: 6 | K18: 4 | L18: =SUM(C18:K18) -> 38 | M18: 75 | T18: Total | U18: =U16+U17 -> 0 | V18: =V16+V17 -> 0 | W18: 2 | X18: 9 | Y18: 6 | Z18: 1 | AA18: =AA16+AA17 -> 0 | AB18: =M18 -> 75
F21: Hole | G21: 1 | H21: 2 | I21: 3 | J21: 4 | K21: 5 | L21: 6 | M21: 7 | N21: 8 | O21: 9 | P21: Out | Q21: RENNY
F22: Dist. | G22: 523 | H22: 519 | I22: 386 | J22: 551 | K22: 392 | L22: 257 | M22: 465 | N22: 323 | O22: 285 | P22: =SUM(G22:O22) -> 3701
F23: Par | G23: 4 | H23: 4 | I23: 4 | J23: 4 | K23: 4 | L23: 3 | M23: 4 | N23: 3 | O23: 3 | P23: =SUM(G23:O23) -> 33
F24: Score | G24: 5 | H24: 3 | I24: 5 | J24: 4 | K24: 4 | L24: 4 | M24: 4 | N24: 3 | O24: 3 | P24: 35
F25: Hole | G25: 10 | H25: 11 | I25: 12 | J25: 13 | K25: 14 | L25: 15 | M25: 16 | N25: 17 | O25: 18 | P25: In | Q25: Total | T25: RENNY | U25: Ace | V25: Eag | W25: Bir | X25: Par | Y25: Bog | Z25: Bg+ | AA25: Sno | AB25: Score
F26: Dist. | G26: 538 | H26: 1042 | I26: 617 | J26: 974 | K26: 564 | L26: 378 | M26: 302 | N26: 517 | O26: 826 | P26: =SUM(G26:O26) -> 5758 | Q26: =P26+P22 -> 9459 | T26: Front | U26: =COUNTIF(G24:O24,"1") -> 0 | V26: =COUNTConditionColorCells($G$24:$O$24,V25) -> 0 | W26: =COUNTConditionColorCells($G$24:$O$24,W25) -> 1 | X26: 5 | Y26: 3 | Z26: 0 | AA26: =COUNTIF(G24:O24,"8") -> 0 | AB26: =P24 -> 35
F27: Par | G27: 4 | H27: 5 | I27: 4 | J27: 5 | K27: 4 | L27: 3 | M27: 3 | N27: 4 | O27: 5 | P27: =SUM(G27:O27) -> 37 | Q27: =P27+P23 -> 70 | T27: Back | U27: =COUNTIF(G28:O28,"1") -> 0 | V27: =COUNTConditionColorCells($G$28:$O$28,V25) -> 0 | W27: =COUNTConditionColorCells($G$28:$O$28,W25) -> 0 | X27: 4 | Y27: 2 | Z27: 3 | AA27: =COUNTIF(G28:O28,"8") -> 1 | AB27: =P28 -> 46
F28: Score | G28: 4 | H28: 5 | I28: 4 | J28: 8 | K28: 6 | L28: 3 | M28: 5 | N28: 5 | O28: 6 | P28: =SUM(G28:O28) -> 46 | Q28: 81 | T28: Total | U28: =U26+U27 -> 0 | V28: =V26+V27 -> 0 | W28: 1 | X28: 9 | Y28: 5 | Z28: 3 | AA28: 1 | AB28: =Q28 -> 81
B30: Nevin #2 - Play from short cement pad (not long pad behind creek). | M30: Player
M31: Witness 1
B32: Turn in your completed, signed score sheet before 9pm | M32: Witness 2
B33: at Divine Barrel Brewery (3701 N. Davidson St). | M33: Witness 3 | T33: FINAL | U33: Ace | V33: Eag | W33: Bir | X33: Par | Y33: Bog | Z33: Bg+ | AA33: Sno | AB33: Score
T34: TOTAL | U34: =SUM(U28,U18,U8) -> 0 | V34: =SUM(V28,V18,V8) -> 0 | W34: 5 | X34: 28 | Y34: 14 | Z34: 7 | AA34: 1 | AB34: 230

Sheet HaMc
A1: 2019 Charlotte Iron Man | F1: Hole | G1: 1 | H1: 2 | I1: 3 | J1: 4 | K1: 5 | L1: 6 | M1: 7 | N1: 8 | O1: 9 | P1: Out | Q1: ANGRY
F2: Dist. | G2: 235 | H2: 158 | I2: 222 | J2: 439 | K2: 801 | L2: 491 | M2: 282 | N2: 567 | O2: 268 | P2: =SUM(G2:O2) -> 3463 | T2: Name | U2: Hannable McGarity | Z2: Div | AA2: Iron Men
F3: Par | G3: 3 | H3: 3 | I3: 3 | J3: 4 | K3: 5 | L3: 4 | M3: 3 | N3: 4 | O3: 3 | P3: =SUM(G3:O3) -> 32
F4: Score | G4: 4 | H4: 3 | I4: 3 | J4: 3 | K4: 6 | L4: 5 | M4: 5 | N4: 5 | O4: 3 | P4: 37
F5: Hole | G5: 10 | H5: 11 | I5: 12 | J5: 13 | K5: 14 | L5: 15 | M5: 16 | N5: 17 | O5: 18 | P5: In | Q5: Total | T5: ANGRY | U5: Ace | V5: Eag | W5: Bir | X5: Par | Y5: Bog | Z5: Bg+ | AA5: Sno | AB5: Score
F6: Dist. | G6: 563 | H6: 465 | I6: 215 | J6: 409 | K6: 333 | L6: 702 | M6: 431 | N6: 282 | O6: 814 | P6: =SUM(G6:O6) -> 4214 | Q6: =P6+P2 -> 7677 | T6: Front | U6: =COUNTIF(G4:O4,"1") -> 0 | V6: =COUNTConditionColorCells($G$4:$O$4,V5) -> 0 | W6: =COUNTConditionColorCells($G$4:$O$4,W5) -> 1 | X6: 3 | Y6: 4 | Z6: 1 | AA6: =COUNTIF(G4:O4,"8") -> 0 | AB6: =P4 -> 37
F7: Par | G7: 4 | H7: 4 | I7: 3 | J7: 4 | K7: 3 | L7: 5 | M7: 4 | N7: 3 | O7: 5 | P7: =SUM(G7:O7) -> 35 | Q7: =P7+P3 -> 67 | T7: Back | U7: =COUNTIF(G8:O8,"1") -> 0 | V7: =COUNTConditionColorCells($G$8:$O$8,V5) -> 0 | W7: =COUNTConditionColorCells($G$8:$O$8,W5) -> 0 | X7: =COUNTConditionColorCells($G$8:$O$8,X5) -> 2 | Y7: =COUNTConditionColorCells($G$8:$O$8,Y5) -> 3 | Z7: 4 | AA7: =COUNTIF(G8:O8,"8") -> 1 | AB7: =P8 -> 50
F8: Score | G8: 6 | H8: 4 | I8: 5 | J8: 5 | K8: 4 | L8: 8 | M8: 4 | N8: 4 | O8: 10 | P8: =SUM(G8:O8) -> 50 | Q8: 87 | T8: Total | U8: =U6+U7 -> 0 | V8: =V6+V7 -> 0 | W8: 1 | X8: 5 | Y8: 7 | Z8: 5 | AA8: 1 | AB8: =Q8 -> 87
B11: Hole | C11: 1 | D11: 2 | E11: 3 | F11: 4 | G11: 5 | H11: 6 | I11: 7 | J11: 8 | K11: 9 | L11: Out | M11: NEVIN
B12: Dist. | C12: 491 | D12: 240 | E12: 375 | F12: 538 | G12: 656 | H12: 317 | I12: 202 | J12: 329 | K12: 593 | L12: =SUM(C12:K12) -> 3741
B13: Par | C13: 4 | D13: 3 | E13: 3 | F13: 4 | G13: 5 | H13: 3 | I13: 3 | J13: 3 | K13: 4 | L13: =SUM(C13:K13) -> 32
B14: Score | C14: 6 | D14: 3 | E14: 3 | F14: 7 | G14: 5 | H14: 7 | I14: 4 | J14: 4 | K14: 6 | L14: 45
B15: Hole | C15: 10 | D15: 11 | E15: 12 | F15: 13 | G15: 14 | H15: 15 | I15: 16 | J15: 17 | K15: 18 | L15: In | M15: Total | T15: NEVIN | U15: Ace | V15: Eag | W15: Bir | X15: Par | Y15: Bog | Z15: Bg+ | AA15: Sno | AB15: Score
B16: Dist. | C16: 630 | D16: 640 | E16: 970 | F16: 274 | G16: 550 | H16: 252 | I16: 596 | J16: 581 | K16: 530 | L16: =SUM(C16:K16) -> 5023 | M16: =L16+L12 -> 8764 | T16: Front | U16: =COUNTIF(C14:K14,"1") -> 0 | V16: =COUNTConditionColorCells($C$14:$K$14,V15) -> 0 | W16: =COUNTConditionColorCells($C$14:$K$14,W15) -> 0 | X16: 3 | Y16: 2 | Z16: 4 | AA16: =COUNTIF(C14:K14,"8") -> 0 | AB16: =L14 -> 45
B17: Par | C17: 5 | D17: 4 | E17: 5 | F17: 3 | G17: 4 | H17: 3 | I17: 4 | J17: 5 | K17: 4 | L17: =SUM(C17:K17) -> 37 | M17: =L17+L13 -> 69 | T17: Back | U17: =COUNTIF(C18:K18,"1") -> 0 | V17: =COUNTConditionColorCells($C$18:$K$18,V15) -> 0 | W17: =COUNTConditionColorCells($C$18:$K$18,W15) -> 0 | X17: 3 | Y17: 4 | Z17: 2 | AA17: =COUNTIF(C18:K18,"8") -> 0 | AB17: =L18 -> 49
B18: Score | C18: 6 | D18: 4 | E18: 9 | F18: 4 | G18: 5 | H18: 4 | I18: 4 | J18: 9 | K18: 4 | L18: =SUM(C18:K18) -> 49 | M18: 94 | T18: Total | U18: =U16+U17 -> 0 | V18: =V16+V17 -> 0 | W18: 0 | X18: 6 | Y18: 6 | Z18: 6 | AA18: =AA16+AA17 -> 0 | AB18: =M18 -> 94
F21: Hole | G21: 1 | H21: 2 | I21: 3 | J21: 4 | K21: 5 | L21: 6 | M21: 7 | N21: 8 | O21: 9 | P21: Out | Q21: RENNY
F22: Dist. | G22: 523 | H22: 519 | I22: 386 | J22: 551 | K22: 392 | L22: 257 | M22: 465 | N22: 323 | O22: 285 | P22: =SUM(G22:O22) -> 3701
F23: Par | G23: 4 | H23: 4 | I23: 4 | J23: 4 | K23: 4 | L23: 3 | M23: 4 | N23: 3 | O23: 3 | P23: =SUM(G23:O23) -> 33
F24: Score | G24: 5 | H24: 5 | I24: 3 | J24: 4 | K24: 5 | L24: 3 | M24: 6 | N24: 4 | O24: 3 | P24: 38
F25: Hole | G25: 10 | H25: 11 | I25: 12 | J25: 13 | K25: 14 | L25: 15 | M25: 16 | N25: 17 | O25: 18 | P25: In | Q25: Total | T25: RENNY | U25: Ace | V25: Eag | W25: Bir | X25: Par | Y25: Bog | Z25: Bg+ | AA25: Sno | AB25: Score
F26: Dist. | G26: 538 | H26: 1042 | I26: 617 | J26: 974 | K26: 564 | L26: 378 | M26: 302 | N26: 517 | O26: 826 | P26: =SUM(G26:O26) -> 5758 | Q26: =P26+P22 -> 9459 | T26: Front | U26: =COUNTIF(G24:O24,"1") -> 0 | V26: =COUNTConditionColorCells($G$24:$O$24,V25) -> 0 | W26: =COUNTConditionColorCells($G$24:$O$24,W25) -> 1 | X26: 3 | Y26: 4 | Z26: 1 | AA26: =COUNTIF(G24:O24,"8") -> 0 | AB26: =P24 -> 38
F27: Par | G27: 4 | H27: 5 | I27: 4 | J27: 5 | K27: 4 | L27: 3 | M27: 3 | N27: 4 | O27: 5 | P27: =SUM(G27:O27) -> 37 | Q27: =P27+P23 -> 70 | T27: Back | U27: =COUNTIF(G28:O28,"1") -> 0 | V27: =COUNTConditionColorCells($G$28:$O$28,V25) -> 0 | W27: =COUNTConditionColorCells($G$28:$O$28,W25) -> 0 | X27: 1 | Y27: 3 | Z27: 5 | AA27: =COUNTIF(G28:O28,"8") -> 0 | AB27: =P28 -> 50
F28: Score | G28: 6 | H28: 7 | I28: 5 | J28: 7 | K28: 6 | L28: 3 | M28: 4 | N28: 6 | O28: 6 | P28: =SUM(G28:O28) -> 50 | Q28: 88 | T28: Total | U28: =U26+U27 -> 0 | V28: =V26+V27 -> 0 | W28: 1 | X28: 4 | Y28: 7 | Z28: 6 | AA28: 0 | AB28: =Q28 -> 88
B30: Nevin #2 - Play from short cement pad (not long pad behind creek). | M30: Player
M31: Witness 1
B32: Turn in your completed, signed score sheet before 9pm | M32: Witness 2
B33: at Divine Barrel Brewery (3701 N. Davidson St). | M33: Witness 3 | T33: FINAL | U33: Ace | V33: Eag | W33: Bir | X33: Par | Y33: Bog | Z33: Bg+ | AA33: Sno | AB33: Score
T34: TOTAL | U34: =SUM(U28,U18,U8) -> 0 | V34: =SUM(V28,V18,V8) -> 0 | W34: 2 | X34: 15 | Y34: 20 | Z34: 17 | AA34: 1 | AB34: 269

Sheet JaFa
A1: 2019 Charlotte Iron Man | F1: Hole | G1: 1 | H1: 2 | I1: 3 | J1: 4 | K1: 5 | L1: 6 | M1: 7 | N1: 8 | O1: 9 | P1: Out | Q1: ANGRY
F2: Dist. | G2: 235 | H2: 158 | I2: 222 | J2: 439 | K2: 801 | L2: 491 | M2: 282 | N2: 567 | O2: 268 | P2: =SUM(G2:O2) -> 3463 | T2: Name | U2: James Farmer | Z2: Div | AA2: Iron Men
F3: Par | G3: 3 | H3: 3 | I3: 3 | J3: 4 | K3: 5 | L3: 4 | M3: 3 | N3: 4 | O3: 3 | P3: =SUM(G3:O3) -> 32
F4: Score | G4: 3 | H4: 3 | I4: 3 | J4: 4 | K4: 7 | L4: 4 | M4: 5 | N4: 6 | O4: 4 | P4: 39
F5: Hole | G5: 10 | H5: 11 | I5: 12 | J5: 13 | K5: 14 | L5: 15 | M5: 16 | N5: 17 | O5: 18 | P5: In | Q5: Total | T5: ANGRY | U5: Ace | V5: Eag | W5: Bir | X5: Par | Y5: Bog | Z5: Bg+ | AA5: Sno | AB5: Score
F6: Dist. | G6: 563 | H6: 465 | I6: 215 | J6: 409 | K6: 333 | L6: 702 | M6: 431 | N6: 282 | O6: 814 | P6: =SUM(G6:O6) -> 4214 | Q6: =P6+P2 -> 7677 | T6: Front | U6: =COUNTIF(G4:O4,"1") -> 0 | V6: =COUNTConditionColorCells($G$4:$O$4,V5) -> 0 | W6: =COUNTConditionColorCells($G$4:$O$4,W5) -> 0 | X6: 5 | Y6: 1 | Z6: 3 | AA6: =COUNTIF(G4:O4,"8") -> 0 | AB6: =P4 -> 39
F7: Par | G7: 4 | H7: 4 | I7: 3 | J7: 4 | K7: 3 | L7: 5 | M7: 4 | N7: 3 | O7: 5 | P7: =SUM(G7:O7) -> 35 | Q7: =P7+P3 -> 67 | T7: Back | U7: =COUNTIF(G8:O8,"1") -> 0 | V7: =COUNTConditionColorCells($G$8:$O$8,V5) -> 0 | W7: =COUNTConditionColorCells($G$8:$O$8,W5) -> 3 | X7: =COUNTConditionColorCells($G$8:$O$8,X5) -> 2 | Y7: =COUNTConditionColorCells($G$8:$O$8,Y5) -> 3 | Z7: 1 | AA7: =COUNTIF(G8:O8,"8") -> 0 | AB7: =P8 -> 38
F8: Score | G8: 7 | H8: 3 | I8: 4 | J8: 5 | K8: 3 | L8: 6 | M8: 3 | N8: 3 | O8: 4 | P8: =SUM(G8:O8) -> 38 | Q8: 77 | T8: Total | U8: =U6+U7 -> 0 | V8: =V6+V7 -> 0 | W8: 3 | X8: 7 | Y8: 4 | Z8: 4 | AA8: 0 | AB8: =Q8 -> 77
B11: Hole | C11: 1 | D11: 2 | E11: 3 | F11: 4 | G11: 5 | H11: 6 | I11: 7 | J11: 8 | K11: 9 | L11: Out | M11: NEVIN
B12: Dist. | C12: 491 | D12: 240 | E12: 375 | F12: 538 | G12: 656 | H12: 317 | I12: 202 | J12: 329 | K12: 593 | L12: =SUM(C12:K12) -> 3741
B13: Par | C13: 4 | D13: 3 | E13: 3 | F13: 4 | G13: 5 | H13: 3 | I13: 3 | J13: 3 | K13: 4 | L13: =SUM(C13:K13) -> 32
B14: Score | C14: 4 | D14: 3 | E14: 4 | F14: 5 | G14: 7 | H14: 4 | I14: 3 | J14: 3 | K14: 6 | L14: 39
B15: Hole | C15: 10 | D15: 11 | E15: 12 | F15: 13 | G15: 14 | H15: 15 | I15: 16 | J15: 17 | K15: 18 | L15: In | M15: Total | T15: NEVIN | U15: Ace | V15: Eag | W15: Bir | X15: Par | Y15: Bog | Z15: Bg+ | AA15: Sno | AB15: Score
B16: Dist. | C16: 630 | D16: 640 | E16: 970 | F16: 274 | G16: 550 | H16: 252 | I16: 596 | J16: 581 | K16: 530 | L16: =SUM(C16:K16) -> 5023 | M16: =L16+L12 -> 8764 | T16: Front | U16: =COUNTIF(C14:K14,"1") -> 0 | V16: =COUNTConditionColorCells($C$14:$K$14,V15) -> 0 | W16: =COUNTConditionColorCells($C$14:$K$14,W15) -> 0 | X16: 4 | Y16: 3 | Z16: 2 | AA16: =COUNTIF(C14:K14,"8") -> 0 | AB16: =L14 -> 39
B17: Par | C17: 5 | D17: 4 | E17: 5 | F17: 3 | G17: 4 | H17: 3 | I17: 4 | J17: 5 | K17: 4 | L17: =SUM(C17:K17) -> 37 | M17: =L17+L13 -> 69 | T17: Back | U17: =COUNTIF(C18:K18,"1") -> 0 | V17: =COUNTConditionColorCells($C$18:$K$18,V15) -> 0 | W17: =COUNTConditionColorCells($C$18:$K$18,W15) -> 0 | X17: 2 | Y17: 5 | Z17: 2 | AA17: =COUNTIF(C18:K18,"8") -> 0 | AB17: =L18 -> 48
B18: Score | C18: 6 | D18: 5 | E18: 6 | F18: 3 | G18: 7 | H18: 3 | I18: 7 | J18: 6 | K18: 5 | L18: =SUM(C18:K18) -> 48 | M18: 87 | T18: Total | U18: =U16+U17 -> 0 | V18: =V16+V17 -> 0 | W18: 0 | X18: 6 | Y18: 8 | Z18: 4 | AA18: =AA16+AA17 -> 0 | AB18: =M18 -> 87
F21: Hole | G21: 1 | H21: 2 | I21: 3 | J21: 4 | K21: 5 | L21: 6 | M21: 7 | N21: 8 | O21: 9 | P21: Out | Q21: RENNY
F22: Dist. | G22: 523 | H22: 519 | I22: 386 | J22: 551 | K22: 392 | L22: 257 | M22: 465 | N22: 323 | O22: 285 | P22: =SUM(G22:O22) -> 3701
F23: Par | G23: 4 | H23: 4 | I23: 4 | J23: 4 | K23: 4 | L23: 3 | M23: 4 | N23: 3 | O23: 3 | P23: =SUM(G23:O23) -> 33
F24: Score | G24: 4 | H24: 4 | I24: 5 | J24: 4 | K24: 5 | L24: 2 | M24: 5 | N24: 3 | O24: 2 | P24: 34
F25: Hole | G25: 10 | H25: 11 | I25: 12 | J25: 13 | K25: 14 | L25: 15 | M25: 16 | N25: 17 | O25: 18 | P25: In | Q25: Total | T25: RENNY | U25: Ace | V25: Eag | W25: Bir | X25: Par | Y25: Bog | Z25: Bg+ | AA25: Sno | AB25: Score
F26: Dist. | G26: 538 | H26: 1042 | I26: 617 | J26: 974 | K26: 564 | L26: 378 | M26: 302 | N26: 517 | O26: 826 | P26: =SUM(G26:O26) -> 5758 | Q26: =P26+P22 -> 9459 | T26: Front | U26: =COUNTIF(G24:O24,"1") -> 0 | V26: =COUNTConditionColorCells($G$24:$O$24,V25) -> 0 | W26: =COUNTConditionColorCells($G$24:$O$24,W25) -> 2 | X26: 4 | Y26: 3 | Z26: 0 | AA26: =COUNTIF(G24:O24,"8") -> 0 | AB26: =P24 -> 34
F27: Par | G27: 4 | H27: 5 | I27: 4 | J27: 5 | K27: 4 | L27: 3 | M27: 3 | N27: 4 | O27: 5 | P27: =SUM(G27:O27) -> 37 | Q27: =P27+P23 -> 70 | T27: Back | U27: =COUNTIF(G28:O28,"1") -> 0 | V27: =COUNTConditionColorCells($G$28:$O$28,V25) -> 0 | W27: =COUNTConditionColorCells($G$28:$O$28,W25) -> 0 | X27: 5 | Y27: 1 | Z27: 3 | AA27: =COUNTIF(G28:O28,"8") -> 1 | AB27: =P28 -> 45
F28: Score | G28: 4 | H28: 6 | I28: 4 | J28: 8 | K28: 6 | L28: 3 | M28: 3 | N28: 4 | O28: 7 | P28: =SUM(G28:O28) -> 45 | Q28: 79 | T28: Total | U28: =U26+U27 -> 0 | V28: =V26+V27 -> 0 | W28: 2 | X28: 9 | Y28: 4 | Z28: 3 | AA28: 1 | AB28: =Q28 -> 79
B30: Nevin #2 - Play from short cement pad (not long pad behind creek). | M30: Player
M31: Witness 1
B32: Turn in your completed, signed score sheet before 9pm | M32: Witness 2
B33: at Divine Barrel Brewery (3701 N. Davidson St). | M33: Witness 3 | T33: FINAL | U33: Ace | V33: Eag | W33: Bir | X33: Par | Y33: Bog | Z33: Bg+ | AA33: Sno | AB33: Score
T34: TOTAL | U34: =SUM(U28,U18,U8) -> 0 | V34: =SUM(V28,V18,V8) -> 0 | W34: 5 | X34: 22 | Y34: 16 | Z34: 11 | AA34: 1 | AB34: 243

Sheet JaGr
A1: 2019 Charlotte Iron Man | F1: Hole | G1: 1 | H1: 2 | I1: 3 | J1: 4 | K1: 5 | L1: 6 | M1: 7 | N1: 8 | O1: 9 | P1: Out | Q1: ANGRY
F2: Dist. | G2: 235 | H2: 158 | I2: 222 | J2: 439 | K2: 801 | L2: 491 | M2: 282 | N2: 567 | O2: 268 | P2: =SUM(G2:O2) -> 3463 | T2: Name | U2: James Graves | Z2: Div | AA2: Iron Men
F3: Par | G3: 3 | H3: 3 | I3: 3 | J3: 4 | K3: 5 | L3: 4 | M3: 3 | N3: 4 | O3: 3 | P3: =SUM(G3:O3) -> 32
F4: Score | G4: 6 | H4: 3 | I4: 4 | J4: 3 | K4: 7 | L4: 5 | M4: 4 | N4: 5 | O4: 4 | P4: 41
F5: Hole | G5: 10 | H5: 11 | I5: 12 | J5: 13 | K5: 14 | L5: 15 | M5: 16 | N5: 17 | O5: 18 | P5: In | Q5: Total | T5: ANGRY | U5: Ace | V5: Eag | W5: Bir | X5: Par | Y5: Bog | Z5: Bg+ | AA5: Sno | AB5: Score
F6: Dist. | G6: 563 | H6: 465 | I6: 215 | J6: 409 | K6: 333 | L6: 702 | M6: 431 | N6: 282 | O6: 814 | P6: =SUM(G6:O6) -> 4214 | Q6: =P6+P2 -> 7677 | T6: Front | U6: =COUNTIF(G4:O4,"1") -> 0 | V6: =COUNTConditionColorCells($G$4:$O$4,V5) -> 0 | W6: =COUNTConditionColorCells($G$4:$O$4,W5) -> 1 | X6: 1 | Y6: 5 | Z6: 2 | AA6: =COUNTIF(G4:O4,"8") -> 0 | AB6: =P4 -> 41
F7: Par | G7: 4 | H7: 4 | I7: 3 | J7: 4 | K7: 3 | L7: 5 | M7: 4 | N7: 3 | O7: 5 | P7: =SUM(G7:O7) -> 35 | Q7: =P7+P3 -> 67 | T7: Back | U7: =COUNTIF(G8:O8,"1") -> 0 | V7: =COUNTConditionColorCells($G$8:$O$8,V5) -> 0 | W7: =COUNTConditionColorCells($G$8:$O$8,W5) -> 1 | X7: =COUNTConditionColorCells($G$8:$O$8,X5) -> 4 | Y7: =COUNTConditionColorCells($G$8:$O$8,Y5) -> 3 | Z7: 1 | AA7: =COUNTIF(G8:O8,"8") -> 0 | AB7: =P8 -> 39
F8: Score | G8: 5 | H8: 4 | I8: 3 | J8: 4 | K8: 4 | L8: 7 | M8: 3 | N8: 3 | O8: 6 | P8: =SUM(G8:O8) -> 39 | Q8: 80 | T8: Total | U8: =U6+U7 -> 0 | V8: =V6+V7 -> 0 | W8: 2 | X8: 5 | Y8: 8 | Z8: 3 | AA8: 0 | AB8: =Q8 -> 80
B11: Hole | C11: 1 | D11: 2 | E11: 3 | F11: 4 | G11: 5 | H11: 6 | I11: 7 | J11: 8 | K11: 9 | L11: Out | M11: NEVIN
B12: Dist. | C12: 491 | D12: 240 | E12: 375 | F12: 538 | G12: 656 | H12: 317 | I12: 202 | J12: 329 | K12: 593 | L12: =SUM(C12:K12) -> 3741
B13: Par | C13: 4 | D13: 3 | E13: 3 | F13: 4 | G13: 5 | H13: 3 | I13: 3 | J13: 3 | K13: 4 | L13: =SUM(C13:K13) -> 32
B14: Score | C14: 5 | D14: 3 | E14: 4 | F14: 5 | G14: 5 | H14: 3 | I14: 3 | J14: 3 | K14: 5 | L14: 36
B15: Hole | C15: 10 | D15: 11 | E15: 12 | F15: 13 | G15: 14 | H15: 15 | I15: 16 | J15: 17 | K15: 18 | L15: In | M15: Total | T15: NEVIN | U15: Ace | V15: Eag | W15: Bir | X15: Par | Y15: Bog | Z15: Bg+ | AA15: Sno | AB15: Score
B16: Dist. | C16: 630 | D16: 640 | E16: 970 | F16: 274 | G16: 550 | H16: 252 | I16: 596 | J16: 581 | K16: 530 | L16: =SUM(C16:K16) -> 5023 | M16: =L16+L12 -> 8764 | T16: Front | U16: =COUNTIF(C14:K14,"1") -> 0 | V16: =COUNTConditionColorCells($C$14:$K$14,V15) -> 0 | W16: =COUNTConditionColorCells($C$14:$K$14,W15) -> 0 | X16: 5 | Y16: 4 | Z16: 0 | AA16: =COUNTIF(C14:K14,"8") -> 0 | AB16: =L14 -> 36
B17: Par | C17: 5 | D17: 4 | E17: 5 | F17: 3 | G17: 4 | H17: 3 | I17: 4 | J17: 5 | K17: 4 | L17: =SUM(C17:K17) -> 37 | M17: =L17+L13 -> 69 | T17: Back | U17: =COUNTIF(C18:K18,"1") -> 0 | V17: =COUNTConditionColorCells($C$18:$K$18,V15) -> 0 | W17: =COUNTConditionColorCells($C$18:$K$18,W15) -> 0 | X17: 4 | Y17: 2 | Z17: 3 | AA17: =COUNTIF(C18:K18,"8") -> 1 | AB17: =L18 -> 47
B18: Score | C18: 5 | D18: 5 | E18: 7 | F18: 3 | G18: 5 | H18: 3 | I18: 8 | J18: 7 | K18: 4 | L18: =SUM(C18:K18) -> 47 | M18: 83 | T18: Total | U18: =U16+U17 -> 0 | V18: =V16+V17 -> 0 | W18: 0 | X18: 9 | Y18: 6 | Z18: 3 | AA18: =AA16+AA17 -> 1 | AB18: =M18 -> 83
F21: Hole | G21: 1 | H21: 2 | I21: 3 | J21: 4 | K21: 5 | L21: 6 | M21: 7 | N21: 8 | O21: 9 | P21: Out | Q21: RENNY
F22: Dist. | G22: 523 | H22: 519 | I22: 386 | J22: 551 | K22: 392 | L22: 257 | M22: 465 | N22: 323 | O22: 285 | P22: =SUM(G22:O22) -> 3701
F23: Par | G23: 4 | H23: 4 | I23: 4 | J23: 4 | K23: 4 | L23: 3 | M23: 4 | N23: 3 | O23: 3 | P23: =SUM(G23:O23) -> 33
F24: Score | G24: 4 | H24: 5 | I24: 4 | J24: 4 | K24: 5 | L24: 4 | M24: 7 | N24: 3 | O24: 3 | P24: 39
F25: Hole | G25: 10 | H25: 11 | I25: 12 | J25: 13 | K25: 14 | L25: 15 | M25: 16 | N25: 17 | O25: 18 | P25: In | Q25: Total | T25: RENNY | U25: Ace | V25: Eag | W25: Bir | X25: Par | Y25: Bog | Z25: Bg+ | AA25: Sno | AB25: Score
F26: Dist. | G26: 538 | H26: 1042 | I26: 617 | J26: 974 | K26: 564 | L26: 378 | M26: 302 | N26: 517 | O26: 826 | P26: =SUM(G26:O26) -> 5758 | Q26: =P26+P22 -> 9459 | T26: Front | U26: =COUNTIF(G24:O24,"1") -> 0 | V26: =COUNTConditionColorCells($G$24:$O$24,V25) -> 0 | W26: =COUNTConditionColorCells($G$24:$O$24,W25) -> 0 | X26: 5 | Y26: 3 | Z26: 1 | AA26: =COUNTIF(G24:O24,"8") -> 0 | AB26: =P24 -> 39
F27: Par | G27: 4 | H27: 5 | I27: 4 | J27: 5 | K27: 4 | L27: 3 | M27: 3 | N27: 4 | O27: 5 | P27: =SUM(G27:O27) -> 37 | Q27: =P27+P23 -> 70 | T27: Back | U27: =COUNTIF(G28:O28,"1") -> 0 | V27: =COUNTConditionColorCells($G$28:$O$28,V25) -> 0 | W27: =COUNTConditionColorCells($G$28:$O$28,W25) -> 0 | X27: 1 | Y27: 4 | Z27: 4 | AA27: =COUNTIF(G28:O28,"8") -> 0 | AB27: =P28 -> 51
F28: Score | G28: 6 | H28: 7 | I28: 4 | J28: 9 | K28: 5 | L28: 4 | M28: 4 | N28: 6 | O28: 6 | P28: =SUM(G28:O28) -> 51 | Q28: 90 | T28: Total | U28: =U26+U27 -> 0 | V28: =V26+V27 -> 0 | W28: 0 | X28: 6 | Y28: 7 | Z28: 5 | AA28: 0 | AB28: =Q28 -> 90
B30: Nevin #2 - Play from short cement pad (not long pad behind creek). | M30: Player
M31: Witness 1
B32: Turn in your completed, signed score sheet before 9pm | M32: Witness 2
B33: at Divine Barrel Brewery (3701 N. Davidson St). | M33: Witness 3 | T33: FINAL | U33: Ace | V33: Eag | W33: Bir | X33: Par | Y33: Bog | Z33: Bg+ | AA33: Sno | AB33: Score
T34: TOTAL | U34: =SUM(U28,U18,U8) -> 0 | V34: =SUM(V28,V18,V8) -> 0 | W34: 2 | X34: 20 | Y34: 21 | Z34: 11 | AA34: 1 | AB34: 253

Sheet JaHo
A1: 2019 Charlotte Iron Man | F1: Hole | G1: 1 | H1: 2 | I1: 3 | J1: 4 | K1: 5 | L1: 6 | M1: 7 | N1: 8 | O1: 9 | P1: Out | Q1: ANGRY
F2: Dist. | G2: 235 | H2: 158 | I2: 222 | J2: 439 | K2: 801 | L2: 491 | M2: 282 | N2: 567 | O2: 268 | P2: =SUM(G2:O2) -> 3463 | T2: Name | U2: James Hopkins | Z2: Div | AA2: Iron Men
F3: Par | G3: 3 | H3: 3 | I3: 3 | J3: 4 | K3: 5 | L3: 4 | M3: 3 | N3: 4 | O3: 3 | P3: =SUM(G3:O3) -> 32
F4: Score | G4: 3 | H4: 3 | I4: 2 | J4: 4 | K4: 4 | L4: 4 | M4: 3 | N4: 4 | O4: 2 | P4: 29
F5: Hole | G5: 10 | H5: 11 | I5: 12 | J5: 13 | K5: 14 | L5: 15 | M5: 16 | N5: 17 | O5: 18 | P5: In | Q5: Total | T5: ANGRY | U5: Ace | V5: Eag | W5: Bir | X5: Par | Y5: Bog | Z5: Bg+ | AA5: Sno | AB5: Score
F6: Dist. | G6: 563 | H6: 465 | I6: 215 | J6: 409 | K6: 333 | L6: 702 | M6: 431 | N6: 282 | O6: 814 | P6: =SUM(G6:O6) -> 4214 | Q6: =P6+P2 -> 7677 | T6: Front | U6: =COUNTIF(G4:O4,"1") -> 0 | V6: =COUNTConditionColorCells($G$4:$O$4,V5) -> 0 | W6: =COUNTConditionColorCells($G$4:$O$4,W5) -> 3 | X6: 6 | Y6: 0 | Z6: 0 | AA6: =COUNTIF(G4:O4,"8") -> 0 | AB6: =P4 -> 29
F7: Par | G7: 4 | H7: 4 | I7: 3 | J7: 4 | K7: 3 | L7: 5 | M7: 4 | N7: 3 | O7: 5 | P7: =SUM(G7:O7) -> 35 | Q7: =P7+P3 -> 67 | T7: Back | U7: =COUNTIF(G8:O8,"1") -> 0 | V7: =COUNTConditionColorCells($G$8:$O$8,V5) -> 0 | W7: =COUNTConditionColorCells($G$8:$O$8,W5) -> 3 | X7: =COUNTConditionColorCells($G$8:$O$8,X5) -> 4 | Y7: =COUNTConditionColorCells($G$8:$O$8,Y5) -> 2 | Z7: 0 | AA7: =COUNTIF(G8:O8,"8") -> 0 | AB7: =P8 -> 34
F8: Score | G8: 5 | H8: 4 | I8: 2 | J8: 4 | K8: 4 | L8: 4 | M8: 4 | N8: 2 | O8: 5 | P8: =SUM(G8:O8) -> 34 | Q8: 63 | T8: Total | U8: =U6+U7 -> 0 | V8: =V6+V7 -> 0 | W8: 6 | X8: 10 | Y8: 2 | Z8: 0 | AA8: 0 | AB8: =Q8 -> 63
B11: Hole | C11: 1 | D11: 2 | E11: 3 | F11: 4 | G11: 5 | H11: 6 | I11: 7 | J11: 8 | K11: 9 | L11: Out | M11: NEVIN
B12: Dist. | C12: 491 | D12: 240 | E12: 375 | F12: 538 | G12: 656 | H12: 317 | I12: 202 | J12: 329 | K12: 593 | L12: =SUM(C12:K12) -> 3741
B13: Par | C13: 4 | D13: 3 | E13: 3 | F13: 4 | G13: 5 | H13: 3 | I13: 3 | J13: 3 | K13: 4 | L13: =SUM(C13:K13) -> 32
B14: Score | C14: 3 | D14: 2 | E14: 3 | F14: 4 | G14: 5 | H14: 2 | I14: 3 | J14: 3 | K14: 3 | L14: 28
B15: Hole | C15: 10 | D15: 11 | E15: 12 | F15: 13 | G15: 14 | H15: 15 | I15: 16 | J15: 17 | K15: 18 | L15: In | M15: Total | T15: NEVIN | U15: Ace | V15: Eag | W15: Bir | X15: Par | Y15: Bog | Z15: Bg+ | AA15: Sno | AB15: Score
B16: Dist. | C16: 630 | D16: 640 | E16: 970 | F16: 274 | G16: 550 | H16: 252 | I16: 596 | J16: 581 | K16: 530 | L16: =SUM(C16:K16) -> 5023 | M16: =L16+L12 -> 8764 | T16: Front | U16: =COUNTIF(C14:K14,"1") -> 0 | V16: =COUNTConditionColorCells($C$14:$K$14,V15) -> 0 | W16: =COUNTConditionColorCells($C$14:$K$14,W15) -> 4 | X16: 5 | Y16: 0 | Z16: 0 | AA16: =COUNTIF(C14:K14,"8") -> 0 | AB16: =L14 -> 28
B17: Par | C17: 5 | D17: 4 | E17: 5 | F17: 3 | G17: 4 | H17: 3 | I17: 4 | J17: 5 | K17: 4 | L17: =SUM(C17:K17) -> 37 | M17: =L17+L13 -> 69 | T17: Back | U17: =COUNTIF(C18:K18,"1") -> 0 | V17: =COUNTConditionColorCells($C$18:$K$18,V15) -> 0 | W17: =COUNTConditionColorCells($C$18:$K$18,W15) -> 4 | X17: 5 | Y17: 0 | Z17: 0 | AA17: =COUNTIF(C18:K18,"8") -> 0 | AB17: =L18 -> 33
B18: Score | C18: 5 | D18: 3 | E18: 5 | F18: 3 | G18: 3 | H18: 2 | I18: 4 | J18: 5 | K18: 3 | L18: =SUM(C18:K18) -> 33 | M18: 61 | T18: Total | U18: =U16+U17 -> 0 | V18: =V16+V17 -> 0 | W18: 8 | X18: 10 | Y18: 0 | Z18: 0 | AA18: =AA16+AA17 -> 0 | AB18: =M18 -> 61
F21: Hole | G21: 1 | H21: 2 | I21: 3 | J21: 4 | K21: 5 | L21: 6 | M21: 7 | N21: 8 | O21: 9 | P21: Out | Q21: RENNY
F22: Dist. | G22: 523 | H22: 519 | I22: 386 | J22: 551 | K22: 392 | L22: 257 | M22: 465 | N22: 323 | O22: 285 | P22: =SUM(G22:O22) -> 3701
F23: Par | G23: 4 | H23: 4 | I23: 4 | J23: 4 | K23: 4 | L23: 3 | M23: 4 | N23: 3 | O23: 3 | P23: =SUM(G23:O23) -> 33
F24: Score | G24: 3 | H24: 3 | I24: 3 | J24: 3 | K24: 4 | L24: 4 | M24: 4 | N24: 3 | O24: 3 | P24: 30
F25: Hole | G25: 10 | H25: 11 | I25: 12 | J25: 13 | K25: 14 | L25: 15 | M25: 16 | N25: 17 | O25: 18 | P25: In | Q25: Total | T25: RENNY | U25: Ace | V25: Eag | W25: Bir | X25: Par | Y25: Bog | Z25: Bg+ | AA25: Sno | AB25: Score
F26: Dist. | G26: 538 | H26: 1042 | I26: 617 | J26: 974 | K26: 564 | L26: 378 | M26: 302 | N26: 517 | O26: 826 | P26: =SUM(G26:O26) -> 5758 | Q26: =P26+P22 -> 9459 | T26: Front | U26: =COUNTIF(G24:O24,"1") -> 0 | V26: =COUNTConditionColorCells($G$24:$O$24,V25) -> 0 | W26: =COUNTConditionColorCells($G$24:$O$24,W25) -> 4 | X26: 4 | Y26: 1 | Z26: 0 | AA26: =COUNTIF(G24:O24,"8") -> 0 | AB26: =P24 -> 30
F27: Par | G27: 4 | H27: 5 | I27: 4 | J27: 5 | K27: 4 | L27: 3 | M27: 3 | N27: 4 | O27: 5 | P27: =SUM(G27:O27) -> 37 | Q27: =P27+P23 -> 70 | T27: Back | U27: =COUNTIF(G28:O28,"1") -> 0 | V27: =COUNTConditionColorCells($G$28:$O$28,V25) -> 0 | W27: =COUNTConditionColorCells($G$28:$O$28,W25) -> 2 | X27: 7 | Y27: 0 | Z27: 0 | AA27: =COUNTIF(G28:O28,"8") -> 0 | AB27: =P28 -> 35
F28: Score | G28: 4 | H28: 5 | I28: 3 | J28: 5 | K28: 4 | L28: 3 | M28: 3 | N28: 4 | O28: 4 | P28: =SUM(G28:O28) -> 35 | Q28: 65 | T28: Total | U28: =U26+U27 -> 0 | V28: =V26+V27 -> 0 | W28: 6 | X28: 11 | Y28: 1 | Z28: 0 | AA28: 0 | AB28: =Q28 -> 65
B30: Nevin #2 - Play from short cement pad (not long pad behind creek). | M30: Player
M31: Witness 1
B32: Turn in your completed, signed score sheet before 9pm | M32: Witness 2
B33: at Divine Barrel Brewery (3701 N. Davidson St). | M33: Witness 3 | T33: FINAL | U33: Ace | V33: Eag | W33: Bir | X33: Par | Y33: Bog | Z33: Bg+ | AA33: Sno | AB33: Score
T34: TOTAL | U34: =SUM(U28,U18,U8) -> 0 | V34: =SUM(V28,V18,V8) -> 0 | W34: 20 | X34: 31 | Y34: 3 | Z34: 0 | AA34: 0 | AB34: 189

Sheet JiBu
A1: 2019 Charlotte Iron Man | F1: Hole | G1: 1 | H1: 2 | I1: 3 | J1: 4 | K1: 5 | L1: 6 | M1: 7 | N1: 8 | O1: 9 | P1: Out | Q1: ANGRY
F2: Dist. | G2: 235 | H2: 158 | I2: 222 | J2: 439 | K2: 801 | L2: 491 | M2: 282 | N2: 567 | O2: 268 | P2: =SUM(G2:O2) -> 3463 | T2: Name | U2: Jim Buckalew | Z2: Div | AA2: Iron Men
F3: Par | G3: 3 | H3: 3 | I3: 3 | J3: 4 | K3: 5 | L3: 4 | M3: 3 | N3: 4 | O3: 3 | P3: =SUM(G3:O3) -> 32
F4: Score | G4: 3 | H4: 2 | I4: 3 | J4: 4 | K4: 6 | L4: 5 | M4: 5 | N4: 5 | O4: 4 | P4: 37
F5: Hole | G5: 10 | H5: 11 | I5: 12 | J5: 13 | K5: 14 | L5: 15 | M5: 16 | N5: 17 | O5: 18 | P5: In | Q5: Total | T5: ANGRY | U5: Ace | V5: Eag | W5: Bir | X5: Par | Y5: Bog | Z5: Bg+ | AA5: Sno | AB5: Score
F6: Dist. | G6: 563 | H6: 465 | I6: 215 | J6: 409 | K6: 333 | L6: 702 | M6: 431 | N6: 282 | O6: 814 | P6: =SUM(G6:O6) -> 4214 | Q6: =P6+P2 -> 7677 | T6: Front | U6: =COUNTIF(G4:O4,"1") -> 0 | V6: =COUNTConditionColorCells($G$4:$O$4,V5) -> 0 | W6: =COUNTConditionColorCells($G$4:$O$4,W5) -> 1 | X6: 3 | Y6: 4 | Z6: 1 | AA6: =COUNTIF(G4:O4,"8") -> 0 | AB6: =P4 -> 37
F7: Par | G7: 4 | H7: 4 | I7: 3 | J7: 4 | K7: 3 | L7: 5 | M7: 4 | N7: 3 | O7: 5 | P7: =SUM(G7:O7) -> 35 | Q7: =P7+P3 -> 67 | T7: Back | U7: =COUNTIF(G8:O8,"1") -> 0 | V7: =COUNTConditionColorCells($G$8:$O$8,V5) -> 0 | W7: =COUNTConditionColorCells($G$8:$O$8,W5) -> 0 | X7: =COUNTConditionColorCells($G$8:$O$8,X5) -> 5 | Y7: =COUNTConditionColorCells($G$8:$O$8,Y5) -> 4 | Z7: 0 | AA7: =COUNTIF(G8:O8,"8") -> 0 | AB7: =P8 -> 39
F8: Score | G8: 4 | H8: 5 | I8: 3 | J8: 4 | K8: 3 | L8: 6 | M8: 4 | N8: 4 | O8: 6 | P8: =SUM(G8:O8) -> 39 | Q8: 76 | T8: Total | U8: =U6+U7 -> 0 | V8: =V6+V7 -> 0 | W8: 1 | X8: 8 | Y8: 8 | Z8: 1 | AA8: 0 | AB8: =Q8 -> 76
B11: Hole | C11: 1 | D11: 2 | E11: 3 | F11: 4 | G11: 5 | H11: 6 | I11: 7 | J11: 8 | K11: 9 | L11: Out | M11: NEVIN
B12: Dist. | C12: 491 | D12: 240 | E12: 375 | F12: 538 | G12: 656 | H12: 317 | I12: 202 | J12: 329 | K12: 593 | L12: =SUM(C12:K12) -> 3741
B13: Par | C13: 4 | D13: 3 | E13: 3 | F13: 4 | G13: 5 | H13: 3 | I13: 3 | J13: 3 | K13: 4 | L13: =SUM(C13:K13) -> 32
B14: Score | C14: 5 | D14: 3 | E14: 4 | F14: 4 | G14: 5 | H14: 5 | I14: 3 | J14: 3 | K14: 4 | L14: 36
B15: Hole | C15: 10 | D15: 11 | E15: 12 | F15: 13 | G15: 14 | H15: 15 | I15: 16 | J15: 17 | K15: 18 | L15: In | M15: Total | T15: NEVIN | U15: Ace | V15: Eag | W15: Bir | X15: Par | Y15: Bog | Z15: Bg+ | AA15: Sno | AB15: Score
B16: Dist. | C16: 630 | D16: 640 | E16: 970 | F16: 274 | G16: 550 | H16: 252 | I16: 596 | J16: 581 | K16: 530 | L16: =SUM(C16:K16) -> 5023 | M16: =L16+L12 -> 8764 | T16: Front | U16: =COUNTIF(C14:K14,"1") -> 0 | V16: =COUNTConditionColorCells($C$14:$K$14,V15) -> 0 | W16: =COUNTConditionColorCells($C$14:$K$14,W15) -> 0 | X16: 6 | Y16: 2 | Z16: 1 | AA16: =COUNTIF(C14:K14,"8") -> 0 | AB16: =L14 -> 36
B17: Par | C17: 5 | D17: 4 | E17: 5 | F17: 3 | G17: 4 | H17: 3 | I17: 4 | J17: 5 | K17: 4 | L17: =SUM(C17:K17) -> 37 | M17: =L17+L13 -> 69 | T17: Back | U17: =COUNTIF(C18:K18,"1") -> 0 | V17: =COUNTConditionColorCells($C$18:$K$18,V15) -> 0 | W17: =COUNTConditionColorCells($C$18:$K$18,W15) -> 0 | X17: 5 | Y17: 4 | Z17: 0 | AA17: =COUNTIF(C18:K18,"8") -> 0 | AB17: =L18 -> 41
B18: Score | C18: 5 | D18: 4 | E18: 6 | F18: 3 | G18: 5 | H18: 3 | I18: 5 | J18: 6 | K18: 4 | L18: =SUM(C18:K18) -> 41 | M18: 77 | T18: Total | U18: =U16+U17 -> 0 | V18: =V16+V17 -> 0 | W18: 0 | X18: 11 | Y18: 6 | Z18: 1 | AA18: =AA16+AA17 -> 0 | AB18: =M18 -> 77
F21: Hole | G21: 1 | H21: 2 | I21: 3 | J21: 4 | K21: 5 | L21: 6 | M21: 7 | N21: 8 | O21: 9 | P21: Out | Q21: RENNY
F22: Dist. | G22: 523 | H22: 519 | I22: 386 | J22: 551 | K22: 392 | L22: 257 | M22: 465 | N22: 323 | O22: 285 | P22: =SUM(G22:O22) -> 3701
F23: Par | G23: 4 | H23: 4 | I23: 4 | J23: 4 | K23: 4 | L23: 3 | M23: 4 | N23: 3 | O23: 3 | P23: =SUM(G23:O23) -> 33
F24: Score | G24: 5 | H24: 4 | I24: 5 | J24: 3 | K24: 4 | L24: 3 | M24: 5 | N24: 3 | O24: 4 | P24: 36
F25: Hole | G25: 10 | H25: 11 | I25: 12 | J25: 13 | K25: 14 | L25: 15 | M25: 16 | N25: 17 | O25: 18 | P25: In | Q25: Total | T25: RENNY | U25: Ace | V25: Eag | W25: Bir | X25: Par | Y25: Bog | Z25: Bg+ | AA25: Sno | AB25: Score
F26: Dist. | G26: 538 | H26: 1042 | I26: 617 | J26: 974 | K26: 564 | L26: 378 | M26: 302 | N26: 517 | O26: 826 | P26: =SUM(G26:O26) -> 5758 | Q26: =P26+P22 -> 9459 | T26: Front | U26: =COUNTIF(G24:O24,"1") -> 0 | V26: =COUNTConditionColorCells($G$24:$O$24,V25) -> 0 | W26: =COUNTConditionColorCells($G$24:$O$24,W25) -> 1 | X26: 4 | Y26: 4 | Z26: 0 | AA26: =COUNTIF(G24:O24,"8") -> 0 | AB26: =P24 -> 36
F27: Par | G27: 4 | H27: 5 | I27: 4 | J27: 5 | K27: 4 | L27: 3 | M27: 3 | N27: 4 | O27: 5 | P27: =SUM(G27:O27) -> 37 | Q27: =P27+P23 -> 70 | T27: Back | U27: =COUNTIF(G28:O28,"1") -> 0 | V27: =COUNTConditionColorCells($G$28:$O$28,V25) -> 0 | W27: =COUNTConditionColorCells($G$28:$O$28,W25) -> 0 | X27: 3 | Y27: 3 | Z27: 3 | AA27: =COUNTIF(G28:O28,"8") -> 0 | AB27: =P28 -> 46
F28: Score | G28: 6 | H28: 7 | I28: 4 | J28: 6 | K28: 5 | L28: 3 | M28: 4 | N28: 4 | O28: 7 | P28: =SUM(G28:O28) -> 46 | Q28: 82 | T28: Total | U28: =U26+U27 -> 0 | V28: =V26+V27 -> 0 | W28: 1 | X28: 7 | Y28: 7 | Z28: 3 | AA28: 0 | AB28: =Q28 -> 82
B30: Nevin #2 - Play from short cement pad (not long pad behind creek). | M30: Player
M31: Witness 1
B32: Turn in your completed, signed score sheet before 9pm | M32: Witness 2
B33: at Divine Barrel Brewery (3701 N. Davidson St). | M33: Witness 3 | T33: FINAL | U33: Ace | V33: Eag | W33: Bir | X33: Par | Y33: Bog | Z33: Bg+ | AA33: Sno | AB33: Score
T34: TOTAL | U34: =SUM(U28,U18,U8) -> 0 | V34: =SUM(V28,V18,V8) -> 0 | W34: 2 | X34: 26 | Y34: 21 | Z34: 5 | AA34: 0 | AB34: 235

Sheet JiZi
A1: 2019 Charlotte Iron Man | F1: Hole | G1: 1 | H1: 2 | I1: 3 | J1: 4 | K1: 5 | L1: 6 | M1: 7 | N1: 8 | O1: 9 | P1: Out | Q1: ANGRY
F2: Dist. | G2: 235 | H2: 158 | I2: 222 | J2: 439 | K2: 801 | L2: 491 | M2: 282 | N2: 567 | O2: 268 | P2: =SUM(G2:O2) -> 3463 | T2: Name | U2: Jimmy Ziros | Z2: Div | AA2: Iron Men
F3: Par | G3: 3 | H3: 3 | I3: 3 | J3: 4 | K3: 5 | L3: 4 | M3: 3 | N3: 4 | O3: 3 | P3: =SUM(G3:O3) -> 32
F4: Score | G4: 3 | H4: 3 | I4: 2 | J4: 4 | K4: 4 | L4: 3 | M4: 3 | N4: 3 | O4: 4 | P4: 29
F5: Hole | G5: 10 | H5: 11 | I5: 12 | J5: 13 | K5: 14 | L5: 15 | M5: 16 | N5: 17 | O5: 18 | P5: In | Q5: Total | T5: ANGRY | U5: Ace | V5: Eag | W5: Bir | X5: Par | Y5: Bog | Z5: Bg+ | AA5: Sno | AB5: Score
F6: Dist. | G6: 563 | H6: 465 | I6: 215 | J6: 409 | K6: 333 | L6: 702 | M6: 431 | N6: 282 | O6: 814 | P6: =SUM(G6:O6) -> 4214 | Q6: =P6+P2 -> 7677 | T6: Front | U6: =COUNTIF(G4:O4,"1") -> 0 | V6: =COUNTConditionColorCells($G$4:$O$4,V5) -> 0 | W6: =COUNTConditionColorCells($G$4:$O$4,W5) -> 4 | X6: 4 | Y6: 1 | Z6: 0 | AA6: =COUNTIF(G4:O4,"8") -> 0 | AB6: =P4 -> 29
F7: Par | G7: 4 | H7: 4 | I7: 3 | J7: 4 | K7: 3 | L7: 5 | M7: 4 | N7: 3 | O7: 5 | P7: =SUM(G7:O7) -> 35 | Q7: =P7+P3 -> 67 | T7: Back | U7: =COUNTIF(G8:O8,"1") -> 0 | V7: =COUNTConditionColorCells($G$8:$O$8,V5) -> 0 | W7: =COUNTConditionColorCells($G$8:$O$8,W5) -> 1 | X7: =COUNTConditionColorCells($G$8:$O$8,X5) -> 5 | Y7: =COUNTConditionColorCells($G$8:$O$8,Y5) -> 2 | Z7: 1 | AA7: =COUNTIF(G8:O8,"8") -> 0 | AB7: =P8 -> 38
F8: Score | G8: 4 | H8: 6 | I8: 3 | J8: 3 | K8: 3 | L8: 5 | M8: 4 | N8: 4 | O8: 6 | P8: =SUM(G8:O8) -> 38 | Q8: 67 | T8: Total | U8: =U6+U7 -> 0 | V8: =V6+V7 -> 0 | W8: 5 | X8: 9 | Y8: 3 | Z8: 1 | AA8: 0 | AB8: =Q8 -> 67
B11: Hole | C11: 1 | D11: 2 | E11: 3 | F11: 4 | G11: 5 | H11: 6 | I11: 7 | J11: 8 | K11: 9 | L11: Out | M11: NEVIN
B12: Dist. | C12: 491 | D12: 240 | E12: 375 | F12: 538 | G12: 656 | H12: 317 | I12: 202 | J12: 329 | K12: 593 | L12: =SUM(C12:K12) -> 3741
B13: Par | C13: 4 | D13: 3 | E13: 3 | F13: 4 | G13: 5 | H13: 3 | I13: 3 | J13: 3 | K13: 4 | L13: =SUM(C13:K13) -> 32
B14: Score | C14: 4 | D14: 3 | E14: 4 | F14: 4 | G14: 5 | H14: 3 | I14: 4 | J14: 4 | K14: 5 | L14: 36
B15: Hole | C15: 10 | D15: 11 | E15: 12 | F15: 13 | G15: 14 | H15: 15 | I15: 16 | J15: 17 | K15: 18 | L15: In | M15: Total | T15: NEVIN | U15: Ace | V15: Eag | W15: Bir | X15: Par | Y15: Bog | Z15: Bg+ | AA15: Sno | AB15: Score
B16: Dist. | C16: 630 | D16: 640 | E16: 970 | F16: 274 | G16: 550 | H16: 252 | I16: 596 | J16: 581 | K16: 530 | L16: =SUM(C16:K16) -> 5023 | M16: =L16+L12 -> 8764 | T16: Front | U16: =COUNTIF(C14:K14,"1") -> 0 | V16: =COUNTConditionColorCells($C$14:$K$14,V15) -> 0 | W16: =COUNTConditionColorCells($C$14:$K$14,W15) -> 0 | X16: 5 | Y16: 4 | Z16: 0 | AA16: =COUNTIF(C14:K14,"8") -> 0 | AB16: =L14 -> 36
B17: Par | C17: 5 | D17: 4 | E17: 5 | F17: 3 | G17: 4 | H17: 3 | I17: 4 | J17: 5 | K17: 4 | L17: =SUM(C17:K17) -> 37 | M17: =L17+L13 -> 69 | T17: Back | U17: =COUNTIF(C18:K18,"1") -> 0 | V17: =COUNTConditionColorCells($C$18:$K$18,V15) -> 0 | W17: =COUNTConditionColorCells($C$18:$K$18,W15) -> 4 | X17: 1 | Y17: 3 | Z17: 1 | AA17: =COUNTIF(C18:K18,"8") -> 0 | AB17: =L18 -> 38
B18: Score | C18: 7 | D18: 4 | E18: 6 | F18: 2 | G18: 3 | H18: 4 | I18: 5 | J18: 4 | K18: 3 | L18: =SUM(C18:K18) -> 38 | M18: 74 | T18: Total | U18: =U16+U17 -> 0 | V18: =V16+V17 -> 0 | W18: 4 | X18: 6 | Y18: 7 | Z18: 1 | AA18: =AA16+AA17 -> 0 | AB18: =M18 -> 74
F21: Hole | G21: 1 | H21: 2 | I21: 3 | J21: 4 | K21: 5 | L21: 6 | M21: 7 | N21: 8 | O21: 9 | P21: Out | Q21: RENNY
F22: Dist. | G22: 523 | H22: 519 | I22: 386 | J22: 551 | K22: 392 | L22: 257 | M22: 465 | N22: 323 | O22: 285 | P22: =SUM(G22:O22) -> 3701
F23: Par | G23: 4 | H23: 4 | I23: 4 | J23: 4 | K23: 4 | L23: 3 | M23: 4 | N23: 3 | O23: 3 | P23: =SUM(G23:O23) -> 33
F24: Score | G24: 3 | H24: 4 | I24: 4 | J24: 7 | K24: 3 | L24: 3 | M24: 4 | N24: 2 | O24: 3 | P24: 33
F25: Hole | G25: 10 | H25: 11 | I25: 12 | J25: 13 | K25: 14 | L25: 15 | M25: 16 | N25: 17 | O25: 18 | P25: In | Q25: Total | T25: RENNY | U25: Ace | V25: Eag | W25: Bir | X25: Par | Y25: Bog | Z25: Bg+ | AA25: Sno | AB25: Score
F26: Dist. | G26: 538 | H26: 1042 | I26: 617 | J26: 974 | K26: 564 | L26: 378 | M26: 302 | N26: 517 | O26: 826 | P26: =SUM(G26:O26) -> 5758 | Q26: =P26+P22 -> 9459 | T26: Front | U26: =COUNTIF(G24:O24,"1") -> 0 | V26: =COUNTConditionColorCells($G$24:$O$24,V25) -> 0 | W26: =COUNTConditionColorCells($G$24:$O$24,W25) -> 3 | X26: 5 | Y26: 0 | Z26: 1 | AA26: =COUNTIF(G24:O24,"8") -> 0 | AB26: =P24 -> 33
F27: Par | G27: 4 | H27: 5 | I27: 4 | J27: 5 | K27: 4 | L27: 3 | M27: 3 | N27: 4 | O27: 5 | P27: =SUM(G27:O27) -> 37 | Q27: =P27+P23 -> 70 | T27: Back | U27: =COUNTIF(G28:O28,"1") -> 0 | V27: =COUNTConditionColorCells($G$28:$O$28,V25) -> 0 | W27: =COUNTConditionColorCells($G$28:$O$28,W25) -> 2 | X27: 3 | Y27: 3 | Z27: 1 | AA27: =COUNTIF(G28:O28,"8") -> 0 | AB27: =P28 -> 40
F28: Score | G28: 5 | H28: 7 | I28: 3 | J28: 6 | K28: 4 | L28: 3 | M28: 3 | N28: 5 | O28: 4 | P28: =SUM(G28:O28) -> 40 | Q28: 73 | T28: Total | U28: =U26+U27 -> 0 | V28: =V26+V27 -> 0 | W28: 5 | X28: 8 | Y28: 3 | Z28: 2 | AA28: 0 | AB28: =Q28 -> 73
B30: Nevin #2 - Play from short cement pad (not long pad behind creek). | M30: Player
M31: Witness 1
B32: Turn in your completed, signed score sheet before 9pm | M32: Witness 2
B33: at Divine Barrel Brewery (3701 N. Davidson St). | M33: Witness 3 | T33: FINAL | U33: Ace | V33: Eag | W33: Bir | X33: Par | Y33: Bog | Z33: Bg+ | AA33: Sno | AB33: Score
T34: TOTAL | U34: =SUM(U28,U18,U8) -> 0 | V34: =SUM(V28,V18,V8) -> 0 | W34: 14 | X34: 23 | Y34: 13 | Z34: 4 | AA34: 0 | AB34: 214

Sheet JoCh
A1: 2019 Charlotte Iron Man | F1: Hole | G1: 1 | H1: 2 | I1: 3 | J1: 4 | K1: 5 | L1: 6 | M1: 7 | N1: 8 | O1: 9 | P1: Out | Q1: ANGRY
F2: Dist. | G2: 235 | H2: 158 | I2: 222 | J2: 439 | K2: 801 | L2: 491 | M2: 282 | N2: 567 | O2: 268 | P2: =SUM(G2:O2) -> 3463 | T2: Name | U2: Jonathan Charping | Z2: Div | AA2: Iron Men
F3: Par | G3: 3 | H3: 3 | I3: 3 | J3: 4 | K3: 5 | L3: 4 | M3: 3 | N3: 4 | O3: 3 | P3: =SUM(G3:O3) -> 32
F4: Score | G4: 4 | H4: 3 | I4: 2 | J4: 3 | K4: 5 | L4: 3 | M4: 2 | N4: 5 | O4: 4 | P4: 31
F5: Hole | G5: 10 | H5: 11 | I5: 12 | J5: 13 | K5: 14 | L5: 15 | M5: 16 | N5: 17 | O5: 18 | P5: In | Q5: Total | T5: ANGRY | U5: Ace | V5: Eag | W5: Bir | X5: Par | Y5: Bog | Z5: Bg+ | AA5: Sno | AB5: Score
F6: Dist. | G6: 563 | H6: 465 | I6: 215 | J6: 409 | K6: 333 | L6: 702 | M6: 431 | N6: 282 | O6: 814 | P6: =SUM(G6:O6) -> 4214 | Q6: =P6+P2 -> 7677 | T6: Front | U6: =COUNTIF(G4:O4,"1") -> 0 | V6: =COUNTConditionColorCells($G$4:$O$4,V5) -> 0 | W6: =COUNTConditionColorCells($G$4:$O$4,W5) -> 4 | X6: 2 | Y6: 3 | Z6: 0 | AA6: =COUNTIF(G4:O4,"8") -> 0 | AB6: =P4 -> 31
F7: Par | G7: 4 | H7: 4 | I7: 3 | J7: 4 | K7: 3 | L7: 5 | M7: 4 | N7: 3 | O7: 5 | P7: =SUM(G7:O7) -> 35 | Q7: =P7+P3 -> 67 | T7: Back | U7: =COUNTIF(G8:O8,"1") -> 0 | V7: =COUNTConditionColorCells($G$8:$O$8,V5) -> 0 | W7: =COUNTConditionColorCells($G$8:$O$8,W5) -> 0 | X7: =COUNTConditionColorCells($G$8:$O$8,X5) -> 7 | Y7: =COUNTConditionColorCells($G$8:$O$8,Y5) -> 2 | Z7: 0 | AA7: =COUNTIF(G8:O8,"8") -> 0 | AB7: =P8 -> 37
F8: Score | G8: 5 | H8: 4 | I8: 3 | J8: 4 | K8: 3 | L8: 6 | M8: 4 | N8: 3 | O8: 5 | P8: =SUM(G8:O8) -> 37 | Q8: 68 | T8: Total | U8: =U6+U7 -> 0 | V8: =V6+V7 -> 0 | W8: 4 | X8: 9 | Y8: 5 | Z8: 0 | AA8: 0 | AB8: =Q8 -> 68
B11: Hole | C11: 1 | D11: 2 | E11: 3 | F11: 4 | G11: 5 | H11: 6 | I11: 7 | J11: 8 | K11: 9 | L11: Out | M11: NEVIN
B12: Dist. | C12: 491 | D12: 240 | E12: 375 | F12: 538 | G12: 656 | H12: 317 | I12: 202 | J12: 329 | K12: 593 | L12: =SUM(C12:K12) -> 3741
B13: Par | C13: 4 | D13: 3 | E13: 3 | F13: 4 | G13: 5 | H13: 3 | I13: 3 | J13: 3 | K13: 4 | L13: =SUM(C13:K13) -> 32
B14: Score | C14: 4 | D14: 4 | E14: 5 | F14: 5 | G14: 8 | H14: 4 | I14: 3 | J14: 4 | K14: 4 | L14: 41
B15: Hole | C15: 10 | D15: 11 | E15: 12 | F15: 13 | G15: 14 | H15: 15 | I15: 16 | J15: 17 | K15: 18 | L15: In | M15: Total | T15: NEVIN | U15: Ace | V15: Eag | W15: Bir | X15: Par | Y15: Bog | Z15: Bg+ | AA15: Sno | AB15: Score
B16: Dist. | C16: 630 | D16: 640 | E16: 970 | F16: 274 | G16: 550 | H16: 252 | I16: 596 | J16: 581 | K16: 530 | L16: =SUM(C16:K16) -> 5023 | M16: =L16+L12 -> 8764 | T16: Front | U16: =COUNTIF(C14:K14,"1") -> 0 | V16: =COUNTConditionColorCells($C$14:$K$14,V15) -> 0 | W16: =COUNTConditionColorCells($C$14:$K$14,W15) -> 0 | X16: 3 | Y16: 4 | Z16: 2 | AA16: =COUNTIF(C14:K14,"8") -> 1 | AB16: =L14 -> 41
B17: Par | C17: 5 | D17: 4 | E17: 5 | F17: 3 | G17: 4 | H17: 3 | I17: 4 | J17: 5 | K17: 4 | L17: =SUM(C17:K17) -> 37 | M17: =L17+L13 -> 69 | T17: Back | U17: =COUNTIF(C18:K18,"1") -> 0 | V17: =COUNTConditionColorCells($C$18:$K$18,V15) -> 0 | W17: =COUNTConditionColorCells($C$18:$K$18,W15) -> 0 | X17: 4 | Y17: 5 | Z17: 0 | AA17: =COUNTIF(C18:K18,"8") -> 0 | AB17: =L18 -> 42
B18: Score | C18: 5 | D18: 5 | E18: 6 | F18: 3 | G18: 4 | H18: 4 | I18: 4 | J18: 6 | K18: 5 | L18: =SUM(C18:K18) -> 42 | M18: 83 | T18: Total | U18: =U16+U17 -> 0 | V18: =V16+V17 -> 0 | W18: 0 | X18: 7 | Y18: 9 | Z18: 2 | AA18: =AA16+AA17 -> 1 | AB18: =M18 -> 83
F21: Hole | G21: 1 | H21: 2 | I21: 3 | J21: 4 | K21: 5 | L21: 6 | M21: 7 | N21: 8 | O21: 9 | P21: Out | Q21: RENNY
F22: Dist. | G22: 523 | H22: 519 | I22: 386 | J22: 551 | K22: 392 | L22: 257 | M22: 465 | N22: 323 | O22: 285 | P22: =SUM(G22:O22) -> 3701
F23: Par | G23: 4 | H23: 4 | I23: 4 | J23: 4 | K23: 4 | L23: 3 | M23: 4 | N23: 3 | O23: 3 | P23: =SUM(G23:O23) -> 33
F24: Score | G24: 5 | H24: 4 | I24: 4 | J24: 4 | K24: 4 | L24: 3 | M24: 6 | N24: 3 | O24: 3 | P24: 36
F25: Hole | G25: 10 | H25: 11 | I25: 12 | J25: 13 | K25: 14 | L25: 15 | M25: 16 | N25: 17 | O25: 18 | P25: In | Q25: Total | T25: RENNY | U25: Ace | V25: Eag | W25: Bir | X25: Par | Y25: Bog | Z25: Bg+ | AA25: Sno | AB25: Score
F26: Dist. | G26: 538 | H26: 1042 | I26: 617 | J26: 974 | K26: 564 | L26: 378 | M26: 302 | N26: 517 | O26: 826 | P26: =SUM(G26:O26) -> 5758 | Q26: =P26+P22 -> 9459 | T26: Front | U26: =COUNTIF(G24:O24,"1") -> 0 | V26: =COUNTConditionColorCells($G$24:$O$24,V25) -> 0 | W26: =COUNTConditionColorCells($G$24:$O$24,W25) -> 0 | X26: 7 | Y26: 1 | Z26: 1 | AA26: =COUNTIF(G24:O24,"8") -> 0 | AB26: =P24 -> 36
F27: Par | G27: 4 | H27: 5 | I27: 4 | J27: 5 | K27: 4 | L27: 3 | M27: 3 | N27: 4 | O27: 5 | P27: =SUM(G27:O27) -> 37 | Q27: =P27+P23 -> 70 | T27: Back | U27: =COUNTIF(G28:O28,"1") -> 0 | V27: =COUNTConditionColorCells($G$28:$O$28,V25) -> 0 | W27: =COUNTConditionColorCells($G$28:$O$28,W25) -> 1 | X27: 1 | Y27: 5 | Z27: 2 | AA27: =COUNTIF(G28:O28,"8") -> 0 | AB27: =P28 -> 45
F28: Score | G28: 6 | H28: 6 | I28: 4 | J28: 7 | K28: 3 | L28: 4 | M28: 4 | N28: 5 | O28: 6 | P28: =SUM(G28:O28) -> 45 | Q28: 81 | T28: Total | U28: =U26+U27 -> 0 | V28: =V26+V27 -> 0 | W28: 1 | X28: 8 | Y28: 6 | Z28: 3 | AA28: 0 | AB28: =Q28 -> 81
B30: Nevin #2 - Play from short cement pad (not long pad behind creek). | M30: Player
M31: Witness 1
B32: Turn in your completed, signed score sheet before 9pm | M32: Witness 2
B33: at Divine Barrel Brewery (3701 N. Davidson St). | M33: Witness 3 | T33: FINAL | U33: Ace | V33: Eag | W33: Bir | X33: Par | Y33: Bog | Z33: Bg+ | AA33: Sno | AB33: Score
T34: TOTAL | U34: =SUM(U28,U18,U8) -> 0 | V34: =SUM(V28,V18,V8) -> 0 | W34: 5 | X34: 24 | Y34: 20 | Z34: 5 | AA34: 1 | AB34: 232

Sheet JoLy
A1: 2019 Charlotte Iron Man | F1: Hole | G1: 1 | H1: 2 | I1: 3 | J1: 4 | K1: 5 | L1: 6 | M1: 7 | N1: 8 | O1: 9 | P1: Out | Q1: ANGRY
F2: Dist. | G2: 235 | H2: 158 | I2: 222 | J2: 439 | K2: 801 | L2: 491 | M2: 282 | N2: 567 | O2: 268 | P2: =SUM(G2:O2) -> 3463 | T2: Name | U2: Jordan Lyndaker | Z2: Div | AA2: Iron Men
F3: Par | G3: 3 | H3: 3 | I3: 3 | J3: 4 | K3: 5 | L3: 4 | M3: 3 | N3: 4 | O3: 3 | P3: =SUM(G3:O3) -> 32
F4: Score | G4: 3 | H4: 3 | I4: 3 | J4: 4 | K4: 7 | L4: 7 | M4: 4 | N4: 6 | O4: 5 | P4: 42
F5: Hole | G5: 10 | H5: 11 | I5: 12 | J5: 13 | K5: 14 | L5: 15 | M5: 16 | N5: 17 | O5: 18 | P5: In | Q5: Total | T5: ANGRY | U5: Ace | V5: Eag | W5: Bir | X5: Par | Y5: Bog | Z5: Bg+ | AA5: Sno | AB5: Score
F6: Dist. | G6: 563 | H6: 465 | I6: 215 | J6: 409 | K6: 333 | L6: 702 | M6: 431 | N6: 282 | O6: 814 | P6: =SUM(G6:O6) -> 4214 | Q6: =P6+P2 -> 7677 | T6: Front | U6: =COUNTIF(G4:O4,"1") -> 0 | V6: =COUNTConditionColorCells($G$4:$O$4,V5) -> 0 | W6: =COUNTConditionColorCells($G$4:$O$4,W5) -> 0 | X6: 4 | Y6: 1 | Z6: 4 | AA6: =COUNTIF(G4:O4,"8") -> 0 | AB6: =P4 -> 42
F7: Par | G7: 4 | H7: 4 | I7: 3 | J7: 4 | K7: 3 | L7: 5 | M7: 4 | N7: 3 | O7: 5 | P7: =SUM(G7:O7) -> 35 | Q7: =P7+P3 -> 67 | T7: Back | U7: =COUNTIF(G8:O8,"1") -> 0 | V7: =COUNTConditionColorCells($G$8:$O$8,V5) -> 0 | W7: =COUNTConditionColorCells($G$8:$O$8,W5) -> 0 | X7: =COUNTConditionColorCells($G$8:$O$8,X5) -> 2 | Y7: =COUNTConditionColorCells($G$8:$O$8,Y5) -> 3 | Z7: 4 | AA7: =COUNTIF(G8:O8,"8") -> 1 | AB7: =P8 -> 47
F8: Score | G8: 5 | H8: 5 | I8: 3 | J8: 4 | K8: 4 | L8: 7 | M8: 6 | N8: 5 | O8: 8 | P8: =SUM(G8:O8) -> 47 | Q8: 89 | T8: Total | U8: =U6+U7 -> 0 | V8: =V6+V7 -> 0 | W8: 0 | X8: 6 | Y8: 4 | Z8: 8 | AA8: 1 | AB8: =Q8 -> 89
B11: Hole | C11: 1 | D11: 2 | E11: 3 | F11: 4 | G11: 5 | H11: 6 | I11: 7 | J11: 8 | K11: 9 | L11: Out | M11: NEVIN
B12: Dist. | C12: 491 | D12: 240 | E12: 375 | F12: 538 | G12: 656 | H12: 317 | I12: 202 | J12: 329 | K12: 593 | L12: =SUM(C12:K12) -> 3741
B13: Par | C13: 4 | D13: 3 | E13: 3 | F13: 4 | G13: 5 | H13: 3 | I13: 3 | J13: 3 | K13: 4 | L13: =SUM(C13:K13) -> 32
B14: Score | C14: 5 | D14: 5 | E14: 4 | F14: 5 | G14: 8 | H14: 6 | I14: 5 | J14: 4 | K14: 6 | L14: 48
B15: Hole | C15: 10 | D15: 11 | E15: 12 | F15: 13 | G15: 14 | H15: 15 | I15: 16 | J15: 17 | K15: 18 | L15: In | M15: Total | T15: NEVIN | U15: Ace | V15: Eag | W15: Bir | X15: Par | Y15: Bog | Z15: Bg+ | AA15: Sno | AB15: Score
B16: Dist. | C16: 630 | D16: 640 | E16: 970 | F16: 274 | G16: 550 | H16: 252 | I16: 596 | J16: 581 | K16: 530 | L16: =SUM(C16:K16) -> 5023 | M16: =L16+L12 -> 8764 | T16: Front | U16: =COUNTIF(C14:K14,"1") -> 0 | V16: =COUNTConditionColorCells($C$14:$K$14,V15) -> 0 | W16: =COUNTConditionColorCells($C$14:$K$14,W15) -> 0 | X16: 0 | Y16: 4 | Z16: 5 | AA16: =COUNTIF(C14:K14,"8") -> 1 | AB16: =L14 -> 48
B17: Par | C17: 5 | D17: 4 | E17: 5 | F17: 3 | G17: 4 | H17: 3 | I17: 4 | J17: 5 | K17: 4 | L17: =SUM(C17:K17) -> 37 | M17: =L17+L13 -> 69 | T17: Back | U17: =COUNTIF(C18:K18,"1") -> 0 | V17: =COUNTConditionColorCells($C$18:$K$18,V15) -> 0 | W17: =COUNTConditionColorCells($C$18:$K$18,W15) -> 0 | X17: 3 | Y17: 1 | Z17: 5 | AA17: =COUNTIF(C18:K18,"8") -> 3 | AB17: =L18 -> 54
B18: Score | C18: 9 | D18: 8 | E18: 8 | F18: 3 | G18: 4 | H18: 3 | I18: 6 | J18: 8 | K18: 5 | L18: =SUM(C18:K18) -> 54 | M18: 102 | T18: Total | U18: =U16+U17 -> 0 | V18: =V16+V17 -> 0 | W18: 0 | X18: 3 | Y18: 5 | Z18: 10 | AA18: =AA16+AA17 -> 4 | AB18: =M18 -> 102
F21: Hole | G21: 1 | H21: 2 | I21: 3 | J21: 4 | K21: 5 | L21: 6 | M21: 7 | N21: 8 | O21: 9 | P21: Out | Q21: RENNY
F22: Dist. | G22: 523 | H22: 519 | I22: 386 | J22: 551 | K22: 392 | L22: 257 | M22: 465 | N22: 323 | O22: 285 | P22: =SUM(G22:O22) -> 3701
F23: Par | G23: 4 | H23: 4 | I23: 4 | J23: 4 | K23: 4 | L23: 3 | M23: 4 | N23: 3 | O23: 3 | P23: =SUM(G23:O23) -> 33
F24: Score | G24: 7 | H24: 6 | I24: 8 | J24: 7 | K24: 6 | L24: 4 | M24: 7 | N24: 3 | O24: 3 | P24: 51
F25: Hole | G25: 10 | H25: 11 | I25: 12 | J25: 13 | K25: 14 | L25: 15 | M25: 16 | N25: 17 | O25: 18 | P25: In | Q25: Total | T25: RENNY | U25: Ace | V25: Eag | W25: Bir | X25: Par | Y25: Bog | Z25: Bg+ | AA25: Sno | AB25: Score
F26: Dist. | G26: 538 | H26: 1042 | I26: 617 | J26: 974 | K26: 564 | L26: 378 | M26: 302 | N26: 517 | O26: 826 | P26: =SUM(G26:O26) -> 5758 | Q26: =P26+P22 -> 9459 | T26: Front | U26: =COUNTIF(G24:O24,"1") -> 0 | V26: =COUNTConditionColorCells($G$24:$O$24,V25) -> 0 | W26: =COUNTConditionColorCells($G$24:$O$24,W25) -> 0 | X26: 2 | Y26: 1 | Z26: 6 | AA26: =COUNTIF(G24:O24,"8") -> 1 | AB26: =P24 -> 51
F27: Par | G27: 4 | H27: 5 | I27: 4 | J27: 5 | K27: 4 | L27: 3 | M27: 3 | N27: 4 | O27: 5 | P27: =SUM(G27:O27) -> 37 | Q27: =P27+P23 -> 70 | T27: Back | U27: =COUNTIF(G28:O28,"1") -> 0 | V27: =COUNTConditionColorCells($G$28:$O$28,V25) -> 0 | W27: =COUNTConditionColorCells($G$28:$O$28,W25) -> 0 | X27: 1 | Y27: 3 | Z27: 5 | AA27: =COUNTIF(G28:O28,"8") -> 2 | AB27: =P28 -> 56
F28: Score | G28: 5 | H28: 8 | I28: 5 | J28: 10 | K28: 5 | L28: 5 | M28: 3 | N28: 7 | O28: 8 | P28: =SUM(G28:O28) -> 56 | Q28: 107 | T28: Total | U28: =U26+U27 -> 0 | V28: =V26+V27 -> 0 | W28: 0 | X28: 3 | Y28: 4 | Z28: 11 | AA28: 3 | AB28: =Q28 -> 107
B30: Nevin #2 - Play from short cement pad (not long pad behind creek). | M30: Player
M31: Witness 1
B32: Turn in your completed, signed score sheet before 9pm | M32: Witness 2
B33: at Divine Barrel Brewery (3701 N. Davidson St). | M33: Witness 3 | T33: FINAL | U33: Ace | V33: Eag | W33: Bir | X33: Par | Y33: Bog | Z33: Bg+ | AA33: Sno | AB33: Score
T34: TOTAL | U34: =SUM(U28,U18,U8) -> 0 | V34: =SUM(V28,V18,V8) -> 0 | W34: 0 | X34: 12 | Y34: 13 | Z34: 29 | AA34: 8 | AB34: 298

Sheet JTFo
A1: 2019 Charlotte Iron Man | F1: Hole | G1: 1 | H1: 2 | I1: 3 | J1: 4 | K1: 5 | L1: 6 | M1: 7 | N1: 8 | O1: 9 | P1: Out | Q1: ANGRY
F2: Dist. | G2: 235 | H2: 158 | I2: 222 | J2: 439 | K2: 801 | L2: 491 | M2: 282 | N2: 567 | O2: 268 | P2: =SUM(G2:O2) -> 3463 | T2: Name | U2: JT Ford | Z2: Div | AA2: Iron Men
F3: Par | G3: 3 | H3: 3 | I3: 3 | J3: 4 | K3: 5 | L3: 4 | M3: 3 | N3: 4 | O3: 3 | P3: =SUM(G3:O3) -> 32
F4: Score | G4: 3 | H4: 3 | I4: 4 | J4: 4 | K4: 5 | L4: 8 | M4: 2 | N4: 3 | O4: 3 | P4: 35
F5: Hole | G5: 10 | H5: 11 | I5: 12 | J5: 13 | K5: 14 | L5: 15 | M5: 16 | N5: 17 | O5: 18 | P5: In | Q5: Total | T5: ANGRY | U5: Ace | V5: Eag | W5: Bir | X5: Par | Y5: Bog | Z5: Bg+ | AA5: Sno | AB5: Score
F6: Dist. | G6: 563 | H6: 465 | I6: 215 | J6: 409 | K6: 333 | L6: 702 | M6: 431 | N6: 282 | O6: 814 | P6: =SUM(G6:O6) -> 4214 | Q6: =P6+P2 -> 7677 | T6: Front | U6: =COUNTIF(G4:O4,"1") -> 0 | V6: =COUNTConditionColorCells($G$4:$O$4,V5) -> 0 | W6: =COUNTConditionColorCells($G$4:$O$4,W5) -> 2 | X6: 5 | Y6: 1 | Z6: 1 | AA6: =COUNTIF(G4:O4,"8") -> 1 | AB6: =P4 -> 35
F7: Par | G7: 4 | H7: 4 | I7: 3 | J7: 4 | K7: 3 | L7: 5 | M7: 4 | N7: 3 | O7: 5 | P7: =SUM(G7:O7) -> 35 | Q7: =P7+P3 -> 67 | T7: Back | U7: =COUNTIF(G8:O8,"1") -> 0 | V7: =COUNTConditionColorCells($G$8:$O$8,V5) -> 0 | W7: =COUNTConditionColorCells($G$8:$O$8,W5) -> 0 | X7: =COUNTConditionColorCells($G$8:$O$8,X5) -> 5 | Y7: =COUNTConditionColorCells($G$8:$O$8,Y5) -> 3 | Z7: =COUNTConditionColorCells($G$8:$O$8,Z5) -> 1 | AA7: =COUNTIF(G8:O8,"8") -> 0 | AB7: =P8 -> 40
F8: Score | G8: 5 | H8: 4 | I8: 3 | J8: 4 | K8: 3 | L8: 6 | M8: 4 | N8: 5 | O8: 6 | P8: =SUM(G8:O8) -> 40 | Q8: 75 | T8: Total | U8: =U6+U7 -> 0 | V8: =V6+V7 -> 0 | W8: 2 | X8: 10 | Y8: 4 | Z8: 2 | AA8: 1 | AB8: =Q8 -> 75
B11: Hole | C11: 1 | D11: 2 | E11: 3 | F11: 4 | G11: 5 | H11: 6 | I11: 7 | J11: 8 | K11: 9 | L11: Out | M11: NEVIN
B12: Dist. | C12: 491 | D12: 240 | E12: 375 | F12: 538 | G12: 656 | H12: 317 | I12: 202 | J12: 329 | K12: 593 | L12: =SUM(C12:K12) -> 3741
B13: Par | C13: 4 | D13: 3 | E13: 3 | F13: 4 | G13: 5 | H13: 3 | I13: 3 | J13: 3 | K13: 4 | L13: =SUM(C13:K13) -> 32
B14: Score | C14: 4 | D14: 3 | E14: 3 | F14: 5 | G14: 5 | H14: 3 | I14: 3 | J14: 4 | K14: 5 | L14: =SUM(C14:K14) -> 35
B15: Hole | C15: 10 | D15: 11 | E15: 12 | F15: 13 | G15: 14 | H15: 15 | I15: 16 | J15: 17 | K15: 18 | L15: In | M15: Total | T15: NEVIN | U15: Ace | V15: Eag | W15: Bir | X15: Par | Y15: Bog | Z15: Bg+ | AA15: Sno | AB15: Score
B16: Dist. | C16: 630 | D16: 640 | E16: 970 | F16: 274 | G16: 550 | H16: 252 | I16: 596 | J16: 581 | K16: 530 | L16: =SUM(C16:K16) -> 5023 | M16: =L16+L12 -> 8764 | T16: Front | U16: =COUNTIF(C14:K14,"1") -> 0 | V16: =COUNTConditionColorCells($C$14:$K$14,V15) -> 0 | W16: =COUNTConditionColorCells($C$14:$K$14,W15) -> 0 | X16: =COUNTConditionColorCells($C$14:$K$14,X15) -> 6 | Y16: =COUNTConditionColorCells($C$14:$K$14,Y15) -> 3 | Z16: =COUNTConditionColorCells($C$14:$K$14,Z15) -> 0 | AA16: =COUNTIF(C14:K14,"8") -> 0 | AB16: =L14 -> 35
B17: Par | C17: 5 | D17: 4 | E17: 5 | F17: 3 | G17: 4 | H17: 3 | I17: 4 | J17: 5 | K17: 4 | L17: =SUM(C17:K17) -> 37 | M17: =L17+L13 -> 69 | T17: Back | U17: =COUNTIF(C18:K18,"1") -> 0 | V17: =COUNTConditionColorCells($C$18:$K$18,V15) -> 0 | W17: =COUNTConditionColorCells($C$18:$K$18,W15) -> 1 | X17: 7 | Y17: 1 | Z17: 0 | AA17: =COUNTIF(C18:K18,"8") -> 0 | AB17: =L18 -> 37
B18: Score | C18: 4 | D18: 4 | E18: 6 | F18: 3 | G18: 4 | H18: 3 | I18: 4 | J18: 5 | K18: 4 | L18: =SUM(C18:K18) -> 37 | M18: 72 | T18: Total | U18: =U16+U17 -> 0 | V18: =V16+V17 -> 0 | W18: 1 | X18: 13 | Y18: 4 | Z18: 0 | AA18: =AA16+AA17 -> 0 | AB18: =M18 -> 72
F21: Hole | G21: 1 | H21: 2 | I21: 3 | J21: 4 | K21: 5 | L21: 6 | M21: 7 | N21: 8 | O21: 9 | P21: Out | Q21: RENNY
F22: Dist. | G22: 523 | H22: 519 | I22: 386 | J22: 551 | K22: 392 | L22: 257 | M22: 465 | N22: 323 | O22: 285 | P22: =SUM(G22:O22) -> 3701
F23: Par | G23: 4 | H23: 4 | I23: 4 | J23: 4 | K23: 4 | L23: 3 | M23: 4 | N23: 3 | O23: 3 | P23: =SUM(G23:O23) -> 33
F24: Score | G24: 6 | H24: 4 | I24: 4 | J24: 4 | K24: 3 | L24: 3 | M24: 4 | N24: 2 | O24: 3 | P24: 33
F25: Hole | G25: 10 | H25: 11 | I25: 12 | J25: 13 | K25: 14 | L25: 15 | M25: 16 | N25: 17 | O25: 18 | P25: In | Q25: Total | T25: RENNY | U25: Ace | V25: Eag | W25: Bir | X25: Par | Y25: Bog | Z25: Bg+ | AA25: Sno | AB25: Score
F26: Dist. | G26: 538 | H26: 1042 | I26: 617 | J26: 974 | K26: 564 | L26: 378 | M26: 302 | N26: 517 | O26: 826 | P26: =SUM(G26:O26) -> 5758 | Q26: =P26+P22 -> 9459 | T26: Front | U26: =COUNTIF(G24:O24,"1") -> 0 | V26: =COUNTConditionColorCells($G$24:$O$24,V25) -> 0 | W26: =COUNTConditionColorCells($G$24:$O$24,W25) -> 2 | X26: 6 | Y26: 0 | Z26: 1 | AA26: =COUNTIF(G24:O24,"8") -> 0 | AB26: =P24 -> 33
F27: Par | G27: 4 | H27: 5 | I27: 4 | J27: 5 | K27: 4 | L27: 3 | M27: 3 | N27: 4 | O27: 5 | P27: =SUM(G27:O27) -> 37 | Q27: =P27+P23 -> 70 | T27: Back | U27: =COUNTIF(G28:O28,"1") -> 0 | V27: =COUNTConditionColorCells($G$28:$O$28,V25) -> 0 | W27: =COUNTConditionColorCells($G$28:$O$28,W25) -> 0 | X27: 6 | Y27: 1 | Z27: 2 | AA27: =COUNTIF(G28:O28,"8") -> 1 | AB27: =P28 -> 43
F28: Score | G28: 4 | H28: 5 | I28: 4 | J28: 8 | K28: 4 | L28: 5 | M28: 4 | N28: 4 | O28: 5 | P28: =SUM(G28:O28) -> 43 | Q28: 76 | T28: Total | U28: =U26+U27 -> 0 | V28: =V26+V27 -> 0 | W28: 2 | X28: 12 | Y28: 1 | Z28: 3 | AA28: 1 | AB28: =Q28 -> 76
B30: Nevin #2 - Play from short cement pad (not long pad behind creek). | M30: Player
M31: Witness 1
B32: Turn in your completed, signed score sheet before 9pm | M32: Witness 2
B33: at Divine Barrel Brewery (3701 N. Davidson St). | M33: Witness 3 | T33: FINAL | U33: Ace | V33: Eag | W33: Bir | X33: Par | Y33: Bog | Z33: Bg+ | AA33: Sno | AB33: Score
T34: TOTAL | U34: =SUM(U28,U18,U8) -> 0 | V34: =SUM(V28,V18,V8) -> 0 | W34: 5 | X34: 35 | Y34: 9 | Z34: 5 | AA34: 2 | AB34: 223

Sheet JuBl
A1: 2019 Charlotte Iron Man | F1: Hole | G1: 1 | H1: 2 | I1: 3 | J1: 4 | K1: 5 | L1: 6 | M1: 7 | N1: 8 | O1: 9 | P1: Out | Q1: ANGRY
F2: Dist. | G2: 235 | H2: 158 | I2: 222 | J2: 439 | K2: 801 | L2: 491 | M2: 282 | N2: 567 | O2: 268 | P2: =SUM(G2:O2) -> 3463 | T2: Name | U2: Justin Black | Z2: Div | AA2: Iron Men
F3: Par | G3: 3 | H3: 3 | I3: 3 | J3: 4 | K3: 5 | L3: 4 | M3: 3 | N3: 4 | O3: 3 | P3: =SUM(G3:O3) -> 32
F4: Score | G4: 2 | H4: 3 | I4: 3 | J4: 4 | K4: 6 | L4: 4 | M4: 3 | N4: 5 | O4: 5 | P4: 35
F5: Hole | G5: 10 | H5: 11 | I5: 12 | J5: 13 | K5: 14 | L5: 15 | M5: 16 | N5: 17 | O5: 18 | P5: In | Q5: Total | T5: ANGRY | U5: Ace | V5: Eag | W5: Bir | X5: Par | Y5: Bog | Z5: Bg+ | AA5: Sno | AB5: Score
F6: Dist. | G6: 563 | H6: 465 | I6: 215 | J6: 409 | K6: 333 | L6: 702 | M6: 431 | N6: 282 | O6: 814 | P6: =SUM(G6:O6) -> 4214 | Q6: =P6+P2 -> 7677 | T6: Front | U6: =COUNTIF(G4:O4,"1") -> 0 | V6: =COUNTConditionColorCells($G$4:$O$4,V5) -> 0 | W6: =COUNTConditionColorCells($G$4:$O$4,W5) -> 1 | X6: 5 | Y6: 2 | Z6: 1 | AA6: =COUNTIF(G4:O4,"8") -> 0 | AB6: =P4 -> 35
F7: Par | G7: 4 | H7: 4 | I7: 3 | J7: 4 | K7: 3 | L7: 5 | M7: 4 | N7: 3 | O7: 5 | P7: =SUM(G7:O7) -> 35 | Q7: =P7+P3 -> 67 | T7: Back | U7: =COUNTIF(G8:O8,"1") -> 0 | V7: =COUNTConditionColorCells($G$8:$O$8,V5) -> 0 | W7: =COUNTConditionColorCells($G$8:$O$8,W5) -> 1 | X7: =COUNTConditionColorCells($G$8:$O$8,X5) -> 6 | Y7: =COUNTConditionColorCells($G$8:$O$8,Y5) -> 0 | Z7: 2 | AA7: =COUNTIF(G8:O8,"8") -> 0 | AB7: =P8 -> 38
F8: Score | G8: 6 | H8: 4 | I8: 3 | J8: 3 | K8: 3 | L8: 5 | M8: 6 | N8: 3 | O8: 5 | P8: =SUM(G8:O8) -> 38 | Q8: 73 | T8: Total | U8: =U6+U7 -> 0 | V8: =V6+V7 -> 0 | W8: 2 | X8: 11 | Y8: 2 | Z8: 3 | AA8: 0 | AB8: =Q8 -> 73
B11: Hole | C11: 1 | D11: 2 | E11: 3 | F11: 4 | G11: 5 | H11: 6 | I11: 7 | J11: 8 | K11: 9 | L11: Out | M11: NEVIN
B12: Dist. | C12: 491 | D12: 240 | E12: 375 | F12: 538 | G12: 656 | H12: 317 | I12: 202 | J12: 329 | K12: 593 | L12: =SUM(C12:K12) -> 3741
B13: Par | C13: 4 | D13: 3 | E13: 3 | F13: 4 | G13: 5 | H13: 3 | I13: 3 | J13: 3 | K13: 4 | L13: =SUM(C13:K13) -> 32
B14: Score | C14: 4 | D14: 3 | E14: 2 | F14: 5 | G14: 5 | H14: 4 | I14: 2 | J14: 4 | K14: 5 | L14: 34
B15: Hole | C15: 10 | D15: 11 | E15: 12 | F15: 13 | G15: 14 | H15: 15 | I15: 16 | J15: 17 | K15: 18 | L15: In | M15: Total | T15: NEVIN | U15: Ace | V15: Eag | W15: Bir | X15: Par | Y15: Bog | Z15: Bg+ | AA15: Sno | AB15: Score
B16: Dist. | C16: 630 | D16: 640 | E16: 970 | F16: 274 | G16: 550 | H16: 252 | I16: 596 | J16: 581 | K16: 530 | L16: =SUM(C16:K16) -> 5023 | M16: =L16+L12 -> 8764 | T16: Front | U16: =COUNTIF(C14:K14,"1") -> 0 | V16: =COUNTConditionColorCells($C$14:$K$14,V15) -> 0 | W16: =COUNTConditionColorCells($C$14:$K$14,W15) -> 2 | X16: 3 | Y16: 4 | Z16: 0 | AA16: =COUNTIF(C14:K14,"8") -> 0 | AB16: =L14 -> 34
B17: Par | C17: 5 | D17: 4 | E17: 5 | F17: 3 | G17: 4 | H17: 3 | I17: 4 | J17: 5 | K17: 4 | L17: =SUM(C17:K17) -> 37 | M17: =L17+L13 -> 69 | T17: Back | U17: =COUNTIF(C18:K18,"1") -> 0 | V17: =COUNTConditionColorCells($C$18:$K$18,V15) -> 0 | W17: =COUNTConditionColorCells($C$18:$K$18,W15) -> 1 | X17: 4 | Y17: 2 | Z17: 2 | AA17: =COUNTIF(C18:K18,"8") -> 0 | AB17: =L18 -> 42
B18: Score | C18: 5 | D18: 5 | E18: 7 | F18: 3 | G18: 4 | H18: 2 | I18: 6 | J18: 6 | K18: 4 | L18: =SUM(C18:K18) -> 42 | M18: 76 | T18: Total | U18: =U16+U17 -> 0 | V18: =V16+V17 -> 0 | W18: 3 | X18: 7 | Y18: 6 | Z18: 2 | AA18: =AA16+AA17 -> 0 | AB18: =M18 -> 76
F21: Hole | G21: 1 | H21: 2 | I21: 3 | J21: 4 | K21: 5 | L21: 6 | M21: 7 | N21: 8 | O21: 9 | P21: Out | Q21: RENNY
F22: Dist. | G22: 523 | H22: 519 | I22: 386 | J22: 551 | K22: 392 | L22: 257 | M22: 465 | N22: 323 | O22: 285 | P22: =SUM(G22:O22) -> 3701
F23: Par | G23: 4 | H23: 4 | I23: 4 | J23: 4 | K23: 4 | L23: 3 | M23: 4 | N23: 3 | O23: 3 | P23: =SUM(G23:O23) -> 33
F24: Score | G24: 4 | H24: 5 | I24: 4 | J24: 6 | K24: 4 | L24: 3 | M24: 5 | N24: 4 | O24: 3 | P24: 38
F25: Hole | G25: 10 | H25: 11 | I25: 12 | J25: 13 | K25: 14 | L25: 15 | M25: 16 | N25: 17 | O25: 18 | P25: In | Q25: Total | T25: RENNY | U25: Ace | V25: Eag | W25: Bir | X25: Par | Y25: Bog | Z25: Bg+ | AA25: Sno | AB25: Score
F26: Dist. | G26: 538 | H26: 1042 | I26: 617 | J26: 974 | K26: 564 | L26: 378 | M26: 302 | N26: 517 | O26: 826 | P26: =SUM(G26:O26) -> 5758 | Q26: =P26+P22 -> 9459 | T26: Front | U26: =COUNTIF(G24:O24,"1") -> 0 | V26: =COUNTConditionColorCells($G$24:$O$24,V25) -> 0 | W26: =COUNTConditionColorCells($G$24:$O$24,W25) -> 0 | X26: 5 | Y26: 3 | Z26: 1 | AA26: =COUNTIF(G24:O24,"8") -> 0 | AB26: =P24 -> 38
F27: Par | G27: 4 | H27: 5 | I27: 4 | J27: 5 | K27: 4 | L27: 3 | M27: 3 | N27: 4 | O27: 5 | P27: =SUM(G27:O27) -> 37 | Q27: =P27+P23 -> 70 | T27: Back | U27: =COUNTIF(G28:O28,"1") -> 0 | V27: =COUNTConditionColorCells($G$28:$O$28,V25) -> 0 | W27: =COUNTConditionColorCells($G$28:$O$28,W25) -> 0 | X27: 3 | Y27: 6 | Z27: 0 | AA27: =COUNTIF(G28:O28,"8") -> 0 | AB27: =P28 -> 43
F28: Score | G28: 5 | H28: 6 | I28: 4 | J28: 6 | K28: 5 | L28: 4 | M28: 3 | N28: 5 | O28: 5 | P28: =SUM(G28:O28) -> 43 | Q28: 81 | T28: Total | U28: =U26+U27 -> 0 | V28: =V26+V27 -> 0 | W28: 0 | X28: 8 | Y28: 9 | Z28: 1 | AA28: 0 | AB28: =Q28 -> 81
B30: Nevin #2 - Play from short cement pad (not long pad behind creek). | M30: Player
M31: Witness 1
B32: Turn in your completed, signed score sheet before 9pm | M32: Witness 2
B33: at Divine Barrel Brewery (3701 N. Davidson St). | M33: Witness 3 | T33: FINAL | U33: Ace | V33: Eag | W33: Bir | X33: Par | Y33: Bog | Z33: Bg+ | AA33: Sno | AB33: Score
T34: TOTAL | U34: =SUM(U28,U18,U8) -> 0 | V34: =SUM(V28,V18,V8) -> 0 | W34: 5 | X34: 26 | Y34: 17 | Z34: 6 | AA34: 0 | AB34: 230

Sheet KaBy
A1: 2019 Charlotte Iron Man | F1: Hole | G1: 1 | H1: 2 | I1: 3 | J1: 4 | K1: 5 | L1: 6 | M1: 7 | N1: 8 | O1: 9 | P1: Out | Q1: ANGRY
F2: Dist. | G2: 235 | H2: 158 | I2: 222 | J2: 439 | K2: 801 | L2: 491 | M2: 282 | N2: 567 | O2: 268 | P2: =SUM(G2:O2) -> 3463 | T2: Name | U2: Kael Byrd | Z2: Div | AA2: Iron Men
F3: Par | G3: 3 | H3: 3 | I3: 3 | J3: 4 | K3: 5 | L3: 4 | M3: 3 | N3: 4 | O3: 3 | P3: =SUM(G3:O3) -> 32
F4: Score | G4: 4 | H4: 2 | I4: 2 | J4: 4 | K4: 6 | L4: 4 | M4: 3 | N4: 4 | O4: 4 | P4: 33
F5: Hole | G5: 10 | H5: 11 | I5: 12 | J5: 13 | K5: 14 | L5: 15 | M5: 16 | N5: 17 | O5: 18 | P5: In | Q5: Total | T5: ANGRY | U5: Ace | V5: Eag | W5: Bir | X5: Par | Y5: Bog | Z5: Bg+ | AA5: Sno | AB5: Score
F6: Dist. | G6: 563 | H6: 465 | I6: 215 | J6: 409 | K6: 333 | L6: 702 | M6: 431 | N6: 282 | O6: 814 | P6: =SUM(G6:O6) -> 4214 | Q6: =P6+P2 -> 7677 | T6: Front | U6: =COUNTIF(G4:O4,"1") -> 0 | V6: =COUNTConditionColorCells($G$4:$O$4,V5) -> 0 | W6: =COUNTConditionColorCells($G$4:$O$4,W5) -> 2 | X6: 4 | Y6: 3 | Z6: 0 | AA6: =COUNTIF(G4:O4,"8") -> 0 | AB6: =P4 -> 33
F7: Par | G7: 4 | H7: 4 | I7: 3 | J7: 4 | K7: 3 | L7: 5 | M7: 4 | N7: 3 | O7: 5 | P7: =SUM(G7:O7) -> 35 | Q7: =P7+P3 -> 67 | T7: Back | U7: =COUNTIF(G8:O8,"1") -> 0 | V7: =COUNTConditionColorCells($G$8:$O$8,V5) -> 0 | W7: =COUNTConditionColorCells($G$8:$O$8,W5) -> 0 | X7: =COUNTConditionColorCells($G$8:$O$8,X5) -> 4 | Y7: =COUNTConditionColorCells($G$8:$O$8,Y5) -> 4 | Z7: 1 | AA7: =COUNTIF(G8:O8,"8") -> 0 | AB7: =P8 -> 41
F8: Score | G8: 5 | H8: 5 | I8: 4 | J8: 4 | K8: 4 | L8: 7 | M8: 4 | N8: 3 | O8: 5 | P8: =SUM(G8:O8) -> 41 | Q8: 74 | T8: Total | U8: =U6+U7 -> 0 | V8: =V6+V7 -> 0 | W8: 2 | X8: 8 | Y8: 7 | Z8: 1 | AA8: 0 | AB8: =Q8 -> 74
B11: Hole | C11: 1 | D11: 2 | E11: 3 | F11: 4 | G11: 5 | H11: 6 | I11: 7 | J11: 8 | K11: 9 | L11: Out | M11: NEVIN
B12: Dist. | C12: 491 | D12: 240 | E12: 375 | F12: 538 | G12: 656 | H12: 317 | I12: 202 | J12: 329 | K12: 593 | L12: =SUM(C12:K12) -> 3741
B13: Par | C13: 4 | D13: 3 | E13: 3 | F13: 4 | G13: 5 | H13: 3 | I13: 3 | J13: 3 | K13: 4 | L13: =SUM(C13:K13) -> 32
B14: Score | C14: 4 | D14: 3 | E14: 3 | F14: 4 | G14: 5 | H14: 3 | I14: 5 | J14: 3 | K14: 3 | L14: 33
B15: Hole | C15: 10 | D15: 11 | E15: 12 | F15: 13 | G15: 14 | H15: 15 | I15: 16 | J15: 17 | K15: 18 | L15: In | M15: Total | T15: NEVIN | U15: Ace | V15: Eag | W15: Bir | X15: Par | Y15: Bog | Z15: Bg+ | AA15: Sno | AB15: Score
B16: Dist. | C16: 630 | D16: 640 | E16: 970 | F16: 274 | G16: 550 | H16: 252 | I16: 596 | J16: 581 | K16: 530 | L16: =SUM(C16:K16) -> 5023 | M16: =L16+L12 -> 8764 | T16: Front | U16: =COUNTIF(C14:K14,"1") -> 0 | V16: =COUNTConditionColorCells($C$14:$K$14,V15) -> 0 | W16: =COUNTConditionColorCells($C$14:$K$14,W15) -> 1 | X16: 7 | Y16: 0 | Z16: 1 | AA16: =COUNTIF(C14:K14,"8") -> 0 | AB16: =L14 -> 33
B17: Par | C17: 5 | D17: 4 | E17: 5 | F17: 3 | G17: 4 | H17: 3 | I17: 4 | J17: 5 | K17: 4 | L17: =SUM(C17:K17) -> 37 | M17: =L17+L13 -> 69 | T17: Back | U17: =COUNTIF(C18:K18,"1") -> 0 | V17: =COUNTConditionColorCells($C$18:$K$18,V15) -> 0 | W17: =COUNTConditionColorCells($C$18:$K$18,W15) -> 2 | X17: 3 | Y17: 2 | Z17: 2 | AA17: =COUNTIF(C18:K18,"8") -> 0 | AB17: =L18 -> 41
B18: Score | C18: 6 | D18: 4 | E18: 7 | F18: 2 | G18: 4 | H18: 4 | I18: 6 | J18: 5 | K18: 3 | L18: =SUM(C18:K18) -> 41 | M18: 74 | T18: Total | U18: =U16+U17 -> 0 | V18: =V16+V17 -> 0 | W18: 3 | X18: 10 | Y18: 2 | Z18: 3 | AA18: =AA16+AA17 -> 0 | AB18: =M18 -> 74
F21: Hole | G21: 1 | H21: 2 | I21: 3 | J21: 4 | K21: 5 | L21: 6 | M21: 7 | N21: 8 | O21: 9 | P21: Out | Q21: RENNY
F22: Dist. | G22: 523 | H22: 519 | I22: 386 | J22: 551 | K22: 392 | L22: 257 | M22: 465 | N22: 323 | O22: 285 | P22: =SUM(G22:O22) -> 3701
F23: Par | G23: 4 | H23: 4 | I23: 4 | J23: 4 | K23: 4 | L23: 3 | M23: 4 | N23: 3 | O23: 3 | P23: =SUM(G23:O23) -> 33
F24: Score | G24: 5 | H24: 4 | I24: 4 | J24: 6 | K24: 4 | L24: 3 | M24: 4 | N24: 3 | O24: 3 | P24: 36
F25: Hole | G25: 10 | H25: 11 | I25: 12 | J25: 13 | K25: 14 | L25: 15 | M25: 16 | N25: 17 | O25: 18 | P25: In | Q25: Total | T25: RENNY | U25: Ace | V25: Eag | W25: Bir | X25: Par | Y25: Bog | Z25: Bg+ | AA25: Sno | AB25: Score
F26: Dist. | G26: 538 | H26: 1042 | I26: 617 | J26: 974 | K26: 564 | L26: 378 | M26: 302 | N26: 517 | O26: 826 | P26: =SUM(G26:O26) -> 5758 | Q26: =P26+P22 -> 9459 | T26: Front | U26: =COUNTIF(G24:O24,"1") -> 0 | V26: =COUNTConditionColorCells($G$24:$O$24,V25) -> 0 | W26: =COUNTConditionColorCells($G$24:$O$24,W25) -> 0 | X26: 7 | Y26: 1 | Z26: 1 | AA26: =COUNTIF(G24:O24,"8") -> 0 | AB26: =P24 -> 36
F27: Par | G27: 4 | H27: 5 | I27: 4 | J27: 5 | K27: 4 | L27: 3 | M27: 3 | N27: 4 | O27: 5 | P27: =SUM(G27:O27) -> 37 | Q27: =P27+P23 -> 70 | T27: Back | U27: =COUNTIF(G28:O28,"1") -> 0 | V27: =COUNTConditionColorCells($G$28:$O$28,V25) -> 0 | W27: =COUNTConditionColorCells($G$28:$O$28,W25) -> 0 | X27: 2 | Y27: 5 | Z27: 2 | AA27: =COUNTIF(G28:O28,"8") -> 1 | AB27: =P28 -> 47
F28: Score | G28: 5 | H28: 6 | I28: 4 | J28: 8 | K28: 6 | L28: 3 | M28: 4 | N28: 5 | O28: 6 | P28: =SUM(G28:O28) -> 47 | Q28: 83 | T28: Total | U28: =U26+U27 -> 0 | V28: =V26+V27 -> 0 | W28: 0 | X28: 9 | Y28: 6 | Z28: 3 | AA28: 1 | AB28: =Q28 -> 83
B30: Nevin #2 - Play from short cement pad (not long pad behind creek). | M30: Player
M31: Witness 1
B32: Turn in your completed, signed score sheet before 9pm | M32: Witness 2
B33: at Divine Barrel Brewery (3701 N. Davidson St). | M33: Witness 3 | T33: FINAL | U33: Ace | V33: Eag | W33: Bir | X33: Par | Y33: Bog | Z33: Bg+ | AA33: Sno | AB33: Score
T34: TOTAL | U34: =SUM(U28,U18,U8) -> 0 | V34: =SUM(V28,V18,V8) -> 0 | W34: 5 | X34: 27 | Y34: 15 | Z34: 7 | AA34: 1 | AB34: 231

Sheet MiWa
A1: 2019 Charlotte Iron Man | F1: Hole | G1: 1 | H1: 2 | I1: 3 | J1: 4 | K1: 5 | L1: 6 | M1: 7 | N1: 8 | O1: 9 | P1: Out | Q1: ANGRY
F2: Dist. | G2: 235 | H2: 158 | I2: 222 | J2: 439 | K2: 801 | L2: 491 | M2: 282 | N2: 567 | O2: 268 | P2: =SUM(G2:O2) -> 3463 | T2: Name | U2: Michael Walseman | Z2: Div | AA2: Iron Men
F3: Par | G3: 3 | H3: 3 | I3: 3 | J3: 4 | K3: 5 | L3: 4 | M3: 3 | N3: 4 | O3: 3 | P3: =SUM(G3:O3) -> 32
F4: Score | G4: 3 | H4: 3 | I4: 3 | J4: 5 | K4: 5 | L4: 5 | M4: 3 | N4: 4 | O4: 4 | P4: 35
F5: Hole | G5: 10 | H5: 11 | I5: 12 | J5: 13 | K5: 14 | L5: 15 | M5: 16 | N5: 17 | O5: 18 | P5: In | Q5: Total | T5: ANGRY | U5: Ace | V5: Eag | W5: Bir | X5: Par | Y5: Bog | Z5: Bg+ | AA5: Sno | AB5: Score
F6: Dist. | G6: 563 | H6: 465 | I6: 215 | J6: 409 | K6: 333 | L6: 702 | M6: 431 | N6: 282 | O6: 814 | P6: =SUM(G6:O6) -> 4214 | Q6: =P6+P2 -> 7677 | T6: Front | U6: =COUNTIF(G4:O4,"1") -> 0 | V6: =COUNTConditionColorCells($G$4:$O$4,V5) -> 0 | W6: =COUNTConditionColorCells($G$4:$O$4,W5) -> 0 | X6: 6 | Y6: 3 | Z6: 0 | AA6: =COUNTIF(G4:O4,"8") -> 0 | AB6: =P4 -> 35
F7: Par | G7: 4 | H7: 4 | I7: 3 | J7: 4 | K7: 3 | L7: 5 | M7: 4 | N7: 3 | O7: 5 | P7: =SUM(G7:O7) -> 35 | Q7: =P7+P3 -> 67 | T7: Back | U7: =COUNTIF(G8:O8,"1") -> 0 | V7: =COUNTConditionColorCells($G$8:$O$8,V5) -> 0 | W7: =COUNTConditionColorCells($G$8:$O$8,W5) -> 0 | X7: =COUNTConditionColorCells($G$8:$O$8,X5) -> 4 | Y7: =COUNTConditionColorCells($G$8:$O$8,Y5) -> 3 | Z7: 2 | AA7: =COUNTIF(G8:O8,"8") -> 0 | AB7: =P8 -> 42
F8: Score | G8: 6 | H8: 4 | I8: 4 | J8: 4 | K8: 3 | L8: 6 | M8: 6 | N8: 3 | O8: 6 | P8: =SUM(G8:O8) -> 42 | Q8: 77 | T8: Total | U8: =U6+U7 -> 0 | V8: =V6+V7 -> 0 | W8: 0 | X8: 10 | Y8: 6 | Z8: 2 | AA8: 0 | AB8: =Q8 -> 77
B11: Hole | C11: 1 | D11: 2 | E11: 3 | F11: 4 | G11: 5 | H11: 6 | I11: 7 | J11: 8 | K11: 9 | L11: Out | M11: NEVIN
B12: Dist. | C12: 491 | D12: 240 | E12: 375 | F12: 538 | G12: 656 | H12: 317 | I12: 202 | J12: 329 | K12: 593 | L12: =SUM(C12:K12) -> 3741
B13: Par | C13: 4 | D13: 3 | E13: 3 | F13: 4 | G13: 5 | H13: 3 | I13: 3 | J13: 3 | K13: 4 | L13: =SUM(C13:K13) -> 32
B14: Score | C14: 6 | D14: 3 | E14: 4 | F14: 4 | G14: 8 | H14: 2 | I14: 4 | J14: 4 | K14: 5 | L14: 40
B15: Hole | C15: 10 | D15: 11 | E15: 12 | F15: 13 | G15: 14 | H15: 15 | I15: 16 | J15: 17 | K15: 18 | L15: In | M15: Total | T15: NEVIN | U15: Ace | V15: Eag | W15: Bir | X15: Par | Y15: Bog | Z15: Bg+ | AA15: Sno | AB15: Score
B16: Dist. | C16: 630 | D16: 640 | E16: 970 | F16: 274 | G16: 550 | H16: 252 | I16: 596 | J16: 581 | K16: 530 | L16: =SUM(C16:K16) -> 5023 | M16: =L16+L12 -> 8764 | T16: Front | U16: =COUNTIF(C14:K14,"1") -> 0 | V16: =COUNTConditionColorCells($C$14:$K$14,V15) -> 0 | W16: =COUNTConditionColorCells($C$14:$K$14,W15) -> 1 | X16: 2 | Y16: 4 | Z16: 2 | AA16: =COUNTIF(C14:K14,"8") -> 1 | AB16: =L14 -> 40
B17: Par | C17: 5 | D17: 4 | E17: 5 | F17: 3 | G17: 4 | H17: 3 | I17: 4 | J17: 5 | K17: 4 | L17: =SUM(C17:K17) -> 37 | M17: =L17+L13 -> 69 | T17: Back | U17: =COUNTIF(C18:K18,"1") -> 0 | V17: =COUNTConditionColorCells($C$18:$K$18,V15) -> 0 | W17: =COUNTConditionColorCells($C$18:$K$18,W15) -> 1 | X17: 3 | Y17: 4 | Z17: 1 | AA17: =COUNTIF(C18:K18,"8") -> 0 | AB17: =L18 -> 42
B18: Score | C18: 6 | D18: 4 | E18: 7 | F18: 3 | G18: 5 | H18: 3 | I18: 3 | J18: 6 | K18: 5 | L18: =SUM(C18:K18) -> 42 | M18: 82 | T18: Total | U18: =U16+U17 -> 0 | V18: =V16+V17 -> 0 | W18: 2 | X18: 5 | Y18: 8 | Z18: 3 | AA18: =AA16+AA17 -> 1 | AB18: =M18 -> 82
F21: Hole | G21: 1 | H21: 2 | I21: 3 | J21: 4 | K21: 5 | L21: 6 | M21: 7 | N21: 8 | O21: 9 | P21: Out | Q21: RENNY
F22: Dist. | G22: 523 | H22: 519 | I22: 386 | J22: 551 | K22: 392 | L22: 257 | M22: 465 | N22: 323 | O22: 285 | P22: =SUM(G22:O22) -> 3701
F23: Par | G23: 4 | H23: 4 | I23: 4 | J23: 4 | K23: 4 | L23: 3 | M23: 4 | N23: 3 | O23: 3 | P23: =SUM(G23:O23) -> 33
F24: Score | G24: 5 | H24: 4 | I24: 5 | J24: 4 | K24: 5 | L24: 5 | M24: 6 | N24: 3 | O24: 3 | P24: 40
F25: Hole | G25: 10 | H25: 11 | I25: 12 | J25: 13 | K25: 14 | L25: 15 | M25: 16 | N25: 17 | O25: 18 | P25: In | Q25: Total | T25: RENNY | U25: Ace | V25: Eag | W25: Bir | X25: Par | Y25: Bog | Z25: Bg+ | AA25: Sno | AB25: Score
F26: Dist. | G26: 538 | H26: 1042 | I26: 617 | J26: 974 | K26: 564 | L26: 378 | M26: 302 | N26: 517 | O26: 826 | P26: =SUM(G26:O26) -> 5758 | Q26: =P26+P22 -> 9459 | T26: Front | U26: =COUNTIF(G24:O24,"1") -> 0 | V26: =COUNTConditionColorCells($G$24:$O$24,V25) -> 0 | W26: =COUNTConditionColorCells($G$24:$O$24,W25) -> 0 | X26: 4 | Y26: 3 | Z26: 2 | AA26: =COUNTIF(G24:O24,"8") -> 0 | AB26: =P24 -> 40
F27: Par | G27: 4 | H27: 5 | I27: 4 | J27: 5 | K27: 4 | L27: 3 | M27: 3 | N27: 4 | O27: 5 | P27: =SUM(G27:O27) -> 37 | Q27: =P27+P23 -> 70 | T27: Back | U27: =COUNTIF(G28:O28,"1") -> 0 | V27: =COUNTConditionColorCells($G$28:$O$28,V25) -> 0 | W27: =COUNTConditionColorCells($G$28:$O$28,W25) -> 1 | X27: 5 | Y27: 2 | Z27: 1 | AA27: =COUNTIF(G28:O28,"8") -> 0 | AB27: =P28 -> 41
F28: Score | G28: 7 | H28: 4 | I28: 4 | J28: 5 | K28: 5 | L28: 4 | M28: 3 | N28: 4 | O28: 5 | P28: =SUM(G28:O28) -> 41 | Q28: 81 | T28: Total | U28: =U26+U27 -> 0 | V28: =V26+V27 -> 0 | W28: 1 | X28: 9 | Y28: 5 | Z28: 3 | AA28: 0 | AB28: =Q28 -> 81
B30: Nevin #2 - Play from short cement pad (not long pad behind creek). | M30: Player
M31: Witness 1
B32: Turn in your completed, signed score sheet before 9pm | M32: Witness 2
B33: at Divine Barrel Brewery (3701 N. Davidson St). | M33: Witness 3 | T33: FINAL | U33: Ace | V33: Eag | W33: Bir | X33: Par | Y33: Bog | Z33: Bg+ | AA33: Sno | AB33: Score
T34: TOTAL | U34: =SUM(U28,U18,U8) -> 0 | V34: =SUM(V28,V18,V8) -> 0 | W34: 3 | X34: 24 | Y34: 19 | Z34: 8 | AA34: 1 | AB34: 240

Sheet MiWi
A1: 2019 Charlotte Iron Man | F1: Hole | G1: 1 | H1: 2 | I1: 3 | J1: 4 | K1: 5 | L1: 6 | M1: 7 | N1: 8 | O1: 9 | P1: Out | Q1: ANGRY
F2: Dist. | G2: 235 | H2: 158 | I2: 222 | J2: 439 | K2: 801 | L2: 491 | M2: 282 | N2: 567 | O2: 268 | P2: =SUM(G2:O2) -> 3463 | T2: Name | U2: Michael Williams | Z2: Div | AA2: Iron Men
F3: Par | G3: 3 | H3: 3 | I3: 3 | J3: 4 | K3: 5 | L3: 4 | M3: 3 | N3: 4 | O3: 3 | P3: =SUM(G3:O3) -> 32
F4: Score | G4: 5 | H4: 4 | I4: 2 | J4: 4 | K4: 7 | L4: 6 | M4: 4 | N4: 6 | O4: 6 | P4: 44
F5: Hole | G5: 10 | H5: 11 | I5: 12 | J5: 13 | K5: 14 | L5: 15 | M5: 16 | N5: 17 | O5: 18 | P5: In | Q5: Total | T5: ANGRY | U5: Ace | V5: Eag | W5: Bir | X5: Par | Y5: Bog | Z5: Bg+ | AA5: Sno | AB5: Score
F6: Dist. | G6: 563 | H6: 465 | I6: 215 | J6: 409 | K6: 333 | L6: 702 | M6: 431 | N6: 282 | O6: 814 | P6: =SUM(G6:O6) -> 4214 | Q6: =P6+P2 -> 7677 | T6: Front | U6: =COUNTIF(G4:O4,"1") -> 0 | V6: =COUNTConditionColorCells($G$4:$O$4,V5) -> 0 | W6: =COUNTConditionColorCells($G$4:$O$4,W5) -> 1 | X6: 1 | Y6: 2 | Z6: 5 | AA6: =COUNTIF(G4:O4,"8") -> 0 | AB6: =P4 -> 44
F7: Par | G7: 4 | H7: 4 | I7: 3 | J7: 4 | K7: 3 | L7: 5 | M7: 4 | N7: 3 | O7: 5 | P7: =SUM(G7:O7) -> 35 | Q7: =P7+P3 -> 67 | T7: Back | U7: =COUNTIF(G8:O8,"1") -> 0 | V7: =COUNTConditionColorCells($G$8:$O$8,V5) -> 0 | W7: =COUNTConditionColorCells($G$8:$O$8,W5) -> 0 | X7: =COUNTConditionColorCells($G$8:$O$8,X5) -> 1 | Y7: =COUNTConditionColorCells($G$8:$O$8,Y5) -> 5 | Z7: 3 | AA7: =COUNTIF(G8:O8,"8") -> 1 | AB7: =P8 -> 50
F8: Score | G8: 5 | H8: 5 | I8: 4 | J8: 4 | K8: 4 | L8: 10 | M8: 5 | N8: 5 | O8: 8 | P8: =SUM(G8:O8) -> 50 | Q8: 94 | T8: Total | U8: =U6+U7 -> 0 | V8: =V6+V7 -> 0 | W8: 1 | X8: 2 | Y8: 7 | Z8: 8 | AA8: 1 | AB8: =Q8 -> 94
B11: Hole | C11: 1 | D11: 2 | E11: 3 | F11: 4 | G11: 5 | H11: 6 | I11: 7 | J11: 8 | K11: 9 | L11: Out | M11: NEVIN
B12: Dist. | C12: 491 | D12: 240 | E12: 375 | F12: 538 | G12: 656 | H12: 317 | I12: 202 | J12: 329 | K12: 593 | L12: =SUM(C12:K12) -> 3741
B13: Par | C13: 4 | D13: 3 | E13: 3 | F13: 4 | G13: 5 | H13: 3 | I13: 3 | J13: 3 | K13: 4 | L13: =SUM(C13:K13) -> 32
B14: Score | C14: 5 | D14: 4 | E14: 6 | F14: 5 | G14: 7 | H14: 4 | I14: 5 | J14: 4 | K14: 6 | L14: 46
B15: Hole | C15: 10 | D15: 11 | E15: 12 | F15: 13 | G15: 14 | H15: 15 | I15: 16 | J15: 17 | K15: 18 | L15: In | M15: Total | T15: NEVIN | U15: Ace | V15: Eag | W15: Bir | X15: Par | Y15: Bog | Z15: Bg+ | AA15: Sno | AB15: Score
B16: Dist. | C16: 630 | D16: 640 | E16: 970 | F16: 274 | G16: 550 | H16: 252 | I16: 596 | J16: 581 | K16: 530 | L16: =SUM(C16:K16) -> 5023 | M16: =L16+L12 -> 8764 | T16: Front | U16: =COUNTIF(C14:K14,"1") -> 0 | V16: =COUNTConditionColorCells($C$14:$K$14,V15) -> 0 | W16: =COUNTConditionColorCells($C$14:$K$14,W15) -> 0 | X16: 0 | Y16: 5 | Z16: 4 | AA16: =COUNTIF(C14:K14,"8") -> 0 | AB16: =L14 -> 46
B17: Par | C17: 5 | D17: 4 | E17: 5 | F17: 3 | G17: 4 | H17: 3 | I17: 4 | J17: 5 | K17: 4 | L17: =SUM(C17:K17) -> 37 | M17: =L17+L13 -> 69 | T17: Back | U17: =COUNTIF(C18:K18,"1") -> 0 | V17: =COUNTConditionColorCells($C$18:$K$18,V15) -> 0 | W17: =COUNTConditionColorCells($C$18:$K$18,W15) -> 0 | X17: 2 | Y17: 2 | Z17: 5 | AA17: =COUNTIF(C18:K18,"8") -> 1 | AB17: =L18 -> 50
B18: Score | C18: 7 | D18: 5 | E18: 8 | F18: 3 | G18: 6 | H18: 4 | I18: 4 | J18: 7 | K18: 6 | L18: =SUM(C18:K18) -> 50 | M18: 96 | T18: Total | U18: =U16+U17 -> 0 | V18: =V16+V17 -> 0 | W18: 0 | X18: 2 | Y18: 7 | Z18: 9 | AA18: =AA16+AA17 -> 1 | AB18: =M18 -> 96
F21: Hole | G21: 1 | H21: 2 | I21: 3 | J21: 4 | K21: 5 | L21: 6 | M21: 7 | N21: 8 | O21: 9 | P21: Out | Q21: RENNY
F22: Dist. | G22: 523 | H22: 519 | I22: 386 | J22: 551 | K22: 392 | L22: 257 | M22: 465 | N22: 323 | O22: 285 | P22: =SUM(G22:O22) -> 3701
F23: Par | G23: 4 | H23: 4 | I23: 4 | J23: 4 | K23: 4 | L23: 3 | M23: 4 | N23: 3 | O23: 3 | P23: =SUM(G23:O23) -> 33
F24: Score | G24: 5 | H24: 4 | I24: 4 | J24: 5 | K24: 4 | L24: 4 | M24: 6 | N24: 5 | O24: 3 | P24: 40
F25: Hole | G25: 10 | H25: 11 | I25: 12 | J25: 13 | K25: 14 | L25: 15 | M25: 16 | N25: 17 | O25: 18 | P25: In | Q25: Total | T25: RENNY | U25: Ace | V25: Eag | W25: Bir | X25: Par | Y25: Bog | Z25: Bg+ | AA25: Sno | AB25: Score
F26: Dist. | G26: 538 | H26: 1042 | I26: 617 | J26: 974 | K26: 564 | L26: 378 | M26: 302 | N26: 517 | O26: 826 | P26: =SUM(G26:O26) -> 5758 | Q26: =P26+P22 -> 9459 | T26: Front | U26: =COUNTIF(G24:O24,"1") -> 0 | V26: =COUNTConditionColorCells($G$24:$O$24,V25) -> 0 | W26: =COUNTConditionColorCells($G$24:$O$24,W25) -> 0 | X26: 4 | Y26: 3 | Z26: 2 | AA26: =COUNTIF(G24:O24,"8") -> 0 | AB26: =P24 -> 40
F27: Par | G27: 4 | H27: 5 | I27: 4 | J27: 5 | K27: 4 | L27: 3 | M27: 3 | N27: 4 | O27: 5 | P27: =SUM(G27:O27) -> 37 | Q27: =P27+P23 -> 70 | T27: Back | U27: =COUNTIF(G28:O28,"1") -> 0 | V27: =COUNTConditionColorCells($G$28:$O$28,V25) -> 0 | W27: =COUNTConditionColorCells($G$28:$O$28,W25) -> 1 | X27: 4 | Y27: 2 | Z27: 2 | AA27: =COUNTIF(G28:O28,"8") -> 0 | AB27: =P28 -> 44
F28: Score | G28: 4 | H28: 6 | I28: 6 | J28: 9 | K28: 4 | L28: 3 | M28: 3 | N28: 5 | O28: 4 | P28: =SUM(G28:O28) -> 44 | Q28: 84 | T28: Total | U28: =U26+U27 -> 0 | V28: =V26+V27 -> 0 | W28: 1 | X28: 8 | Y28: 5 | Z28: 4 | AA28: 0 | AB28: =Q28 -> 84
B30: Nevin #2 - Play from short cement pad (not long pad behind creek). | M30: Player
M31: Witness 1
B32: Turn in your completed, signed score sheet before 9pm | M32: Witness 2
B33: at Divine Barrel Brewery (3701 N. Davidson St). | M33: Witness 3 | T33: FINAL | U33: Ace | V33: Eag | W33: Bir | X33: Par | Y33: Bog | Z33: Bg+ | AA33: Sno | AB33: Score
T34: TOTAL | U34: =SUM(U28,U18,U8) -> 0 | V34: =SUM(V28,V18,V8) -> 0 | W34: 2 | X34: 12 | Y34: 19 | Z34: 21 | AA34: 2 | AB34: 274

Sheet MiMc
A1: 2019 Charlotte Iron Man | F1: Hole | G1: 1 | H1: 2 | I1: 3 | J1: 4 | K1: 5 | L1: 6 | M1: 7 | N1: 8 | O1: 9 | P1: Out | Q1: ANGRY
F2: Dist. | G2: 235 | H2: 158 | I2: 222 | J2: 439 | K2: 801 | L2: 491 | M2: 282 | N2: 567 | O2: 268 | P2: =SUM(G2:O2) -> 3463 | T2: Name | U2: Mitchell McGarity | Z2: Div | AA2: Iron Men
F3: Par | G3: 3 | H3: 3 | I3: 3 | J3: 4 | K3: 5 | L3: 4 | M3: 3 | N3: 4 | O3: 3 | P3: =SUM(G3:O3) -> 32
F4: Score | G4: 5 | H4: 4 | I4: 5 | J4: 6 | K4: 9 | L4: 6 | M4: 6 | N4: 7 | O4: 4 | P4: 52
F5: Hole | G5: 10 | H5: 11 | I5: 12 | J5: 13 | K5: 14 | L5: 15 | M5: 16 | N5: 17 | O5: 18 | P5: In | Q5: Total | T5: ANGRY | U5: Ace | V5: Eag | W5: Bir | X5: Par | Y5: Bog | Z5: Bg+ | AA5: Sno | AB5: Score
F6: Dist. | G6: 563 | H6: 465 | I6: 215 | J6: 409 | K6: 333 | L6: 702 | M6: 431 | N6: 282 | O6: 814 | P6: =SUM(G6:O6) -> 4214 | Q6: =P6+P2 -> 7677 | T6: Front | U6: =COUNTIF(G4:O4,"1") -> 0 | V6: =COUNTConditionColorCells($G$4:$O$4,V5) -> 0 | W6: =COUNTConditionColorCells($G$4:$O$4,W5) -> 0 | X6: 0 | Y6: 2 | Z6: 7 | AA6: =COUNTIF(G4:O4,"8") -> 0 | AB6: =P4 -> 52
F7: Par | G7: 4 | H7: 4 | I7: 3 | J7: 4 | K7: 3 | L7: 5 | M7: 4 | N7: 3 | O7: 5 | P7: =SUM(G7:O7) -> 35 | Q7: =P7+P3 -> 67 | T7: Back | U7: =COUNTIF(G8:O8,"1") -> 0 | V7: =COUNTConditionColorCells($G$8:$O$8,V5) -> 0 | W7: =COUNTConditionColorCells($G$8:$O$8,W5) -> 0 | X7: =COUNTConditionColorCells($G$8:$O$8,X5) -> 1 | Y7: =COUNTConditionColorCells($G$8:$O$8,Y5) -> 4 | Z7: 4 | AA7: =COUNTIF(G8:O8,"8") -> 0 | AB7: =P8 -> 51
F8: Score | G8: 5 | H8: 5 | I8: 5 | J8: 5 | K8: 4 | L8: 9 | M8: 4 | N8: 5 | O8: 9 | P8: =SUM(G8:O8) -> 51 | Q8: 103 | T8: Total | U8: =U6+U7 -> 0 | V8: =V6+V7 -> 0 | W8: 0 | X8: 1 | Y8: 6 | Z8: 11 | AA8: 0 | AB8: =Q8 -> 103
B11: Hole | C11: 1 | D11: 2 | E11: 3 | F11: 4 | G11: 5 | H11: 6 | I11: 7 | J11: 8 | K11: 9 | L11: Out | M11: NEVIN
B12: Dist. | C12: 491 | D12: 240 | E12: 375 | F12: 538 | G12: 656 | H12: 317 | I12: 202 | J12: 329 | K12: 593 | L12: =SUM(C12:K12) -> 3741
B13: Par | C13: 4 | D13: 3 | E13: 3 | F13: 4 | G13: 5 | H13: 3 | I13: 3 | J13: 3 | K13: 4 | L13: =SUM(C13:K13) -> 32
B14: Score | C14: 6 | D14: 3 | E14: 6 | F14: 5 | G14: 8 | H14: 6 | I14: 4 | J14: 5 | K14: 5 | L14: 48
B15: Hole | C15: 10 | D15: 11 | E15: 12 | F15: 13 | G15: 14 | H15: 15 | I15: 16 | J15: 17 | K15: 18 | L15: In | M15: Total | T15: NEVIN | U15: Ace | V15: Eag | W15: Bir | X15: Par | Y15: Bog | Z15: Bg+ | AA15: Sno | AB15: Score
B16: Dist. | C16: 630 | D16: 640 | E16: 970 | F16: 274 | G16: 550 | H16: 252 | I16: 596 | J16: 581 | K16: 530 | L16: =SUM(C16:K16) -> 5023 | M16: =L16+L12 -> 8764 | T16: Front | U16: =COUNTIF(C14:K14,"1") -> 0 | V16: =COUNTConditionColorCells($C$14:$K$14,V15) -> 0 | W16: =COUNTConditionColorCells($C$14:$K$14,W15) -> 0 | X16: 1 | Y16: 3 | Z16: 5 | AA16: =COUNTIF(C14:K14,"8") -> 1 | AB16: =L14 -> 48
B17: Par | C17: 5 | D17: 4 | E17: 5 | F17: 3 | G17: 4 | H17: 3 | I17: 4 | J17: 5 | K17: 4 | L17: =SUM(C17:K17) -> 37 | M17: =L17+L13 -> 69 | T17: Back | U17: =COUNTIF(C18:K18,"1") -> 0 | V17: =COUNTConditionColorCells($C$18:$K$18,V15) -> 0 | W17: =COUNTConditionColorCells($C$18:$K$18,W15) -> 0 | X17: 2 | Y17: 5 | Z17: 2 | AA17: =COUNTIF(C18:K18,"8") -> 0 | AB17: =L18 -> 48
B18: Score | C18: 6 | D18: 5 | E18: 6 | F18: 4 | G18: 4 | H18: 3 | I18: 7 | J18: 6 | K18: 7 | L18: =SUM(C18:K18) -> 48 | M18: 96 | T18: Total | U18: =U16+U17 -> 0 | V18: =V16+V17 -> 0 | W18: 0 | X18: 3 | Y18: 8 | Z18: 7 | AA18: =AA16+AA17 -> 1 | AB18: =M18 -> 96
F21: Hole | G21: 1 | H21: 2 | I21: 3 | J21: 4 | K21: 5 | L21: 6 | M21: 7 | N21: 8 | O21: 9 | P21: Out | Q21: RENNY
F22: Dist. | G22: 523 | H22: 519 | I22: 386 | J22: 551 | K22: 392 | L22: 257 | M22: 465 | N22: 323 | O22: 285 | P22: =SUM(G22:O22) -> 3701
F23: Par | G23: 4 | H23: 4 | I23: 4 | J23: 4 | K23: 4 | L23: 3 | M23: 4 | N23: 3 | O23: 3 | P23: =SUM(G23:O23) -> 33
F24: Score | G24: 4 | H24: 4 | I24: 4 | J24: 8 | K24: 5 | L24: 4 | M24: 6 | N24: 4 | O24: 4 | P24: 43
F25: Hole | G25: 10 | H25: 11 | I25: 12 | J25: 13 | K25: 14 | L25: 15 | M25: 16 | N25: 17 | O25: 18 | P25: In | Q25: Total | T25: RENNY | U25: Ace | V25: Eag | W25: Bir | X25: Par | Y25: Bog | Z25: Bg+ | AA25: Sno | AB25: Score
F26: Dist. | G26: 538 | H26: 1042 | I26: 617 | J26: 974 | K26: 564 | L26: 378 | M26: 302 | N26: 517 | O26: 826 | P26: =SUM(G26:O26) -> 5758 | Q26: =P26+P22 -> 9459 | T26: Front | U26: =COUNTIF(G24:O24,"1") -> 0 | V26: =COUNTConditionColorCells($G$24:$O$24,V25) -> 0 | W26: =COUNTConditionColorCells($G$24:$O$24,W25) -> 0 | X26: 3 | Y26: 4 | Z26: 2 | AA26: =COUNTIF(G24:O24,"8") -> 1 | AB26: =P24 -> 43
F27: Par | G27: 4 | H27: 5 | I27: 4 | J27: 5 | K27: 4 | L27: 3 | M27: 3 | N27: 4 | O27: 5 | P27: =SUM(G27:O27) -> 37 | Q27: =P27+P23 -> 70 | T27: Back | U27: =COUNTIF(G28:O28,"1") -> 0 | V27: =COUNTConditionColorCells($G$28:$O$28,V25) -> 0 | W27: =COUNTConditionColorCells($G$28:$O$28,W25) -> 0 | X27: 1 | Y27: 1 | Z27: 7 | AA27: =COUNTIF(G28:O28,"8") -> 1 | AB27: =P28 -> 58
F28: Score | G28: 7 | H28: 8 | I28: 6 | J28: 9 | K28: 5 | L28: 6 | M28: 3 | N28: 7 | O28: 7 | P28: =SUM(G28:O28) -> 58 | Q28: 101 | T28: Total | U28: =U26+U27 -> 0 | V28: =V26+V27 -> 0 | W28: 0 | X28: 4 | Y28: 5 | Z28: 9 | AA28: 2 | AB28: =Q28 -> 101
B30: Nevin #2 - Play from short cement pad (not long pad behind creek). | M30: Player
M31: Witness 1
B32: Turn in your completed, signed score sheet before 9pm | M32: Witness 2
B33: at Divine Barrel Brewery (3701 N. Davidson St). | M33: Witness 3 | T33: FINAL | U33: Ace | V33: Eag | W33: Bir | X33: Par | Y33: Bog | Z33: Bg+ | AA33: Sno | AB33: Score
T34: TOTAL | U34: =SUM(U28,U18,U8) -> 0 | V34: =SUM(V28,V18,V8) -> 0 | W34: 0 | X34: 8 | Y34: 19 | Z34: 27 | AA34: 3 | AB34: 300

Sheet RoSa
A1: 2019 Charlotte Iron Man | F1: Hole | G1: 1 | H1: 2 | I1: 3 | J1: 4 | K1: 5 | L1: 6 | M1: 7 | N1: 8 | O1: 9 | P1: Out | Q1: ANGRY
F2: Dist. | G2: 235 | H2: 158 | I2: 222 | J2: 439 | K2: 801 | L2: 491 | M2: 282 | N2: 567 | O2: 268 | P2: =SUM(G2:O2) -> 3463 | T2: Name | U2: Robert Sadowski | Z2: Div | AA2: Iron Men
F3: Par | G3: 3 | H3: 3 | I3: 3 | J3: 4 | K3: 5 | L3: 4 | M3: 3 | N3: 4 | O3: 3 | P3: =SUM(G3:O3) -> 32
F4: Score | G4: 3 | H4: 5 | I4: 3 | J4: 7 | K4: 6 | L4: 6 | M4: 6 | N4: 6 | O4: 4 | P4: 46
F5: Hole | G5: 10 | H5: 11 | I5: 12 | J5: 13 | K5: 14 | L5: 15 | M5: 16 | N5: 17 | O5: 18 | P5: In | Q5: Total | T5: ANGRY | U5: Ace | V5: Eag | W5: Bir | X5: Par | Y5: Bog | Z5: Bg+ | AA5: Sno | AB5: Score
F6: Dist. | G6: 563 | H6: 465 | I6: 215 | J6: 409 | K6: 333 | L6: 702 | M6: 431 | N6: 282 | O6: 814 | P6: =SUM(G6:O6) -> 4214 | Q6: =P6+P2 -> 7677 | T6: Front | U6: =COUNTIF(G4:O4,"1") -> 0 | V6: =COUNTConditionColorCells($G$4:$O$4,V5) -> 0 | W6: =COUNTConditionColorCells($G$4:$O$4,W5) -> 0 | X6: 2 | Y6: 2 | Z6: 5 | AA6: =COUNTIF(G4:O4,"8") -> 0 | AB6: =P4 -> 46
F7: Par | G7: 4 | H7: 4 | I7: 3 | J7: 4 | K7: 3 | L7: 5 | M7: 4 | N7: 3 | O7: 5 | P7: =SUM(G7:O7) -> 35 | Q7: =P7+P3 -> 67 | T7: Back | U7: =COUNTIF(G8:O8,"1") -> 0 | V7: =COUNTConditionColorCells($G$8:$O$8,V5) -> 0 | W7: =COUNTConditionColorCells($G$8:$O$8,W5) -> 0 | X7: =COUNTConditionColorCells($G$8:$O$8,X5) -> 3 | Y7: =COUNTConditionColorCells($G$8:$O$8,Y5) -> 4 | Z7: 2 | AA7: =COUNTIF(G8:O8,"8") -> 0 | AB7: =P8 -> 43
F8: Score | G8: 6 | H8: 4 | I8: 4 | J8: 6 | K8: 3 | L8: 6 | M8: 4 | N8: 4 | O8: 6 | P8: =SUM(G8:O8) -> 43 | Q8: 89 | T8: Total | U8: =U6+U7 -> 0 | V8: =V6+V7 -> 0 | W8: 0 | X8: 5 | Y8: 6 | Z8: 7 | AA8: 0 | AB8: =Q8 -> 89
B11: Hole | C11: 1 | D11: 2 | E11: 3 | F11: 4 | G11: 5 | H11: 6 | I11: 7 | J11: 8 | K11: 9 | L11: Out | M11: NEVIN
B12: Dist. | C12: 491 | D12: 240 | E12: 375 | F12: 538 | G12: 656 | H12: 317 | I12: 202 | J12: 329 | K12: 593 | L12: =SUM(C12:K12) -> 3741
B13: Par | C13: 4 | D13: 3 | E13: 3 | F13: 4 | G13: 5 | H13: 3 | I13: 3 | J13: 3 | K13: 4 | L13: =SUM(C13:K13) -> 32
B14: Score | C14: 5 | D14: 4 | E14: 5 | F14: 6 | G14: 5 | H14: 3 | I14: 3 | J14: 4 | K14: 4 | L14: 39
B15: Hole | C15: 10 | D15: 11 | E15: 12 | F15: 13 | G15: 14 | H15: 15 | I15: 16 | J15: 17 | K15: 18 | L15: In | M15: Total | T15: NEVIN | U15: Ace | V15: Eag | W15: Bir | X15: Par | Y15: Bog | Z15: Bg+ | AA15: Sno | AB15: Score
B16: Dist. | C16: 630 | D16: 640 | E16: 970 | F16: 274 | G16: 550 | H16: 252 | I16: 596 | J16: 581 | K16: 530 | L16: =SUM(C16:K16) -> 5023 | M16: =L16+L12 -> 8764 | T16: Front | U16: =COUNTIF(C14:K14,"1") -> 0 | V16: =COUNTConditionColorCells($C$14:$K$14,V15) -> 0 | W16: =COUNTConditionColorCells($C$14:$K$14,W15) -> 0 | X16: 4 | Y16: 3 | Z16: 2 | AA16: =COUNTIF(C14:K14,"8") -> 0 | AB16: =L14 -> 39
B17: Par | C17: 5 | D17: 4 | E17: 5 | F17: 3 | G17: 4 | H17: 3 | I17: 4 | J17: 5 | K17: 4 | L17: =SUM(C17:K17) -> 37 | M17: =L17+L13 -> 69 | T17: Back | U17: =COUNTIF(C18:K18,"1") -> 0 | V17: =COUNTConditionColorCells($C$18:$K$18,V15) -> 0 | W17: =COUNTConditionColorCells($C$18:$K$18,W15) -> 1 | X17: 2 | Y17: 3 | Z17: 3 | AA17: =COUNTIF(C18:K18,"8") -> 0 | AB17: =L18 -> 45
B18: Score | C18: 5 | D18: 5 | E18: 7 | F18: 2 | G18: 5 | H18: 3 | I18: 6 | J18: 6 | K18: 6 | L18: =SUM(C18:K18) -> 45 | M18: 84 | T18: Total | U18: =U16+U17 -> 0 | V18: =V16+V17 -> 0 | W18: 1 | X18: 6 | Y18: 6 | Z18: 5 | AA18: =AA16+AA17 -> 0 | AB18: =M18 -> 84
F21: Hole | G21: 1 | H21: 2 | I21: 3 | J21: 4 | K21: 5 | L21: 6 | M21: 7 | N21: 8 | O21: 9 | P21: Out | Q21: RENNY
F22: Dist. | G22: 523 | H22: 519 | I22: 386 | J22: 551 | K22: 392 | L22: 257 | M22: 465 | N22: 323 | O22: 285 | P22: =SUM(G22:O22) -> 3701
F23: Par | G23: 4 | H23: 4 | I23: 4 | J23: 4 | K23: 4 | L23: 3 | M23: 4 | N23: 3 | O23: 3 | P23: =SUM(G23:O23) -> 33
F24: Score | G24: 4 | H24: 3 | I24: 7 | J24: 5 | K24: 4 | L24: 5 | M24: 5 | N24: 3 | O24: 3 | P24: 39
F25: Hole | G25: 10 | H25: 11 | I25: 12 | J25: 13 | K25: 14 | L25: 15 | M25: 16 | N25: 17 | O25: 18 | P25: In | Q25: Total | T25: RENNY | U25: Ace | V25: Eag | W25: Bir | X25: Par | Y25: Bog | Z25: Bg+ | AA25: Sno | AB25: Score
F26: Dist. | G26: 538 | H26: 1042 | I26: 617 | J26: 974 | K26: 564 | L26: 378 | M26: 302 | N26: 517 | O26: 826 | P26: =SUM(G26:O26) -> 5758 | Q26: =P26+P22 -> 9459 | T26: Front | U26: =COUNTIF(G24:O24,"1") -> 0 | V26: =COUNTConditionColorCells($G$24:$O$24,V25) -> 0 | W26: =COUNTConditionColorCells($G$24:$O$24,W25) -> 1 | X26: 4 | Y26: 2 | Z26: 2 | AA26: =COUNTIF(G24:O24,"8") -> 0 | AB26: =P24 -> 39
F27: Par | G27: 4 | H27: 5 | I27: 4 | J27: 5 | K27: 4 | L27: 3 | M27: 3 | N27: 4 | O27: 5 | P27: =SUM(G27:O27) -> 37 | Q27: =P27+P23 -> 70 | T27: Back | U27: =COUNTIF(G28:O28,"1") -> 0 | V27: =COUNTConditionColorCells($G$28:$O$28,V25) -> 0 | W27: =COUNTConditionColorCells($G$28:$O$28,W25) -> 0 | X27: 0 | Y27: 5 | Z27: 4 | AA27: =COUNTIF(G28:O28,"8") -> 0 | AB27: =P28 -> 53
F28: Score | G28: 5 | H28: 7 | I28: 5 | J28: 10 | K28: 5 | L28: 4 | M28: 4 | N28: 6 | O28: 7 | P28: =SUM(G28:O28) -> 53 | Q28: 92 | T28: Total | U28: =U26+U27 -> 0 | V28: =V26+V27 -> 0 | W28: 1 | X28: 4 | Y28: 7 | Z28: 6 | AA28: 0 | AB28: =Q28 -> 92
B30: Nevin #2 - Play from short cement pad (not long pad behind creek). | M30: Player
M31: Witness 1
B32: Turn in your completed, signed score sheet before 9pm | M32: Witness 2
B33: at Divine Barrel Brewery (3701 N. Davidson St). | M33: Witness 3 | T33: FINAL | U33: Ace | V33: Eag | W33: Bir | X33: Par | Y33: Bog | Z33: Bg+ | AA33: Sno | AB33: Score
T34: TOTAL | U34: =SUM(U28,U18,U8) -> 0 | V34: =SUM(V28,V18,V8) -> 0 | W34: 2 | X34: 15 | Y34: 19 | Z34: 18 | AA34: 0 | AB34: 265

Sheet TiHa
A1: 2019 Charlotte Iron Man | F1: Hole | G1: 1 | H1: 2 | I1: 3 | J1: 4 | K1: 5 | L1: 6 | M1: 7 | N1: 8 | O1: 9 | P1: Out | Q1: ANGRY
F2: Dist. | G2: 235 | H2: 158 | I2: 222 | J2: 439 | K2: 801 | L2: 491 | M2: 282 | N2: 567 | O2: 268 | P2: =SUM(G2:O2) -> 3463 | T2: Name | U2: Tim Hatley | Z2: Div | AA2: Iron Men
F3: Par | G3: 3 | H3: 3 | I3: 3 | J3: 4 | K3: 5 | L3: 4 | M3: 3 | N3: 4 | O3: 3 | P3: =SUM(G3:O3) -> 32
F4: Score | G4: 3 | H4: 2 | I4: 2 | J4: 4 | K4: 7 | L4: 4 | M4: 3 | N4: 4 | O4: 4 | P4: 33
F5: Hole | G5: 10 | H5: 11 | I5: 12 | J5: 13 | K5: 14 | L5: 15 | M5: 16 | N5: 17 | O5: 18 | P5: In | Q5: Total | T5: ANGRY | U5: Ace | V5: Eag | W5: Bir | X5: Par | Y5: Bog | Z5: Bg+ | AA5: Sno | AB5: Score
F6: Dist. | G6: 563 | H6: 465 | I6: 215 | J6: 409 | K6: 333 | L6: 702 | M6: 431 | N6: 282 | O6: 814 | P6: =SUM(G6:O6) -> 4214 | Q6: =P6+P2 -> 7677 | T6: Front | U6: =COUNTIF(G4:O4,"1") -> 0 | V6: =COUNTConditionColorCells($G$4:$O$4,V5) -> 0 | W6: =COUNTConditionColorCells($G$4:$O$4,W5) -> 2 | X6: 5 | Y6: 1 | Z6: 1 | AA6: =COUNTIF(G4:O4,"8") -> 0 | AB6: =P4 -> 33
F7: Par | G7: 4 | H7: 4 | I7: 3 | J7: 4 | K7: 3 | L7: 5 | M7: 4 | N7: 3 | O7: 5 | P7: =SUM(G7:O7) -> 35 | Q7: =P7+P3 -> 67 | T7: Back | U7: =COUNTIF(G8:O8,"1") -> 0 | V7: =COUNTConditionColorCells($G$8:$O$8,V5) -> 0 | W7: =COUNTConditionColorCells($G$8:$O$8,W5) -> 1 | X7: =COUNTConditionColorCells($G$8:$O$8,X5) -> 5 | Y7: =COUNTConditionColorCells($G$8:$O$8,Y5) -> 1 | Z7: 2 | AA7: =COUNTIF(G8:O8,"8") -> 0 | AB7: =P8 -> 41
F8: Score | G8: 4 | H8: 4 | I8: 7 | J8: 5 | K8: 5 | L8: 4 | M8: 4 | N8: 3 | O8: 5 | P8: =SUM(G8:O8) -> 41 | Q8: 74 | T8: Total | U8: =U6+U7 -> 0 | V8: =V6+V7 -> 0 | W8: 3 | X8: 10 | Y8: 2 | Z8: 3 | AA8: 0 | AB8: =Q8 -> 74
B11: Hole | C11: 1 | D11: 2 | E11: 3 | F11: 4 | G11: 5 | H11: 6 | I11: 7 | J11: 8 | K11: 9 | L11: Out | M11: NEVIN
B12: Dist. | C12: 491 | D12: 240 | E12: 375 | F12: 538 | G12: 656 | H12: 317 | I12: 202 | J12: 329 | K12: 593 | L12: =SUM(C12:K12) -> 3741
B13: Par | C13: 4 | D13: 3 | E13: 3 | F13: 4 | G13: 5 | H13: 3 | I13: 3 | J13: 3 | K13: 4 | L13: =SUM(C13:K13) -> 32
B14: Score | C14: 4 | D14: 3 | E14: 4 | F14: 6 | G14: 7 | H14: 4 | I14: 3 | J14: 3 | K14: 4 | L14: 38
B15: Hole | C15: 10 | D15: 11 | E15: 12 | F15: 13 | G15: 14 | H15: 15 | I15: 16 | J15: 17 | K15: 18 | L15: In | M15: Total | T15: NEVIN | U15: Ace | V15: Eag | W15: Bir | X15: Par | Y15: Bog | Z15: Bg+ | AA15: Sno | AB15: Score
B16: Dist. | C16: 630 | D16: 640 | E16: 970 | F16: 274 | G16: 550 | H16: 252 | I16: 596 | J16: 581 | K16: 530 | L16: =SUM(C16:K16) -> 5023 | M16: =L16+L12 -> 8764 | T16: Front | U16: =COUNTIF(C14:K14,"1") -> 0 | V16: =COUNTConditionColorCells($C$14:$K$14,V15) -> 0 | W16: =COUNTConditionColorCells($C$14:$K$14,W15) -> 0 | X16: 5 | Y16: 2 | Z16: 2 | AA16: =COUNTIF(C14:K14,"8") -> 0 | AB16: =L14 -> 38
B17: Par | C17: 5 | D17: 4 | E17: 5 | F17: 3 | G17: 4 | H17: 3 | I17: 4 | J17: 5 | K17: 4 | L17: =SUM(C17:K17) -> 37 | M17: =L17+L13 -> 69 | T17: Back | U17: =COUNTIF(C18:K18,"1") -> 0 | V17: =COUNTConditionColorCells($C$18:$K$18,V15) -> 0 | W17: =COUNTConditionColorCells($C$18:$K$18,W15) -> 2 | X17: 5 | Y17: 2 | Z17: 0 | AA17: =COUNTIF(C18:K18,"8") -> 0 | AB17: =L18 -> 37
B18: Score | C18: 5 | D18: 3 | E18: 5 | F18: 3 | G18: 4 | H18: 2 | I18: 5 | J18: 6 | K18: 4 | L18: =SUM(C18:K18) -> 37 | M18: 75 | T18: Total | U18: =U16+U17 -> 0 | V18: =V16+V17 -> 0 | W18: 2 | X18: 10 | Y18: 4 | Z18: 2 | AA18: =AA16+AA17 -> 0 | AB18: =M18 -> 75
F21: Hole | G21: 1 | H21: 2 | I21: 3 | J21: 4 | K21: 5 | L21: 6 | M21: 7 | N21: 8 | O21: 9 | P21: Out | Q21: RENNY
F22: Dist. | G22: 523 | H22: 519 | I22: 386 | J22: 551 | K22: 392 | L22: 257 | M22: 465 | N22: 323 | O22: 285 | P22: =SUM(G22:O22) -> 3701
F23: Par | G23: 4 | H23: 4 | I23: 4 | J23: 4 | K23: 4 | L23: 3 | M23: 4 | N23: 3 | O23: 3 | P23: =SUM(G23:O23) -> 33
F24: Score | G24: 4 | H24: 4 | I24: 4 | J24: 4 | K24: 4 | L24: 3 | M24: 3 | N24: 4 | O24: 3 | P24: 33
F25: Hole | G25: 10 | H25: 11 | I25: 12 | J25: 13 | K25: 14 | L25: 15 | M25: 16 | N25: 17 | O25: 18 | P25: In | Q25: Total | T25: RENNY | U25: Ace | V25: Eag | W25: Bir | X25: Par | Y25: Bog | Z25: Bg+ | AA25: Sno | AB25: Score
F26: Dist. | G26: 538 | H26: 1042 | I26: 617 | J26: 974 | K26: 564 | L26: 378 | M26: 302 | N26: 517 | O26: 826 | P26: =SUM(G26:O26) -> 5758 | Q26: =P26+P22 -> 9459 | T26: Front | U26: =COUNTIF(G24:O24,"1") -> 0 | V26: =COUNTConditionColorCells($G$24:$O$24,V25) -> 0 | W26: =COUNTConditionColorCells($G$24:$O$24,W25) -> 1 | X26: 7 | Y26: 1 | Z26: 0 | AA26: =COUNTIF(G24:O24,"8") -> 0 | AB26: =P24 -> 33
F27: Par | G27: 4 | H27: 5 | I27: 4 | J27: 5 | K27: 4 | L27: 3 | M27: 3 | N27: 4 | O27: 5 | P27: =SUM(G27:O27) -> 37 | Q27: =P27+P23 -> 70 | T27: Back | U27: =COUNTIF(G28:O28,"1") -> 0 | V27: =COUNTConditionColorCells($G$28:$O$28,V25) -> 0 | W27: =COUNTConditionColorCells($G$28:$O$28,W25) -> 0 | X27: 2 | Y27: 7 | Z27: 0 | AA27: =COUNTIF(G28:O28,"8") -> 0 | AB27: =P28 -> 44
F28: Score | G28: 5 | H28: 6 | I28: 4 | J28: 6 | K28: 5 | L28: 3 | M28: 4 | N28: 5 | O28: 6 | P28: =SUM(G28:O28) -> 44 | Q28: 77 | T28: Total | U28: =U26+U27 -> 0 | V28: =V26+V27 -> 0 | W28: 1 | X28: 9 | Y28: 8 | Z28: 0 | AA28: 0 | AB28: =Q28 -> 77
B30: Nevin #2 - Play from short cement pad (not long pad behind creek). | M30: Player
M31: Witness 1
B32: Turn in your completed, signed score sheet before 9pm | M32: Witness 2
B33: at Divine Barrel Brewery (3701 N. Davidson St). | M33: Witness 3 | T33: FINAL | U33: Ace | V33: Eag | W33: Bir | X33: Par | Y33: Bog | Z33: Bg+ | AA33: Sno | AB33: Score
T34: TOTAL | U34: =SUM(U28,U18,U8) -> 0 | V34: =SUM(V28,V18,V8) -> 0 | W34: 6 | X34: 29 | Y34: 14 | Z34: 5 | AA34: 0 | AB34: 226

Sheet TrKi
A1: 2019 Charlotte Iron Man | F1: Hole | G1: 1 | H1: 2 | I1: 3 | J1: 4 | K1: 5 | L1: 6 | M1: 7 | N1: 8 | O1: 9 | P1: Out | Q1: ANGRY
F2: Dist. | G2: 235 | H2: 158 | I2: 222 | J2: 439 | K2: 801 | L2: 491 | M2: 282 | N2: 567 | O2: 268 | P2: =SUM(G2:O2) -> 3463 | T2: Name | U2: Trey King | Z2: Div | AA2: Iron Men
F3: Par | G3: 3 | H3: 3 | I3: 3 | J3: 4 | K3: 5 | L3: 4 | M3: 3 | N3: 4 | O3: 3 | P3: =SUM(G3:O3) -> 32
F4: Score | G4: 4 | H4: 2 | I4: 3 | J4: 4 | K4: 5 | L4: 3 | M4: 2 | N4: 4 | O4: 5 | P4: 32
F5: Hole | G5: 10 | H5: 11 | I5: 12 | J5: 13 | K5: 14 | L5: 15 | M5: 16 | N5: 17 | O5: 18 | P5: In | Q5: Total | T5: ANGRY | U5: Ace | V5: Eag | W5: Bir | X5: Par | Y5: Bog | Z5: Bg+ | AA5: Sno | AB5: Score
F6: Dist. | G6: 563 | H6: 465 | I6: 215 | J6: 409 | K6: 333 | L6: 702 | M6: 431 | N6: 282 | O6: 814 | P6: =SUM(G6:O6) -> 4214 | Q6: =P6+P2 -> 7677 | T6: Front | U6: =COUNTIF(G4:O4,"1") -> 0 | V6: =COUNTConditionColorCells($G$4:$O$4,V5) -> 0 | W6: =COUNTConditionColorCells($G$4:$O$4,W5) -> 3 | X6: 4 | Y6: 1 | Z6: 1 | AA6: =COUNTIF(G4:O4,"8") -> 0 | AB6: =P4 -> 32
F7: Par | G7: 4 | H7: 4 | I7: 3 | J7: 4 | K7: 3 | L7: 5 | M7: 4 | N7: 3 | O7: 5 | P7: =SUM(G7:O7) -> 35 | Q7: =P7+P3 -> 67 | T7: Back | U7: =COUNTIF(G8:O8,"1") -> 0 | V7: =COUNTConditionColorCells($G$8:$O$8,V5) -> 0 | W7: =COUNTConditionColorCells($G$8:$O$8,W5) -> 5 | X7: =COUNTConditionColorCells($G$8:$O$8,X5) -> 3 | Y7: =COUNTConditionColorCells($G$8:$O$8,Y5) -> 1 | Z7: 0 | AA7: =COUNTIF(G8:O8,"8") -> 0 | AB7: =P8 -> 31
F8: Score | G8: 3 | H8: 3 | I8: 3 | J8: 4 | K8: 2 | L8: 4 | M8: 3 | N8: 4 | O8: 5 | P8: =SUM(G8:O8) -> 31 | Q8: 63 | T8: Total | U8: =U6+U7 -> 0 | V8: =V6+V7 -> 0 | W8: 8 | X8: 7 | Y8: 2 | Z8: 1 | AA8: 0 | AB8: =Q8 -> 63
B11: Hole | C11: 1 | D11: 2 | E11: 3 | F11: 4 | G11: 5 | H11: 6 | I11: 7 | J11: 8 | K11: 9 | L11: Out | M11: NEVIN
B12: Dist. | C12: 491 | D12: 240 | E12: 375 | F12: 538 | G12: 656 | H12: 317 | I12: 202 | J12: 329 | K12: 593 | L12: =SUM(C12:K12) -> 3741
B13: Par | C13: 4 | D13: 3 | E13: 3 | F13: 4 | G13: 5 | H13: 3 | I13: 3 | J13: 3 | K13: 4 | L13: =SUM(C13:K13) -> 32
B14: Score | C14: 4 | D14: 3 | E14: 3 | F14: 4 | G14: 5 | H14: 4 | I14: 3 | J14: 3 | K14: 6 | L14: 35
B15: Hole | C15: 10 | D15: 11 | E15: 12 | F15: 13 | G15: 14 | H15: 15 | I15: 16 | J15: 17 | K15: 18 | L15: In | M15: Total | T15: NEVIN | U15: Ace | V15: Eag | W15: Bir | X15: Par | Y15: Bog | Z15: Bg+ | AA15: Sno | AB15: Score
B16: Dist. | C16: 630 | D16: 640 | E16: 970 | F16: 274 | G16: 550 | H16: 252 | I16: 596 | J16: 581 | K16: 530 | L16: =SUM(C16:K16) -> 5023 | M16: =L16+L12 -> 8764 | T16: Front | U16: =COUNTIF(C14:K14,"1") -> 0 | V16: =COUNTConditionColorCells($C$14:$K$14,V15) -> 0 | W16: =COUNTConditionColorCells($C$14:$K$14,W15) -> 0 | X16: 7 | Y16: 1 | Z16: 1 | AA16: =COUNTIF(C14:K14,"8") -> 0 | AB16: =L14 -> 35
B17: Par | C17: 5 | D17: 4 | E17: 5 | F17: 3 | G17: 4 | H17: 3 | I17: 4 | J17: 5 | K17: 4 | L17: =SUM(C17:K17) -> 37 | M17: =L17+L13 -> 69 | T17: Back | U17: =COUNTIF(C18:K18,"1") -> 0 | V17: =COUNTConditionColorCells($C$18:$K$18,V15) -> 0 | W17: =COUNTConditionColorCells($C$18:$K$18,W15) -> 1 | X17: 7 | Y17: 1 | Z17: 0 | AA17: =COUNTIF(C18:K18,"8") -> 0 | AB17: =L18 -> 37
B18: Score | C18: 5 | D18: 4 | E18: 5 | F18: 3 | G18: 3 | H18: 4 | I18: 4 | J18: 5 | K18: 4 | L18: =SUM(C18:K18) -> 37 | M18: 72 | T18: Total | U18: =U16+U17 -> 0 | V18: =V16+V17 -> 0 | W18: 1 | X18: 14 | Y18: 2 | Z18: 1 | AA18: =AA16+AA17 -> 0 | AB18: =M18 -> 72
F21: Hole | G21: 1 | H21: 2 | I21: 3 | J21: 4 | K21: 5 | L21: 6 | M21: 7 | N21: 8 | O21: 9 | P21: Out | Q21: RENNY
F22: Dist. | G22: 523 | H22: 519 | I22: 386 | J22: 551 | K22: 392 | L22: 257 | M22: 465 | N22: 323 | O22: 285 | P22: =SUM(G22:O22) -> 3701
F23: Par | G23: 4 | H23: 4 | I23: 4 | J23: 4 | K23: 4 | L23: 3 | M23: 4 | N23: 3 | O23: 3 | P23: =SUM(G23:O23) -> 33
F24: Score | G24: 4 | H24: 3 | I24: 4 | J24: 5 | K24: 5 | L24: 3 | M24: 5 | N24: 3 | O24: 3 | P24: 35
F25: Hole | G25: 10 | H25: 11 | I25: 12 | J25: 13 | K25: 14 | L25: 15 | M25: 16 | N25: 17 | O25: 18 | P25: In | Q25: Total | T25: RENNY | U25: Ace | V25: Eag | W25: Bir | X25: Par | Y25: Bog | Z25: Bg+ | AA25: Sno | AB25: Score
F26: Dist. | G26: 538 | H26: 1042 | I26: 617 | J26: 974 | K26: 564 | L26: 378 | M26: 302 | N26: 517 | O26: 826 | P26: =SUM(G26:O26) -> 5758 | Q26: =P26+P22 -> 9459 | T26: Front | U26: =COUNTIF(G24:O24,"1") -> 0 | V26: =COUNTConditionColorCells($G$24:$O$24,V25) -> 0 | W26: =COUNTConditionColorCells($G$24:$O$24,W25) -> 1 | X26: 5 | Y26: 3 | Z26: 0 | AA26: =COUNTIF(G24:O24,"8") -> 0 | AB26: =P24 -> 35
F27: Par | G27: 4 | H27: 5 | I27: 4 | J27: 5 | K27: 4 | L27: 3 | M27: 3 | N27: 4 | O27: 5 | P27: =SUM(G27:O27) -> 37 | Q27: =P27+P23 -> 70 | T27: Back | U27: =COUNTIF(G28:O28,"1") -> 0 | V27: =COUNTConditionColorCells($G$28:$O$28,V25) -> 0 | W27: =COUNTConditionColorCells($G$28:$O$28,W25) -> 2 | X27: 5 | Y27: 2 | Z27: 0 | AA27: =COUNTIF(G28:O28,"8") -> 0 | AB27: =P28 -> 37
F28: Score | G28: 4 | H28: 5 | I28: 3 | J28: 6 | K28: 4 | L28: 3 | M28: 3 | N28: 5 | O28: 4 | P28: =SUM(G28:O28) -> 37 | Q28: 72 | T28: Total | U28: =U26+U27 -> 0 | V28: =V26+V27 -> 0 | W28: 3 | X28: 10 | Y28: 5 | Z28: 0 | AA28: 0 | AB28: =Q28 -> 72
B30: Nevin #2 - Play from short cement pad (not long pad behind creek). | M30: Player
M31: Witness 1
B32: Turn in your completed, signed score sheet before 9pm | M32: Witness 2
B33: at Divine Barrel Brewery (3701 N. Davidson St). | M33: Witness 3 | T33: FINAL | U33: Ace | V33: Eag | W33: Bir | X33: Par | Y33: Bog | Z33: Bg+ | AA33: Sno | AB33: Score
T34: TOTAL | U34: =SUM(U28,U18,U8) -> 0 | V34: =SUM(V28,V18,V8) -> 0 | W34: 12 | X34: 31 | Y34: 9 | Z34: 2 | AA34: 0 | AB34: 207

Sheet StSa
A1: 2019 Charlotte Iron Man | F1: Hole | G1: 1 | H1: 2 | I1: 3 | J1: 4 | K1: 5 | L1: 6 | M1: 7 | N1: 8 | O1: 9 | P1: Out | Q1: ANGRY
F2: Dist. | G2: 235 | H2: 158 | I2: 222 | J2: 439 | K2: 801 | L2: 491 | M2: 282 | N2: 567 | O2: 268 | P2: =SUM(G2:O2) -> 3463 | T2: Name | U2: Stuart Salmon | Z2: Div | AA2: Iron Men
F3: Par | G3: 3 | H3: 3 | I3: 3 | J3: 4 | K3: 5 | L3: 4 | M3: 3 | N3: 4 | O3: 3 | P3: =SUM(G3:O3) -> 32
F4: Score | G4: 9 | H4: 9 | I4: 9 | J4: 9 | K4: 9 | L4: 9 | M4: 9 | N4: 9 | O4: 9 | P4: 81
F5: Hole | G5: 10 | H5: 11 | I5: 12 | J5: 13 | K5: 14 | L5: 15 | M5: 16 | N5: 17 | O5: 18 | P5: In | Q5: Total | T5: ANGRY | U5: Ace | V5: Eag | W5: Bir | X5: Par | Y5: Bog | Z5: Bg+ | AA5: Sno | AB5: Score
F6: Dist. | G6: 563 | H6: 465 | I6: 215 | J6: 409 | K6: 333 | L6: 702 | M6: 431 | N6: 282 | O6: 814 | P6: =SUM(G6:O6) -> 4214 | Q6: =P6+P2 -> 7677 | T6: Front | U6: =COUNTIF(G4:O4,"1") -> 0 | V6: =COUNTConditionColorCells($G$4:$O$4,V5) -> 0 | W6: =COUNTConditionColorCells($G$4:$O$4,W5) -> 0 | X6: 0 | Y6: 0 | Z6: 9 | AA6: =COUNTIF(G4:O4,"8") -> 0 | AB6: =P4 -> 81
F7: Par | G7: 4 | H7: 4 | I7: 3 | J7: 4 | K7: 3 | L7: 5 | M7: 4 | N7: 3 | O7: 5 | P7: =SUM(G7:O7) -> 35 | Q7: =P7+P3 -> 67 | T7: Back | U7: =COUNTIF(G8:O8,"1") -> 0 | V7: =COUNTConditionColorCells($G$8:$O$8,V5) -> 0 | W7: =COUNTConditionColorCells($G$8:$O$8,W5) -> 0 | X7: =COUNTConditionColorCells($G$8:$O$8,X5) -> 0 | Y7: =COUNTConditionColorCells($G$8:$O$8,Y5) -> 0 | Z7: 9 | AA7: =COUNTIF(G8:O8,"8") -> 0 | AB7: =P8 -> 81
F8: Score | G8: 9 | H8: 9 | I8: 9 | J8: 9 | K8: 9 | L8: 9 | M8: 9 | N8: 9 | O8: 9 | P8: =SUM(G8:O8) -> 81 | Q8: 162 | T8: Total | U8: =U6+U7 -> 0 | V8: =V6+V7 -> 0 | W8: 0 | X8: 0 | Y8: 0 | Z8: 18 | AA8: 0 | AB8: =Q8 -> 162
B11: Hole | C11: 1 | D11: 2 | E11: 3 | F11: 4 | G11: 5 | H11: 6 | I11: 7 | J11: 8 | K11: 9 | L11: Out | M11: NEVIN
B12: Dist. | C12: 491 | D12: 240 | E12: 375 | F12: 538 | G12: 656 | H12: 317 | I12: 202 | J12: 329 | K12: 593 | L12: =SUM(C12:K12) -> 3741
B13: Par | C13: 4 | D13: 3 | E13: 3 | F13: 4 | G13: 5 | H13: 3 | I13: 3 | J13: 3 | K13: 4 | L13: =SUM(C13:K13) -> 32
B14: Score | C14: 9 | D14: 9 | E14: 9 | F14: 9 | G14: 9 | H14: 9 | I14: 9 | J14: 9 | K14: 9 | L14: 81
B15: Hole | C15: 10 | D15: 11 | E15: 12 | F15: 13 | G15: 14 | H15: 15 | I15: 16 | J15: 17 | K15: 18 | L15: In | M15: Total | T15: NEVIN | U15: Ace | V15: Eag | W15: Bir | X15: Par | Y15: Bog | Z15: Bg+ | AA15: Sno | AB15: Score
B16: Dist. | C16: 630 | D16: 640 | E16: 970 | F16: 274 | G16: 550 | H16: 252 | I16: 596 | J16: 581 | K16: 530 | L16: =SUM(C16:K16) -> 5023 | M16: =L16+L12 -> 8764 | T16: Front | U16: =COUNTIF(C14:K14,"1") -> 0 | V16: =COUNTConditionColorCells($C$14:$K$14,V15) -> 0 | W16: =COUNTConditionColorCells($C$14:$K$14,W15) -> 0 | X16: 0 | Y16: 0 | Z16: 9 | AA16: =COUNTIF(C14:K14,"8") -> 0 | AB16: =L14 -> 81
B17: Par | C17: 5 | D17: 4 | E17: 5 | F17: 3 | G17: 4 | H17: 3 | I17: 4 | J17: 5 | K17: 4 | L17: =SUM(C17:K17) -> 37 | M17: =L17+L13 -> 69 | T17: Back | U17: =COUNTIF(C18:K18,"1") -> 0 | V17: =COUNTConditionColorCells($C$18:$K$18,V15) -> 0 | W17: =COUNTConditionColorCells($C$18:$K$18,W15) -> 0 | X17: 0 | Y17: 0 | Z17: 9 | AA17: =COUNTIF(C18:K18,"8") -> 0 | AB17: =L18 -> 81
B18: Score | C18: 9 | D18: 9 | E18: 9 | F18: 9 | G18: 9 | H18: 9 | I18: 9 | J18: 9 | K18: 9 | L18: =SUM(C18:K18) -> 81 | M18: 162 | T18: Total | U18: =U16+U17 -> 0 | V18: =V16+V17 -> 0 | W18: 0 | X18: 0 | Y18: 0 | Z18: 18 | AA18: =AA16+AA17 -> 0 | AB18: =M18 -> 162
F21: Hole | G21: 1 | H21: 2 | I21: 3 | J21: 4 | K21: 5 | L21: 6 | M21: 7 | N21: 8 | O21: 9 | P21: Out | Q21: RENNY
F22: Dist. | G22: 523 | H22: 519 | I22: 386 | J22: 551 | K22: 392 | L22: 257 | M22: 465 | N22: 323 | O22: 285 | P22: =SUM(G22:O22) -> 3701
F23: Par | G23: 4 | H23: 4 | I23: 4 | J23: 4 | K23: 4 | L23: 3 | M23: 4 | N23: 3 | O23: 3 | P23: =SUM(G23:O23) -> 33
F24: Score | G24: 9 | H24: 9 | I24: 9 | J24: 9 | K24: 9 | L24: 9 | M24: 9 | N24: 9 | O24: 9 | P24: 81
F25: Hole | G25: 10 | H25: 11 | I25: 12 | J25: 13 | K25: 14 | L25: 15 | M25: 16 | N25: 17 | O25: 18 | P25: In | Q25: Total | T25: RENNY | U25: Ace | V25: Eag | W25: Bir | X25: Par | Y25: Bog | Z25: Bg+ | AA25: Sno | AB25: Score
F26: Dist. | G26: 538 | H26: 1042 | I26: 617 | J26: 974 | K26: 564 | L26: 378 | M26: 302 | N26: 517 | O26: 826 | P26: =SUM(G26:O26) -> 5758 | Q26: =P26+P22 -> 9459 | T26: Front | U26: =COUNTIF(G24:O24,"1") -> 0 | V26: =COUNTConditionColorCells($G$24:$O$24,V25) -> 0 | W26: =COUNTConditionColorCells($G$24:$O$24,W25) -> 0 | X26: 0 | Y26: 0 | Z26: 9 | AA26: =COUNTIF(G24:O24,"8") -> 0 | AB26: =P24 -> 81
F27: Par | G27: 4 | H27: 5 | I27: 4 | J27: 5 | K27: 4 | L27: 3 | M27: 3 | N27: 4 | O27: 5 | P27: =SUM(G27:O27) -> 37 | Q27: =P27+P23 -> 70 | T27: Back | U27: =COUNTIF(G28:O28,"1") -> 0 | V27: =COUNTConditionColorCells($G$28:$O$28,V25) -> 0 | W27: =COUNTConditionColorCells($G$28:$O$28,W25) -> 0 | X27: 0 | Y27: 0 | Z27: 9 | AA27: =COUNTIF(G28:O28,"8") -> 0 | AB27: =P28 -> 81
F28: Score | G28: 9 | H28: 9 | I28: 9 | J28: 9 | K28: 9 | L28: 9 | M28: 9 | N28: 9 | O28: 9 | P28: =SUM(G28:O28) -> 81 | Q28: 162 | T28: Total | U28: =U26+U27 -> 0 | V28: =V26+V27 -> 0 | W28: 0 | X28: 0 | Y28: 0 | Z28: 18 | AA28: 0 | AB28: =Q28 -> 162
B30: Nevin #2 - Play from short cement pad (not long pad behind creek). | M30: Player
M31: Witness 1
B32: Turn in your completed, signed score sheet before 9pm | M32: Witness 2
B33: at Divine Barrel Brewery (3701 N. Davidson St). | M33: Witness 3 | T33: FINAL | U33: Ace | V33: Eag | W33: Bir | X33: Par | Y33: Bog | Z33: Bg+ | AA33: Sno | AB33: Score
T34: TOTAL | U34: =SUM(U28,U18,U8) -> 0 | V34: =SUM(V28,V18,V8) -> 0 | W34: 0 | X34: 0 | Y34: 0 | Z34: 54 | AA34: 0 | AB34: 486
